Workbook

Sheet Cover
A1: RIIO Price Control Financial Model (PCFM)
B2: Gas Distribution
C3: =MID(CELL("filename"),SEARCH("[",CELL("filename"))+1,SEARCH("]",CELL("filename"))-SEARCH("[",CELL("filename"))-1) -> RIIO_GD1_FP_ FinancialModel_dec12.xlsm
C4: DISCLAIMER: The purpose of this model is used to calculate Base Revenue (PU) at Final Proposals and MOD terms in subsequent years for Licensees on the basis of Financial Handbook and Licence conditions of the relevant Network Operator
B5: RIIO GD1 Price Control Financial Model for the Annual Iteration Process that will take place by 30 November 2013-14
B6: Model key
E8: Sample | G8: Calculated value | I8: Sample | K8: Information and interface
E9: Sample | G9: Import | I9: Sample | K9: FP fixed input value
E10: Sample | G10: Export | I10: Sample | K10: Annual update input
E11: Sample | G11: Named range | I11: Sample | K11: Input linked from annual update
E12: Sample | G12: Formula change in cells to the right | I12: Sample | K12: Notes and instructions
I13: Sample | K13: Sheet or calculation included in FP Model
B15: Contents
E17: INTERFACE > | I17: COMPANY SPECIFIC INPUT SHEETS >
E18: Cover | G18: Model key and content directory
E19: UserInterface | G19: Model operation | I19: East | K19: Inputs for East DNO
E20: TaxTrigger | G20: Tax trigger calculations | I20: London | K20: Inputs for London DNO
E21: INPUT SELECTION > | I21: North West | K21: Inputs for North West DNO
E22: Input | G22: Inputs for selected licensee | I22: West Midlands | K22: Inputs for West Midlands DNO
E23: CALCULATION > | I23: Northern | K23: Inputs for Northern DNO
E24: Totex | G24: Totex allowance and actuals | I24: Scotland | K24: Inputs for Scotland DNO
E25: TIM | G25: Totex Incentive Mechanism and capitalisation | I25: Southern | K25: Inputs for Southern DNO
E26: DARTs | G26: Direct Allowance Revenue Terms | I26: Wales & West | K26: Inputs for Wales & West DNO
E27: Depn | G27: Gas distribution regulatory depreciation
E28: FuelPoor | G28: Fuel poor RAV calculations
E29: Return&RAV | G29: RAV and return calculations
E30: TaxPools | G30: Tax pools and capital allowances
E31: Finance&Tax | G31: Net debt, equity issuance, financing costs and tax
E32: Revenue | G32: Revenue and MOD
E33: OUTPUT >
E34: ResultsLive | G34: Results for selected company
E35: SavedResults | G35: Saved results for all companies
E36: FinancialStatements | G36: Financial statements for selected company
E37: FinancialRatios | G37: Financial ratios for selected company
E38: RoRE | G38: Return on Regulatory Equity calculations for selected company
E39: Bill impact | G39: Bill impact for all companies
B41: End of sheet

Sheet UserInterface
A1: User Interface
B3: Model operation
C5: Ratio switch
E8: Select view
E10: Year t selected: | G10: =INDEX(E71:E72,E73) -> Ratio switch fast/ slow
C12: PCFM year t
C13: Instruction: Use the following drop-down list to identify year t in the model. Year t is identified here by its end date.
E15: Year t selection:
E17: Year t selected: | G17: =EOMONTH(41364,G61*12) -> 2014-03-31
C19: Active company
C20: Instruction: Use the following drop-down list to select the active company in the model.
E22: Company selection:
E24: Selected company: | G24: =INDEX(E53:E60, E61) -> Wales & West
C26: Model state
C27: Instruction: Use the following drop-down list to set the model state and run it as either the "Licence Model" or the "Tax Trigger Tool."
C28: Note: "Tax Trigger Tool" must be selected here for functionality on the "TaxTrigger" sheet to function.
C29: Selecting "Licence Model" ensures that the Tax Trigger Tool functionality is deactivated and does not affect the calculations in the model.
E31: Model status selection:
E33: Selected model status: | G33: =INDEX(E65:E66, E67) -> Licence Model
C35: Run model for all licensees
C36: Instruction: Click on the left button to save results for the selected company only. Click the right button to save results for all.
C37: Note: Annual iterations must have been completed for all prior years before running the model to generate MOD.
C38: The macros save results and values required for future years which cannot be recreated once inputs are revised.
C39: Running the macro saves the output from year t's iteration for use in future iterations.
C40: Results for the selected company can be found on the "LiveResults" sheet and also on the "SavedResults" sheet once saved by a macro.
B46: User selection lists
B47: Note: The lists below drive the drop-down lists above.
B48: Using the drop-down lists above returns an integer in the "cell link" positioned below their "source list."
B49: The number returned in the cell link corresponds to the position of the selected item in the source list.
B50: The company selection output is set as a "named range." This gives a stable anchor point for the "RunForAll" macro to change the company.
E52: ="Source for ''"&C19&"'' drop-down list" -> Source for ''Active company'' drop-down list | G52: ="Source for ''"&C12&"'' drop-down list" -> Source for ''PCFM year t'' drop-down list
E53: East | G53: 2014-03-31
E54: London | G54: 2015-03-31
E55: North West | G55: 2016-03-31
E56: West Midlands | G56: 2017-03-31
E57: Northern | G57: 2018-03-31
E58: Scotland | G58: 2019-03-31
E59: Southern | G59: 2020-03-31
E60: Wales & West | G60: 2021-03-31
E61: 8 | G61: 1
E62: Adjacent named range: m_identity | G62: Adjacent named range: m_PCFM_year_t
E64: ="Source for ''"&C26&"'' drop-down list" -> Source for ''Model state'' drop-down list
E65: Licence Model
E66: Tax Trigger Tool
E67: 1
E68: Adjacent named range: m_model_state
E70: ="Source for ''"&C5&"'' drop-down list" -> Source for ''Ratio switch'' drop-down list
E71: Ratio switch opex/ capex
E72: Ratio switch fast/ slow
E73: 2
B76: End of sheet

Sheet TaxTrigger
A1: Tax Trigger
B2: =UserInterface!G24 -> Wales & West
E3: Parameter | G3: Units | I3: Constant | AH3: Annual values
E4: PCFM year ending | I4: =UserInterface!$G$17 -> 2014-03-31 | K4: 1991-03-31 | L4: 1992-03-31 | M4: 1993-03-31 | N4: 1994-03-31 | O4: 1995-03-31 | P4: 1996-03-31 | Q4: 1997-03-31 | R4: 1998-03-31 | S4: 1999-03-31 | T4: 2000-03-31 | U4: 2001-03-31 | V4: 2002-03-31 | W4: 2003-03-31 | X4: 2004-03-31 | Y4: 2005-03-31 | Z4: 2006-03-31 | AA4: 2007-03-31 | AB4: 2008-03-31 | AC4: 2009-03-31 | AD4: 2010-03-31 | AE4: 2011-03-31 | AF4: 2012-03-31 | AG4: 2013-03-31 | AH4: 2014-03-31 | AI4: 2015-03-31 | AJ4: 2016-03-31 | AK4: 2017-03-31 | AL4: 2018-03-31 | AM4: 2019-03-31 | AN4: 2020-03-31 | AO4: 2021-03-31
B6: Tax trigger calculation
C8: Test operation
C9: Instruction: To run the model as the Tax Trigger Tool, the "model state" must be set to "Tax Trigger Tool" on the "UserInterface" sheet. The model state selected is shown below.
C10: Clicking the macro button below runs the "TaxTrigger" macro, performing the Tax Trigger adjustment calculation for the selected licensee for year t.
C11: The output generated by the macro can be replicated manually using the following steps:
C12: 1. Clear any values from previous tests in the "Test state output" section below (named range "m_saved_original_results")
C13: 2. Set testing state to "Licence Model"
C14: 3. Copy the cells marked as the "m_calculated_tax" named range and paste them at the named range "m_saved_original_test."
C15: 4. Set testing state to "Tax Trigger Calculation"
C16: Note: The Tax Trigger Tool is disabled if the "Model state" below reads "Licence Model."
E18: Model state
E19: =UserInterface!G33 -> Licence Model
E22: State selection
E25: State options
E26: Licence Model
E27: Tax Trigger Calculation
E28: 2
E29: Adjacent named range: m_tax_trigger_state
E31: State selected
E32: =IF(E19 = "Licence Model", "Licence Model", INDEX(E26:E27, E28)) -> Licence Model
E34: Run macro
C40: Tax calculation
I42: Instruction
E43: Tax allowance before tax trigger | G43: £m 09/10 prices | AH43: ='Finance&Tax'!AH187 * Input!$AD$41 / Input!AH$41 -> 0 | AI43: ='Finance&Tax'!AI187 * Input!$AD$41 / Input!AI$41 -> 0 | AJ43: ='Finance&Tax'!AJ187 * Input!$AD$41 / Input!AJ$41 -> 0 | AK43: ='Finance&Tax'!AK187 * Input!$AD$41 / Input!AK$41 -> 5.418559206 | AL43: ='Finance&Tax'!AL187 * Input!$AD$41 / Input!AL$41 -> 20.28588207 | AM43: ='Finance&Tax'!AM187 * Input!$AD$41 / Input!AM$41 -> 19.05155767 | AN43: ='Finance&Tax'!AN187 * Input!$AD$41 / Input!AN$41 -> 18.5000332 | AO43: ='Finance&Tax'!AO187 * Input!$AD$41 / Input!AO$41 -> 17.9839311
E44: B event value | G44: £m 09/10 prices | AH44: =AH122 -> 0 | AI44: =AI122 -> 0 | AJ44: 0 | AK44: 0 | AL44: 0 | AM44: 0 | AN44: 0 | AO44: 0
E45: Threshold value adjustment | G45: £m 09/10 prices | AH45: =AH73 -> 0 | AI45: =AI73 -> 0 | AJ45: 0 | AK45: 0 | AL45: 0 | AM45: 0 | AN45: 0 | AO45: 0
E46: Tax allowance | G46: £m 09/10 prices | I46: =IF(m_tax_trigger_state = 1, "Copy cells -->", "-") -> - | AH46: =SUM(AH43:AH45) -> 0 | AI46: 0 | AJ46: 0 | AK46: 5.418559206 | AL46: 20.28588207 | AM46: 19.05155767 | AN46: 18.5000332 | AO46: 17.9839311
AH47: Adjacent named range: m_calculated_tax
C48: Test state output
C49: Note: The formula determines whether the recalculated tax is above or below the threshold and sets the adjustment accordingly
I51: Instruction
E52: Value with original settings | G52: £m 09/10 prices | I52: =IF( m_tax_trigger_state = 1, "Paste cells -->","-") -> - | AG52: m_tax_trigger_results
AH53: Named ranges above: m_saved_original_test
E54: Value with new settings and threshold adjustment | G54: £m 09/10 prices | AH54: =AH46 -> 0 | AI54: =AI46 -> 0 | AJ54: 0 | AK54: 5.418559206 | AL54: 20.28588207 | AM54: 19.05155767 | AN54: 18.5000332 | AO54: 17.9839311
C56: Result and output
C57: Note: Once the test is complete, the "Tax Trigger adjustment" below can be taken from below and inputted to the PCFM set to run as the Licence Model, rather than the Tax Trigger Tool.
E59: Tax trigger adjustment | G59: £m 09/10 prices | AH59: =IF(AND(m_tax_trigger_state=2,m_model_state=2),IF(ABS(AH54-AH52)> ABS(AH73), AH54 - AH52, 0),0) -> 0 | AI59: 0 | AJ59: 0 | AK59: 0 | AL59: 0 | AM59: 0 | AN59: 0 | AO59: 0
B61: Tax trigger parameters
B62: Instruction: Enter values in the yellow cells below for use in the Tax Trigger test.
B63: Note: Flags are used throughout to indicate whether the original or Tax Trigger value is being used. The live values below are exported for use throughout the model.
C65: Active policy
E67: Tax trigger tax settings are used | G67: flag | AH67: =IF(AND(AH$4 <= $I4, m_tax_trigger_state = 2, UserInterface!$G$33 = "Tax Trigger Tool"), TRUE, FALSE) -> FALSE | AI67: =IF(AND(AI$4 <= $I4, m_tax_trigger_state = 2, UserInterface!$G$33 = "Tax Trigger Tool"), TRUE, FALSE) -> FALSE | AJ67: =IF(AND(AJ$4 <= $I4, m_tax_trigger_state = 2, UserInterface!$G$33 = "Tax Trigger Tool"), TRUE, FALSE) -> FALSE | AK67: =IF(AND(AK$4 <= $I4, m_tax_trigger_state = 2, UserInterface!$G$33 = "Tax Trigger Tool"), TRUE, FALSE) -> FALSE | AL67: =IF(AND(AL$4 <= $I4, m_tax_trigger_state = 2, UserInterface!$G$33 = "Tax Trigger Tool"), TRUE, FALSE) -> FALSE | AM67: =IF(AND(AM$4 <= $I4, m_tax_trigger_state = 2, UserInterface!$G$33 = "Tax Trigger Tool"), TRUE, FALSE) -> FALSE | AN67: =IF(AND(AN$4 <= $I4, m_tax_trigger_state = 2, UserInterface!$G$33 = "Tax Trigger Tool"), TRUE, FALSE) -> FALSE | AO67: =IF(AND(AO$4 <= $I4, m_tax_trigger_state = 2, UserInterface!$G$33 = "Tax Trigger Tool"), TRUE, FALSE) -> FALSE
C69: Threshold
E71: Threshold value | G71: £m 09/10 prices
E73: Threshold value applied | G73: £m 09/10 prices | AH73: =IF(OR(AH43 = AH52, AH52 = ""), 0, IF(AH52 < AH43, -AH71, +AH71)) -> 0 | AI73: =IF(OR(AI43 = AI52, AI52 = ""), 0, IF(AI52 < AI43, -AI71, +AI71)) -> 0 | AJ73: 0 | AK73: 0 | AL73: 0 | AM73: 0 | AN73: 0 | AO73: 0
C75: Corporation tax rate
E77: Active | G77: text | AH77: =AH$67 = FALSE() -> TRUE | AI77: TRUE | AJ77: TRUE | AK77: TRUE | AL77: TRUE | AM77: TRUE | AN77: TRUE | AO77: TRUE
E78: RIIO | G78: % | J78: > | Y78: =Input!Y213 -> 0.3 | Z78: =Input!Z213 -> 0.3 | AA78: =Input!AA213 -> 0.3 | AB78: =Input!AB213 -> 0.3 | AC78: =Input!AC213 -> 0.28 | AD78: =Input!AD213 -> 0.28 | AE78: =Input!AE213 -> 0.28 | AF78: =Input!AF213 -> 0.26 | AG78: =Input!AG213 -> 0.24 | AH78: =Input!AH213 -> 0.23 | AI78: =Input!AI213 -> 0.21 | AJ78: =Input!AJ213 -> 0.21 | AK78: =Input!AK213 -> 0.21 | AL78: =Input!AL213 -> 0.21 | AM78: =Input!AM213 -> 0.21 | AN78: =Input!AN213 -> 0.21 | AO78: =Input!AO213 -> 0.21
E80: Active | G80: text | AH80: =AH$67 -> FALSE | AI80: FALSE | AJ80: FALSE | AK80: FALSE | AL80: FALSE | AM80: FALSE | AN80: FALSE | AO80: FALSE
E81: Tax trigger | G81: % | AH81: =AH78 -> 0.23 | AI81: 0.21 | AJ81: 0.22 | AK81: 0.22 | AL81: 0.21 | AM81: 0.21 | AN81: 0.21 | AO81: 0.21
E83: Applied | G83: % | J83: > | Y83: =Y78 -> 0.3 | Z83: =Z78 -> 0.3 | AA83: =AA78 -> 0.3 | AB83: 0.3 | AC83: 0.28 | AD83: 0.28 | AE83: 0.28 | AF83: 0.26 | AG83: 0.24 | AH83: =(AH77 * AH78) + (AH80 * AH81) -> 0.23 | AI83: =(AI77 * AI78) + (AI80 * AI81) -> 0.21 | AJ83: 0.21 | AK83: 0.21 | AL83: 0.21 | AM83: 0.21 | AN83: 0.21 | AO83: 0.21
C85: Capital allowance rate
D87: General pool
E89: Active | G89: text | AH89: =AH$67 = FALSE() -> TRUE | AI89: TRUE | AJ89: TRUE | AK89: TRUE | AL89: TRUE | AM89: TRUE | AN89: TRUE | AO89: TRUE
E90: RIIO | G90: % | V90: =Input!V215 -> 0.25 | W90: =Input!W215 -> 0.25 | X90: =Input!X215 -> 0.25 | Y90: =Input!Y215 -> 0.25 | Z90: =Input!Z215 -> 0.25 | AA90: =Input!AA215 -> 0.25 | AB90: =Input!AB215 -> 0.25 | AC90: =Input!AC215 -> 0.2 | AD90: =Input!AD215 -> 0.2 | AE90: =Input!AE215 -> 0.2 | AF90: =Input!AF215 -> 0.2 | AG90: =Input!AG215 -> 0.18 | AH90: =Input!AH215 -> 0.18 | AI90: =Input!AI215 -> 0.18 | AJ90: =Input!AJ215 -> 0.18 | AK90: =Input!AK215 -> 0.18 | AL90: =Input!AL215 -> 0.18 | AM90: =Input!AM215 -> 0.18 | AN90: =Input!AN215 -> 0.18 | AO90: =Input!AO215 -> 0.18
E92: Active | G92: text | AH92: =AH$67 -> FALSE | AI92: FALSE | AJ92: FALSE | AK92: FALSE | AL92: FALSE | AM92: FALSE | AN92: FALSE | AO92: FALSE
E93: Tax trigger | G93: % | AH93: =AH90 -> 0.18 | AI93: =AI90 -> 0.18 | AJ93: 0.18 | AK93: 0.18 | AL93: 0.18 | AM93: 0.18 | AN93: 0.18 | AO93: 0.18
E95: Applied | G95: % | V95: =V90 -> 0.25 | W95: 0.25 | X95: 0.25 | Y95: 0.25 | Z95: 0.25 | AA95: 0.25 | AB95: 0.25 | AC95: 0.2 | AD95: 0.2 | AE95: 0.2 | AF95: 0.2 | AG95: =AG90 -> 0.18 | AH95: =(AH89 * AH90) + (AH92 * AH93) -> 0.18 | AI95: 0.18 | AJ95: 0.18 | AK95: 0.18 | AL95: 0.18 | AM95: 0.18 | AN95: 0.18 | AO95: 0.18
D97: Special Rate pool
E99: Active | G99: text | AH99: =AH$67 = FALSE() -> TRUE | AI99: TRUE | AJ99: TRUE | AK99: TRUE | AL99: TRUE | AM99: TRUE | AN99: TRUE | AO99: TRUE
E100: RIIO | G100: % | J100: > | V100: =Input!V216 -> 0.06 | W100: =Input!W216 -> 0.06 | X100: =Input!X216 -> 0.06 | Y100: =Input!Y216 -> 0.06 | Z100: =Input!Z216 -> 0.06 | AA100: =Input!AA216 -> 0.06 | AB100: =Input!AB216 -> 0.06 | AC100: =Input!AC216 -> 0.1 | AD100: =Input!AD216 -> 0.1 | AE100: =Input!AE216 -> 0.1 | AF100: =Input!AF216 -> 0.1 | AG100: =Input!AG216 -> 0.08 | AH100: =Input!AH216 -> 0.08 | AI100: =Input!AI216 -> 0.08 | AJ100: =Input!AJ216 -> 0.08 | AK100: =Input!AK216 -> 0.08 | AL100: =Input!AL216 -> 0.08 | AM100: =Input!AM216 -> 0.08 | AN100: =Input!AN216 -> 0.08 | AO100: =Input!AO216 -> 0.08
E102: Active | G102: text | AH102: =AH$67 -> FALSE | AI102: FALSE | AJ102: FALSE | AK102: FALSE | AL102: FALSE | AM102: FALSE | AN102: FALSE | AO102: FALSE
E103: Tax trigger | G103: % | AH103: =AH100 -> 0.08 | AI103: =AI100 -> 0.08 | AJ103: 0.08 | AK103: 0.08 | AL103: 0.08 | AM103: 0.08 | AN103: 0.08 | AO103: 0.08
E105: Applied | G105: % | J105: > | V105: =V100 -> 0.06 | W105: =W100 -> 0.06 | X105: =X100 -> 0.06 | Y105: =Y100 -> 0.06 | Z105: =Z100 -> 0.06 | AA105: =AA100 -> 0.06 | AB105: 0.06 | AC105: 0.1 | AD105: 0.1 | AE105: 0.1 | AF105: 0.1 | AG105: 0.08 | AH105: =(AH99 * AH100) + (AH102 * AH103) -> 0.08 | AI105: 0.08 | AJ105: 0.08 | AK105: 0.08 | AL105: 0.08 | AM105: 0.08 | AN105: 0.08 | AO105: 0.08
D107: Deferred revenue writing down allowance rate
E109: Active | G109: text | AH109: =AH$67 = FALSE() -> TRUE | AI109: TRUE | AJ109: TRUE | AK109: TRUE | AL109: TRUE | AM109: TRUE | AN109: TRUE | AO109: TRUE
E110: RIIO | G110: % | J110: > | V110: =Input!V217 -> 0 | W110: =Input!W217 -> 0 | X110: =Input!X217 -> 0 | Y110: =Input!Y217 -> 0 | Z110: =Input!Z217 -> 0 | AA110: =Input!AA217 -> 0 | AB110: =Input!AB217 -> 0 | AC110: =Input!AC217 -> 0 | AD110: =Input!AD217 -> 0 | AE110: =Input!AE217 -> 0 | AF110: =Input!AF217 -> 0 | AG110: =Input!AG217 -> 0 | AH110: =Input!AH217 -> 0.0222 | AI110: =Input!AI217 -> 0.0222 | AJ110: =Input!AJ217 -> 0.0222 | AK110: =Input!AK217 -> 0.0222 | AL110: =Input!AL217 -> 0.0222 | AM110: =Input!AM217 -> 0.0222 | AN110: =Input!AN217 -> 0.0222 | AO110: =Input!AO217 -> 0.0222
E112: Active | G112: text | AH112: =AH$67 -> FALSE | AI112: FALSE | AJ112: FALSE | AK112: FALSE | AL112: FALSE | AM112: FALSE | AN112: FALSE | AO112: FALSE
E113: Tax trigger | G113: % | AH113: =AH110 -> 0.0222 | AI113: =AI110 -> 0.0222 | AJ113: 0.0222 | AK113: 0.0222 | AL113: 0.0222 | AM113: 0.0222 | AN113: 0.0222 | AO113: 0.0222
E115: Applied | G115: % | J115: > | V115: =V110 -> 0 | W115: 0 | X115: 0 | Y115: 0 | Z115: 0 | AA115: 0 | AB115: 0 | AC115: 0 | AD115: 0 | AE115: 0 | AF115: 0 | AG115: =AG110 -> 0 | AH115: =(AH109 * AH110) + (AH112 * AH113) -> 0.0222 | AI115: 0.0222 | AJ115: 0.0222 | AK115: 0.0222 | AL115: 0.0222 | AM115: 0.0222 | AN115: 0.0222 | AO115: 0.0222
C117: B event value
E119: Active | G119: text | AH119: =AH$67 -> FALSE | AI119: FALSE | AJ119: FALSE | AK119: FALSE | AL119: FALSE | AM119: FALSE | AN119: FALSE | AO119: FALSE
E120: Tax trigger | G120: £m 09/10 prices | AH120: 0 | AI120: 0 | AJ120: 0 | AK120: 0 | AL120: 0 | AM120: 0 | AN120: 0 | AO120: 0
E122: Applied | G122: £m 09/10 prices | AH122: =AH119 * AH120 -> 0 | AI122: =AI119 * AI120 -> 0 | AJ122: 0 | AK122: 0 | AL122: 0 | AM122: 0 | AN122: 0 | AO122: 0
B124: End of sheet

Sheet MOD
A1: MOD
B2: =UserInterface!G24 -> Wales & West
E3: Parameter | G3: Units | I3: Constant | AH3: Annual values
E4: PCFM year ending | I4: =UserInterface!$G$17 -> 2014-03-31 | K4: 1991-03-31 | L4: 1992-03-31 | M4: 1993-03-31 | N4: 1994-03-31 | O4: 1995-03-31 | P4: 1996-03-31 | Q4: 1997-03-31 | R4: 1998-03-31 | S4: 1999-03-31 | T4: 2000-03-31 | U4: 2001-03-31 | V4: 2002-03-31 | W4: 2003-03-31 | X4: 2004-03-31 | Y4: 2005-03-31 | Z4: 2006-03-31 | AA4: 2007-03-31 | AB4: 2008-03-31 | AC4: 2009-03-31 | AD4: 2010-03-31 | AE4: 2011-03-31 | AF4: 2012-03-31 | AG4: 2013-03-31 | AH4: 2014-03-31 | AI4: 2015-03-31 | AJ4: 2016-03-31 | AK4: 2017-03-31 | AL4: 2018-03-31 | AM4: 2019-03-31 | AN4: 2020-03-31 | AO4: 2021-03-31
E6: =UserInterface!E17 -> Year t selected: | G6: =UserInterface!G17 -> 2014-03-31
E8: =Revenue!E64 -> Final Proposals base revenue | AH8: =Revenue!AH64 -> 348.6479636 | AI8: =Revenue!AI64 -> 344.2832064 | AJ8: =Revenue!AJ64 -> 339.211395 | AK8: =Revenue!AK64 -> 340.2257805 | AL8: =Revenue!AL64 -> 351.5247635 | AM8: =Revenue!AM64 -> 347.8234512 | AN8: =Revenue!AN64 -> 347.2440462 | AO8: =Revenue!AO64 -> 345.0446224
E9: =Revenue!E65 -> MOD | AH9: =Revenue!AH65 -> 0 | AI9: =Revenue!AI65 -> 0 | AJ9: =Revenue!AJ65 -> 0 | AK9: =Revenue!AK65 -> 0 | AL9: =Revenue!AL65 -> 0 | AM9: =Revenue!AM65 -> 0 | AN9: =Revenue!AN65 -> 0 | AO9: =Revenue!AO65 -> 0
E10: =Revenue!E66 -> Base revenue | AH10: =Revenue!AH66 -> 348.6479636 | AI10: =Revenue!AI66 -> 344.2832064 | AJ10: =Revenue!AJ66 -> 339.211395 | AK10: =Revenue!AK66 -> 340.2257805 | AL10: =Revenue!AL66 -> 351.5247635 | AM10: =Revenue!AM66 -> 347.8234512 | AN10: =Revenue!AN66 -> 347.2440462 | AO10: =Revenue!AO66 -> 345.0446224

Sheet Input
A1: Input
B2: =UserInterface!G24 -> Wales & West | E2: x
E3: Parameter | F3: Licence condition | G3: Units | H3: Term | I3: Constant | AH3: Annual values
E4: PCFM year ending | F4: =Cover!C3 -> RIIO_GD1_FP_ FinancialModel_dec12.xlsm | I4: =UserInterface!$G$17 -> 2014-03-31 | K4: 1991-03-31 | L4: 1992-03-31 | M4: 1993-03-31 | N4: 1994-03-31 | O4: 1995-03-31 | P4: 1996-03-31 | Q4: 1997-03-31 | R4: 1998-03-31 | S4: 1999-03-31 | T4: 2000-03-31 | U4: 2001-03-31 | V4: 2002-03-31 | W4: 2003-03-31 | X4: 2004-03-31 | Y4: 2005-03-31 | Z4: 2006-03-31 | AA4: 2007-03-31 | AB4: 2008-03-31 | AC4: 2009-03-31 | AD4: 2010-03-31 | AE4: 2011-03-31 | AF4: 2012-03-31 | AG4: 2013-03-31 | AH4: 2014-03-31 | AI4: 2015-03-31 | AJ4: 2016-03-31 | AK4: 2017-03-31 | AL4: 2018-03-31 | AM4: 2019-03-31 | AN4: 2020-03-31 | AO4: 2021-03-31
B6: PCFM Variable Values Table
E8: Allowed percentage cost of debt | F8: 3C | G8: annual real % | H8: CDE | AH8: =CHOOSE(m_identity,East!AH8, London!AH8, 'North West'!AH8, 'West Midlands'!AH8, Northern!AH8, Scotland!AH8, Southern!AH8, 'Wales & West'!AH8) -> 0.0292 | AI8: =CHOOSE(m_identity,East!AI8, London!AI8, 'North West'!AI8, 'West Midlands'!AI8, Northern!AI8, Scotland!AI8, Southern!AI8, 'Wales & West'!AI8) -> 0.0292 | AJ8: =CHOOSE(m_identity,East!AJ8, London!AJ8, 'North West'!AJ8, 'West Midlands'!AJ8, Northern!AJ8, Scotland!AJ8, Southern!AJ8, 'Wales & West'!AJ8) -> 0.0292 | AK8: =CHOOSE(m_identity,East!AK8, London!AK8, 'North West'!AK8, 'West Midlands'!AK8, Northern!AK8, Scotland!AK8, Southern!AK8, 'Wales & West'!AK8) -> 0.0292 | AL8: =CHOOSE(m_identity,East!AL8, London!AL8, 'North West'!AL8, 'West Midlands'!AL8, Northern!AL8, Scotland!AL8, Southern!AL8, 'Wales & West'!AL8) -> 0.0292 | AM8: =CHOOSE(m_identity,East!AM8, London!AM8, 'North West'!AM8, 'West Midlands'!AM8, Northern!AM8, Scotland!AM8, Southern!AM8, 'Wales & West'!AM8) -> 0.0292 | AN8: =CHOOSE(m_identity,East!AN8, London!AN8, 'North West'!AN8, 'West Midlands'!AN8, Northern!AN8, Scotland!AN8, Southern!AN8, 'Wales & West'!AN8) -> 0.0292 | AO8: =CHOOSE(m_identity,East!AO8, London!AO8, 'North West'!AO8, 'West Midlands'!AO8, Northern!AO8, Scotland!AO8, Southern!AO8, 'Wales & West'!AO8) -> 0.0292
E9: Actual load related capex | F9: 3B | G9: £m 09/10 prices | H9: ALC | AH9: =CHOOSE(m_identity,East!AH9, London!AH9, 'North West'!AH9, 'West Midlands'!AH9, Northern!AH9, Scotland!AH9, Southern!AH9, 'Wales & West'!AH9) -> 31.82987568 | AI9: =CHOOSE(m_identity,East!AI9, London!AI9, 'North West'!AI9, 'West Midlands'!AI9, Northern!AI9, Scotland!AI9, Southern!AI9, 'Wales & West'!AI9) -> 31.93875758 | AJ9: =CHOOSE(m_identity,East!AJ9, London!AJ9, 'North West'!AJ9, 'West Midlands'!AJ9, Northern!AJ9, Scotland!AJ9, Southern!AJ9, 'Wales & West'!AJ9) -> 30.44551955 | AK9: =CHOOSE(m_identity,East!AK9, London!AK9, 'North West'!AK9, 'West Midlands'!AK9, Northern!AK9, Scotland!AK9, Southern!AK9, 'Wales & West'!AK9) -> 31.48135267 | AL9: =CHOOSE(m_identity,East!AL9, London!AL9, 'North West'!AL9, 'West Midlands'!AL9, Northern!AL9, Scotland!AL9, Southern!AL9, 'Wales & West'!AL9) -> 31.630756 | AM9: =CHOOSE(m_identity,East!AM9, London!AM9, 'North West'!AM9, 'West Midlands'!AM9, Northern!AM9, Scotland!AM9, Southern!AM9, 'Wales & West'!AM9) -> 30.19907456 | AN9: =CHOOSE(m_identity,East!AN9, London!AN9, 'North West'!AN9, 'West Midlands'!AN9, Northern!AN9, Scotland!AN9, Southern!AN9, 'Wales & West'!AN9) -> 29.28880533 | AO9: =CHOOSE(m_identity,East!AO9, London!AO9, 'North West'!AO9, 'West Midlands'!AO9, Northern!AO9, Scotland!AO9, Southern!AO9, 'Wales & West'!AO9) -> 31.63705384
E10: Actual other capex | F10: 3B | G10: £m 09/10 prices | H10: AOC | AH10: =CHOOSE(m_identity,East!AH10, London!AH10, 'North West'!AH10, 'West Midlands'!AH10, Northern!AH10, Scotland!AH10, Southern!AH10, 'Wales & West'!AH10) -> 22.44310093 | AI10: =CHOOSE(m_identity,East!AI10, London!AI10, 'North West'!AI10, 'West Midlands'!AI10, Northern!AI10, Scotland!AI10, Southern!AI10, 'Wales & West'!AI10) -> 21.27641564 | AJ10: =CHOOSE(m_identity,East!AJ10, London!AJ10, 'North West'!AJ10, 'West Midlands'!AJ10, Northern!AJ10, Scotland!AJ10, Southern!AJ10, 'Wales & West'!AJ10) -> 16.04170714 | AK10: =CHOOSE(m_identity,East!AK10, London!AK10, 'North West'!AK10, 'West Midlands'!AK10, Northern!AK10, Scotland!AK10, Southern!AK10, 'Wales & West'!AK10) -> 13.16274495 | AL10: =CHOOSE(m_identity,East!AL10, London!AL10, 'North West'!AL10, 'West Midlands'!AL10, Northern!AL10, Scotland!AL10, Southern!AL10, 'Wales & West'!AL10) -> 12.05347038 | AM10: =CHOOSE(m_identity,East!AM10, London!AM10, 'North West'!AM10, 'West Midlands'!AM10, Northern!AM10, Scotland!AM10, Southern!AM10, 'Wales & West'!AM10) -> 11.94741037 | AN10: =CHOOSE(m_identity,East!AN10, London!AN10, 'North West'!AN10, 'West Midlands'!AN10, Northern!AN10, Scotland!AN10, Southern!AN10, 'Wales & West'!AN10) -> 15.62915458 | AO10: =CHOOSE(m_identity,East!AO10, London!AO10, 'North West'!AO10, 'West Midlands'!AO10, Northern!AO10, Scotland!AO10, Southern!AO10, 'Wales & West'!AO10) -> 15.09644943
E11: Actual controllable opex | F11: 3B | G11: £m 09/10 prices | H11: ACO | AH11: =CHOOSE(m_identity,East!AH11, London!AH11, 'North West'!AH11, 'West Midlands'!AH11, Northern!AH11, Scotland!AH11, Southern!AH11, 'Wales & West'!AH11) -> 83.60658371 | AI11: =CHOOSE(m_identity,East!AI11, London!AI11, 'North West'!AI11, 'West Midlands'!AI11, Northern!AI11, Scotland!AI11, Southern!AI11, 'Wales & West'!AI11) -> 82.72343099 | AJ11: =CHOOSE(m_identity,East!AJ11, London!AJ11, 'North West'!AJ11, 'West Midlands'!AJ11, Northern!AJ11, Scotland!AJ11, Southern!AJ11, 'Wales & West'!AJ11) -> 85.77209504 | AK11: =CHOOSE(m_identity,East!AK11, London!AK11, 'North West'!AK11, 'West Midlands'!AK11, Northern!AK11, Scotland!AK11, Southern!AK11, 'Wales & West'!AK11) -> 85.3019903 | AL11: =CHOOSE(m_identity,East!AL11, London!AL11, 'North West'!AL11, 'West Midlands'!AL11, Northern!AL11, Scotland!AL11, Southern!AL11, 'Wales & West'!AL11) -> 84.1913176 | AM11: =CHOOSE(m_identity,East!AM11, London!AM11, 'North West'!AM11, 'West Midlands'!AM11, Northern!AM11, Scotland!AM11, Southern!AM11, 'Wales & West'!AM11) -> 85.34638066 | AN11: =CHOOSE(m_identity,East!AN11, London!AN11, 'North West'!AN11, 'West Midlands'!AN11, Northern!AN11, Scotland!AN11, Southern!AN11, 'Wales & West'!AN11) -> 85.5134139 | AO11: =CHOOSE(m_identity,East!AO11, London!AO11, 'North West'!AO11, 'West Midlands'!AO11, Northern!AO11, Scotland!AO11, Southern!AO11, 'Wales & West'!AO11) -> 83.8367822
E12: Actual replacement expenditure | F12: 3B | G12: £m 09/10 prices | H12: ARE | AH12: =CHOOSE(m_identity,East!AH12, London!AH12, 'North West'!AH12, 'West Midlands'!AH12, Northern!AH12, Scotland!AH12, Southern!AH12, 'Wales & West'!AH12) -> 78.66758992 | AI12: =CHOOSE(m_identity,East!AI12, London!AI12, 'North West'!AI12, 'West Midlands'!AI12, Northern!AI12, Scotland!AI12, Southern!AI12, 'Wales & West'!AI12) -> 78.59212862 | AJ12: =CHOOSE(m_identity,East!AJ12, London!AJ12, 'North West'!AJ12, 'West Midlands'!AJ12, Northern!AJ12, Scotland!AJ12, Southern!AJ12, 'Wales & West'!AJ12) -> 78.83335117 | AK12: =CHOOSE(m_identity,East!AK12, London!AK12, 'North West'!AK12, 'West Midlands'!AK12, Northern!AK12, Scotland!AK12, Southern!AK12, 'Wales & West'!AK12) -> 78.29233753 | AL12: =CHOOSE(m_identity,East!AL12, London!AL12, 'North West'!AL12, 'West Midlands'!AL12, Northern!AL12, Scotland!AL12, Southern!AL12, 'Wales & West'!AL12) -> 79.32839377 | AM12: =CHOOSE(m_identity,East!AM12, London!AM12, 'North West'!AM12, 'West Midlands'!AM12, Northern!AM12, Scotland!AM12, Southern!AM12, 'Wales & West'!AM12) -> 79.27061981 | AN12: =CHOOSE(m_identity,East!AN12, London!AN12, 'North West'!AN12, 'West Midlands'!AN12, Northern!AN12, Scotland!AN12, Southern!AN12, 'Wales & West'!AN12) -> 79.20850616 | AO12: =CHOOSE(m_identity,East!AO12, London!AO12, 'North West'!AO12, 'West Midlands'!AO12, Northern!AO12, Scotland!AO12, Southern!AO12, 'Wales & West'!AO12) -> 77.88375687
E13: Allowed uncertain costs (Enhanced physical site security) | F13: 3F | G13: £m 09/10 prices | H13: IAEEPS | AH13: =CHOOSE(m_identity,East!AH13, London!AH13, 'North West'!AH13, 'West Midlands'!AH13, Northern!AH13, Scotland!AH13, Southern!AH13, 'Wales & West'!AH13) -> 0 | AI13: =CHOOSE(m_identity,East!AI13, London!AI13, 'North West'!AI13, 'West Midlands'!AI13, Northern!AI13, Scotland!AI13, Southern!AI13, 'Wales & West'!AI13) -> 0 | AJ13: =CHOOSE(m_identity,East!AJ13, London!AJ13, 'North West'!AJ13, 'West Midlands'!AJ13, Northern!AJ13, Scotland!AJ13, Southern!AJ13, 'Wales & West'!AJ13) -> 0 | AK13: =CHOOSE(m_identity,East!AK13, London!AK13, 'North West'!AK13, 'West Midlands'!AK13, Northern!AK13, Scotland!AK13, Southern!AK13, 'Wales & West'!AK13) -> 0 | AL13: =CHOOSE(m_identity,East!AL13, London!AL13, 'North West'!AL13, 'West Midlands'!AL13, Northern!AL13, Scotland!AL13, Southern!AL13, 'Wales & West'!AL13) -> 0 | AM13: =CHOOSE(m_identity,East!AM13, London!AM13, 'North West'!AM13, 'West Midlands'!AM13, Northern!AM13, Scotland!AM13, Southern!AM13, 'Wales & West'!AM13) -> 0 | AN13: =CHOOSE(m_identity,East!AN13, London!AN13, 'North West'!AN13, 'West Midlands'!AN13, Northern!AN13, Scotland!AN13, Southern!AN13, 'Wales & West'!AN13) -> 0 | AO13: =CHOOSE(m_identity,East!AO13, London!AO13, 'North West'!AO13, 'West Midlands'!AO13, Northern!AO13, Scotland!AO13, Southern!AO13, 'Wales & West'!AO13) -> 0
E14: Allowed uncertain costs (Specified street work costs) | F14: 3F | G14: £m 09/10 prices | H14: IAESW | AH14: =CHOOSE(m_identity,East!AH14, London!AH14, 'North West'!AH14, 'West Midlands'!AH14, Northern!AH14, Scotland!AH14, Southern!AH14, 'Wales & West'!AH14) -> 0.5338191696 | AI14: =CHOOSE(m_identity,East!AI14, London!AI14, 'North West'!AI14, 'West Midlands'!AI14, Northern!AI14, Scotland!AI14, Southern!AI14, 'Wales & West'!AI14) -> 0.506119741 | AJ14: =CHOOSE(m_identity,East!AJ14, London!AJ14, 'North West'!AJ14, 'West Midlands'!AJ14, Northern!AJ14, Scotland!AJ14, Southern!AJ14, 'Wales & West'!AJ14) -> 0.4832672959 | AK14: =CHOOSE(m_identity,East!AK14, London!AK14, 'North West'!AK14, 'West Midlands'!AK14, Northern!AK14, Scotland!AK14, Southern!AK14, 'Wales & West'!AK14) -> 0.4627542691 | AL14: =CHOOSE(m_identity,East!AL14, London!AL14, 'North West'!AL14, 'West Midlands'!AL14, Northern!AL14, Scotland!AL14, Southern!AL14, 'Wales & West'!AL14) -> 0.4487080118 | AM14: =CHOOSE(m_identity,East!AM14, London!AM14, 'North West'!AM14, 'West Midlands'!AM14, Northern!AM14, Scotland!AM14, Southern!AM14, 'Wales & West'!AM14) -> 0.4343188999 | AN14: =CHOOSE(m_identity,East!AN14, London!AN14, 'North West'!AN14, 'West Midlands'!AN14, Northern!AN14, Scotland!AN14, Southern!AN14, 'Wales & West'!AN14) -> 0.4226692634 | AO14: =CHOOSE(m_identity,East!AO14, London!AO14, 'North West'!AO14, 'West Midlands'!AO14, Northern!AO14, Scotland!AO14, Southern!AO14, 'Wales & West'!AO14) -> 0.4115931281
E15: Allowed uncertain costs (Connection charging boundary change costs) | F15: 3F | G15: £m 09/10 prices | H15: IAECCB | AH15: =CHOOSE(m_identity,East!AH15, London!AH15, 'North West'!AH15, 'West Midlands'!AH15, Northern!AH15, Scotland!AH15, Southern!AH15, 'Wales & West'!AH15) -> 0 | AI15: =CHOOSE(m_identity,East!AI15, London!AI15, 'North West'!AI15, 'West Midlands'!AI15, Northern!AI15, Scotland!AI15, Southern!AI15, 'Wales & West'!AI15) -> 0 | AJ15: =CHOOSE(m_identity,East!AJ15, London!AJ15, 'North West'!AJ15, 'West Midlands'!AJ15, Northern!AJ15, Scotland!AJ15, Southern!AJ15, 'Wales & West'!AJ15) -> 0 | AK15: =CHOOSE(m_identity,East!AK15, London!AK15, 'North West'!AK15, 'West Midlands'!AK15, Northern!AK15, Scotland!AK15, Southern!AK15, 'Wales & West'!AK15) -> 0 | AL15: =CHOOSE(m_identity,East!AL15, London!AL15, 'North West'!AL15, 'West Midlands'!AL15, Northern!AL15, Scotland!AL15, Southern!AL15, 'Wales & West'!AL15) -> 0 | AM15: =CHOOSE(m_identity,East!AM15, London!AM15, 'North West'!AM15, 'West Midlands'!AM15, Northern!AM15, Scotland!AM15, Southern!AM15, 'Wales & West'!AM15) -> 0 | AN15: =CHOOSE(m_identity,East!AN15, London!AN15, 'North West'!AN15, 'West Midlands'!AN15, Northern!AN15, Scotland!AN15, Southern!AN15, 'Wales & West'!AN15) -> 0 | AO15: =CHOOSE(m_identity,East!AO15, London!AO15, 'North West'!AO15, 'West Midlands'!AO15, Northern!AO15, Scotland!AO15, Southern!AO15, 'Wales & West'!AO15) -> 0
E16: Allowed uncertain costs (Fuel poor network extension scheme) | F16: 3F | G16: £m 09/10 prices | H16: IAEFP | AH16: =CHOOSE(m_identity,East!AH16, London!AH16, 'North West'!AH16, 'West Midlands'!AH16, Northern!AH16, Scotland!AH16, Southern!AH16, 'Wales & West'!AH16) -> 1.307242889 | AI16: =CHOOSE(m_identity,East!AI16, London!AI16, 'North West'!AI16, 'West Midlands'!AI16, Northern!AI16, Scotland!AI16, Southern!AI16, 'Wales & West'!AI16) -> 1.307242889 | AJ16: =CHOOSE(m_identity,East!AJ16, London!AJ16, 'North West'!AJ16, 'West Midlands'!AJ16, Northern!AJ16, Scotland!AJ16, Southern!AJ16, 'Wales & West'!AJ16) -> 1.29417046 | AK16: =CHOOSE(m_identity,East!AK16, London!AK16, 'North West'!AK16, 'West Midlands'!AK16, Northern!AK16, Scotland!AK16, Southern!AK16, 'Wales & West'!AK16) -> 1.281228755 | AL16: =CHOOSE(m_identity,East!AL16, London!AL16, 'North West'!AL16, 'West Midlands'!AL16, Northern!AL16, Scotland!AL16, Southern!AL16, 'Wales & West'!AL16) -> 1.005894035 | AM16: =CHOOSE(m_identity,East!AM16, London!AM16, 'North West'!AM16, 'West Midlands'!AM16, Northern!AM16, Scotland!AM16, Southern!AM16, 'Wales & West'!AM16) -> 0.9958350947 | AN16: =CHOOSE(m_identity,East!AN16, London!AN16, 'North West'!AN16, 'West Midlands'!AN16, Northern!AN16, Scotland!AN16, Southern!AN16, 'Wales & West'!AN16) -> 0.9858767437 | AO16: =CHOOSE(m_identity,East!AO16, London!AO16, 'North West'!AO16, 'West Midlands'!AO16, Northern!AO16, Scotland!AO16, Southern!AO16, 'Wales & West'!AO16) -> 0.9760179763
E17: Allowed uncertain costs (Central agent) | F17: 3F | G17: £m 09/10 prices | H17: IAECA | AH17: =CHOOSE(m_identity,East!AH17, London!AH17, 'North West'!AH17, 'West Midlands'!AH17, Northern!AH17, Scotland!AH17, Southern!AH17, 'Wales & West'!AH17) -> 0 | AI17: =CHOOSE(m_identity,East!AI17, London!AI17, 'North West'!AI17, 'West Midlands'!AI17, Northern!AI17, Scotland!AI17, Southern!AI17, 'Wales & West'!AI17) -> 0 | AJ17: =CHOOSE(m_identity,East!AJ17, London!AJ17, 'North West'!AJ17, 'West Midlands'!AJ17, Northern!AJ17, Scotland!AJ17, Southern!AJ17, 'Wales & West'!AJ17) -> 0 | AK17: =CHOOSE(m_identity,East!AK17, London!AK17, 'North West'!AK17, 'West Midlands'!AK17, Northern!AK17, Scotland!AK17, Southern!AK17, 'Wales & West'!AK17) -> 0 | AL17: =CHOOSE(m_identity,East!AL17, London!AL17, 'North West'!AL17, 'West Midlands'!AL17, Northern!AL17, Scotland!AL17, Southern!AL17, 'Wales & West'!AL17) -> 0 | AM17: =CHOOSE(m_identity,East!AM17, London!AM17, 'North West'!AM17, 'West Midlands'!AM17, Northern!AM17, Scotland!AM17, Southern!AM17, 'Wales & West'!AM17) -> 0 | AN17: =CHOOSE(m_identity,East!AN17, London!AN17, 'North West'!AN17, 'West Midlands'!AN17, Northern!AN17, Scotland!AN17, Southern!AN17, 'Wales & West'!AN17) -> 0 | AO17: =CHOOSE(m_identity,East!AO17, London!AO17, 'North West'!AO17, 'West Midlands'!AO17, Northern!AO17, Scotland!AO17, Southern!AO17, 'Wales & West'!AO17) -> 0
E18: Allowed uncertain costs (Smart metering roll out costs) | F18: 3F | G18: £m 09/10 prices | H18: IAESM | AH18: =CHOOSE(m_identity,East!AH18, London!AH18, 'North West'!AH18, 'West Midlands'!AH18, Northern!AH18, Scotland!AH18, Southern!AH18, 'Wales & West'!AH18) -> 0 | AI18: =CHOOSE(m_identity,East!AI18, London!AI18, 'North West'!AI18, 'West Midlands'!AI18, Northern!AI18, Scotland!AI18, Southern!AI18, 'Wales & West'!AI18) -> 0 | AJ18: =CHOOSE(m_identity,East!AJ18, London!AJ18, 'North West'!AJ18, 'West Midlands'!AJ18, Northern!AJ18, Scotland!AJ18, Southern!AJ18, 'Wales & West'!AJ18) -> 0 | AK18: =CHOOSE(m_identity,East!AK18, London!AK18, 'North West'!AK18, 'West Midlands'!AK18, Northern!AK18, Scotland!AK18, Southern!AK18, 'Wales & West'!AK18) -> 0 | AL18: =CHOOSE(m_identity,East!AL18, London!AL18, 'North West'!AL18, 'West Midlands'!AL18, Northern!AL18, Scotland!AL18, Southern!AL18, 'Wales & West'!AL18) -> 0 | AM18: =CHOOSE(m_identity,East!AM18, London!AM18, 'North West'!AM18, 'West Midlands'!AM18, Northern!AM18, Scotland!AM18, Southern!AM18, 'Wales & West'!AM18) -> 0 | AN18: =CHOOSE(m_identity,East!AN18, London!AN18, 'North West'!AN18, 'West Midlands'!AN18, Northern!AN18, Scotland!AN18, Southern!AN18, 'Wales & West'!AN18) -> 0 | AO18: =CHOOSE(m_identity,East!AO18, London!AO18, 'North West'!AO18, 'West Midlands'!AO18, Northern!AO18, Scotland!AO18, Southern!AO18, 'Wales & West'!AO18) -> 0
E19: Allowed uncertain costs (Mains and services replacement expenditure) | F19: 3E | G19: £m 09/10 prices | H19: RE | AH19: =CHOOSE(m_identity,East!AH19, London!AH19, 'North West'!AH19, 'West Midlands'!AH19, Northern!AH19, Scotland!AH19, Southern!AH19, 'Wales & West'!AH19) -> 0 | AI19: =CHOOSE(m_identity,East!AI19, London!AI19, 'North West'!AI19, 'West Midlands'!AI19, Northern!AI19, Scotland!AI19, Southern!AI19, 'Wales & West'!AI19) -> 0 | AJ19: =CHOOSE(m_identity,East!AJ19, London!AJ19, 'North West'!AJ19, 'West Midlands'!AJ19, Northern!AJ19, Scotland!AJ19, Southern!AJ19, 'Wales & West'!AJ19) -> 0 | AK19: =CHOOSE(m_identity,East!AK19, London!AK19, 'North West'!AK19, 'West Midlands'!AK19, Northern!AK19, Scotland!AK19, Southern!AK19, 'Wales & West'!AK19) -> 0 | AL19: =CHOOSE(m_identity,East!AL19, London!AL19, 'North West'!AL19, 'West Midlands'!AL19, Northern!AL19, Scotland!AL19, Southern!AL19, 'Wales & West'!AL19) -> 0 | AM19: =CHOOSE(m_identity,East!AM19, London!AM19, 'North West'!AM19, 'West Midlands'!AM19, Northern!AM19, Scotland!AM19, Southern!AM19, 'Wales & West'!AM19) -> 0 | AN19: =CHOOSE(m_identity,East!AN19, London!AN19, 'North West'!AN19, 'West Midlands'!AN19, Northern!AN19, Scotland!AN19, Southern!AN19, 'Wales & West'!AN19) -> 0 | AO19: =CHOOSE(m_identity,East!AO19, London!AO19, 'North West'!AO19, 'West Midlands'!AO19, Northern!AO19, Scotland!AO19, Southern!AO19, 'Wales & West'!AO19) -> 0
E20: Allowed uncertain Costs (Large load connection costs) | F20: 3F | G20: £m 09/10 prices | H20: IAELLC | AH20: =CHOOSE(m_identity,East!AH20, London!AH20, 'North West'!AH20, 'West Midlands'!AH20, Northern!AH20, Scotland!AH20, Southern!AH20, 'Wales & West'!AH20) -> 0 | AI20: =CHOOSE(m_identity,East!AI20, London!AI20, 'North West'!AI20, 'West Midlands'!AI20, Northern!AI20, Scotland!AI20, Southern!AI20, 'Wales & West'!AI20) -> 0 | AJ20: =CHOOSE(m_identity,East!AJ20, London!AJ20, 'North West'!AJ20, 'West Midlands'!AJ20, Northern!AJ20, Scotland!AJ20, Southern!AJ20, 'Wales & West'!AJ20) -> 0 | AK20: =CHOOSE(m_identity,East!AK20, London!AK20, 'North West'!AK20, 'West Midlands'!AK20, Northern!AK20, Scotland!AK20, Southern!AK20, 'Wales & West'!AK20) -> 0 | AL20: =CHOOSE(m_identity,East!AL20, London!AL20, 'North West'!AL20, 'West Midlands'!AL20, Northern!AL20, Scotland!AL20, Southern!AL20, 'Wales & West'!AL20) -> 0 | AM20: =CHOOSE(m_identity,East!AM20, London!AM20, 'North West'!AM20, 'West Midlands'!AM20, Northern!AM20, Scotland!AM20, Southern!AM20, 'Wales & West'!AM20) -> 0 | AN20: =CHOOSE(m_identity,East!AN20, London!AN20, 'North West'!AN20, 'West Midlands'!AN20, Northern!AN20, Scotland!AN20, Southern!AN20, 'Wales & West'!AN20) -> 0 | AO20: =CHOOSE(m_identity,East!AO20, London!AO20, 'North West'!AO20, 'West Midlands'!AO20, Northern!AO20, Scotland!AO20, Southern!AO20, 'Wales & West'!AO20) -> 0
E21: Allowed innovation roll-out mechanism | F21: 3D | G21: £m 09/10 prices | H21: IRM | AH21: =CHOOSE(m_identity,East!AH21, London!AH21, 'North West'!AH21, 'West Midlands'!AH21, Northern!AH21, Scotland!AH21, Southern!AH21, 'Wales & West'!AH21) -> 0 | AI21: =CHOOSE(m_identity,East!AI21, London!AI21, 'North West'!AI21, 'West Midlands'!AI21, Northern!AI21, Scotland!AI21, Southern!AI21, 'Wales & West'!AI21) -> 0 | AJ21: =CHOOSE(m_identity,East!AJ21, London!AJ21, 'North West'!AJ21, 'West Midlands'!AJ21, Northern!AJ21, Scotland!AJ21, Southern!AJ21, 'Wales & West'!AJ21) -> 0 | AK21: =CHOOSE(m_identity,East!AK21, London!AK21, 'North West'!AK21, 'West Midlands'!AK21, Northern!AK21, Scotland!AK21, Southern!AK21, 'Wales & West'!AK21) -> 0 | AL21: =CHOOSE(m_identity,East!AL21, London!AL21, 'North West'!AL21, 'West Midlands'!AL21, Northern!AL21, Scotland!AL21, Southern!AL21, 'Wales & West'!AL21) -> 0 | AM21: =CHOOSE(m_identity,East!AM21, London!AM21, 'North West'!AM21, 'West Midlands'!AM21, Northern!AM21, Scotland!AM21, Southern!AM21, 'Wales & West'!AM21) -> 0 | AN21: =CHOOSE(m_identity,East!AN21, London!AN21, 'North West'!AN21, 'West Midlands'!AN21, Northern!AN21, Scotland!AN21, Southern!AN21, 'Wales & West'!AN21) -> 0 | AO21: =CHOOSE(m_identity,East!AO21, London!AO21, 'North West'!AO21, 'West Midlands'!AO21, Northern!AO21, Scotland!AO21, Southern!AO21, 'Wales & West'!AO21) -> 0
E22: Tax liability allowance adjustments - gearing/interest costs | F22: 3C | G22: £m nominal | H22: TGIE | AH22: =CHOOSE(m_identity,East!AH22, London!AH22, 'North West'!AH22, 'West Midlands'!AH22, Northern!AH22, Scotland!AH22, Southern!AH22, 'Wales & West'!AH22) -> 0 | AI22: =CHOOSE(m_identity,East!AI22, London!AI22, 'North West'!AI22, 'West Midlands'!AI22, Northern!AI22, Scotland!AI22, Southern!AI22, 'Wales & West'!AI22) -> 0 | AJ22: =CHOOSE(m_identity,East!AJ22, London!AJ22, 'North West'!AJ22, 'West Midlands'!AJ22, Northern!AJ22, Scotland!AJ22, Southern!AJ22, 'Wales & West'!AJ22) -> 0 | AK22: =CHOOSE(m_identity,East!AK22, London!AK22, 'North West'!AK22, 'West Midlands'!AK22, Northern!AK22, Scotland!AK22, Southern!AK22, 'Wales & West'!AK22) -> 0 | AL22: =CHOOSE(m_identity,East!AL22, London!AL22, 'North West'!AL22, 'West Midlands'!AL22, Northern!AL22, Scotland!AL22, Southern!AL22, 'Wales & West'!AL22) -> 0 | AM22: =CHOOSE(m_identity,East!AM22, London!AM22, 'North West'!AM22, 'West Midlands'!AM22, Northern!AM22, Scotland!AM22, Southern!AM22, 'Wales & West'!AM22) -> 0 | AN22: =CHOOSE(m_identity,East!AN22, London!AN22, 'North West'!AN22, 'West Midlands'!AN22, Northern!AN22, Scotland!AN22, Southern!AN22, 'Wales & West'!AN22) -> 0 | AO22: =CHOOSE(m_identity,East!AO22, London!AO22, 'North West'!AO22, 'West Midlands'!AO22, Northern!AO22, Scotland!AO22, Southern!AO22, 'Wales & West'!AO22) -> 0
E23: Tax liability allowance adjustments - driven by tax trigger events | F23: 3C | G23: £m 09/10 prices | H23: TTE | AH23: =CHOOSE(m_identity,East!AH23, London!AH23, 'North West'!AH23, 'West Midlands'!AH23, Northern!AH23, Scotland!AH23, Southern!AH23, 'Wales & West'!AH23) -> 0 | AI23: =CHOOSE(m_identity,East!AI23, London!AI23, 'North West'!AI23, 'West Midlands'!AI23, Northern!AI23, Scotland!AI23, Southern!AI23, 'Wales & West'!AI23) -> 0 | AJ23: =CHOOSE(m_identity,East!AJ23, London!AJ23, 'North West'!AJ23, 'West Midlands'!AJ23, Northern!AJ23, Scotland!AJ23, Southern!AJ23, 'Wales & West'!AJ23) -> 0 | AK23: =CHOOSE(m_identity,East!AK23, London!AK23, 'North West'!AK23, 'West Midlands'!AK23, Northern!AK23, Scotland!AK23, Southern!AK23, 'Wales & West'!AK23) -> 0 | AL23: =CHOOSE(m_identity,East!AL23, London!AL23, 'North West'!AL23, 'West Midlands'!AL23, Northern!AL23, Scotland!AL23, Southern!AL23, 'Wales & West'!AL23) -> 0 | AM23: =CHOOSE(m_identity,East!AM23, London!AM23, 'North West'!AM23, 'West Midlands'!AM23, Northern!AM23, Scotland!AM23, Southern!AM23, 'Wales & West'!AM23) -> 0 | AN23: =CHOOSE(m_identity,East!AN23, London!AN23, 'North West'!AN23, 'West Midlands'!AN23, Northern!AN23, Scotland!AN23, Southern!AN23, 'Wales & West'!AN23) -> 0 | AO23: =CHOOSE(m_identity,East!AO23, London!AO23, 'North West'!AO23, 'West Midlands'!AO23, Northern!AO23, Scotland!AO23, Southern!AO23, 'Wales & West'!AO23) -> 0
E24: Pension scheme administration and Pension Protection Fund Levy | F24: 3C | G24: £m 09/10 prices | H24: APFE | AH24: =CHOOSE(m_identity,East!AH24, London!AH24, 'North West'!AH24, 'West Midlands'!AH24, Northern!AH24, Scotland!AH24, Southern!AH24, 'Wales & West'!AH24) -> 0.8546697872 | AI24: =CHOOSE(m_identity,East!AI24, London!AI24, 'North West'!AI24, 'West Midlands'!AI24, Northern!AI24, Scotland!AI24, Southern!AI24, 'Wales & West'!AI24) -> 0.8350910823 | AJ24: =CHOOSE(m_identity,East!AJ24, London!AJ24, 'North West'!AJ24, 'West Midlands'!AJ24, Northern!AJ24, Scotland!AJ24, Southern!AJ24, 'Wales & West'!AJ24) -> 0.8337716007 | AK24: =CHOOSE(m_identity,East!AK24, London!AK24, 'North West'!AK24, 'West Midlands'!AK24, Northern!AK24, Scotland!AK24, Southern!AK24, 'Wales & West'!AK24) -> 0.8084668301 | AL24: =CHOOSE(m_identity,East!AL24, London!AL24, 'North West'!AL24, 'West Midlands'!AL24, Northern!AL24, Scotland!AL24, Southern!AL24, 'Wales & West'!AL24) -> 0.8014792013 | AM24: =CHOOSE(m_identity,East!AM24, London!AM24, 'North West'!AM24, 'West Midlands'!AM24, Northern!AM24, Scotland!AM24, Southern!AM24, 'Wales & West'!AM24) -> 0.7867165827 | AN24: =CHOOSE(m_identity,East!AN24, London!AN24, 'North West'!AN24, 'West Midlands'!AN24, Northern!AN24, Scotland!AN24, Southern!AN24, 'Wales & West'!AN24) -> 0.7778855329 | AO24: =CHOOSE(m_identity,East!AO24, London!AO24, 'North West'!AO24, 'West Midlands'!AO24, Northern!AO24, Scotland!AO24, Southern!AO24, 'Wales & West'!AO24) -> 0.7703930538
E25: Pension scheme deficit revenue allowances | F25: 3C | G25: £m 09/10 prices | H25: EDE | AH25: =CHOOSE(m_identity,East!AH25, London!AH25, 'North West'!AH25, 'West Midlands'!AH25, Northern!AH25, Scotland!AH25, Southern!AH25, 'Wales & West'!AH25) -> 6.952397522 | AI25: =CHOOSE(m_identity,East!AI25, London!AI25, 'North West'!AI25, 'West Midlands'!AI25, Northern!AI25, Scotland!AI25, Southern!AI25, 'Wales & West'!AI25) -> 6.952397522 | AJ25: =CHOOSE(m_identity,East!AJ25, London!AJ25, 'North West'!AJ25, 'West Midlands'!AJ25, Northern!AJ25, Scotland!AJ25, Southern!AJ25, 'Wales & West'!AJ25) -> 6.952397522 | AK25: =CHOOSE(m_identity,East!AK25, London!AK25, 'North West'!AK25, 'West Midlands'!AK25, Northern!AK25, Scotland!AK25, Southern!AK25, 'Wales & West'!AK25) -> 6.952397522 | AL25: =CHOOSE(m_identity,East!AL25, London!AL25, 'North West'!AL25, 'West Midlands'!AL25, Northern!AL25, Scotland!AL25, Southern!AL25, 'Wales & West'!AL25) -> 6.952397522 | AM25: =CHOOSE(m_identity,East!AM25, London!AM25, 'North West'!AM25, 'West Midlands'!AM25, Northern!AM25, Scotland!AM25, Southern!AM25, 'Wales & West'!AM25) -> 6.952397522 | AN25: =CHOOSE(m_identity,East!AN25, London!AN25, 'North West'!AN25, 'West Midlands'!AN25, Northern!AN25, Scotland!AN25, Southern!AN25, 'Wales & West'!AN25) -> 6.952397522 | AO25: =CHOOSE(m_identity,East!AO25, London!AO25, 'North West'!AO25, 'West Midlands'!AO25, Northern!AO25, Scotland!AO25, Southern!AO25, 'Wales & West'!AO25) -> 6.952397522
E26: Legacy price control allowed revenue adjustment | F26: 3A | G26: £m 09/10 prices | H26: LAR | AH26: =CHOOSE(m_identity,East!AH26, London!AH26, 'North West'!AH26, 'West Midlands'!AH26, Northern!AH26, Scotland!AH26, Southern!AH26, 'Wales & West'!AH26) -> 0
E27: Legacy price control RAV additions adjustment | F27: 3A | G27: £m 09/10 prices | H27: LRAV | AH27: =CHOOSE(m_identity,East!AH27, London!AH27, 'North West'!AH27, 'West Midlands'!AH27, Northern!AH27, Scotland!AH27, Southern!AH27, 'Wales & West'!AH27) -> 0
B29: Policy
C31: Cost of capital
E33: Cost of debt | G33: annual real % | AH33: =AH8 -> 0.0292 | AI33: 0.0292 | AJ33: 0.0292 | AK33: 0.0292 | AL33: 0.0292 | AM33: 0.0292 | AN33: 0.0292 | AO33: 0.0292
E34: Cost of equity | G34: annual real % | AH34: =CHOOSE(m_identity,East!AH34, London!AH34, 'North West'!AH34, 'West Midlands'!AH34, Northern!AH34, Scotland!AH34, Southern!AH34, 'Wales & West'!AH34) -> 0.067 | AI34: =CHOOSE(m_identity,East!AI34, London!AI34, 'North West'!AI34, 'West Midlands'!AI34, Northern!AI34, Scotland!AI34, Southern!AI34, 'Wales & West'!AI34) -> 0.067 | AJ34: =CHOOSE(m_identity,East!AJ34, London!AJ34, 'North West'!AJ34, 'West Midlands'!AJ34, Northern!AJ34, Scotland!AJ34, Southern!AJ34, 'Wales & West'!AJ34) -> 0.067 | AK34: =CHOOSE(m_identity,East!AK34, London!AK34, 'North West'!AK34, 'West Midlands'!AK34, Northern!AK34, Scotland!AK34, Southern!AK34, 'Wales & West'!AK34) -> 0.067 | AL34: =CHOOSE(m_identity,East!AL34, London!AL34, 'North West'!AL34, 'West Midlands'!AL34, Northern!AL34, Scotland!AL34, Southern!AL34, 'Wales & West'!AL34) -> 0.067 | AM34: =CHOOSE(m_identity,East!AM34, London!AM34, 'North West'!AM34, 'West Midlands'!AM34, Northern!AM34, Scotland!AM34, Southern!AM34, 'Wales & West'!AM34) -> 0.067 | AN34: =CHOOSE(m_identity,East!AN34, London!AN34, 'North West'!AN34, 'West Midlands'!AN34, Northern!AN34, Scotland!AN34, Southern!AN34, 'Wales & West'!AN34) -> 0.067 | AO34: =CHOOSE(m_identity,East!AO34, London!AO34, 'North West'!AO34, 'West Midlands'!AO34, Northern!AO34, Scotland!AO34, Southern!AO34, 'Wales & West'!AO34) -> 0.067
E35: Notional gearing | G35: % | J35: > | AG35: =CHOOSE(m_identity,East!AG35, London!AG35, 'North West'!AG35, 'West Midlands'!AG35, Northern!AG35, Scotland!AG35, Southern!AG35, 'Wales & West'!AG35) -> 0.625 | AH35: =CHOOSE(m_identity,East!AH35, London!AH35, 'North West'!AH35, 'West Midlands'!AH35, Northern!AH35, Scotland!AH35, Southern!AH35, 'Wales & West'!AH35) -> 0.65 | AI35: =CHOOSE(m_identity,East!AI35, London!AI35, 'North West'!AI35, 'West Midlands'!AI35, Northern!AI35, Scotland!AI35, Southern!AI35, 'Wales & West'!AI35) -> 0.65 | AJ35: =CHOOSE(m_identity,East!AJ35, London!AJ35, 'North West'!AJ35, 'West Midlands'!AJ35, Northern!AJ35, Scotland!AJ35, Southern!AJ35, 'Wales & West'!AJ35) -> 0.65 | AK35: =CHOOSE(m_identity,East!AK35, London!AK35, 'North West'!AK35, 'West Midlands'!AK35, Northern!AK35, Scotland!AK35, Southern!AK35, 'Wales & West'!AK35) -> 0.65 | AL35: =CHOOSE(m_identity,East!AL35, London!AL35, 'North West'!AL35, 'West Midlands'!AL35, Northern!AL35, Scotland!AL35, Southern!AL35, 'Wales & West'!AL35) -> 0.65 | AM35: =CHOOSE(m_identity,East!AM35, London!AM35, 'North West'!AM35, 'West Midlands'!AM35, Northern!AM35, Scotland!AM35, Southern!AM35, 'Wales & West'!AM35) -> 0.65 | AN35: =CHOOSE(m_identity,East!AN35, London!AN35, 'North West'!AN35, 'West Midlands'!AN35, Northern!AN35, Scotland!AN35, Southern!AN35, 'Wales & West'!AN35) -> 0.65 | AO35: =CHOOSE(m_identity,East!AO35, London!AO35, 'North West'!AO35, 'West Midlands'!AO35, Northern!AO35, Scotland!AO35, Southern!AO35, 'Wales & West'!AO35) -> 0.65
E37: Vanilla WACC | G37: annual real % | AH37: =(AH33 * AH35) + (AH34 * (1 - AH35)) -> 0.04243 | AI37: 0.04243 | AJ37: 0.04243 | AK37: 0.04243 | AL37: 0.04243 | AM37: 0.04243 | AN37: 0.04243 | AO37: 0.04243
E39: Pre-RIIO closing notional gearing | G39: % | I39: =CHOOSE(m_identity,East!I39, London!I39, 'North West'!I39, 'West Midlands'!I39, Northern!I39, Scotland!I39, Southern!I39, 'Wales & West'!I39) -> 0.625
E41: Forecast RPI (simple average year to March) | G41: index value | J41: > | V41: =CHOOSE(m_identity, East!V41, London!V41, 'North West'!V41, 'West Midlands'!V41, Northern!V41, Scotland!V41, Southern!V41, 'Wales & West'!V41) -> 173.875 | W41: =CHOOSE(m_identity, East!W41, London!W41, 'North West'!W41, 'West Midlands'!W41, Northern!W41, Scotland!W41, Southern!W41, 'Wales & West'!W41) -> 177.517 | X41: =CHOOSE(m_identity, East!X41, London!X41, 'North West'!X41, 'West Midlands'!X41, Northern!X41, Scotland!X41, Southern!X41, 'Wales & West'!X41) -> 182.475 | Y41: =CHOOSE(m_identity, East!Y41, London!Y41, 'North West'!Y41, 'West Midlands'!Y41, Northern!Y41, Scotland!Y41, Southern!Y41, 'Wales & West'!Y41) -> 188.15 | Z41: =CHOOSE(m_identity, East!Z41, London!Z41, 'North West'!Z41, 'West Midlands'!Z41, Northern!Z41, Scotland!Z41, Southern!Z41, 'Wales & West'!Z41) -> 193.108 | AA41: =CHOOSE(m_identity, East!AA41, London!AA41, 'North West'!AA41, 'West Midlands'!AA41, Northern!AA41, Scotland!AA41, Southern!AA41, 'Wales & West'!AA41) -> 200.317 | AB41: =CHOOSE(m_identity, East!AB41, London!AB41, 'North West'!AB41, 'West Midlands'!AB41, Northern!AB41, Scotland!AB41, Southern!AB41, 'Wales & West'!AB41) -> 208.592 | AC41: =CHOOSE(m_identity, East!AC41, London!AC41, 'North West'!AC41, 'West Midlands'!AC41, Northern!AC41, Scotland!AC41, Southern!AC41, 'Wales & West'!AC41) -> 214.783 | AD41: =CHOOSE(m_identity, East!AD41, London!AD41, 'North West'!AD41, 'West Midlands'!AD41, Northern!AD41, Scotland!AD41, Southern!AD41, 'Wales & West'!AD41) -> 215.767 | AE41: =CHOOSE(m_identity, East!AE41, London!AE41, 'North West'!AE41, 'West Midlands'!AE41, Northern!AE41, Scotland!AE41, Southern!AE41, 'Wales & West'!AE41) -> 226.475 | AF41: =CHOOSE(m_identity, East!AF41, London!AF41, 'North West'!AF41, 'West Midlands'!AF41, Northern!AF41, Scotland!AF41, Southern!AF41, 'Wales & West'!AF41) -> 237.342 | AG41: =CHOOSE(m_identity, East!AG41, London!AG41, 'North West'!AG41, 'West Midlands'!AG41, Northern!AG41, Scotland!AG41, Southern!AG41, 'Wales & West'!AG41) -> 243.988 | AH41: =CHOOSE(m_identity, East!AH41, London!AH41, 'North West'!AH41, 'West Midlands'!AH41, Northern!AH41, Scotland!AH41, Southern!AH41, 'Wales & West'!AH41) -> 250.82 | AI41: =CHOOSE(m_identity, East!AI41, London!AI41, 'North West'!AI41, 'West Midlands'!AI41, Northern!AI41, Scotland!AI41, Southern!AI41, 'Wales & West'!AI41) -> 257.843 | AJ41: =CHOOSE(m_identity, East!AJ41, London!AJ41, 'North West'!AJ41, 'West Midlands'!AJ41, Northern!AJ41, Scotland!AJ41, Southern!AJ41, 'Wales & West'!AJ41) -> 265.063 | AK41: =CHOOSE(m_identity, East!AK41, London!AK41, 'North West'!AK41, 'West Midlands'!AK41, Northern!AK41, Scotland!AK41, Southern!AK41, 'Wales & West'!AK41) -> 272.485 | AL41: =CHOOSE(m_identity, East!AL41, London!AL41, 'North West'!AL41, 'West Midlands'!AL41, Northern!AL41, Scotland!AL41, Southern!AL41, 'Wales & West'!AL41) -> 280.115 | AM41: =CHOOSE(m_identity, East!AM41, London!AM41, 'North West'!AM41, 'West Midlands'!AM41, Northern!AM41, Scotland!AM41, Southern!AM41, 'Wales & West'!AM41) -> 287.958 | AN41: =CHOOSE(m_identity, East!AN41, London!AN41, 'North West'!AN41, 'West Midlands'!AN41, Northern!AN41, Scotland!AN41, Southern!AN41, 'Wales & West'!AN41) -> 296.021 | AO41: =CHOOSE(m_identity, East!AO41, London!AO41, 'North West'!AO41, 'West Midlands'!AO41, Northern!AO41, Scotland!AO41, Southern!AO41, 'Wales & West'!AO41) -> 304.31
E42: RPI assumption for interest costs | G42: index value | J42: > | V42: =CHOOSE(m_identity, East!V42, London!V42, 'North West'!V42, 'West Midlands'!V42, Northern!V42, Scotland!V42, Southern!V42, 'Wales & West'!V42) -> 173.875 | W42: =CHOOSE(m_identity, East!W42, London!W42, 'North West'!W42, 'West Midlands'!W42, Northern!W42, Scotland!W42, Southern!W42, 'Wales & West'!W42) -> 177.517 | X42: =CHOOSE(m_identity, East!X42, London!X42, 'North West'!X42, 'West Midlands'!X42, Northern!X42, Scotland!X42, Southern!X42, 'Wales & West'!X42) -> 182.475 | Y42: =CHOOSE(m_identity, East!Y42, London!Y42, 'North West'!Y42, 'West Midlands'!Y42, Northern!Y42, Scotland!Y42, Southern!Y42, 'Wales & West'!Y42) -> 188.15 | Z42: =CHOOSE(m_identity, East!Z42, London!Z42, 'North West'!Z42, 'West Midlands'!Z42, Northern!Z42, Scotland!Z42, Southern!Z42, 'Wales & West'!Z42) -> 193.108 | AA42: =CHOOSE(m_identity, East!AA42, London!AA42, 'North West'!AA42, 'West Midlands'!AA42, Northern!AA42, Scotland!AA42, Southern!AA42, 'Wales & West'!AA42) -> 200.317 | AB42: =CHOOSE(m_identity, East!AB42, London!AB42, 'North West'!AB42, 'West Midlands'!AB42, Northern!AB42, Scotland!AB42, Southern!AB42, 'Wales & West'!AB42) -> 208.592 | AC42: =CHOOSE(m_identity, East!AC42, London!AC42, 'North West'!AC42, 'West Midlands'!AC42, Northern!AC42, Scotland!AC42, Southern!AC42, 'Wales & West'!AC42) -> 214.783 | AD42: =CHOOSE(m_identity, East!AD42, London!AD42, 'North West'!AD42, 'West Midlands'!AD42, Northern!AD42, Scotland!AD42, Southern!AD42, 'Wales & West'!AD42) -> 215.767 | AE42: =CHOOSE(m_identity, East!AE42, London!AE42, 'North West'!AE42, 'West Midlands'!AE42, Northern!AE42, Scotland!AE42, Southern!AE42, 'Wales & West'!AE42) -> 226.475 | AF42: =CHOOSE(m_identity, East!AF42, London!AF42, 'North West'!AF42, 'West Midlands'!AF42, Northern!AF42, Scotland!AF42, Southern!AF42, 'Wales & West'!AF42) -> 237.342 | AG42: =CHOOSE(m_identity, East!AG42, London!AG42, 'North West'!AG42, 'West Midlands'!AG42, Northern!AG42, Scotland!AG42, Southern!AG42, 'Wales & West'!AG42) -> 243.988 | AH42: =CHOOSE(m_identity, East!AH42, London!AH42, 'North West'!AH42, 'West Midlands'!AH42, Northern!AH42, Scotland!AH42, Southern!AH42, 'Wales & West'!AH42) -> 250.82 | AI42: =CHOOSE(m_identity, East!AI42, London!AI42, 'North West'!AI42, 'West Midlands'!AI42, Northern!AI42, Scotland!AI42, Southern!AI42, 'Wales & West'!AI42) -> 257.843 | AJ42: =CHOOSE(m_identity, East!AJ42, London!AJ42, 'North West'!AJ42, 'West Midlands'!AJ42, Northern!AJ42, Scotland!AJ42, Southern!AJ42, 'Wales & West'!AJ42) -> 265.063 | AK42: =CHOOSE(m_identity, East!AK42, London!AK42, 'North West'!AK42, 'West Midlands'!AK42, Northern!AK42, Scotland!AK42, Southern!AK42, 'Wales & West'!AK42) -> 272.485 | AL42: =CHOOSE(m_identity, East!AL42, London!AL42, 'North West'!AL42, 'West Midlands'!AL42, Northern!AL42, Scotland!AL42, Southern!AL42, 'Wales & West'!AL42) -> 280.115 | AM42: =CHOOSE(m_identity, East!AM42, London!AM42, 'North West'!AM42, 'West Midlands'!AM42, Northern!AM42, Scotland!AM42, Southern!AM42, 'Wales & West'!AM42) -> 287.958 | AN42: =CHOOSE(m_identity, East!AN42, London!AN42, 'North West'!AN42, 'West Midlands'!AN42, Northern!AN42, Scotland!AN42, Southern!AN42, 'Wales & West'!AN42) -> 296.021 | AO42: =CHOOSE(m_identity, East!AO42, London!AO42, 'North West'!AO42, 'West Midlands'!AO42, Northern!AO42, Scotland!AO42, Southern!AO42, 'Wales & West'!AO42) -> 304.31
C43: TIM and capitalisation
E45: Years from t until normal reporting of actual costs | G45: years | I45: =CHOOSE(m_identity,East!I45, London!I45, 'North West'!I45, 'West Midlands'!I45, Northern!I45, Scotland!I45, Southern!I45, 'Wales & West'!I45) -> 2
E47: Capitalised share of totex (excluding repex) | G47: % | AH47: =CHOOSE(m_identity, East!AH47, London!AH47, 'North West'!AH47, 'West Midlands'!AH47, Northern!AH47, Scotland!AH47, Southern!AH47, 'Wales & West'!AH47) -> 0.3578190447 | AI47: =CHOOSE(m_identity, East!AI47, London!AI47, 'North West'!AI47, 'West Midlands'!AI47, Northern!AI47, Scotland!AI47, Southern!AI47, 'Wales & West'!AI47) -> 0.3578190447 | AJ47: =CHOOSE(m_identity, East!AJ47, London!AJ47, 'North West'!AJ47, 'West Midlands'!AJ47, Northern!AJ47, Scotland!AJ47, Southern!AJ47, 'Wales & West'!AJ47) -> 0.3578190447 | AK47: =CHOOSE(m_identity, East!AK47, London!AK47, 'North West'!AK47, 'West Midlands'!AK47, Northern!AK47, Scotland!AK47, Southern!AK47, 'Wales & West'!AK47) -> 0.3578190447 | AL47: =CHOOSE(m_identity, East!AL47, London!AL47, 'North West'!AL47, 'West Midlands'!AL47, Northern!AL47, Scotland!AL47, Southern!AL47, 'Wales & West'!AL47) -> 0.3578190447 | AM47: =CHOOSE(m_identity, East!AM47, London!AM47, 'North West'!AM47, 'West Midlands'!AM47, Northern!AM47, Scotland!AM47, Southern!AM47, 'Wales & West'!AM47) -> 0.3578190447 | AN47: =CHOOSE(m_identity, East!AN47, London!AN47, 'North West'!AN47, 'West Midlands'!AN47, Northern!AN47, Scotland!AN47, Southern!AN47, 'Wales & West'!AN47) -> 0.3578190447 | AO47: =CHOOSE(m_identity, East!AO47, London!AO47, 'North West'!AO47, 'West Midlands'!AO47, Northern!AO47, Scotland!AO47, Southern!AO47, 'Wales & West'!AO47) -> 0.3578190447
E48: Capitalised share of repex | G48: % | AH48: =CHOOSE(m_identity, East!AH48, London!AH48, 'North West'!AH48, 'West Midlands'!AH48, Northern!AH48, Scotland!AH48, Southern!AH48, 'Wales & West'!AH48) -> 0.5 | AI48: =CHOOSE(m_identity, East!AI48, London!AI48, 'North West'!AI48, 'West Midlands'!AI48, Northern!AI48, Scotland!AI48, Southern!AI48, 'Wales & West'!AI48) -> 0.5714285714 | AJ48: =CHOOSE(m_identity, East!AJ48, London!AJ48, 'North West'!AJ48, 'West Midlands'!AJ48, Northern!AJ48, Scotland!AJ48, Southern!AJ48, 'Wales & West'!AJ48) -> 0.6428571429 | AK48: =CHOOSE(m_identity, East!AK48, London!AK48, 'North West'!AK48, 'West Midlands'!AK48, Northern!AK48, Scotland!AK48, Southern!AK48, 'Wales & West'!AK48) -> 0.7142857143 | AL48: =CHOOSE(m_identity, East!AL48, London!AL48, 'North West'!AL48, 'West Midlands'!AL48, Northern!AL48, Scotland!AL48, Southern!AL48, 'Wales & West'!AL48) -> 0.7857142857 | AM48: =CHOOSE(m_identity, East!AM48, London!AM48, 'North West'!AM48, 'West Midlands'!AM48, Northern!AM48, Scotland!AM48, Southern!AM48, 'Wales & West'!AM48) -> 0.8571428571 | AN48: =CHOOSE(m_identity, East!AN48, London!AN48, 'North West'!AN48, 'West Midlands'!AN48, Northern!AN48, Scotland!AN48, Southern!AN48, 'Wales & West'!AN48) -> 0.9285714286 | AO48: =CHOOSE(m_identity, East!AO48, London!AO48, 'North West'!AO48, 'West Midlands'!AO48, Northern!AO48, Scotland!AO48, Southern!AO48, 'Wales & West'!AO48) -> 1
E50: Incentive rate (slope) | G50: scalar | I50: =CHOOSE(m_identity,East!I50, London!I50, 'North West'!I50, 'West Midlands'!I50, Northern!I50, Scotland!I50, Southern!I50, 'Wales & West'!I50) -> -0.001666666667
E51: Incentive rate (intercept) | G51: scalar | I51: =CHOOSE(m_identity,East!I51, London!I51, 'North West'!I51, 'West Midlands'!I51, Northern!I51, Scotland!I51, Southern!I51, 'Wales & West'!I51) -> 0.8166666667
E52: Additional income (intercept) | G52: scalar | I52: =CHOOSE(m_identity,East!I52, London!I52, 'North West'!I52, 'West Midlands'!I52, Northern!I52, Scotland!I52, Southern!I52, 'Wales & West'!I52) -> 14.58333333
E54: Weight of Ofgem's view on price control totex | G54: % | I54: =CHOOSE(m_identity,East!I54, London!I54, 'North West'!I54, 'West Midlands'!I54, Northern!I54, Scotland!I54, Southern!I54, 'Wales & West'!I54) -> 0.75
E55: Weight of operator's view on price control totex | G55: % | I55: =CHOOSE(m_identity,East!I55, London!I55, 'North West'!I55, 'West Midlands'!I55, Northern!I55, Scotland!I55, Southern!I55, 'Wales & West'!I55) -> 0.25
E57: GD TIM group ratio | G57: scalar | I57: =CHOOSE(m_identity,East!I57, London!I57, 'North West'!I57, 'West Midlands'!I57, Northern!I57, Scotland!I57, Southern!I57, 'Wales & West'!I57) -> 110.9852887
E59: Ofgem's view of licensee totex | G59: £m 09/10 prices | I59: =CHOOSE(m_identity,East!I59, London!I59, 'North West'!I59, 'West Midlands'!I59, Northern!I59, Scotland!I59, Southern!I59, 'Wales & West'!I59) -> 1637.49932
E60: Operator's view of licensee totex | G60: £m 09/10 prices | I60: =CHOOSE(m_identity,East!I60, London!I60, 'North West'!I60, 'West Midlands'!I60, Northern!I60, Scotland!I60, Southern!I60, 'Wales & West'!I60) -> 1817.383348
E62: Ofgem's view of group price control totex | G62: £m 09/10 prices | I62: =CHOOSE(m_identity,East!I62, London!I62, 'North West'!I62, 'West Midlands'!I62, Northern!I62, Scotland!I62, Southern!I62, 'Wales & West'!I62) -> 1637.49932
E63: Operator's view of group price control totex | G63: £m 09/10 prices | I63: =CHOOSE(m_identity,East!I63, London!I63, 'North West'!I63, 'West Midlands'!I63, Northern!I63, Scotland!I63, Southern!I63, 'Wales & West'!I63) -> 1817.383348
C65: Finance
E67: Minimum equity issuance threshold | G67: % | I67: =CHOOSE(m_identity,East!I67, London!I67, 'North West'!I67, 'West Midlands'!I67, Northern!I67, Scotland!I67, Southern!I67, 'Wales & West'!I67) -> 0.05
E68: Equity issuance costs | G68: % | I68: =CHOOSE(m_identity,East!I68, London!I68, 'North West'!I68, 'West Midlands'!I68, Northern!I68, Scotland!I68, Southern!I68, 'Wales & West'!I68) -> 0.05
E69: Assumed dividends as % of notional equity portion of RAV | G69: % | I69: =CHOOSE(m_identity,East!I69, London!I69, 'North West'!I69, 'West Midlands'!I69, Northern!I69, Scotland!I69, Southern!I69, 'Wales & West'!I69) -> 0.05
E71: Equity issuance gearing target | G71: % | AH71: =CHOOSE(m_identity,East!AH71, London!AH71, 'North West'!AH71, 'West Midlands'!AH71, Northern!AH71, Scotland!AH71, Southern!AH71, 'Wales & West'!AH71) -> 0.65 | AI71: =CHOOSE(m_identity,East!AI71, London!AI71, 'North West'!AI71, 'West Midlands'!AI71, Northern!AI71, Scotland!AI71, Southern!AI71, 'Wales & West'!AI71) -> 0.65 | AJ71: =CHOOSE(m_identity,East!AJ71, London!AJ71, 'North West'!AJ71, 'West Midlands'!AJ71, Northern!AJ71, Scotland!AJ71, Southern!AJ71, 'Wales & West'!AJ71) -> 0.65 | AK71: =CHOOSE(m_identity,East!AK71, London!AK71, 'North West'!AK71, 'West Midlands'!AK71, Northern!AK71, Scotland!AK71, Southern!AK71, 'Wales & West'!AK71) -> 0.65 | AL71: =CHOOSE(m_identity,East!AL71, London!AL71, 'North West'!AL71, 'West Midlands'!AL71, Northern!AL71, Scotland!AL71, Southern!AL71, 'Wales & West'!AL71) -> 0.65 | AM71: =CHOOSE(m_identity,East!AM71, London!AM71, 'North West'!AM71, 'West Midlands'!AM71, Northern!AM71, Scotland!AM71, Southern!AM71, 'Wales & West'!AM71) -> 0.65 | AN71: =CHOOSE(m_identity,East!AN71, London!AN71, 'North West'!AN71, 'West Midlands'!AN71, Northern!AN71, Scotland!AN71, Southern!AN71, 'Wales & West'!AN71) -> 0.65 | AO71: =CHOOSE(m_identity,East!AO71, London!AO71, 'North West'!AO71, 'West Midlands'!AO71, Northern!AO71, Scotland!AO71, Southern!AO71, 'Wales & West'!AO71) -> 0.65
E73: Index-linked debt as a percentage of net debt | G73: % | AH73: =CHOOSE(m_identity,East!AH73, London!AH73, 'North West'!AH73, 'West Midlands'!AH73, Northern!AH73, Scotland!AH73, Southern!AH73, 'Wales & West'!AH73) -> 0.25 | AI73: =CHOOSE(m_identity,East!AI73, London!AI73, 'North West'!AI73, 'West Midlands'!AI73, Northern!AI73, Scotland!AI73, Southern!AI73, 'Wales & West'!AI73) -> 0.25 | AJ73: =CHOOSE(m_identity,East!AJ73, London!AJ73, 'North West'!AJ73, 'West Midlands'!AJ73, Northern!AJ73, Scotland!AJ73, Southern!AJ73, 'Wales & West'!AJ73) -> 0.25 | AK73: =CHOOSE(m_identity,East!AK73, London!AK73, 'North West'!AK73, 'West Midlands'!AK73, Northern!AK73, Scotland!AK73, Southern!AK73, 'Wales & West'!AK73) -> 0.25 | AL73: =CHOOSE(m_identity,East!AL73, London!AL73, 'North West'!AL73, 'West Midlands'!AL73, Northern!AL73, Scotland!AL73, Southern!AL73, 'Wales & West'!AL73) -> 0.25 | AM73: =CHOOSE(m_identity,East!AM73, London!AM73, 'North West'!AM73, 'West Midlands'!AM73, Northern!AM73, Scotland!AM73, Southern!AM73, 'Wales & West'!AM73) -> 0.25 | AN73: =CHOOSE(m_identity,East!AN73, London!AN73, 'North West'!AN73, 'West Midlands'!AN73, Northern!AN73, Scotland!AN73, Southern!AN73, 'Wales & West'!AN73) -> 0.25 | AO73: =CHOOSE(m_identity,East!AO73, London!AO73, 'North West'!AO73, 'West Midlands'!AO73, Northern!AO73, Scotland!AO73, Southern!AO73, 'Wales & West'!AO73) -> 0.25
B75: Expenditure
C77: Totex
D79: Non-variant allowances
E81: Non-variant allowed load related capex | G81: £m 09/10 prices | AH81: =CHOOSE(m_identity,East!AH81, London!AH81, 'North West'!AH81, 'West Midlands'!AH81, Northern!AH81, Scotland!AH81, Southern!AH81, 'Wales & West'!AH81) -> 30.49594183 | AI81: =CHOOSE(m_identity,East!AI81, London!AI81, 'North West'!AI81, 'West Midlands'!AI81, Northern!AI81, Scotland!AI81, Southern!AI81, 'Wales & West'!AI81) -> 30.60620871 | AJ81: =CHOOSE(m_identity,East!AJ81, London!AJ81, 'North West'!AJ81, 'West Midlands'!AJ81, Northern!AJ81, Scotland!AJ81, Southern!AJ81, 'Wales & West'!AJ81) -> 29.12718573 | AK81: =CHOOSE(m_identity,East!AK81, London!AK81, 'North West'!AK81, 'West Midlands'!AK81, Northern!AK81, Scotland!AK81, Southern!AK81, 'Wales & West'!AK81) -> 30.1769862 | AL81: =CHOOSE(m_identity,East!AL81, London!AL81, 'North West'!AL81, 'West Midlands'!AL81, Northern!AL81, Scotland!AL81, Southern!AL81, 'Wales & West'!AL81) -> 30.60242656 | AM81: =CHOOSE(m_identity,East!AM81, London!AM81, 'North West'!AM81, 'West Midlands'!AM81, Northern!AM81, Scotland!AM81, Southern!AM81, 'Wales & West'!AM81) -> 29.18152352 | AN81: =CHOOSE(m_identity,East!AN81, London!AN81, 'North West'!AN81, 'West Midlands'!AN81, Northern!AN81, Scotland!AN81, Southern!AN81, 'Wales & West'!AN81) -> 28.28179512 | AO81: =CHOOSE(m_identity,East!AO81, London!AO81, 'North West'!AO81, 'West Midlands'!AO81, Northern!AO81, Scotland!AO81, Southern!AO81, 'Wales & West'!AO81) -> 30.64045621
E82: Non-variant allowed non-load related capex - other | G82: £m 09/10 prices | AH82: =CHOOSE(m_identity,East!AH82, London!AH82, 'North West'!AH82, 'West Midlands'!AH82, Northern!AH82, Scotland!AH82, Southern!AH82, 'Wales & West'!AH82) -> 22.44310093 | AI82: =CHOOSE(m_identity,East!AI82, London!AI82, 'North West'!AI82, 'West Midlands'!AI82, Northern!AI82, Scotland!AI82, Southern!AI82, 'Wales & West'!AI82) -> 21.27641564 | AJ82: =CHOOSE(m_identity,East!AJ82, London!AJ82, 'North West'!AJ82, 'West Midlands'!AJ82, Northern!AJ82, Scotland!AJ82, Southern!AJ82, 'Wales & West'!AJ82) -> 16.04170714 | AK82: =CHOOSE(m_identity,East!AK82, London!AK82, 'North West'!AK82, 'West Midlands'!AK82, Northern!AK82, Scotland!AK82, Southern!AK82, 'Wales & West'!AK82) -> 13.16274495 | AL82: =CHOOSE(m_identity,East!AL82, London!AL82, 'North West'!AL82, 'West Midlands'!AL82, Northern!AL82, Scotland!AL82, Southern!AL82, 'Wales & West'!AL82) -> 12.05347038 | AM82: =CHOOSE(m_identity,East!AM82, London!AM82, 'North West'!AM82, 'West Midlands'!AM82, Northern!AM82, Scotland!AM82, Southern!AM82, 'Wales & West'!AM82) -> 11.94741037 | AN82: =CHOOSE(m_identity,East!AN82, London!AN82, 'North West'!AN82, 'West Midlands'!AN82, Northern!AN82, Scotland!AN82, Southern!AN82, 'Wales & West'!AN82) -> 15.62915458 | AO82: =CHOOSE(m_identity,East!AO82, London!AO82, 'North West'!AO82, 'West Midlands'!AO82, Northern!AO82, Scotland!AO82, Southern!AO82, 'Wales & West'!AO82) -> 15.09644943
E83: Non-variant allowed controllable opex | G83: £m 09/10 prices | AH83: =CHOOSE(m_identity,East!AH83, London!AH83, 'North West'!AH83, 'West Midlands'!AH83, Northern!AH83, Scotland!AH83, Southern!AH83, 'Wales & West'!AH83) -> 83.44643796 | AI83: =CHOOSE(m_identity,East!AI83, London!AI83, 'North West'!AI83, 'West Midlands'!AI83, Northern!AI83, Scotland!AI83, Southern!AI83, 'Wales & West'!AI83) -> 82.57159507 | AJ83: =CHOOSE(m_identity,East!AJ83, London!AJ83, 'North West'!AJ83, 'West Midlands'!AJ83, Northern!AJ83, Scotland!AJ83, Southern!AJ83, 'Wales & West'!AJ83) -> 85.62711485 | AK83: =CHOOSE(m_identity,East!AK83, London!AK83, 'North West'!AK83, 'West Midlands'!AK83, Northern!AK83, Scotland!AK83, Southern!AK83, 'Wales & West'!AK83) -> 85.16316402 | AL83: =CHOOSE(m_identity,East!AL83, London!AL83, 'North West'!AL83, 'West Midlands'!AL83, Northern!AL83, Scotland!AL83, Southern!AL83, 'Wales & West'!AL83) -> 84.0567052 | AM83: =CHOOSE(m_identity,East!AM83, London!AM83, 'North West'!AM83, 'West Midlands'!AM83, Northern!AM83, Scotland!AM83, Southern!AM83, 'Wales & West'!AM83) -> 85.21608499 | AN83: =CHOOSE(m_identity,East!AN83, London!AN83, 'North West'!AN83, 'West Midlands'!AN83, Northern!AN83, Scotland!AN83, Southern!AN83, 'Wales & West'!AN83) -> 85.38661312 | AO83: =CHOOSE(m_identity,East!AO83, London!AO83, 'North West'!AO83, 'West Midlands'!AO83, Northern!AO83, Scotland!AO83, Southern!AO83, 'Wales & West'!AO83) -> 83.71330427
E84: Non-variant allowed repex | G84: £m 09/10 prices | AH84: =CHOOSE(m_identity,East!AH84, London!AH84, 'North West'!AH84, 'West Midlands'!AH84, Northern!AH84, Scotland!AH84, Southern!AH84, 'Wales & West'!AH84) -> 78.32060746 | AI84: =CHOOSE(m_identity,East!AI84, London!AI84, 'North West'!AI84, 'West Midlands'!AI84, Northern!AI84, Scotland!AI84, Southern!AI84, 'Wales & West'!AI84) -> 78.26315079 | AJ84: =CHOOSE(m_identity,East!AJ84, London!AJ84, 'North West'!AJ84, 'West Midlands'!AJ84, Northern!AJ84, Scotland!AJ84, Southern!AJ84, 'Wales & West'!AJ84) -> 78.51922743 | AK84: =CHOOSE(m_identity,East!AK84, London!AK84, 'North West'!AK84, 'West Midlands'!AK84, Northern!AK84, Scotland!AK84, Southern!AK84, 'Wales & West'!AK84) -> 77.99154726 | AL84: =CHOOSE(m_identity,East!AL84, London!AL84, 'North West'!AL84, 'West Midlands'!AL84, Northern!AL84, Scotland!AL84, Southern!AL84, 'Wales & West'!AL84) -> 79.03673356 | AM84: =CHOOSE(m_identity,East!AM84, London!AM84, 'North West'!AM84, 'West Midlands'!AM84, Northern!AM84, Scotland!AM84, Southern!AM84, 'Wales & West'!AM84) -> 78.98831253 | AN84: =CHOOSE(m_identity,East!AN84, London!AN84, 'North West'!AN84, 'West Midlands'!AN84, Northern!AN84, Scotland!AN84, Southern!AN84, 'Wales & West'!AN84) -> 78.93377113 | AO84: =CHOOSE(m_identity,East!AO84, London!AO84, 'North West'!AO84, 'West Midlands'!AO84, Northern!AO84, Scotland!AO84, Southern!AO84, 'Wales & West'!AO84) -> 77.61622134
D86: Variant allowances
E88: =E13 -> Allowed uncertain costs (Enhanced physical site security) | G88: £m 09/10 prices | AH88: =AH13 -> 0 | AI88: =AI13 -> 0 | AJ88: 0 | AK88: 0 | AL88: 0 | AM88: 0 | AN88: 0 | AO88: 0
E89: Allocation to load related capex | G89: % | AH89: =CHOOSE(m_identity,East!AH89, London!AH89, 'North West'!AH89, 'West Midlands'!AH89, Northern!AH89, Scotland!AH89, Southern!AH89, 'Wales & West'!AH89) -> 0 | AI89: =CHOOSE(m_identity,East!AI89, London!AI89, 'North West'!AI89, 'West Midlands'!AI89, Northern!AI89, Scotland!AI89, Southern!AI89, 'Wales & West'!AI89) -> 0 | AJ89: =CHOOSE(m_identity,East!AJ89, London!AJ89, 'North West'!AJ89, 'West Midlands'!AJ89, Northern!AJ89, Scotland!AJ89, Southern!AJ89, 'Wales & West'!AJ89) -> 0 | AK89: =CHOOSE(m_identity,East!AK89, London!AK89, 'North West'!AK89, 'West Midlands'!AK89, Northern!AK89, Scotland!AK89, Southern!AK89, 'Wales & West'!AK89) -> 0 | AL89: =CHOOSE(m_identity,East!AL89, London!AL89, 'North West'!AL89, 'West Midlands'!AL89, Northern!AL89, Scotland!AL89, Southern!AL89, 'Wales & West'!AL89) -> 0 | AM89: =CHOOSE(m_identity,East!AM89, London!AM89, 'North West'!AM89, 'West Midlands'!AM89, Northern!AM89, Scotland!AM89, Southern!AM89, 'Wales & West'!AM89) -> 0 | AN89: =CHOOSE(m_identity,East!AN89, London!AN89, 'North West'!AN89, 'West Midlands'!AN89, Northern!AN89, Scotland!AN89, Southern!AN89, 'Wales & West'!AN89) -> 0 | AO89: =CHOOSE(m_identity,East!AO89, London!AO89, 'North West'!AO89, 'West Midlands'!AO89, Northern!AO89, Scotland!AO89, Southern!AO89, 'Wales & West'!AO89) -> 0
E90: Allocation to non-load related capex - other | G90: % | AH90: =CHOOSE(m_identity,East!AH90, London!AH90, 'North West'!AH90, 'West Midlands'!AH90, Northern!AH90, Scotland!AH90, Southern!AH90, 'Wales & West'!AH90) -> 1 | AI90: =CHOOSE(m_identity,East!AI90, London!AI90, 'North West'!AI90, 'West Midlands'!AI90, Northern!AI90, Scotland!AI90, Southern!AI90, 'Wales & West'!AI90) -> 1 | AJ90: =CHOOSE(m_identity,East!AJ90, London!AJ90, 'North West'!AJ90, 'West Midlands'!AJ90, Northern!AJ90, Scotland!AJ90, Southern!AJ90, 'Wales & West'!AJ90) -> 1 | AK90: =CHOOSE(m_identity,East!AK90, London!AK90, 'North West'!AK90, 'West Midlands'!AK90, Northern!AK90, Scotland!AK90, Southern!AK90, 'Wales & West'!AK90) -> 1 | AL90: =CHOOSE(m_identity,East!AL90, London!AL90, 'North West'!AL90, 'West Midlands'!AL90, Northern!AL90, Scotland!AL90, Southern!AL90, 'Wales & West'!AL90) -> 1 | AM90: =CHOOSE(m_identity,East!AM90, London!AM90, 'North West'!AM90, 'West Midlands'!AM90, Northern!AM90, Scotland!AM90, Southern!AM90, 'Wales & West'!AM90) -> 1 | AN90: =CHOOSE(m_identity,East!AN90, London!AN90, 'North West'!AN90, 'West Midlands'!AN90, Northern!AN90, Scotland!AN90, Southern!AN90, 'Wales & West'!AN90) -> 1 | AO90: =CHOOSE(m_identity,East!AO90, London!AO90, 'North West'!AO90, 'West Midlands'!AO90, Northern!AO90, Scotland!AO90, Southern!AO90, 'Wales & West'!AO90) -> 1
E91: Allocation to controllable opex | G91: % | AH91: =CHOOSE(m_identity,East!AH91, London!AH91, 'North West'!AH91, 'West Midlands'!AH91, Northern!AH91, Scotland!AH91, Southern!AH91, 'Wales & West'!AH91) -> 0 | AI91: =CHOOSE(m_identity,East!AI91, London!AI91, 'North West'!AI91, 'West Midlands'!AI91, Northern!AI91, Scotland!AI91, Southern!AI91, 'Wales & West'!AI91) -> 0 | AJ91: =CHOOSE(m_identity,East!AJ91, London!AJ91, 'North West'!AJ91, 'West Midlands'!AJ91, Northern!AJ91, Scotland!AJ91, Southern!AJ91, 'Wales & West'!AJ91) -> 0 | AK91: =CHOOSE(m_identity,East!AK91, London!AK91, 'North West'!AK91, 'West Midlands'!AK91, Northern!AK91, Scotland!AK91, Southern!AK91, 'Wales & West'!AK91) -> 0 | AL91: =CHOOSE(m_identity,East!AL91, London!AL91, 'North West'!AL91, 'West Midlands'!AL91, Northern!AL91, Scotland!AL91, Southern!AL91, 'Wales & West'!AL91) -> 0 | AM91: =CHOOSE(m_identity,East!AM91, London!AM91, 'North West'!AM91, 'West Midlands'!AM91, Northern!AM91, Scotland!AM91, Southern!AM91, 'Wales & West'!AM91) -> 0 | AN91: =CHOOSE(m_identity,East!AN91, London!AN91, 'North West'!AN91, 'West Midlands'!AN91, Northern!AN91, Scotland!AN91, Southern!AN91, 'Wales & West'!AN91) -> 0 | AO91: =CHOOSE(m_identity,East!AO91, London!AO91, 'North West'!AO91, 'West Midlands'!AO91, Northern!AO91, Scotland!AO91, Southern!AO91, 'Wales & West'!AO91) -> 0
E92: Allocation to repex | G92: % | AH92: =CHOOSE(m_identity,East!AH92, London!AH92, 'North West'!AH92, 'West Midlands'!AH92, Northern!AH92, Scotland!AH92, Southern!AH92, 'Wales & West'!AH92) -> 0 | AI92: =CHOOSE(m_identity,East!AI92, London!AI92, 'North West'!AI92, 'West Midlands'!AI92, Northern!AI92, Scotland!AI92, Southern!AI92, 'Wales & West'!AI92) -> 0 | AJ92: =CHOOSE(m_identity,East!AJ92, London!AJ92, 'North West'!AJ92, 'West Midlands'!AJ92, Northern!AJ92, Scotland!AJ92, Southern!AJ92, 'Wales & West'!AJ92) -> 0 | AK92: =CHOOSE(m_identity,East!AK92, London!AK92, 'North West'!AK92, 'West Midlands'!AK92, Northern!AK92, Scotland!AK92, Southern!AK92, 'Wales & West'!AK92) -> 0 | AL92: =CHOOSE(m_identity,East!AL92, London!AL92, 'North West'!AL92, 'West Midlands'!AL92, Northern!AL92, Scotland!AL92, Southern!AL92, 'Wales & West'!AL92) -> 0 | AM92: =CHOOSE(m_identity,East!AM92, London!AM92, 'North West'!AM92, 'West Midlands'!AM92, Northern!AM92, Scotland!AM92, Southern!AM92, 'Wales & West'!AM92) -> 0 | AN92: =CHOOSE(m_identity,East!AN92, London!AN92, 'North West'!AN92, 'West Midlands'!AN92, Northern!AN92, Scotland!AN92, Southern!AN92, 'Wales & West'!AN92) -> 0 | AO92: =CHOOSE(m_identity,East!AO92, London!AO92, 'North West'!AO92, 'West Midlands'!AO92, Northern!AO92, Scotland!AO92, Southern!AO92, 'Wales & West'!AO92) -> 0
E94: =E14 -> Allowed uncertain costs (Specified street work costs) | G94: £m 09/10 prices | AH94: =AH14 -> 0.5338191696 | AI94: 0.506119741 | AJ94: 0.4832672959 | AK94: 0.4627542691 | AL94: 0.4487080118 | AM94: 0.4343188999 | AN94: 0.4226692634 | AO94: 0.4115931281
E95: Allocation to load related capex | G95: % | AH95: =CHOOSE(m_identity,East!AH95, London!AH95, 'North West'!AH95, 'West Midlands'!AH95, Northern!AH95, Scotland!AH95, Southern!AH95, 'Wales & West'!AH95) -> 0.05 | AI95: =CHOOSE(m_identity,East!AI95, London!AI95, 'North West'!AI95, 'West Midlands'!AI95, Northern!AI95, Scotland!AI95, Southern!AI95, 'Wales & West'!AI95) -> 0.05 | AJ95: =CHOOSE(m_identity,East!AJ95, London!AJ95, 'North West'!AJ95, 'West Midlands'!AJ95, Northern!AJ95, Scotland!AJ95, Southern!AJ95, 'Wales & West'!AJ95) -> 0.05 | AK95: =CHOOSE(m_identity,East!AK95, London!AK95, 'North West'!AK95, 'West Midlands'!AK95, Northern!AK95, Scotland!AK95, Southern!AK95, 'Wales & West'!AK95) -> 0.05 | AL95: =CHOOSE(m_identity,East!AL95, London!AL95, 'North West'!AL95, 'West Midlands'!AL95, Northern!AL95, Scotland!AL95, Southern!AL95, 'Wales & West'!AL95) -> 0.05 | AM95: =CHOOSE(m_identity,East!AM95, London!AM95, 'North West'!AM95, 'West Midlands'!AM95, Northern!AM95, Scotland!AM95, Southern!AM95, 'Wales & West'!AM95) -> 0.05 | AN95: =CHOOSE(m_identity,East!AN95, London!AN95, 'North West'!AN95, 'West Midlands'!AN95, Northern!AN95, Scotland!AN95, Southern!AN95, 'Wales & West'!AN95) -> 0.05 | AO95: =CHOOSE(m_identity,East!AO95, London!AO95, 'North West'!AO95, 'West Midlands'!AO95, Northern!AO95, Scotland!AO95, Southern!AO95, 'Wales & West'!AO95) -> 0.05
E96: Allocation to non-load related capex - other | G96: % | AH96: =CHOOSE(m_identity,East!AH96, London!AH96, 'North West'!AH96, 'West Midlands'!AH96, Northern!AH96, Scotland!AH96, Southern!AH96, 'Wales & West'!AH96) -> 0 | AI96: =CHOOSE(m_identity,East!AI96, London!AI96, 'North West'!AI96, 'West Midlands'!AI96, Northern!AI96, Scotland!AI96, Southern!AI96, 'Wales & West'!AI96) -> 0 | AJ96: =CHOOSE(m_identity,East!AJ96, London!AJ96, 'North West'!AJ96, 'West Midlands'!AJ96, Northern!AJ96, Scotland!AJ96, Southern!AJ96, 'Wales & West'!AJ96) -> 0 | AK96: =CHOOSE(m_identity,East!AK96, London!AK96, 'North West'!AK96, 'West Midlands'!AK96, Northern!AK96, Scotland!AK96, Southern!AK96, 'Wales & West'!AK96) -> 0 | AL96: =CHOOSE(m_identity,East!AL96, London!AL96, 'North West'!AL96, 'West Midlands'!AL96, Northern!AL96, Scotland!AL96, Southern!AL96, 'Wales & West'!AL96) -> 0 | AM96: =CHOOSE(m_identity,East!AM96, London!AM96, 'North West'!AM96, 'West Midlands'!AM96, Northern!AM96, Scotland!AM96, Southern!AM96, 'Wales & West'!AM96) -> 0 | AN96: =CHOOSE(m_identity,East!AN96, London!AN96, 'North West'!AN96, 'West Midlands'!AN96, Northern!AN96, Scotland!AN96, Southern!AN96, 'Wales & West'!AN96) -> 0 | AO96: =CHOOSE(m_identity,East!AO96, London!AO96, 'North West'!AO96, 'West Midlands'!AO96, Northern!AO96, Scotland!AO96, Southern!AO96, 'Wales & West'!AO96) -> 0
E97: Allocation to controllable opex | G97: % | AH97: =CHOOSE(m_identity,East!AH97, London!AH97, 'North West'!AH97, 'West Midlands'!AH97, Northern!AH97, Scotland!AH97, Southern!AH97, 'Wales & West'!AH97) -> 0.3 | AI97: =CHOOSE(m_identity,East!AI97, London!AI97, 'North West'!AI97, 'West Midlands'!AI97, Northern!AI97, Scotland!AI97, Southern!AI97, 'Wales & West'!AI97) -> 0.3 | AJ97: =CHOOSE(m_identity,East!AJ97, London!AJ97, 'North West'!AJ97, 'West Midlands'!AJ97, Northern!AJ97, Scotland!AJ97, Southern!AJ97, 'Wales & West'!AJ97) -> 0.3 | AK97: =CHOOSE(m_identity,East!AK97, London!AK97, 'North West'!AK97, 'West Midlands'!AK97, Northern!AK97, Scotland!AK97, Southern!AK97, 'Wales & West'!AK97) -> 0.3 | AL97: =CHOOSE(m_identity,East!AL97, London!AL97, 'North West'!AL97, 'West Midlands'!AL97, Northern!AL97, Scotland!AL97, Southern!AL97, 'Wales & West'!AL97) -> 0.3 | AM97: =CHOOSE(m_identity,East!AM97, London!AM97, 'North West'!AM97, 'West Midlands'!AM97, Northern!AM97, Scotland!AM97, Southern!AM97, 'Wales & West'!AM97) -> 0.3 | AN97: =CHOOSE(m_identity,East!AN97, London!AN97, 'North West'!AN97, 'West Midlands'!AN97, Northern!AN97, Scotland!AN97, Southern!AN97, 'Wales & West'!AN97) -> 0.3 | AO97: =CHOOSE(m_identity,East!AO97, London!AO97, 'North West'!AO97, 'West Midlands'!AO97, Northern!AO97, Scotland!AO97, Southern!AO97, 'Wales & West'!AO97) -> 0.3
E98: Allocation to repex | G98: % | AH98: =CHOOSE(m_identity,East!AH98, London!AH98, 'North West'!AH98, 'West Midlands'!AH98, Northern!AH98, Scotland!AH98, Southern!AH98, 'Wales & West'!AH98) -> 0.65 | AI98: =CHOOSE(m_identity,East!AI98, London!AI98, 'North West'!AI98, 'West Midlands'!AI98, Northern!AI98, Scotland!AI98, Southern!AI98, 'Wales & West'!AI98) -> 0.65 | AJ98: =CHOOSE(m_identity,East!AJ98, London!AJ98, 'North West'!AJ98, 'West Midlands'!AJ98, Northern!AJ98, Scotland!AJ98, Southern!AJ98, 'Wales & West'!AJ98) -> 0.65 | AK98: =CHOOSE(m_identity,East!AK98, London!AK98, 'North West'!AK98, 'West Midlands'!AK98, Northern!AK98, Scotland!AK98, Southern!AK98, 'Wales & West'!AK98) -> 0.65 | AL98: =CHOOSE(m_identity,East!AL98, London!AL98, 'North West'!AL98, 'West Midlands'!AL98, Northern!AL98, Scotland!AL98, Southern!AL98, 'Wales & West'!AL98) -> 0.65 | AM98: =CHOOSE(m_identity,East!AM98, London!AM98, 'North West'!AM98, 'West Midlands'!AM98, Northern!AM98, Scotland!AM98, Southern!AM98, 'Wales & West'!AM98) -> 0.65 | AN98: =CHOOSE(m_identity,East!AN98, London!AN98, 'North West'!AN98, 'West Midlands'!AN98, Northern!AN98, Scotland!AN98, Southern!AN98, 'Wales & West'!AN98) -> 0.65 | AO98: =CHOOSE(m_identity,East!AO98, London!AO98, 'North West'!AO98, 'West Midlands'!AO98, Northern!AO98, Scotland!AO98, Southern!AO98, 'Wales & West'!AO98) -> 0.65
E100: =E15 -> Allowed uncertain costs (Connection charging boundary change costs) | G100: £m 09/10 prices | AH100: =AH15 -> 0 | AI100: =AI15 -> 0 | AJ100: 0 | AK100: 0 | AL100: 0 | AM100: 0 | AN100: 0 | AO100: 0
E101: Allocation to load related capex | G101: % | AH101: =CHOOSE(m_identity,East!AH101, London!AH101, 'North West'!AH101, 'West Midlands'!AH101, Northern!AH101, Scotland!AH101, Southern!AH101, 'Wales & West'!AH101) -> 0.9 | AI101: =CHOOSE(m_identity,East!AI101, London!AI101, 'North West'!AI101, 'West Midlands'!AI101, Northern!AI101, Scotland!AI101, Southern!AI101, 'Wales & West'!AI101) -> 0.9 | AJ101: =CHOOSE(m_identity,East!AJ101, London!AJ101, 'North West'!AJ101, 'West Midlands'!AJ101, Northern!AJ101, Scotland!AJ101, Southern!AJ101, 'Wales & West'!AJ101) -> 0.9 | AK101: =CHOOSE(m_identity,East!AK101, London!AK101, 'North West'!AK101, 'West Midlands'!AK101, Northern!AK101, Scotland!AK101, Southern!AK101, 'Wales & West'!AK101) -> 0.9 | AL101: =CHOOSE(m_identity,East!AL101, London!AL101, 'North West'!AL101, 'West Midlands'!AL101, Northern!AL101, Scotland!AL101, Southern!AL101, 'Wales & West'!AL101) -> 0.9 | AM101: =CHOOSE(m_identity,East!AM101, London!AM101, 'North West'!AM101, 'West Midlands'!AM101, Northern!AM101, Scotland!AM101, Southern!AM101, 'Wales & West'!AM101) -> 0.9 | AN101: =CHOOSE(m_identity,East!AN101, London!AN101, 'North West'!AN101, 'West Midlands'!AN101, Northern!AN101, Scotland!AN101, Southern!AN101, 'Wales & West'!AN101) -> 0.9 | AO101: =CHOOSE(m_identity,East!AO101, London!AO101, 'North West'!AO101, 'West Midlands'!AO101, Northern!AO101, Scotland!AO101, Southern!AO101, 'Wales & West'!AO101) -> 0.9
E102: Allocation to non-load related capex - other | G102: % | AH102: =CHOOSE(m_identity,East!AH102, London!AH102, 'North West'!AH102, 'West Midlands'!AH102, Northern!AH102, Scotland!AH102, Southern!AH102, 'Wales & West'!AH102) -> 0 | AI102: =CHOOSE(m_identity,East!AI102, London!AI102, 'North West'!AI102, 'West Midlands'!AI102, Northern!AI102, Scotland!AI102, Southern!AI102, 'Wales & West'!AI102) -> 0 | AJ102: =CHOOSE(m_identity,East!AJ102, London!AJ102, 'North West'!AJ102, 'West Midlands'!AJ102, Northern!AJ102, Scotland!AJ102, Southern!AJ102, 'Wales & West'!AJ102) -> 0 | AK102: =CHOOSE(m_identity,East!AK102, London!AK102, 'North West'!AK102, 'West Midlands'!AK102, Northern!AK102, Scotland!AK102, Southern!AK102, 'Wales & West'!AK102) -> 0 | AL102: =CHOOSE(m_identity,East!AL102, London!AL102, 'North West'!AL102, 'West Midlands'!AL102, Northern!AL102, Scotland!AL102, Southern!AL102, 'Wales & West'!AL102) -> 0 | AM102: =CHOOSE(m_identity,East!AM102, London!AM102, 'North West'!AM102, 'West Midlands'!AM102, Northern!AM102, Scotland!AM102, Southern!AM102, 'Wales & West'!AM102) -> 0 | AN102: =CHOOSE(m_identity,East!AN102, London!AN102, 'North West'!AN102, 'West Midlands'!AN102, Northern!AN102, Scotland!AN102, Southern!AN102, 'Wales & West'!AN102) -> 0 | AO102: =CHOOSE(m_identity,East!AO102, London!AO102, 'North West'!AO102, 'West Midlands'!AO102, Northern!AO102, Scotland!AO102, Southern!AO102, 'Wales & West'!AO102) -> 0
E103: Allocation to controllable opex | G103: % | AH103: =CHOOSE(m_identity,East!AH103, London!AH103, 'North West'!AH103, 'West Midlands'!AH103, Northern!AH103, Scotland!AH103, Southern!AH103, 'Wales & West'!AH103) -> 0.1 | AI103: =CHOOSE(m_identity,East!AI103, London!AI103, 'North West'!AI103, 'West Midlands'!AI103, Northern!AI103, Scotland!AI103, Southern!AI103, 'Wales & West'!AI103) -> 0.1 | AJ103: =CHOOSE(m_identity,East!AJ103, London!AJ103, 'North West'!AJ103, 'West Midlands'!AJ103, Northern!AJ103, Scotland!AJ103, Southern!AJ103, 'Wales & West'!AJ103) -> 0.1 | AK103: =CHOOSE(m_identity,East!AK103, London!AK103, 'North West'!AK103, 'West Midlands'!AK103, Northern!AK103, Scotland!AK103, Southern!AK103, 'Wales & West'!AK103) -> 0.1 | AL103: =CHOOSE(m_identity,East!AL103, London!AL103, 'North West'!AL103, 'West Midlands'!AL103, Northern!AL103, Scotland!AL103, Southern!AL103, 'Wales & West'!AL103) -> 0.1 | AM103: =CHOOSE(m_identity,East!AM103, London!AM103, 'North West'!AM103, 'West Midlands'!AM103, Northern!AM103, Scotland!AM103, Southern!AM103, 'Wales & West'!AM103) -> 0.1 | AN103: =CHOOSE(m_identity,East!AN103, London!AN103, 'North West'!AN103, 'West Midlands'!AN103, Northern!AN103, Scotland!AN103, Southern!AN103, 'Wales & West'!AN103) -> 0.1 | AO103: =CHOOSE(m_identity,East!AO103, London!AO103, 'North West'!AO103, 'West Midlands'!AO103, Northern!AO103, Scotland!AO103, Southern!AO103, 'Wales & West'!AO103) -> 0.1
E104: Allocation to repex | G104: % | AH104: =CHOOSE(m_identity,East!AH104, London!AH104, 'North West'!AH104, 'West Midlands'!AH104, Northern!AH104, Scotland!AH104, Southern!AH104, 'Wales & West'!AH104) -> 0 | AI104: =CHOOSE(m_identity,East!AI104, London!AI104, 'North West'!AI104, 'West Midlands'!AI104, Northern!AI104, Scotland!AI104, Southern!AI104, 'Wales & West'!AI104) -> 0 | AJ104: =CHOOSE(m_identity,East!AJ104, London!AJ104, 'North West'!AJ104, 'West Midlands'!AJ104, Northern!AJ104, Scotland!AJ104, Southern!AJ104, 'Wales & West'!AJ104) -> 0 | AK104: =CHOOSE(m_identity,East!AK104, London!AK104, 'North West'!AK104, 'West Midlands'!AK104, Northern!AK104, Scotland!AK104, Southern!AK104, 'Wales & West'!AK104) -> 0 | AL104: =CHOOSE(m_identity,East!AL104, London!AL104, 'North West'!AL104, 'West Midlands'!AL104, Northern!AL104, Scotland!AL104, Southern!AL104, 'Wales & West'!AL104) -> 0 | AM104: =CHOOSE(m_identity,East!AM104, London!AM104, 'North West'!AM104, 'West Midlands'!AM104, Northern!AM104, Scotland!AM104, Southern!AM104, 'Wales & West'!AM104) -> 0 | AN104: =CHOOSE(m_identity,East!AN104, London!AN104, 'North West'!AN104, 'West Midlands'!AN104, Northern!AN104, Scotland!AN104, Southern!AN104, 'Wales & West'!AN104) -> 0 | AO104: =CHOOSE(m_identity,East!AO104, London!AO104, 'North West'!AO104, 'West Midlands'!AO104, Northern!AO104, Scotland!AO104, Southern!AO104, 'Wales & West'!AO104) -> 0
E106: =E16 -> Allowed uncertain costs (Fuel poor network extension scheme) | G106: £m 09/10 prices | AH106: =AH16 -> 1.307242889 | AI106: =AI16 -> 1.307242889 | AJ106: 1.29417046 | AK106: 1.281228755 | AL106: 1.005894035 | AM106: 0.9958350947 | AN106: 0.9858767437 | AO106: 0.9760179763
E107: Allocation to load related capex | G107: % | AH107: =CHOOSE(m_identity,East!AH107, London!AH107, 'North West'!AH107, 'West Midlands'!AH107, Northern!AH107, Scotland!AH107, Southern!AH107, 'Wales & West'!AH107) -> 1 | AI107: =CHOOSE(m_identity,East!AI107, London!AI107, 'North West'!AI107, 'West Midlands'!AI107, Northern!AI107, Scotland!AI107, Southern!AI107, 'Wales & West'!AI107) -> 1 | AJ107: =CHOOSE(m_identity,East!AJ107, London!AJ107, 'North West'!AJ107, 'West Midlands'!AJ107, Northern!AJ107, Scotland!AJ107, Southern!AJ107, 'Wales & West'!AJ107) -> 1 | AK107: =CHOOSE(m_identity,East!AK107, London!AK107, 'North West'!AK107, 'West Midlands'!AK107, Northern!AK107, Scotland!AK107, Southern!AK107, 'Wales & West'!AK107) -> 1 | AL107: =CHOOSE(m_identity,East!AL107, London!AL107, 'North West'!AL107, 'West Midlands'!AL107, Northern!AL107, Scotland!AL107, Southern!AL107, 'Wales & West'!AL107) -> 1 | AM107: =CHOOSE(m_identity,East!AM107, London!AM107, 'North West'!AM107, 'West Midlands'!AM107, Northern!AM107, Scotland!AM107, Southern!AM107, 'Wales & West'!AM107) -> 1 | AN107: =CHOOSE(m_identity,East!AN107, London!AN107, 'North West'!AN107, 'West Midlands'!AN107, Northern!AN107, Scotland!AN107, Southern!AN107, 'Wales & West'!AN107) -> 1 | AO107: =CHOOSE(m_identity,East!AO107, London!AO107, 'North West'!AO107, 'West Midlands'!AO107, Northern!AO107, Scotland!AO107, Southern!AO107, 'Wales & West'!AO107) -> 1
E108: Allocation to non-load related capex - other | G108: % | AH108: =CHOOSE(m_identity,East!AH108, London!AH108, 'North West'!AH108, 'West Midlands'!AH108, Northern!AH108, Scotland!AH108, Southern!AH108, 'Wales & West'!AH108) -> 0 | AI108: =CHOOSE(m_identity,East!AI108, London!AI108, 'North West'!AI108, 'West Midlands'!AI108, Northern!AI108, Scotland!AI108, Southern!AI108, 'Wales & West'!AI108) -> 0 | AJ108: =CHOOSE(m_identity,East!AJ108, London!AJ108, 'North West'!AJ108, 'West Midlands'!AJ108, Northern!AJ108, Scotland!AJ108, Southern!AJ108, 'Wales & West'!AJ108) -> 0 | AK108: =CHOOSE(m_identity,East!AK108, London!AK108, 'North West'!AK108, 'West Midlands'!AK108, Northern!AK108, Scotland!AK108, Southern!AK108, 'Wales & West'!AK108) -> 0 | AL108: =CHOOSE(m_identity,East!AL108, London!AL108, 'North West'!AL108, 'West Midlands'!AL108, Northern!AL108, Scotland!AL108, Southern!AL108, 'Wales & West'!AL108) -> 0 | AM108: =CHOOSE(m_identity,East!AM108, London!AM108, 'North West'!AM108, 'West Midlands'!AM108, Northern!AM108, Scotland!AM108, Southern!AM108, 'Wales & West'!AM108) -> 0 | AN108: =CHOOSE(m_identity,East!AN108, London!AN108, 'North West'!AN108, 'West Midlands'!AN108, Northern!AN108, Scotland!AN108, Southern!AN108, 'Wales & West'!AN108) -> 0 | AO108: =CHOOSE(m_identity,East!AO108, London!AO108, 'North West'!AO108, 'West Midlands'!AO108, Northern!AO108, Scotland!AO108, Southern!AO108, 'Wales & West'!AO108) -> 0
E109: Allocation to controllable opex | G109: % | AH109: =CHOOSE(m_identity,East!AH109, London!AH109, 'North West'!AH109, 'West Midlands'!AH109, Northern!AH109, Scotland!AH109, Southern!AH109, 'Wales & West'!AH109) -> 0 | AI109: =CHOOSE(m_identity,East!AI109, London!AI109, 'North West'!AI109, 'West Midlands'!AI109, Northern!AI109, Scotland!AI109, Southern!AI109, 'Wales & West'!AI109) -> 0 | AJ109: =CHOOSE(m_identity,East!AJ109, London!AJ109, 'North West'!AJ109, 'West Midlands'!AJ109, Northern!AJ109, Scotland!AJ109, Southern!AJ109, 'Wales & West'!AJ109) -> 0 | AK109: =CHOOSE(m_identity,East!AK109, London!AK109, 'North West'!AK109, 'West Midlands'!AK109, Northern!AK109, Scotland!AK109, Southern!AK109, 'Wales & West'!AK109) -> 0 | AL109: =CHOOSE(m_identity,East!AL109, London!AL109, 'North West'!AL109, 'West Midlands'!AL109, Northern!AL109, Scotland!AL109, Southern!AL109, 'Wales & West'!AL109) -> 0 | AM109: =CHOOSE(m_identity,East!AM109, London!AM109, 'North West'!AM109, 'West Midlands'!AM109, Northern!AM109, Scotland!AM109, Southern!AM109, 'Wales & West'!AM109) -> 0 | AN109: =CHOOSE(m_identity,East!AN109, London!AN109, 'North West'!AN109, 'West Midlands'!AN109, Northern!AN109, Scotland!AN109, Southern!AN109, 'Wales & West'!AN109) -> 0 | AO109: =CHOOSE(m_identity,East!AO109, London!AO109, 'North West'!AO109, 'West Midlands'!AO109, Northern!AO109, Scotland!AO109, Southern!AO109, 'Wales & West'!AO109) -> 0
E110: Allocation to repex | G110: % | AH110: =CHOOSE(m_identity,East!AH110, London!AH110, 'North West'!AH110, 'West Midlands'!AH110, Northern!AH110, Scotland!AH110, Southern!AH110, 'Wales & West'!AH110) -> 0 | AI110: =CHOOSE(m_identity,East!AI110, London!AI110, 'North West'!AI110, 'West Midlands'!AI110, Northern!AI110, Scotland!AI110, Southern!AI110, 'Wales & West'!AI110) -> 0 | AJ110: =CHOOSE(m_identity,East!AJ110, London!AJ110, 'North West'!AJ110, 'West Midlands'!AJ110, Northern!AJ110, Scotland!AJ110, Southern!AJ110, 'Wales & West'!AJ110) -> 0 | AK110: =CHOOSE(m_identity,East!AK110, London!AK110, 'North West'!AK110, 'West Midlands'!AK110, Northern!AK110, Scotland!AK110, Southern!AK110, 'Wales & West'!AK110) -> 0 | AL110: =CHOOSE(m_identity,East!AL110, London!AL110, 'North West'!AL110, 'West Midlands'!AL110, Northern!AL110, Scotland!AL110, Southern!AL110, 'Wales & West'!AL110) -> 0 | AM110: =CHOOSE(m_identity,East!AM110, London!AM110, 'North West'!AM110, 'West Midlands'!AM110, Northern!AM110, Scotland!AM110, Southern!AM110, 'Wales & West'!AM110) -> 0 | AN110: =CHOOSE(m_identity,East!AN110, London!AN110, 'North West'!AN110, 'West Midlands'!AN110, Northern!AN110, Scotland!AN110, Southern!AN110, 'Wales & West'!AN110) -> 0 | AO110: =CHOOSE(m_identity,East!AO110, London!AO110, 'North West'!AO110, 'West Midlands'!AO110, Northern!AO110, Scotland!AO110, Southern!AO110, 'Wales & West'!AO110) -> 0
E112: =E17 -> Allowed uncertain costs (Central agent) | G112: £m 09/10 prices | AH112: =AH17 -> 0 | AI112: 0 | AJ112: 0 | AK112: 0 | AL112: 0 | AM112: 0 | AN112: 0 | AO112: 0
E113: Allocation to load related capex | G113: % | AH113: =CHOOSE(m_identity,East!AH113, London!AH113, 'North West'!AH113, 'West Midlands'!AH113, Northern!AH113, Scotland!AH113, Southern!AH113, 'Wales & West'!AH113) -> 0 | AI113: =CHOOSE(m_identity,East!AI113, London!AI113, 'North West'!AI113, 'West Midlands'!AI113, Northern!AI113, Scotland!AI113, Southern!AI113, 'Wales & West'!AI113) -> 0 | AJ113: =CHOOSE(m_identity,East!AJ113, London!AJ113, 'North West'!AJ113, 'West Midlands'!AJ113, Northern!AJ113, Scotland!AJ113, Southern!AJ113, 'Wales & West'!AJ113) -> 0 | AK113: =CHOOSE(m_identity,East!AK113, London!AK113, 'North West'!AK113, 'West Midlands'!AK113, Northern!AK113, Scotland!AK113, Southern!AK113, 'Wales & West'!AK113) -> 0 | AL113: =CHOOSE(m_identity,East!AL113, London!AL113, 'North West'!AL113, 'West Midlands'!AL113, Northern!AL113, Scotland!AL113, Southern!AL113, 'Wales & West'!AL113) -> 0 | AM113: =CHOOSE(m_identity,East!AM113, London!AM113, 'North West'!AM113, 'West Midlands'!AM113, Northern!AM113, Scotland!AM113, Southern!AM113, 'Wales & West'!AM113) -> 0 | AN113: =CHOOSE(m_identity,East!AN113, London!AN113, 'North West'!AN113, 'West Midlands'!AN113, Northern!AN113, Scotland!AN113, Southern!AN113, 'Wales & West'!AN113) -> 0 | AO113: =CHOOSE(m_identity,East!AO113, London!AO113, 'North West'!AO113, 'West Midlands'!AO113, Northern!AO113, Scotland!AO113, Southern!AO113, 'Wales & West'!AO113) -> 0
E114: Allocation to non-load related capex - other | G114: % | AH114: =CHOOSE(m_identity,East!AH114, London!AH114, 'North West'!AH114, 'West Midlands'!AH114, Northern!AH114, Scotland!AH114, Southern!AH114, 'Wales & West'!AH114) -> 0.15 | AI114: =CHOOSE(m_identity,East!AI114, London!AI114, 'North West'!AI114, 'West Midlands'!AI114, Northern!AI114, Scotland!AI114, Southern!AI114, 'Wales & West'!AI114) -> 0.15 | AJ114: =CHOOSE(m_identity,East!AJ114, London!AJ114, 'North West'!AJ114, 'West Midlands'!AJ114, Northern!AJ114, Scotland!AJ114, Southern!AJ114, 'Wales & West'!AJ114) -> 0.15 | AK114: =CHOOSE(m_identity,East!AK114, London!AK114, 'North West'!AK114, 'West Midlands'!AK114, Northern!AK114, Scotland!AK114, Southern!AK114, 'Wales & West'!AK114) -> 0.15 | AL114: =CHOOSE(m_identity,East!AL114, London!AL114, 'North West'!AL114, 'West Midlands'!AL114, Northern!AL114, Scotland!AL114, Southern!AL114, 'Wales & West'!AL114) -> 0.15 | AM114: =CHOOSE(m_identity,East!AM114, London!AM114, 'North West'!AM114, 'West Midlands'!AM114, Northern!AM114, Scotland!AM114, Southern!AM114, 'Wales & West'!AM114) -> 0.15 | AN114: =CHOOSE(m_identity,East!AN114, London!AN114, 'North West'!AN114, 'West Midlands'!AN114, Northern!AN114, Scotland!AN114, Southern!AN114, 'Wales & West'!AN114) -> 0.15 | AO114: =CHOOSE(m_identity,East!AO114, London!AO114, 'North West'!AO114, 'West Midlands'!AO114, Northern!AO114, Scotland!AO114, Southern!AO114, 'Wales & West'!AO114) -> 0.15
E115: Allocation to controllable opex | G115: % | AH115: =CHOOSE(m_identity,East!AH115, London!AH115, 'North West'!AH115, 'West Midlands'!AH115, Northern!AH115, Scotland!AH115, Southern!AH115, 'Wales & West'!AH115) -> 0.85 | AI115: =CHOOSE(m_identity,East!AI115, London!AI115, 'North West'!AI115, 'West Midlands'!AI115, Northern!AI115, Scotland!AI115, Southern!AI115, 'Wales & West'!AI115) -> 0.85 | AJ115: =CHOOSE(m_identity,East!AJ115, London!AJ115, 'North West'!AJ115, 'West Midlands'!AJ115, Northern!AJ115, Scotland!AJ115, Southern!AJ115, 'Wales & West'!AJ115) -> 0.85 | AK115: =CHOOSE(m_identity,East!AK115, London!AK115, 'North West'!AK115, 'West Midlands'!AK115, Northern!AK115, Scotland!AK115, Southern!AK115, 'Wales & West'!AK115) -> 0.85 | AL115: =CHOOSE(m_identity,East!AL115, London!AL115, 'North West'!AL115, 'West Midlands'!AL115, Northern!AL115, Scotland!AL115, Southern!AL115, 'Wales & West'!AL115) -> 0.85 | AM115: =CHOOSE(m_identity,East!AM115, London!AM115, 'North West'!AM115, 'West Midlands'!AM115, Northern!AM115, Scotland!AM115, Southern!AM115, 'Wales & West'!AM115) -> 0.85 | AN115: =CHOOSE(m_identity,East!AN115, London!AN115, 'North West'!AN115, 'West Midlands'!AN115, Northern!AN115, Scotland!AN115, Southern!AN115, 'Wales & West'!AN115) -> 0.85 | AO115: =CHOOSE(m_identity,East!AO115, London!AO115, 'North West'!AO115, 'West Midlands'!AO115, Northern!AO115, Scotland!AO115, Southern!AO115, 'Wales & West'!AO115) -> 0.85
E116: Allocation to repex | G116: % | AH116: =CHOOSE(m_identity,East!AH116, London!AH116, 'North West'!AH116, 'West Midlands'!AH116, Northern!AH116, Scotland!AH116, Southern!AH116, 'Wales & West'!AH116) -> 0 | AI116: =CHOOSE(m_identity,East!AI116, London!AI116, 'North West'!AI116, 'West Midlands'!AI116, Northern!AI116, Scotland!AI116, Southern!AI116, 'Wales & West'!AI116) -> 0 | AJ116: =CHOOSE(m_identity,East!AJ116, London!AJ116, 'North West'!AJ116, 'West Midlands'!AJ116, Northern!AJ116, Scotland!AJ116, Southern!AJ116, 'Wales & West'!AJ116) -> 0 | AK116: =CHOOSE(m_identity,East!AK116, London!AK116, 'North West'!AK116, 'West Midlands'!AK116, Northern!AK116, Scotland!AK116, Southern!AK116, 'Wales & West'!AK116) -> 0 | AL116: =CHOOSE(m_identity,East!AL116, London!AL116, 'North West'!AL116, 'West Midlands'!AL116, Northern!AL116, Scotland!AL116, Southern!AL116, 'Wales & West'!AL116) -> 0 | AM116: =CHOOSE(m_identity,East!AM116, London!AM116, 'North West'!AM116, 'West Midlands'!AM116, Northern!AM116, Scotland!AM116, Southern!AM116, 'Wales & West'!AM116) -> 0 | AN116: =CHOOSE(m_identity,East!AN116, London!AN116, 'North West'!AN116, 'West Midlands'!AN116, Northern!AN116, Scotland!AN116, Southern!AN116, 'Wales & West'!AN116) -> 0 | AO116: =CHOOSE(m_identity,East!AO116, London!AO116, 'North West'!AO116, 'West Midlands'!AO116, Northern!AO116, Scotland!AO116, Southern!AO116, 'Wales & West'!AO116) -> 0
E118: =E18 -> Allowed uncertain costs (Smart metering roll out costs) | G118: £m 09/10 prices | AH118: =AH18 -> 0 | AI118: 0 | AJ118: 0 | AK118: 0 | AL118: 0 | AM118: 0 | AN118: 0 | AO118: 0
E119: Allocation to load related capex | G119: % | AH119: =CHOOSE(m_identity,East!AH119, London!AH119, 'North West'!AH119, 'West Midlands'!AH119, Northern!AH119, Scotland!AH119, Southern!AH119, 'Wales & West'!AH119) -> 0 | AI119: =CHOOSE(m_identity,East!AI119, London!AI119, 'North West'!AI119, 'West Midlands'!AI119, Northern!AI119, Scotland!AI119, Southern!AI119, 'Wales & West'!AI119) -> 0 | AJ119: =CHOOSE(m_identity,East!AJ119, London!AJ119, 'North West'!AJ119, 'West Midlands'!AJ119, Northern!AJ119, Scotland!AJ119, Southern!AJ119, 'Wales & West'!AJ119) -> 0 | AK119: =CHOOSE(m_identity,East!AK119, London!AK119, 'North West'!AK119, 'West Midlands'!AK119, Northern!AK119, Scotland!AK119, Southern!AK119, 'Wales & West'!AK119) -> 0 | AL119: =CHOOSE(m_identity,East!AL119, London!AL119, 'North West'!AL119, 'West Midlands'!AL119, Northern!AL119, Scotland!AL119, Southern!AL119, 'Wales & West'!AL119) -> 0 | AM119: =CHOOSE(m_identity,East!AM119, London!AM119, 'North West'!AM119, 'West Midlands'!AM119, Northern!AM119, Scotland!AM119, Southern!AM119, 'Wales & West'!AM119) -> 0 | AN119: =CHOOSE(m_identity,East!AN119, London!AN119, 'North West'!AN119, 'West Midlands'!AN119, Northern!AN119, Scotland!AN119, Southern!AN119, 'Wales & West'!AN119) -> 0 | AO119: =CHOOSE(m_identity,East!AO119, London!AO119, 'North West'!AO119, 'West Midlands'!AO119, Northern!AO119, Scotland!AO119, Southern!AO119, 'Wales & West'!AO119) -> 0
E120: Allocation to non-load related capex - other | G120: % | AH120: =CHOOSE(m_identity,East!AH120, London!AH120, 'North West'!AH120, 'West Midlands'!AH120, Northern!AH120, Scotland!AH120, Southern!AH120, 'Wales & West'!AH120) -> 0 | AI120: =CHOOSE(m_identity,East!AI120, London!AI120, 'North West'!AI120, 'West Midlands'!AI120, Northern!AI120, Scotland!AI120, Southern!AI120, 'Wales & West'!AI120) -> 0 | AJ120: =CHOOSE(m_identity,East!AJ120, London!AJ120, 'North West'!AJ120, 'West Midlands'!AJ120, Northern!AJ120, Scotland!AJ120, Southern!AJ120, 'Wales & West'!AJ120) -> 0 | AK120: =CHOOSE(m_identity,East!AK120, London!AK120, 'North West'!AK120, 'West Midlands'!AK120, Northern!AK120, Scotland!AK120, Southern!AK120, 'Wales & West'!AK120) -> 0 | AL120: =CHOOSE(m_identity,East!AL120, London!AL120, 'North West'!AL120, 'West Midlands'!AL120, Northern!AL120, Scotland!AL120, Southern!AL120, 'Wales & West'!AL120) -> 0 | AM120: =CHOOSE(m_identity,East!AM120, London!AM120, 'North West'!AM120, 'West Midlands'!AM120, Northern!AM120, Scotland!AM120, Southern!AM120, 'Wales & West'!AM120) -> 0 | AN120: =CHOOSE(m_identity,East!AN120, London!AN120, 'North West'!AN120, 'West Midlands'!AN120, Northern!AN120, Scotland!AN120, Southern!AN120, 'Wales & West'!AN120) -> 0 | AO120: =CHOOSE(m_identity,East!AO120, London!AO120, 'North West'!AO120, 'West Midlands'!AO120, Northern!AO120, Scotland!AO120, Southern!AO120, 'Wales & West'!AO120) -> 0
E121: Allocation to controllable opex | G121: % | AH121: =CHOOSE(m_identity,East!AH121, London!AH121, 'North West'!AH121, 'West Midlands'!AH121, Northern!AH121, Scotland!AH121, Southern!AH121, 'Wales & West'!AH121) -> 0.5 | AI121: =CHOOSE(m_identity,East!AI121, London!AI121, 'North West'!AI121, 'West Midlands'!AI121, Northern!AI121, Scotland!AI121, Southern!AI121, 'Wales & West'!AI121) -> 0.5 | AJ121: =CHOOSE(m_identity,East!AJ121, London!AJ121, 'North West'!AJ121, 'West Midlands'!AJ121, Northern!AJ121, Scotland!AJ121, Southern!AJ121, 'Wales & West'!AJ121) -> 0.5 | AK121: =CHOOSE(m_identity,East!AK121, London!AK121, 'North West'!AK121, 'West Midlands'!AK121, Northern!AK121, Scotland!AK121, Southern!AK121, 'Wales & West'!AK121) -> 0.5 | AL121: =CHOOSE(m_identity,East!AL121, London!AL121, 'North West'!AL121, 'West Midlands'!AL121, Northern!AL121, Scotland!AL121, Southern!AL121, 'Wales & West'!AL121) -> 0.5 | AM121: =CHOOSE(m_identity,East!AM121, London!AM121, 'North West'!AM121, 'West Midlands'!AM121, Northern!AM121, Scotland!AM121, Southern!AM121, 'Wales & West'!AM121) -> 0.5 | AN121: =CHOOSE(m_identity,East!AN121, London!AN121, 'North West'!AN121, 'West Midlands'!AN121, Northern!AN121, Scotland!AN121, Southern!AN121, 'Wales & West'!AN121) -> 0.5 | AO121: =CHOOSE(m_identity,East!AO121, London!AO121, 'North West'!AO121, 'West Midlands'!AO121, Northern!AO121, Scotland!AO121, Southern!AO121, 'Wales & West'!AO121) -> 0.5
E122: Allocation to repex | G122: % | AH122: =CHOOSE(m_identity,East!AH122, London!AH122, 'North West'!AH122, 'West Midlands'!AH122, Northern!AH122, Scotland!AH122, Southern!AH122, 'Wales & West'!AH122) -> 0.5 | AI122: =CHOOSE(m_identity,East!AI122, London!AI122, 'North West'!AI122, 'West Midlands'!AI122, Northern!AI122, Scotland!AI122, Southern!AI122, 'Wales & West'!AI122) -> 0.5 | AJ122: =CHOOSE(m_identity,East!AJ122, London!AJ122, 'North West'!AJ122, 'West Midlands'!AJ122, Northern!AJ122, Scotland!AJ122, Southern!AJ122, 'Wales & West'!AJ122) -> 0.5 | AK122: =CHOOSE(m_identity,East!AK122, London!AK122, 'North West'!AK122, 'West Midlands'!AK122, Northern!AK122, Scotland!AK122, Southern!AK122, 'Wales & West'!AK122) -> 0.5 | AL122: =CHOOSE(m_identity,East!AL122, London!AL122, 'North West'!AL122, 'West Midlands'!AL122, Northern!AL122, Scotland!AL122, Southern!AL122, 'Wales & West'!AL122) -> 0.5 | AM122: =CHOOSE(m_identity,East!AM122, London!AM122, 'North West'!AM122, 'West Midlands'!AM122, Northern!AM122, Scotland!AM122, Southern!AM122, 'Wales & West'!AM122) -> 0.5 | AN122: =CHOOSE(m_identity,East!AN122, London!AN122, 'North West'!AN122, 'West Midlands'!AN122, Northern!AN122, Scotland!AN122, Southern!AN122, 'Wales & West'!AN122) -> 0.5 | AO122: =CHOOSE(m_identity,East!AO122, London!AO122, 'North West'!AO122, 'West Midlands'!AO122, Northern!AO122, Scotland!AO122, Southern!AO122, 'Wales & West'!AO122) -> 0.5
E124: =E19 -> Allowed uncertain costs (Mains and services replacement expenditure) | G124: £m 09/10 prices | AH124: =AH19 -> 0 | AI124: =AI19 -> 0 | AJ124: 0 | AK124: 0 | AL124: 0 | AM124: 0 | AN124: 0 | AO124: 0
E125: Allocation to load related capex | G125: % | AH125: =CHOOSE(m_identity,East!AH125, London!AH125, 'North West'!AH125, 'West Midlands'!AH125, Northern!AH125, Scotland!AH125, Southern!AH125, 'Wales & West'!AH125) -> 0 | AI125: =CHOOSE(m_identity,East!AI125, London!AI125, 'North West'!AI125, 'West Midlands'!AI125, Northern!AI125, Scotland!AI125, Southern!AI125, 'Wales & West'!AI125) -> 0 | AJ125: =CHOOSE(m_identity,East!AJ125, London!AJ125, 'North West'!AJ125, 'West Midlands'!AJ125, Northern!AJ125, Scotland!AJ125, Southern!AJ125, 'Wales & West'!AJ125) -> 0 | AK125: =CHOOSE(m_identity,East!AK125, London!AK125, 'North West'!AK125, 'West Midlands'!AK125, Northern!AK125, Scotland!AK125, Southern!AK125, 'Wales & West'!AK125) -> 0 | AL125: =CHOOSE(m_identity,East!AL125, London!AL125, 'North West'!AL125, 'West Midlands'!AL125, Northern!AL125, Scotland!AL125, Southern!AL125, 'Wales & West'!AL125) -> 0 | AM125: =CHOOSE(m_identity,East!AM125, London!AM125, 'North West'!AM125, 'West Midlands'!AM125, Northern!AM125, Scotland!AM125, Southern!AM125, 'Wales & West'!AM125) -> 0 | AN125: =CHOOSE(m_identity,East!AN125, London!AN125, 'North West'!AN125, 'West Midlands'!AN125, Northern!AN125, Scotland!AN125, Southern!AN125, 'Wales & West'!AN125) -> 0 | AO125: =CHOOSE(m_identity,East!AO125, London!AO125, 'North West'!AO125, 'West Midlands'!AO125, Northern!AO125, Scotland!AO125, Southern!AO125, 'Wales & West'!AO125) -> 0
E126: Allocation to non-load related capex - other | G126: % | AH126: =CHOOSE(m_identity,East!AH126, London!AH126, 'North West'!AH126, 'West Midlands'!AH126, Northern!AH126, Scotland!AH126, Southern!AH126, 'Wales & West'!AH126) -> 0 | AI126: =CHOOSE(m_identity,East!AI126, London!AI126, 'North West'!AI126, 'West Midlands'!AI126, Northern!AI126, Scotland!AI126, Southern!AI126, 'Wales & West'!AI126) -> 0 | AJ126: =CHOOSE(m_identity,East!AJ126, London!AJ126, 'North West'!AJ126, 'West Midlands'!AJ126, Northern!AJ126, Scotland!AJ126, Southern!AJ126, 'Wales & West'!AJ126) -> 0 | AK126: =CHOOSE(m_identity,East!AK126, London!AK126, 'North West'!AK126, 'West Midlands'!AK126, Northern!AK126, Scotland!AK126, Southern!AK126, 'Wales & West'!AK126) -> 0 | AL126: =CHOOSE(m_identity,East!AL126, London!AL126, 'North West'!AL126, 'West Midlands'!AL126, Northern!AL126, Scotland!AL126, Southern!AL126, 'Wales & West'!AL126) -> 0 | AM126: =CHOOSE(m_identity,East!AM126, London!AM126, 'North West'!AM126, 'West Midlands'!AM126, Northern!AM126, Scotland!AM126, Southern!AM126, 'Wales & West'!AM126) -> 0 | AN126: =CHOOSE(m_identity,East!AN126, London!AN126, 'North West'!AN126, 'West Midlands'!AN126, Northern!AN126, Scotland!AN126, Southern!AN126, 'Wales & West'!AN126) -> 0 | AO126: =CHOOSE(m_identity,East!AO126, London!AO126, 'North West'!AO126, 'West Midlands'!AO126, Northern!AO126, Scotland!AO126, Southern!AO126, 'Wales & West'!AO126) -> 0
E127: Allocation to controllable opex | G127: % | AH127: =CHOOSE(m_identity,East!AH127, London!AH127, 'North West'!AH127, 'West Midlands'!AH127, Northern!AH127, Scotland!AH127, Southern!AH127, 'Wales & West'!AH127) -> 0 | AI127: =CHOOSE(m_identity,East!AI127, London!AI127, 'North West'!AI127, 'West Midlands'!AI127, Northern!AI127, Scotland!AI127, Southern!AI127, 'Wales & West'!AI127) -> 0 | AJ127: =CHOOSE(m_identity,East!AJ127, London!AJ127, 'North West'!AJ127, 'West Midlands'!AJ127, Northern!AJ127, Scotland!AJ127, Southern!AJ127, 'Wales & West'!AJ127) -> 0 | AK127: =CHOOSE(m_identity,East!AK127, London!AK127, 'North West'!AK127, 'West Midlands'!AK127, Northern!AK127, Scotland!AK127, Southern!AK127, 'Wales & West'!AK127) -> 0 | AL127: =CHOOSE(m_identity,East!AL127, London!AL127, 'North West'!AL127, 'West Midlands'!AL127, Northern!AL127, Scotland!AL127, Southern!AL127, 'Wales & West'!AL127) -> 0 | AM127: =CHOOSE(m_identity,East!AM127, London!AM127, 'North West'!AM127, 'West Midlands'!AM127, Northern!AM127, Scotland!AM127, Southern!AM127, 'Wales & West'!AM127) -> 0 | AN127: =CHOOSE(m_identity,East!AN127, London!AN127, 'North West'!AN127, 'West Midlands'!AN127, Northern!AN127, Scotland!AN127, Southern!AN127, 'Wales & West'!AN127) -> 0 | AO127: =CHOOSE(m_identity,East!AO127, London!AO127, 'North West'!AO127, 'West Midlands'!AO127, Northern!AO127, Scotland!AO127, Southern!AO127, 'Wales & West'!AO127) -> 0
E128: Allocation to repex | G128: % | AH128: =CHOOSE(m_identity,East!AH128, London!AH128, 'North West'!AH128, 'West Midlands'!AH128, Northern!AH128, Scotland!AH128, Southern!AH128, 'Wales & West'!AH128) -> 1 | AI128: =CHOOSE(m_identity,East!AI128, London!AI128, 'North West'!AI128, 'West Midlands'!AI128, Northern!AI128, Scotland!AI128, Southern!AI128, 'Wales & West'!AI128) -> 1 | AJ128: =CHOOSE(m_identity,East!AJ128, London!AJ128, 'North West'!AJ128, 'West Midlands'!AJ128, Northern!AJ128, Scotland!AJ128, Southern!AJ128, 'Wales & West'!AJ128) -> 1 | AK128: =CHOOSE(m_identity,East!AK128, London!AK128, 'North West'!AK128, 'West Midlands'!AK128, Northern!AK128, Scotland!AK128, Southern!AK128, 'Wales & West'!AK128) -> 1 | AL128: =CHOOSE(m_identity,East!AL128, London!AL128, 'North West'!AL128, 'West Midlands'!AL128, Northern!AL128, Scotland!AL128, Southern!AL128, 'Wales & West'!AL128) -> 1 | AM128: =CHOOSE(m_identity,East!AM128, London!AM128, 'North West'!AM128, 'West Midlands'!AM128, Northern!AM128, Scotland!AM128, Southern!AM128, 'Wales & West'!AM128) -> 1 | AN128: =CHOOSE(m_identity,East!AN128, London!AN128, 'North West'!AN128, 'West Midlands'!AN128, Northern!AN128, Scotland!AN128, Southern!AN128, 'Wales & West'!AN128) -> 1 | AO128: =CHOOSE(m_identity,East!AO128, London!AO128, 'North West'!AO128, 'West Midlands'!AO128, Northern!AO128, Scotland!AO128, Southern!AO128, 'Wales & West'!AO128) -> 1
E130: =E20 -> Allowed uncertain Costs (Large load connection costs) | G130: £m 09/10 prices | AH130: =AH20 -> 0 | AI130: =AI20 -> 0 | AJ130: =AJ20 -> 0 | AK130: 0 | AL130: =AL20 -> 0 | AM130: 0 | AN130: 0 | AO130: 0
E131: Allocation to load related capex | G131: % | AH131: =CHOOSE(m_identity,East!AH131, London!AH131, 'North West'!AH131, 'West Midlands'!AH131, Northern!AH131, Scotland!AH131, Southern!AH131, 'Wales & West'!AH131) -> 1 | AI131: =CHOOSE(m_identity,East!AI131, London!AI131, 'North West'!AI131, 'West Midlands'!AI131, Northern!AI131, Scotland!AI131, Southern!AI131, 'Wales & West'!AI131) -> 1 | AJ131: =CHOOSE(m_identity,East!AJ131, London!AJ131, 'North West'!AJ131, 'West Midlands'!AJ131, Northern!AJ131, Scotland!AJ131, Southern!AJ131, 'Wales & West'!AJ131) -> 1 | AK131: =CHOOSE(m_identity,East!AK131, London!AK131, 'North West'!AK131, 'West Midlands'!AK131, Northern!AK131, Scotland!AK131, Southern!AK131, 'Wales & West'!AK131) -> 1 | AL131: =CHOOSE(m_identity,East!AL131, London!AL131, 'North West'!AL131, 'West Midlands'!AL131, Northern!AL131, Scotland!AL131, Southern!AL131, 'Wales & West'!AL131) -> 1 | AM131: =CHOOSE(m_identity,East!AM131, London!AM131, 'North West'!AM131, 'West Midlands'!AM131, Northern!AM131, Scotland!AM131, Southern!AM131, 'Wales & West'!AM131) -> 1 | AN131: =CHOOSE(m_identity,East!AN131, London!AN131, 'North West'!AN131, 'West Midlands'!AN131, Northern!AN131, Scotland!AN131, Southern!AN131, 'Wales & West'!AN131) -> 1 | AO131: =CHOOSE(m_identity,East!AO131, London!AO131, 'North West'!AO131, 'West Midlands'!AO131, Northern!AO131, Scotland!AO131, Southern!AO131, 'Wales & West'!AO131) -> 1
E132: Allocation to non-load related capex - other | G132: % | AH132: =CHOOSE(m_identity,East!AH132, London!AH132, 'North West'!AH132, 'West Midlands'!AH132, Northern!AH132, Scotland!AH132, Southern!AH132, 'Wales & West'!AH132) -> 0 | AI132: =CHOOSE(m_identity,East!AI132, London!AI132, 'North West'!AI132, 'West Midlands'!AI132, Northern!AI132, Scotland!AI132, Southern!AI132, 'Wales & West'!AI132) -> 0 | AJ132: =CHOOSE(m_identity,East!AJ132, London!AJ132, 'North West'!AJ132, 'West Midlands'!AJ132, Northern!AJ132, Scotland!AJ132, Southern!AJ132, 'Wales & West'!AJ132) -> 0 | AK132: =CHOOSE(m_identity,East!AK132, London!AK132, 'North West'!AK132, 'West Midlands'!AK132, Northern!AK132, Scotland!AK132, Southern!AK132, 'Wales & West'!AK132) -> 0 | AL132: =CHOOSE(m_identity,East!AL132, London!AL132, 'North West'!AL132, 'West Midlands'!AL132, Northern!AL132, Scotland!AL132, Southern!AL132, 'Wales & West'!AL132) -> 0 | AM132: =CHOOSE(m_identity,East!AM132, London!AM132, 'North West'!AM132, 'West Midlands'!AM132, Northern!AM132, Scotland!AM132, Southern!AM132, 'Wales & West'!AM132) -> 0 | AN132: =CHOOSE(m_identity,East!AN132, London!AN132, 'North West'!AN132, 'West Midlands'!AN132, Northern!AN132, Scotland!AN132, Southern!AN132, 'Wales & West'!AN132) -> 0 | AO132: =CHOOSE(m_identity,East!AO132, London!AO132, 'North West'!AO132, 'West Midlands'!AO132, Northern!AO132, Scotland!AO132, Southern!AO132, 'Wales & West'!AO132) -> 0
E133: Allocation to controllable opex | G133: % | AH133: =CHOOSE(m_identity,East!AH133, London!AH133, 'North West'!AH133, 'West Midlands'!AH133, Northern!AH133, Scotland!AH133, Southern!AH133, 'Wales & West'!AH133) -> 0 | AI133: =CHOOSE(m_identity,East!AI133, London!AI133, 'North West'!AI133, 'West Midlands'!AI133, Northern!AI133, Scotland!AI133, Southern!AI133, 'Wales & West'!AI133) -> 0 | AJ133: =CHOOSE(m_identity,East!AJ133, London!AJ133, 'North West'!AJ133, 'West Midlands'!AJ133, Northern!AJ133, Scotland!AJ133, Southern!AJ133, 'Wales & West'!AJ133) -> 0 | AK133: =CHOOSE(m_identity,East!AK133, London!AK133, 'North West'!AK133, 'West Midlands'!AK133, Northern!AK133, Scotland!AK133, Southern!AK133, 'Wales & West'!AK133) -> 0 | AL133: =CHOOSE(m_identity,East!AL133, London!AL133, 'North West'!AL133, 'West Midlands'!AL133, Northern!AL133, Scotland!AL133, Southern!AL133, 'Wales & West'!AL133) -> 0 | AM133: =CHOOSE(m_identity,East!AM133, London!AM133, 'North West'!AM133, 'West Midlands'!AM133, Northern!AM133, Scotland!AM133, Southern!AM133, 'Wales & West'!AM133) -> 0 | AN133: =CHOOSE(m_identity,East!AN133, London!AN133, 'North West'!AN133, 'West Midlands'!AN133, Northern!AN133, Scotland!AN133, Southern!AN133, 'Wales & West'!AN133) -> 0 | AO133: =CHOOSE(m_identity,East!AO133, London!AO133, 'North West'!AO133, 'West Midlands'!AO133, Northern!AO133, Scotland!AO133, Southern!AO133, 'Wales & West'!AO133) -> 0
E134: Allocation to repex | G134: % | AH134: =CHOOSE(m_identity,East!AH134, London!AH134, 'North West'!AH134, 'West Midlands'!AH134, Northern!AH134, Scotland!AH134, Southern!AH134, 'Wales & West'!AH134) -> 0 | AI134: =CHOOSE(m_identity,East!AI134, London!AI134, 'North West'!AI134, 'West Midlands'!AI134, Northern!AI134, Scotland!AI134, Southern!AI134, 'Wales & West'!AI134) -> 0 | AJ134: =CHOOSE(m_identity,East!AJ134, London!AJ134, 'North West'!AJ134, 'West Midlands'!AJ134, Northern!AJ134, Scotland!AJ134, Southern!AJ134, 'Wales & West'!AJ134) -> 0 | AK134: =CHOOSE(m_identity,East!AK134, London!AK134, 'North West'!AK134, 'West Midlands'!AK134, Northern!AK134, Scotland!AK134, Southern!AK134, 'Wales & West'!AK134) -> 0 | AL134: =CHOOSE(m_identity,East!AL134, London!AL134, 'North West'!AL134, 'West Midlands'!AL134, Northern!AL134, Scotland!AL134, Southern!AL134, 'Wales & West'!AL134) -> 0 | AM134: =CHOOSE(m_identity,East!AM134, London!AM134, 'North West'!AM134, 'West Midlands'!AM134, Northern!AM134, Scotland!AM134, Southern!AM134, 'Wales & West'!AM134) -> 0 | AN134: =CHOOSE(m_identity,East!AN134, London!AN134, 'North West'!AN134, 'West Midlands'!AN134, Northern!AN134, Scotland!AN134, Southern!AN134, 'Wales & West'!AN134) -> 0 | AO134: =CHOOSE(m_identity,East!AO134, London!AO134, 'North West'!AO134, 'West Midlands'!AO134, Northern!AO134, Scotland!AO134, Southern!AO134, 'Wales & West'!AO134) -> 0
E136: =E21 -> Allowed innovation roll-out mechanism | G136: £m 09/10 prices | AH136: =AH21 -> 0 | AI136: =AI21 -> 0 | AJ136: 0 | AK136: 0 | AL136: 0 | AM136: 0 | AN136: 0 | AO136: 0
E137: Allocation to load related capex | G137: % | AH137: =CHOOSE(m_identity,East!AH137, London!AH137, 'North West'!AH137, 'West Midlands'!AH137, Northern!AH137, Scotland!AH137, Southern!AH137, 'Wales & West'!AH137) -> 0.5 | AI137: =CHOOSE(m_identity,East!AI137, London!AI137, 'North West'!AI137, 'West Midlands'!AI137, Northern!AI137, Scotland!AI137, Southern!AI137, 'Wales & West'!AI137) -> 0.5 | AJ137: =CHOOSE(m_identity,East!AJ137, London!AJ137, 'North West'!AJ137, 'West Midlands'!AJ137, Northern!AJ137, Scotland!AJ137, Southern!AJ137, 'Wales & West'!AJ137) -> 0.5 | AK137: =CHOOSE(m_identity,East!AK137, London!AK137, 'North West'!AK137, 'West Midlands'!AK137, Northern!AK137, Scotland!AK137, Southern!AK137, 'Wales & West'!AK137) -> 0.5 | AL137: =CHOOSE(m_identity,East!AL137, London!AL137, 'North West'!AL137, 'West Midlands'!AL137, Northern!AL137, Scotland!AL137, Southern!AL137, 'Wales & West'!AL137) -> 0.5 | AM137: =CHOOSE(m_identity,East!AM137, London!AM137, 'North West'!AM137, 'West Midlands'!AM137, Northern!AM137, Scotland!AM137, Southern!AM137, 'Wales & West'!AM137) -> 0.5 | AN137: =CHOOSE(m_identity,East!AN137, London!AN137, 'North West'!AN137, 'West Midlands'!AN137, Northern!AN137, Scotland!AN137, Southern!AN137, 'Wales & West'!AN137) -> 0.5 | AO137: =CHOOSE(m_identity,East!AO137, London!AO137, 'North West'!AO137, 'West Midlands'!AO137, Northern!AO137, Scotland!AO137, Southern!AO137, 'Wales & West'!AO137) -> 0.5
E138: Allocation to non-load related capex - other | G138: % | AH138: =CHOOSE(m_identity,East!AH138, London!AH138, 'North West'!AH138, 'West Midlands'!AH138, Northern!AH138, Scotland!AH138, Southern!AH138, 'Wales & West'!AH138) -> 0 | AI138: =CHOOSE(m_identity,East!AI138, London!AI138, 'North West'!AI138, 'West Midlands'!AI138, Northern!AI138, Scotland!AI138, Southern!AI138, 'Wales & West'!AI138) -> 0 | AJ138: =CHOOSE(m_identity,East!AJ138, London!AJ138, 'North West'!AJ138, 'West Midlands'!AJ138, Northern!AJ138, Scotland!AJ138, Southern!AJ138, 'Wales & West'!AJ138) -> 0 | AK138: =CHOOSE(m_identity,East!AK138, London!AK138, 'North West'!AK138, 'West Midlands'!AK138, Northern!AK138, Scotland!AK138, Southern!AK138, 'Wales & West'!AK138) -> 0 | AL138: =CHOOSE(m_identity,East!AL138, London!AL138, 'North West'!AL138, 'West Midlands'!AL138, Northern!AL138, Scotland!AL138, Southern!AL138, 'Wales & West'!AL138) -> 0 | AM138: =CHOOSE(m_identity,East!AM138, London!AM138, 'North West'!AM138, 'West Midlands'!AM138, Northern!AM138, Scotland!AM138, Southern!AM138, 'Wales & West'!AM138) -> 0 | AN138: =CHOOSE(m_identity,East!AN138, London!AN138, 'North West'!AN138, 'West Midlands'!AN138, Northern!AN138, Scotland!AN138, Southern!AN138, 'Wales & West'!AN138) -> 0 | AO138: =CHOOSE(m_identity,East!AO138, London!AO138, 'North West'!AO138, 'West Midlands'!AO138, Northern!AO138, Scotland!AO138, Southern!AO138, 'Wales & West'!AO138) -> 0
E139: Allocation to controllable opex | G139: % | AH139: =CHOOSE(m_identity,East!AH139, London!AH139, 'North West'!AH139, 'West Midlands'!AH139, Northern!AH139, Scotland!AH139, Southern!AH139, 'Wales & West'!AH139) -> 0.5 | AI139: =CHOOSE(m_identity,East!AI139, London!AI139, 'North West'!AI139, 'West Midlands'!AI139, Northern!AI139, Scotland!AI139, Southern!AI139, 'Wales & West'!AI139) -> 0.5 | AJ139: =CHOOSE(m_identity,East!AJ139, London!AJ139, 'North West'!AJ139, 'West Midlands'!AJ139, Northern!AJ139, Scotland!AJ139, Southern!AJ139, 'Wales & West'!AJ139) -> 0.5 | AK139: =CHOOSE(m_identity,East!AK139, London!AK139, 'North West'!AK139, 'West Midlands'!AK139, Northern!AK139, Scotland!AK139, Southern!AK139, 'Wales & West'!AK139) -> 0.5 | AL139: =CHOOSE(m_identity,East!AL139, London!AL139, 'North West'!AL139, 'West Midlands'!AL139, Northern!AL139, Scotland!AL139, Southern!AL139, 'Wales & West'!AL139) -> 0.5 | AM139: =CHOOSE(m_identity,East!AM139, London!AM139, 'North West'!AM139, 'West Midlands'!AM139, Northern!AM139, Scotland!AM139, Southern!AM139, 'Wales & West'!AM139) -> 0.5 | AN139: =CHOOSE(m_identity,East!AN139, London!AN139, 'North West'!AN139, 'West Midlands'!AN139, Northern!AN139, Scotland!AN139, Southern!AN139, 'Wales & West'!AN139) -> 0.5 | AO139: =CHOOSE(m_identity,East!AO139, London!AO139, 'North West'!AO139, 'West Midlands'!AO139, Northern!AO139, Scotland!AO139, Southern!AO139, 'Wales & West'!AO139) -> 0.5
E140: Allocation to repex | G140: % | AH140: =CHOOSE(m_identity,East!AH140, London!AH140, 'North West'!AH140, 'West Midlands'!AH140, Northern!AH140, Scotland!AH140, Southern!AH140, 'Wales & West'!AH140) -> 0 | AI140: =CHOOSE(m_identity,East!AI140, London!AI140, 'North West'!AI140, 'West Midlands'!AI140, Northern!AI140, Scotland!AI140, Southern!AI140, 'Wales & West'!AI140) -> 0 | AJ140: =CHOOSE(m_identity,East!AJ140, London!AJ140, 'North West'!AJ140, 'West Midlands'!AJ140, Northern!AJ140, Scotland!AJ140, Southern!AJ140, 'Wales & West'!AJ140) -> 0 | AK140: =CHOOSE(m_identity,East!AK140, London!AK140, 'North West'!AK140, 'West Midlands'!AK140, Northern!AK140, Scotland!AK140, Southern!AK140, 'Wales & West'!AK140) -> 0 | AL140: =CHOOSE(m_identity,East!AL140, London!AL140, 'North West'!AL140, 'West Midlands'!AL140, Northern!AL140, Scotland!AL140, Southern!AL140, 'Wales & West'!AL140) -> 0 | AM140: =CHOOSE(m_identity,East!AM140, London!AM140, 'North West'!AM140, 'West Midlands'!AM140, Northern!AM140, Scotland!AM140, Southern!AM140, 'Wales & West'!AM140) -> 0 | AN140: =CHOOSE(m_identity,East!AN140, London!AN140, 'North West'!AN140, 'West Midlands'!AN140, Northern!AN140, Scotland!AN140, Southern!AN140, 'Wales & West'!AN140) -> 0 | AO140: =CHOOSE(m_identity,East!AO140, London!AO140, 'North West'!AO140, 'West Midlands'!AO140, Northern!AO140, Scotland!AO140, Southern!AO140, 'Wales & West'!AO140) -> 0
E142: Variant allowed load related capex | G142: £m 09/10 prices | AH142: =(AH$88*AH89) + (AH$94*AH95) + (AH$100*AH101) + (AH$106*AH107) + (AH$112*AH113) + (AH$118*AH119) + (AH$124 * AH125) + (AH$130*AH131) + (AH$136*AH137) -> 1.333933847 | AI142: =(AI$88*AI89) + (AI$94*AI95) + (AI$100*AI101) + (AI$106*AI107) + (AI$112*AI113) + (AI$118*AI119) + (AI$124 * AI125) + (AI$130*AI131) + (AI$136*AI137) -> 1.332548876 | AJ142: 1.318333825 | AK142: 1.304366469 | AL142: 1.028329436 | AM142: 1.01755104 | AN142: 1.007010207 | AO142: 0.9965976327
E143: Variant allowed non-load related capex - other | G143: £m 09/10 prices | AH143: =(AH$88*AH90) + (AH$94*AH96) + (AH$100*AH102) + (AH$106*AH108) + (AH$112*AH114) + (AH$118*AH120) + (AH$124 * AH126) + (AH$130*AH132) + (AH$136*AH138) -> 0 | AI143: 0 | AJ143: 0 | AK143: 0 | AL143: 0 | AM143: 0 | AN143: 0 | AO143: 0
E144: Variant allowed controllable opex | G144: £m 09/10 prices | AH144: =(AH$88*AH91) + (AH$94*AH97) + (AH$100*AH103) + (AH$106*AH109) + (AH$112*AH115) + (AH$118*AH121) + (AH$124 * AH127) + (AH$130*AH133) + (AH$136*AH139) -> 0.1601457509 | AI144: 0.1518359223 | AJ144: 0.1449801888 | AK144: 0.1388262807 | AL144: 0.1346124035 | AM144: 0.13029567 | AN144: 0.126800779 | AO144: 0.1234779384
E145: Variant allowed repex | G145: £m 09/10 prices | AH145: =(AH$88*AH92) + (AH$94*AH98) + (AH$100*AH104) + (AH$106*AH110) + (AH$112*AH116) + (AH$118*AH122) + (AH$124 * AH128) + (AH$130*AH134) + (AH$136*AH140) -> 0.3469824602 | AI145: 0.3289778316 | AJ145: 0.3141237424 | AK145: 0.3007902749 | AL145: 0.2916602076 | AM145: 0.282307285 | AN145: 0.2747350212 | AO145: 0.2675355332
D147: Actual
E149: Actual load related capex | G149: £m 09/10 prices | AH149: =AH9 -> 31.82987568 | AI149: 31.93875758 | AJ149: 30.44551955 | AK149: 31.48135267 | AL149: 31.630756 | AM149: 30.19907456 | AN149: 29.28880533 | AO149: 31.63705384
E150: Actual non-load related capex - other | G150: £m 09/10 prices | AH150: 22.44310093 | AI150: 21.27641564 | AJ150: 16.04170714 | AK150: 13.16274495 | AL150: 12.05347038 | AM150: 11.94741037 | AN150: 15.62915458 | AO150: 15.09644943
E151: Actual controllable opex | G151: £m 09/10 prices | AH151: 83.60658371 | AI151: 82.72343099 | AJ151: 85.77209504 | AK151: 85.3019903 | AL151: 84.1913176 | AM151: 85.34638066 | AN151: 85.5134139 | AO151: 83.8367822
E152: Actual repex | G152: £m 09/10 prices | AH152: 78.66758992 | AI152: 78.59212862 | AJ152: 78.83335117 | AK152: 78.29233753 | AL152: 79.32839377 | AM152: 79.27061981 | AN152: 79.20850616 | AO152: 77.88375687
C154: Non-totex
E156: Non-controllable opex | G156: £m 09/10 prices | AH156: =CHOOSE(m_identity,East!AH156, London!AH156, 'North West'!AH156, 'West Midlands'!AH156, Northern!AH156, Scotland!AH156, Southern!AH156, 'Wales & West'!AH156) -> 63.42880727 | AI156: =CHOOSE(m_identity,East!AI156, London!AI156, 'North West'!AI156, 'West Midlands'!AI156, Northern!AI156, Scotland!AI156, Southern!AI156, 'Wales & West'!AI156) -> 63.33356732 | AJ156: =CHOOSE(m_identity,East!AJ156, London!AJ156, 'North West'!AJ156, 'West Midlands'!AJ156, Northern!AJ156, Scotland!AJ156, Southern!AJ156, 'Wales & West'!AJ156) -> 63.27692118 | AK156: =CHOOSE(m_identity,East!AK156, London!AK156, 'North West'!AK156, 'West Midlands'!AK156, Northern!AK156, Scotland!AK156, Southern!AK156, 'Wales & West'!AK156) -> 63.11644146 | AL156: =CHOOSE(m_identity,East!AL156, London!AL156, 'North West'!AL156, 'West Midlands'!AL156, Northern!AL156, Scotland!AL156, Southern!AL156, 'Wales & West'!AL156) -> 62.99445661 | AM156: =CHOOSE(m_identity,East!AM156, London!AM156, 'North West'!AM156, 'West Midlands'!AM156, Northern!AM156, Scotland!AM156, Southern!AM156, 'Wales & West'!AM156) -> 62.87457015 | AN156: =CHOOSE(m_identity,East!AN156, London!AN156, 'North West'!AN156, 'West Midlands'!AN156, Northern!AN156, Scotland!AN156, Southern!AN156, 'Wales & West'!AN156) -> 62.75115277 | AO156: =CHOOSE(m_identity,East!AO156, London!AO156, 'North West'!AO156, 'West Midlands'!AO156, Northern!AO156, Scotland!AO156, Southern!AO156, 'Wales & West'!AO156) -> 62.49390099
B158: Direct allowed revenue terms (DARTs)
E160: =E24 -> Pension scheme administration and Pension Protection Fund Levy | G160: £m 09/10 prices | AH160: =AH24 -> 0.8546697872 | AI160: 0.8350910823 | AJ160: 0.8337716007 | AK160: 0.8084668301 | AL160: 0.8014792013 | AM160: 0.7867165827 | AN160: 0.7778855329 | AO160: 0.7703930538
E161: =E25 -> Pension scheme deficit revenue allowances | G161: £m 09/10 prices | AH161: =AH25 -> 6.952397522 | AI161: 6.952397522 | AJ161: 6.952397522 | AK161: 6.952397522 | AL161: 6.952397522 | AM161: 6.952397522 | AN161: 6.952397522 | AO161: 6.952397522
E163: Pension true-up from previous price controls | G163: £m 09/10 prices | AH163: =CHOOSE(m_identity,East!AH163, London!AH163, 'North West'!AH163, 'West Midlands'!AH163, Northern!AH163, Scotland!AH163, Southern!AH163, 'Wales & West'!AH163) -> 1.269250654 | AI163: =CHOOSE(m_identity,East!AI163, London!AI163, 'North West'!AI163, 'West Midlands'!AI163, Northern!AI163, Scotland!AI163, Southern!AI163, 'Wales & West'!AI163) -> 1.32310496 | AJ163: =CHOOSE(m_identity,East!AJ163, London!AJ163, 'North West'!AJ163, 'West Midlands'!AJ163, Northern!AJ163, Scotland!AJ163, Southern!AJ163, 'Wales & West'!AJ163) -> 1.379244303 | AK163: =CHOOSE(m_identity,East!AK163, London!AK163, 'North West'!AK163, 'West Midlands'!AK163, Northern!AK163, Scotland!AK163, Southern!AK163, 'Wales & West'!AK163) -> 1.437765639 | AL163: =CHOOSE(m_identity,East!AL163, London!AL163, 'North West'!AL163, 'West Midlands'!AL163, Northern!AL163, Scotland!AL163, Southern!AL163, 'Wales & West'!AL163) -> 1.498770035 | AM163: =CHOOSE(m_identity,East!AM163, London!AM163, 'North West'!AM163, 'West Midlands'!AM163, Northern!AM163, Scotland!AM163, Southern!AM163, 'Wales & West'!AM163) -> 1.562362847 | AN163: =CHOOSE(m_identity,East!AN163, London!AN163, 'North West'!AN163, 'West Midlands'!AN163, Northern!AN163, Scotland!AN163, Southern!AN163, 'Wales & West'!AN163) -> 1.628653903 | AO163: =CHOOSE(m_identity,East!AO163, London!AO163, 'North West'!AO163, 'West Midlands'!AO163, Northern!AO163, Scotland!AO163, Southern!AO163, 'Wales & West'!AO163) -> 1.697757688
E165: Revenue adjustment from previous controls (Base) | G165: £m 09/10 prices | AH165: =CHOOSE(m_identity,East!AH165, London!AH165, 'North West'!AH165, 'West Midlands'!AH165, Northern!AH165, Scotland!AH165, Southern!AH165, 'Wales & West'!AH165) -> 0.07637161229 | AI165: =CHOOSE(m_identity,East!AI165, London!AI165, 'North West'!AI165, 'West Midlands'!AI165, Northern!AI165, Scotland!AI165, Southern!AI165, 'Wales & West'!AI165) -> 0.07961205979 | AJ165: =CHOOSE(m_identity,East!AJ165, London!AJ165, 'North West'!AJ165, 'West Midlands'!AJ165, Northern!AJ165, Scotland!AJ165, Southern!AJ165, 'Wales & West'!AJ165) -> 0.08298999949 | AK165: =CHOOSE(m_identity,East!AK165, London!AK165, 'North West'!AK165, 'West Midlands'!AK165, Northern!AK165, Scotland!AK165, Southern!AK165, 'Wales & West'!AK165) -> 0.08651126517 | AL165: =CHOOSE(m_identity,East!AL165, London!AL165, 'North West'!AL165, 'West Midlands'!AL165, Northern!AL165, Scotland!AL165, Southern!AL165, 'Wales & West'!AL165) -> 0.09018193815 | AM165: =CHOOSE(m_identity,East!AM165, London!AM165, 'North West'!AM165, 'West Midlands'!AM165, Northern!AM165, Scotland!AM165, Southern!AM165, 'Wales & West'!AM165) -> 0.09400835779 | AN165: =CHOOSE(m_identity,East!AN165, London!AN165, 'North West'!AN165, 'West Midlands'!AN165, Northern!AN165, Scotland!AN165, Southern!AN165, 'Wales & West'!AN165) -> 0.09799713241 | AO165: =CHOOSE(m_identity,East!AO165, London!AO165, 'North West'!AO165, 'West Midlands'!AO165, Northern!AO165, Scotland!AO165, Southern!AO165, 'Wales & West'!AO165) -> 0.1021551507
E166: =E26 -> Legacy price control allowed revenue adjustment | G166: £m 09/10 prices | AH166: =$AH$26/8*(1+AH37)^ROUND((AH4-$AH4)/365,1) -> 0 | AI166: =$AH$26/8*(1+AI37)^ROUND((AI4-$AH4)/365,1) -> 0 | AJ166: 0 | AK166: 0 | AL166: 0 | AM166: 0 | AN166: 0 | AO166: 0
E167: Revenue adjustment from previous controls | G167: £m 09/10 prices | AH167: =AH165+AH166 -> 0.07637161229 | AI167: =AI165+AI166 -> 0.07961205979 | AJ167: 0.08298999949 | AK167: 0.08651126517 | AL167: 0.09018193815 | AM167: 0.09400835779 | AN167: 0.09799713241 | AO167: 0.1021551507
E169: Excluded services revenue | G169: £m 09/10 prices | AH169: =CHOOSE(m_identity,East!AH169, London!AH169, 'North West'!AH169, 'West Midlands'!AH169, Northern!AH169, Scotland!AH169, Southern!AH169, 'Wales & West'!AH169) -> 0.6376794579 | AI169: =CHOOSE(m_identity,East!AI169, London!AI169, 'North West'!AI169, 'West Midlands'!AI169, Northern!AI169, Scotland!AI169, Southern!AI169, 'Wales & West'!AI169) -> 0.4797944323 | AJ169: =CHOOSE(m_identity,East!AJ169, London!AJ169, 'North West'!AJ169, 'West Midlands'!AJ169, Northern!AJ169, Scotland!AJ169, Southern!AJ169, 'Wales & West'!AJ169) -> 0.4749964879 | AK169: =CHOOSE(m_identity,East!AK169, London!AK169, 'North West'!AK169, 'West Midlands'!AK169, Northern!AK169, Scotland!AK169, Southern!AK169, 'Wales & West'!AK169) -> 0.3710604031 | AL169: =CHOOSE(m_identity,East!AL169, London!AL169, 'North West'!AL169, 'West Midlands'!AL169, Northern!AL169, Scotland!AL169, Southern!AL169, 'Wales & West'!AL169) -> 0.2863511791 | AM169: =CHOOSE(m_identity,East!AM169, London!AM169, 'North West'!AM169, 'West Midlands'!AM169, Northern!AM169, Scotland!AM169, Southern!AM169, 'Wales & West'!AM169) -> 0 | AN169: =CHOOSE(m_identity,East!AN169, London!AN169, 'North West'!AN169, 'West Midlands'!AN169, Northern!AN169, Scotland!AN169, Southern!AN169, 'Wales & West'!AN169) -> 0 | AO169: =CHOOSE(m_identity,East!AO169, London!AO169, 'North West'!AO169, 'West Midlands'!AO169, Northern!AO169, Scotland!AO169, Southern!AO169, 'Wales & West'!AO169) -> 0
E170: Identified excluded services costs | G170: £m 09/10 prices | AH170: =CHOOSE(m_identity,East!AH170, London!AH170, 'North West'!AH170, 'West Midlands'!AH170, Northern!AH170, Scotland!AH170, Southern!AH170, 'Wales & West'!AH170) -> 0.6376794579 | AI170: =CHOOSE(m_identity,East!AI170, London!AI170, 'North West'!AI170, 'West Midlands'!AI170, Northern!AI170, Scotland!AI170, Southern!AI170, 'Wales & West'!AI170) -> 0.4797944323 | AJ170: =CHOOSE(m_identity,East!AJ170, London!AJ170, 'North West'!AJ170, 'West Midlands'!AJ170, Northern!AJ170, Scotland!AJ170, Southern!AJ170, 'Wales & West'!AJ170) -> 0.4749964879 | AK170: =CHOOSE(m_identity,East!AK170, London!AK170, 'North West'!AK170, 'West Midlands'!AK170, Northern!AK170, Scotland!AK170, Southern!AK170, 'Wales & West'!AK170) -> 0.3710604031 | AL170: =CHOOSE(m_identity,East!AL170, London!AL170, 'North West'!AL170, 'West Midlands'!AL170, Northern!AL170, Scotland!AL170, Southern!AL170, 'Wales & West'!AL170) -> 0.2863511791 | AM170: =CHOOSE(m_identity,East!AM170, London!AM170, 'North West'!AM170, 'West Midlands'!AM170, Northern!AM170, Scotland!AM170, Southern!AM170, 'Wales & West'!AM170) -> 0 | AN170: =CHOOSE(m_identity,East!AN170, London!AN170, 'North West'!AN170, 'West Midlands'!AN170, Northern!AN170, Scotland!AN170, Southern!AN170, 'Wales & West'!AN170) -> 0 | AO170: =CHOOSE(m_identity,East!AO170, London!AO170, 'North West'!AO170, 'West Midlands'!AO170, Northern!AO170, Scotland!AO170, Southern!AO170, 'Wales & West'!AO170) -> 0
E171: Excluded services | G171: £m 09/10 prices | AH171: =SUM(AH169, -AH170) -> 0 | AI171: =SUM(AI169, -AI170) -> 0 | AJ171: 0 | AK171: 0 | AL171: 0 | AM171: 0 | AN171: 0 | AO171: 0
B173: RAV and assets
C175: Pre-vesting assets
E177: Pre-vesting RAV cost opening balance brought forward (before transfers) | G177: £m 09/10 prices | AH177: =CHOOSE(m_identity,East!AH177, London!AH177, 'North West'!AH177, 'West Midlands'!AH177, Northern!AH177, Scotland!AH177, Southern!AH177, 'Wales & West'!AH177) -> 1169.308735
E178: Pre-vesting RAV cumulative depreciation opening balance brought forward (before transfers) | G178: £m 09/10 prices | AH178: =CHOOSE(m_identity,East!AH178, London!AH178, 'North West'!AH178, 'West Midlands'!AH178, Northern!AH178, Scotland!AH178, Southern!AH178, 'Wales & West'!AH178) -> 411.1919676
E180: Pre-vesting asset life | G180: years | I180: =CHOOSE(m_identity,East!I180, London!I180, 'North West'!I180, 'West Midlands'!I180, Northern!I180, Scotland!I180, Southern!I180, 'Wales & West'!I180) -> 56
E181: Pre-vesting RAV disposals | G181: £m 09/10 prices | AH181: =CHOOSE(m_identity,East!AH181, London!AH181, 'North West'!AH181, 'West Midlands'!AH181, Northern!AH181, Scotland!AH181, Southern!AH181, 'Wales & West'!AH181) -> 0.4120833659 | AI181: =CHOOSE(m_identity,East!AI181, London!AI181, 'North West'!AI181, 'West Midlands'!AI181, Northern!AI181, Scotland!AI181, Southern!AI181, 'Wales & West'!AI181) -> 0.10054544 | AJ181: =CHOOSE(m_identity,East!AJ181, London!AJ181, 'North West'!AJ181, 'West Midlands'!AJ181, Northern!AJ181, Scotland!AJ181, Southern!AJ181, 'Wales & West'!AJ181) -> 0.1893700381 | AK181: =CHOOSE(m_identity,East!AK181, London!AK181, 'North West'!AK181, 'West Midlands'!AK181, Northern!AK181, Scotland!AK181, Southern!AK181, 'Wales & West'!AK181) -> 0.984317323 | AL181: =CHOOSE(m_identity,East!AL181, London!AL181, 'North West'!AL181, 'West Midlands'!AL181, Northern!AL181, Scotland!AL181, Southern!AL181, 'Wales & West'!AL181) -> 0 | AM181: =CHOOSE(m_identity,East!AM181, London!AM181, 'North West'!AM181, 'West Midlands'!AM181, Northern!AM181, Scotland!AM181, Southern!AM181, 'Wales & West'!AM181) -> 0 | AN181: =CHOOSE(m_identity,East!AN181, London!AN181, 'North West'!AN181, 'West Midlands'!AN181, Northern!AN181, Scotland!AN181, Southern!AN181, 'Wales & West'!AN181) -> 0 | AO181: =CHOOSE(m_identity,East!AO181, London!AO181, 'North West'!AO181, 'West Midlands'!AO181, Northern!AO181, Scotland!AO181, Southern!AO181, 'Wales & West'!AO181) -> 0
E182: Years of pre-vesting depreciation remaining | G182: years | AH182: =CHOOSE(m_identity,East!AH182, London!AH182, 'North West'!AH182, 'West Midlands'!AH182, Northern!AH182, Scotland!AH182, Southern!AH182, 'Wales & West'!AH182) -> 45 | AI182: =CHOOSE(m_identity,East!AI182, London!AI182, 'North West'!AI182, 'West Midlands'!AI182, Northern!AI182, Scotland!AI182, Southern!AI182, 'Wales & West'!AI182) -> 44 | AJ182: =CHOOSE(m_identity,East!AJ182, London!AJ182, 'North West'!AJ182, 'West Midlands'!AJ182, Northern!AJ182, Scotland!AJ182, Southern!AJ182, 'Wales & West'!AJ182) -> 43 | AK182: =CHOOSE(m_identity,East!AK182, London!AK182, 'North West'!AK182, 'West Midlands'!AK182, Northern!AK182, Scotland!AK182, Southern!AK182, 'Wales & West'!AK182) -> 42 | AL182: =CHOOSE(m_identity,East!AL182, London!AL182, 'North West'!AL182, 'West Midlands'!AL182, Northern!AL182, Scotland!AL182, Southern!AL182, 'Wales & West'!AL182) -> 41 | AM182: =CHOOSE(m_identity,East!AM182, London!AM182, 'North West'!AM182, 'West Midlands'!AM182, Northern!AM182, Scotland!AM182, Southern!AM182, 'Wales & West'!AM182) -> 40 | AN182: =CHOOSE(m_identity,East!AN182, London!AN182, 'North West'!AN182, 'West Midlands'!AN182, Northern!AN182, Scotland!AN182, Southern!AN182, 'Wales & West'!AN182) -> 39 | AO182: =CHOOSE(m_identity,East!AO182, London!AO182, 'North West'!AO182, 'West Midlands'!AO182, Northern!AO182, Scotland!AO182, Southern!AO182, 'Wales & West'!AO182) -> 38
C184: Post-vesting assets
E186: Gas distribution
E187: GD post-vesting asset life | G187: years | I187: =CHOOSE(m_identity,East!I187, London!I187, 'North West'!I187, 'West Midlands'!I187, Northern!I187, Scotland!I187, Southern!I187, 'Wales & West'!I187) -> 45
E188: GD smoothing profile for recovery of backlog depreciation | G188: years | AH188: =CHOOSE(m_identity,East!AH188, London!AH188, 'North West'!AH188, 'West Midlands'!AH188, Northern!AH188, Scotland!AH188, Southern!AH188, 'Wales & West'!AH188) -> 0.125 | AI188: =CHOOSE(m_identity,East!AI188, London!AI188, 'North West'!AI188, 'West Midlands'!AI188, Northern!AI188, Scotland!AI188, Southern!AI188, 'Wales & West'!AI188) -> 0.125 | AJ188: =CHOOSE(m_identity,East!AJ188, London!AJ188, 'North West'!AJ188, 'West Midlands'!AJ188, Northern!AJ188, Scotland!AJ188, Southern!AJ188, 'Wales & West'!AJ188) -> 0.125 | AK188: =CHOOSE(m_identity,East!AK188, London!AK188, 'North West'!AK188, 'West Midlands'!AK188, Northern!AK188, Scotland!AK188, Southern!AK188, 'Wales & West'!AK188) -> 0.125 | AL188: =CHOOSE(m_identity,East!AL188, London!AL188, 'North West'!AL188, 'West Midlands'!AL188, Northern!AL188, Scotland!AL188, Southern!AL188, 'Wales & West'!AL188) -> 0.125 | AM188: =CHOOSE(m_identity,East!AM188, London!AM188, 'North West'!AM188, 'West Midlands'!AM188, Northern!AM188, Scotland!AM188, Southern!AM188, 'Wales & West'!AM188) -> 0.125 | AN188: =CHOOSE(m_identity,East!AN188, London!AN188, 'North West'!AN188, 'West Midlands'!AN188, Northern!AN188, Scotland!AN188, Southern!AN188, 'Wales & West'!AN188) -> 0.125 | AO188: =CHOOSE(m_identity,East!AO188, London!AO188, 'North West'!AO188, 'West Midlands'!AO188, Northern!AO188, Scotland!AO188, Southern!AO188, 'Wales & West'!AO188) -> 0.125
E189: GD start of smoothing period | G189: year ending | I189: =CHOOSE(m_identity,East!I189, London!I189, 'North West'!I189, 'West Midlands'!I189, Northern!I189, Scotland!I189, Southern!I189, 'Wales & West'!I189) -> 2014-03-31
E190: Pre-RIIO net additions to RAV | G190: £m 09/10 prices | J190: > | W190: =CHOOSE(m_identity,East!W190, London!W190, 'North West'!W190, 'West Midlands'!W190, Northern!W190, Scotland!W190, Southern!W190, 'Wales & West'!W190) -> 75.64381538 | X190: =CHOOSE(m_identity,East!X190, London!X190, 'North West'!X190, 'West Midlands'!X190, Northern!X190, Scotland!X190, Southern!X190, 'Wales & West'!X190) -> 52.90597723 | Y190: =CHOOSE(m_identity,East!Y190, London!Y190, 'North West'!Y190, 'West Midlands'!Y190, Northern!Y190, Scotland!Y190, Southern!Y190, 'Wales & West'!Y190) -> 41.34152391 | Z190: =CHOOSE(m_identity,East!Z190, London!Z190, 'North West'!Z190, 'West Midlands'!Z190, Northern!Z190, Scotland!Z190, Southern!Z190, 'Wales & West'!Z190) -> 40.09021045 | AA190: =CHOOSE(m_identity,East!AA190, London!AA190, 'North West'!AA190, 'West Midlands'!AA190, Northern!AA190, Scotland!AA190, Southern!AA190, 'Wales & West'!AA190) -> 42.22840238 | AB190: =CHOOSE(m_identity,East!AB190, London!AB190, 'North West'!AB190, 'West Midlands'!AB190, Northern!AB190, Scotland!AB190, Southern!AB190, 'Wales & West'!AB190) -> 124.7314157 | AC190: =CHOOSE(m_identity,East!AC190, London!AC190, 'North West'!AC190, 'West Midlands'!AC190, Northern!AC190, Scotland!AC190, Southern!AC190, 'Wales & West'!AC190) -> 114.8762487 | AD190: =CHOOSE(m_identity,East!AD190, London!AD190, 'North West'!AD190, 'West Midlands'!AD190, Northern!AD190, Scotland!AD190, Southern!AD190, 'Wales & West'!AD190) -> 112.6346821 | AE190: =CHOOSE(m_identity,East!AE190, London!AE190, 'North West'!AE190, 'West Midlands'!AE190, Northern!AE190, Scotland!AE190, Southern!AE190, 'Wales & West'!AE190) -> 117.3866989 | AF190: =CHOOSE(m_identity,East!AF190, London!AF190, 'North West'!AF190, 'West Midlands'!AF190, Northern!AF190, Scotland!AF190, Southern!AF190, 'Wales & West'!AF190) -> 124.1647759 | AG190: =CHOOSE(m_identity,East!AG190, London!AG190, 'North West'!AG190, 'West Midlands'!AG190, Northern!AG190, Scotland!AG190, Southern!AG190, 'Wales & West'!AG190) -> 100.2930329
E191: LRAV | AH191: =AH27 -> 0
E192: RIIO post-vesting RAV additions | G192: £m 09/10 prices | AH192: =CHOOSE(m_identity,East!AH192, London!AH192, 'North West'!AH192, 'West Midlands'!AH192, Northern!AH192, Scotland!AH192, Southern!AH192, 'Wales & West'!AH192) -> 0 | AI192: =CHOOSE(m_identity,East!AI192, London!AI192, 'North West'!AI192, 'West Midlands'!AI192, Northern!AI192, Scotland!AI192, Southern!AI192, 'Wales & West'!AI192) -> 0 | AJ192: =CHOOSE(m_identity,East!AJ192, London!AJ192, 'North West'!AJ192, 'West Midlands'!AJ192, Northern!AJ192, Scotland!AJ192, Southern!AJ192, 'Wales & West'!AJ192) -> 0 | AK192: =CHOOSE(m_identity,East!AK192, London!AK192, 'North West'!AK192, 'West Midlands'!AK192, Northern!AK192, Scotland!AK192, Southern!AK192, 'Wales & West'!AK192) -> 0 | AL192: =CHOOSE(m_identity,East!AL192, London!AL192, 'North West'!AL192, 'West Midlands'!AL192, Northern!AL192, Scotland!AL192, Southern!AL192, 'Wales & West'!AL192) -> 0 | AM192: =CHOOSE(m_identity,East!AM192, London!AM192, 'North West'!AM192, 'West Midlands'!AM192, Northern!AM192, Scotland!AM192, Southern!AM192, 'Wales & West'!AM192) -> 0 | AN192: =CHOOSE(m_identity,East!AN192, London!AN192, 'North West'!AN192, 'West Midlands'!AN192, Northern!AN192, Scotland!AN192, Southern!AN192, 'Wales & West'!AN192) -> 0 | AO192: =CHOOSE(m_identity,East!AO192, London!AO192, 'North West'!AO192, 'West Midlands'!AO192, Northern!AO192, Scotland!AO192, Southern!AO192, 'Wales & West'!AO192) -> 0
E193: RIIO post-vesting RAV disposals | AH193: =CHOOSE(m_identity,East!AH193, London!AH193, 'North West'!AH193, 'West Midlands'!AH193, Northern!AH193, Scotland!AH193, Southern!AH193, 'Wales & West'!AH193) -> -0.03088668797 | AI193: =CHOOSE(m_identity,East!AI193, London!AI193, 'North West'!AI193, 'West Midlands'!AI193, Northern!AI193, Scotland!AI193, Southern!AI193, 'Wales & West'!AI193) -> -0.11524094 | AJ193: =CHOOSE(m_identity,East!AJ193, London!AJ193, 'North West'!AJ193, 'West Midlands'!AJ193, Northern!AJ193, Scotland!AJ193, Southern!AJ193, 'Wales & West'!AJ193) -> -0.1156508481 | AK193: =CHOOSE(m_identity,East!AK193, London!AK193, 'North West'!AK193, 'West Midlands'!AK193, Northern!AK193, Scotland!AK193, Southern!AK193, 'Wales & West'!AK193) -> -0.06402307675 | AL193: =CHOOSE(m_identity,East!AL193, London!AL193, 'North West'!AL193, 'West Midlands'!AL193, Northern!AL193, Scotland!AL193, Southern!AL193, 'Wales & West'!AL193) -> 0 | AM193: =CHOOSE(m_identity,East!AM193, London!AM193, 'North West'!AM193, 'West Midlands'!AM193, Northern!AM193, Scotland!AM193, Southern!AM193, 'Wales & West'!AM193) -> 0 | AN193: =CHOOSE(m_identity,East!AN193, London!AN193, 'North West'!AN193, 'West Midlands'!AN193, Northern!AN193, Scotland!AN193, Southern!AN193, 'Wales & West'!AN193) -> 0 | AO193: =CHOOSE(m_identity,East!AO193, London!AO193, 'North West'!AO193, 'West Midlands'!AO193, Northern!AO193, Scotland!AO193, Southern!AO193, 'Wales & West'!AO193) -> 0
E194: Pre-RIIO transfers to depreciation | G194: £m 09/10 prices | J194: > | V194: =CHOOSE(m_identity,East!V194, London!V194, 'North West'!V194, 'West Midlands'!V194, Northern!V194, Scotland!V194, Southern!V194, 'Wales & West'!V194) -> 0 | W194: =CHOOSE(m_identity,East!W194, London!W194, 'North West'!W194, 'West Midlands'!W194, Northern!W194, Scotland!W194, Southern!W194, 'Wales & West'!W194) -> 0 | X194: =CHOOSE(m_identity,East!X194, London!X194, 'North West'!X194, 'West Midlands'!X194, Northern!X194, Scotland!X194, Southern!X194, 'Wales & West'!X194) -> 0 | Y194: =CHOOSE(m_identity,East!Y194, London!Y194, 'North West'!Y194, 'West Midlands'!Y194, Northern!Y194, Scotland!Y194, Southern!Y194, 'Wales & West'!Y194) -> 0 | Z194: =CHOOSE(m_identity,East!Z194, London!Z194, 'North West'!Z194, 'West Midlands'!Z194, Northern!Z194, Scotland!Z194, Southern!Z194, 'Wales & West'!Z194) -> 0 | AA194: =CHOOSE(m_identity,East!AA194, London!AA194, 'North West'!AA194, 'West Midlands'!AA194, Northern!AA194, Scotland!AA194, Southern!AA194, 'Wales & West'!AA194) -> 0 | AB194: =CHOOSE(m_identity,East!AB194, London!AB194, 'North West'!AB194, 'West Midlands'!AB194, Northern!AB194, Scotland!AB194, Southern!AB194, 'Wales & West'!AB194) -> 3.691559622 | AC194: =CHOOSE(m_identity,East!AC194, London!AC194, 'North West'!AC194, 'West Midlands'!AC194, Northern!AC194, Scotland!AC194, Southern!AC194, 'Wales & West'!AC194) -> 2.717042332 | AD194: =CHOOSE(m_identity,East!AD194, London!AD194, 'North West'!AD194, 'West Midlands'!AD194, Northern!AD194, Scotland!AD194, Southern!AD194, 'Wales & West'!AD194) -> 1.412549414 | AE194: =CHOOSE(m_identity,East!AE194, London!AE194, 'North West'!AE194, 'West Midlands'!AE194, Northern!AE194, Scotland!AE194, Southern!AE194, 'Wales & West'!AE194) -> 3.175829573 | AF194: =CHOOSE(m_identity,East!AF194, London!AF194, 'North West'!AF194, 'West Midlands'!AF194, Northern!AF194, Scotland!AF194, Southern!AF194, 'Wales & West'!AF194) -> 3.140320708 | AG194: =CHOOSE(m_identity,East!AG194, London!AG194, 'North West'!AG194, 'West Midlands'!AG194, Northern!AG194, Scotland!AG194, Southern!AG194, 'Wales & West'!AG194) -> 0
C196: Fuel Poor
E198: Post-vesting asset life | G198: years | I198: =CHOOSE(m_identity,East!I198, London!I198, 'North West'!I198, 'West Midlands'!I198, Northern!I198, Scotland!I198, Southern!I198, 'Wales & West'!I198) -> 45
E199: Years additional customer discount applied | G199: years | I199: =CHOOSE(m_identity,East!I199, London!I199, 'North West'!I199, 'West Midlands'!I199, Northern!I199, Scotland!I199, Southern!I199, 'Wales & West'!I199) -> 5
E201: NPV of future transportation revenue | G201: £m 09/10 prices | J201: > | AC201: =CHOOSE(m_identity,East!AC201, London!AC201, 'North West'!AC201, 'West Midlands'!AC201, Northern!AC201, Scotland!AC201, Southern!AC201, 'Wales & West'!AC201) -> 0 | AD201: =CHOOSE(m_identity,East!AD201, London!AD201, 'North West'!AD201, 'West Midlands'!AD201, Northern!AD201, Scotland!AD201, Southern!AD201, 'Wales & West'!AD201) -> 0 | AE201: =CHOOSE(m_identity,East!AE201, London!AE201, 'North West'!AE201, 'West Midlands'!AE201, Northern!AE201, Scotland!AE201, Southern!AE201, 'Wales & West'!AE201) -> 0 | AF201: =CHOOSE(m_identity,East!AF201, London!AF201, 'North West'!AF201, 'West Midlands'!AF201, Northern!AF201, Scotland!AF201, Southern!AF201, 'Wales & West'!AF201) -> 0 | AG201: =CHOOSE(m_identity,East!AG201, London!AG201, 'North West'!AG201, 'West Midlands'!AG201, Northern!AG201, Scotland!AG201, Southern!AG201, 'Wales & West'!AG201) -> 0
E202: Community based schemes actual capex spend | G202: £m 09/10 prices | J202: > | AC202: =CHOOSE(m_identity,East!AC202, London!AC202, 'North West'!AC202, 'West Midlands'!AC202, Northern!AC202, Scotland!AC202, Southern!AC202, 'Wales & West'!AC202) -> 0 | AD202: =CHOOSE(m_identity,East!AD202, London!AD202, 'North West'!AD202, 'West Midlands'!AD202, Northern!AD202, Scotland!AD202, Southern!AD202, 'Wales & West'!AD202) -> 0 | AE202: =CHOOSE(m_identity,East!AE202, London!AE202, 'North West'!AE202, 'West Midlands'!AE202, Northern!AE202, Scotland!AE202, Southern!AE202, 'Wales & West'!AE202) -> 0 | AF202: =CHOOSE(m_identity,East!AF202, London!AF202, 'North West'!AF202, 'West Midlands'!AF202, Northern!AF202, Scotland!AF202, Southern!AF202, 'Wales & West'!AF202) -> 0 | AG202: =CHOOSE(m_identity,East!AG202, London!AG202, 'North West'!AG202, 'West Midlands'!AG202, Northern!AG202, Scotland!AG202, Southern!AG202, 'Wales & West'!AG202) -> 0
E204: One off schemes actual capex spend | G204: £m 09/10 prices | J204: > | AC204: =CHOOSE(m_identity,East!AC204, London!AC204, 'North West'!AC204, 'West Midlands'!AC204, Northern!AC204, Scotland!AC204, Southern!AC204, 'Wales & West'!AC204) -> 0 | AD204: =CHOOSE(m_identity,East!AD204, London!AD204, 'North West'!AD204, 'West Midlands'!AD204, Northern!AD204, Scotland!AD204, Southern!AD204, 'Wales & West'!AD204) -> 0.109 | AE204: =CHOOSE(m_identity,East!AE204, London!AE204, 'North West'!AE204, 'West Midlands'!AE204, Northern!AE204, Scotland!AE204, Southern!AE204, 'Wales & West'!AE204) -> 1.836 | AF204: =CHOOSE(m_identity,East!AF204, London!AF204, 'North West'!AF204, 'West Midlands'!AF204, Northern!AF204, Scotland!AF204, Southern!AF204, 'Wales & West'!AF204) -> 1.881 | AG204: =CHOOSE(m_identity,East!AG204, London!AG204, 'North West'!AG204, 'West Midlands'!AG204, Northern!AG204, Scotland!AG204, Southern!AG204, 'Wales & West'!AG204) -> 2.455
B206: Tax
C208: Tax policy
E210: =E22 -> Tax liability allowance adjustments - gearing/interest costs | G210: £m nominal | AH210: =AH22 -> 0 | AI210: =AI22 -> 0 | AJ210: 0 | AK210: 0 | AL210: 0 | AM210: 0 | AN210: 0 | AO210: 0
E211: =E23 -> Tax liability allowance adjustments - driven by tax trigger events | G211: £m 09/10 prices | AH211: =AH23 -> 0 | AI211: =AI23 -> 0 | AJ211: 0 | AK211: 0 | AL211: 0 | AM211: 0 | AN211: 0 | AO211: 0
E213: Corporation tax rate | G213: % | J213: > | Y213: =CHOOSE(m_identity,East!Y213, London!Y213, 'North West'!Y213, 'West Midlands'!Y213, Northern!Y213, Scotland!Y213, Southern!Y213, 'Wales & West'!Y213) -> 0.3 | Z213: =CHOOSE(m_identity,East!Z213, London!Z213, 'North West'!Z213, 'West Midlands'!Z213, Northern!Z213, Scotland!Z213, Southern!Z213, 'Wales & West'!Z213) -> 0.3 | AA213: =CHOOSE(m_identity,East!AA213, London!AA213, 'North West'!AA213, 'West Midlands'!AA213, Northern!AA213, Scotland!AA213, Southern!AA213, 'Wales & West'!AA213) -> 0.3 | AB213: =CHOOSE(m_identity,East!AB213, London!AB213, 'North West'!AB213, 'West Midlands'!AB213, Northern!AB213, Scotland!AB213, Southern!AB213, 'Wales & West'!AB213) -> 0.3 | AC213: =CHOOSE(m_identity,East!AC213, London!AC213, 'North West'!AC213, 'West Midlands'!AC213, Northern!AC213, Scotland!AC213, Southern!AC213, 'Wales & West'!AC213) -> 0.28 | AD213: =CHOOSE(m_identity,East!AD213, London!AD213, 'North West'!AD213, 'West Midlands'!AD213, Northern!AD213, Scotland!AD213, Southern!AD213, 'Wales & West'!AD213) -> 0.28 | AE213: =CHOOSE(m_identity,East!AE213, London!AE213, 'North West'!AE213, 'West Midlands'!AE213, Northern!AE213, Scotland!AE213, Southern!AE213, 'Wales & West'!AE213) -> 0.28 | AF213: =CHOOSE(m_identity,East!AF213, London!AF213, 'North West'!AF213, 'West Midlands'!AF213, Northern!AF213, Scotland!AF213, Southern!AF213, 'Wales & West'!AF213) -> 0.26 | AG213: =CHOOSE(m_identity,East!AG213, London!AG213, 'North West'!AG213, 'West Midlands'!AG213, Northern!AG213, Scotland!AG213, Southern!AG213, 'Wales & West'!AG213) -> 0.24 | AH213: =CHOOSE(m_identity,East!AH213, London!AH213, 'North West'!AH213, 'West Midlands'!AH213, Northern!AH213, Scotland!AH213, Southern!AH213, 'Wales & West'!AH213) -> 0.23 | AI213: =CHOOSE(m_identity,East!AI213, London!AI213, 'North West'!AI213, 'West Midlands'!AI213, Northern!AI213, Scotland!AI213, Southern!AI213, 'Wales & West'!AI213) -> 0.21 | AJ213: =CHOOSE(m_identity,East!AJ213, London!AJ213, 'North West'!AJ213, 'West Midlands'!AJ213, Northern!AJ213, Scotland!AJ213, Southern!AJ213, 'Wales & West'!AJ213) -> 0.21 | AK213: =CHOOSE(m_identity,East!AK213, London!AK213, 'North West'!AK213, 'West Midlands'!AK213, Northern!AK213, Scotland!AK213, Southern!AK213, 'Wales & West'!AK213) -> 0.21 | AL213: =CHOOSE(m_identity,East!AL213, London!AL213, 'North West'!AL213, 'West Midlands'!AL213, Northern!AL213, Scotland!AL213, Southern!AL213, 'Wales & West'!AL213) -> 0.21 | AM213: =CHOOSE(m_identity,East!AM213, London!AM213, 'North West'!AM213, 'West Midlands'!AM213, Northern!AM213, Scotland!AM213, Southern!AM213, 'Wales & West'!AM213) -> 0.21 | AN213: =CHOOSE(m_identity,East!AN213, London!AN213, 'North West'!AN213, 'West Midlands'!AN213, Northern!AN213, Scotland!AN213, Southern!AN213, 'Wales & West'!AN213) -> 0.21 | AO213: =CHOOSE(m_identity,East!AO213, London!AO213, 'North West'!AO213, 'West Midlands'!AO213, Northern!AO213, Scotland!AO213, Southern!AO213, 'Wales & West'!AO213) -> 0.21
E215: General pool capital allowance rate | G215: % | J215: > | V215: =CHOOSE(m_identity,East!V215, London!V215, 'North West'!V215, 'West Midlands'!V215, Northern!V215, Scotland!V215, Southern!V215, 'Wales & West'!V215) -> 0.25 | W215: =CHOOSE(m_identity,East!W215, London!W215, 'North West'!W215, 'West Midlands'!W215, Northern!W215, Scotland!W215, Southern!W215, 'Wales & West'!W215) -> 0.25 | X215: =CHOOSE(m_identity,East!X215, London!X215, 'North West'!X215, 'West Midlands'!X215, Northern!X215, Scotland!X215, Southern!X215, 'Wales & West'!X215) -> 0.25 | Y215: =CHOOSE(m_identity,East!Y215, London!Y215, 'North West'!Y215, 'West Midlands'!Y215, Northern!Y215, Scotland!Y215, Southern!Y215, 'Wales & West'!Y215) -> 0.25 | Z215: =CHOOSE(m_identity,East!Z215, London!Z215, 'North West'!Z215, 'West Midlands'!Z215, Northern!Z215, Scotland!Z215, Southern!Z215, 'Wales & West'!Z215) -> 0.25 | AA215: =CHOOSE(m_identity,East!AA215, London!AA215, 'North West'!AA215, 'West Midlands'!AA215, Northern!AA215, Scotland!AA215, Southern!AA215, 'Wales & West'!AA215) -> 0.25 | AB215: =CHOOSE(m_identity,East!AB215, London!AB215, 'North West'!AB215, 'West Midlands'!AB215, Northern!AB215, Scotland!AB215, Southern!AB215, 'Wales & West'!AB215) -> 0.25 | AC215: =CHOOSE(m_identity,East!AC215, London!AC215, 'North West'!AC215, 'West Midlands'!AC215, Northern!AC215, Scotland!AC215, Southern!AC215, 'Wales & West'!AC215) -> 0.2 | AD215: =CHOOSE(m_identity,East!AD215, London!AD215, 'North West'!AD215, 'West Midlands'!AD215, Northern!AD215, Scotland!AD215, Southern!AD215, 'Wales & West'!AD215) -> 0.2 | AE215: =CHOOSE(m_identity,East!AE215, London!AE215, 'North West'!AE215, 'West Midlands'!AE215, Northern!AE215, Scotland!AE215, Southern!AE215, 'Wales & West'!AE215) -> 0.2 | AF215: =CHOOSE(m_identity,East!AF215, London!AF215, 'North West'!AF215, 'West Midlands'!AF215, Northern!AF215, Scotland!AF215, Southern!AF215, 'Wales & West'!AF215) -> 0.2 | AG215: =CHOOSE(m_identity,East!AG215, London!AG215, 'North West'!AG215, 'West Midlands'!AG215, Northern!AG215, Scotland!AG215, Southern!AG215, 'Wales & West'!AG215) -> 0.18 | AH215: =CHOOSE(m_identity,East!AH215, London!AH215, 'North West'!AH215, 'West Midlands'!AH215, Northern!AH215, Scotland!AH215, Southern!AH215, 'Wales & West'!AH215) -> 0.18 | AI215: =CHOOSE(m_identity,East!AI215, London!AI215, 'North West'!AI215, 'West Midlands'!AI215, Northern!AI215, Scotland!AI215, Southern!AI215, 'Wales & West'!AI215) -> 0.18 | AJ215: =CHOOSE(m_identity,East!AJ215, London!AJ215, 'North West'!AJ215, 'West Midlands'!AJ215, Northern!AJ215, Scotland!AJ215, Southern!AJ215, 'Wales & West'!AJ215) -> 0.18 | AK215: =CHOOSE(m_identity,East!AK215, London!AK215, 'North West'!AK215, 'West Midlands'!AK215, Northern!AK215, Scotland!AK215, Southern!AK215, 'Wales & West'!AK215) -> 0.18 | AL215: =CHOOSE(m_identity,East!AL215, London!AL215, 'North West'!AL215, 'West Midlands'!AL215, Northern!AL215, Scotland!AL215, Southern!AL215, 'Wales & West'!AL215) -> 0.18 | AM215: =CHOOSE(m_identity,East!AM215, London!AM215, 'North West'!AM215, 'West Midlands'!AM215, Northern!AM215, Scotland!AM215, Southern!AM215, 'Wales & West'!AM215) -> 0.18 | AN215: =CHOOSE(m_identity,East!AN215, London!AN215, 'North West'!AN215, 'West Midlands'!AN215, Northern!AN215, Scotland!AN215, Southern!AN215, 'Wales & West'!AN215) -> 0.18 | AO215: =CHOOSE(m_identity,East!AO215, London!AO215, 'North West'!AO215, 'West Midlands'!AO215, Northern!AO215, Scotland!AO215, Southern!AO215, 'Wales & West'!AO215) -> 0.18
E216: Special Rates capital allowance rate | G216: % | J216: > | V216: =CHOOSE(m_identity,East!V216, London!V216, 'North West'!V216, 'West Midlands'!V216, Northern!V216, Scotland!V216, Southern!V216, 'Wales & West'!V216) -> 0.06 | W216: =CHOOSE(m_identity,East!W216, London!W216, 'North West'!W216, 'West Midlands'!W216, Northern!W216, Scotland!W216, Southern!W216, 'Wales & West'!W216) -> 0.06 | X216: =CHOOSE(m_identity,East!X216, London!X216, 'North West'!X216, 'West Midlands'!X216, Northern!X216, Scotland!X216, Southern!X216, 'Wales & West'!X216) -> 0.06 | Y216: =CHOOSE(m_identity,East!Y216, London!Y216, 'North West'!Y216, 'West Midlands'!Y216, Northern!Y216, Scotland!Y216, Southern!Y216, 'Wales & West'!Y216) -> 0.06 | Z216: =CHOOSE(m_identity,East!Z216, London!Z216, 'North West'!Z216, 'West Midlands'!Z216, Northern!Z216, Scotland!Z216, Southern!Z216, 'Wales & West'!Z216) -> 0.06 | AA216: =CHOOSE(m_identity,East!AA216, London!AA216, 'North West'!AA216, 'West Midlands'!AA216, Northern!AA216, Scotland!AA216, Southern!AA216, 'Wales & West'!AA216) -> 0.06 | AB216: =CHOOSE(m_identity,East!AB216, London!AB216, 'North West'!AB216, 'West Midlands'!AB216, Northern!AB216, Scotland!AB216, Southern!AB216, 'Wales & West'!AB216) -> 0.06 | AC216: =CHOOSE(m_identity,East!AC216, London!AC216, 'North West'!AC216, 'West Midlands'!AC216, Northern!AC216, Scotland!AC216, Southern!AC216, 'Wales & West'!AC216) -> 0.1 | AD216: =CHOOSE(m_identity,East!AD216, London!AD216, 'North West'!AD216, 'West Midlands'!AD216, Northern!AD216, Scotland!AD216, Southern!AD216, 'Wales & West'!AD216) -> 0.1 | AE216: =CHOOSE(m_identity,East!AE216, London!AE216, 'North West'!AE216, 'West Midlands'!AE216, Northern!AE216, Scotland!AE216, Southern!AE216, 'Wales & West'!AE216) -> 0.1 | AF216: =CHOOSE(m_identity,East!AF216, London!AF216, 'North West'!AF216, 'West Midlands'!AF216, Northern!AF216, Scotland!AF216, Southern!AF216, 'Wales & West'!AF216) -> 0.1 | AG216: =CHOOSE(m_identity,East!AG216, London!AG216, 'North West'!AG216, 'West Midlands'!AG216, Northern!AG216, Scotland!AG216, Southern!AG216, 'Wales & West'!AG216) -> 0.08 | AH216: =CHOOSE(m_identity,East!AH216, London!AH216, 'North West'!AH216, 'West Midlands'!AH216, Northern!AH216, Scotland!AH216, Southern!AH216, 'Wales & West'!AH216) -> 0.08 | AI216: =CHOOSE(m_identity,East!AI216, London!AI216, 'North West'!AI216, 'West Midlands'!AI216, Northern!AI216, Scotland!AI216, Southern!AI216, 'Wales & West'!AI216) -> 0.08 | AJ216: =CHOOSE(m_identity,East!AJ216, London!AJ216, 'North West'!AJ216, 'West Midlands'!AJ216, Northern!AJ216, Scotland!AJ216, Southern!AJ216, 'Wales & West'!AJ216) -> 0.08 | AK216: =CHOOSE(m_identity,East!AK216, London!AK216, 'North West'!AK216, 'West Midlands'!AK216, Northern!AK216, Scotland!AK216, Southern!AK216, 'Wales & West'!AK216) -> 0.08 | AL216: =CHOOSE(m_identity,East!AL216, London!AL216, 'North West'!AL216, 'West Midlands'!AL216, Northern!AL216, Scotland!AL216, Southern!AL216, 'Wales & West'!AL216) -> 0.08 | AM216: =CHOOSE(m_identity,East!AM216, London!AM216, 'North West'!AM216, 'West Midlands'!AM216, Northern!AM216, Scotland!AM216, Southern!AM216, 'Wales & West'!AM216) -> 0.08 | AN216: =CHOOSE(m_identity,East!AN216, London!AN216, 'North West'!AN216, 'West Midlands'!AN216, Northern!AN216, Scotland!AN216, Southern!AN216, 'Wales & West'!AN216) -> 0.08 | AO216: =CHOOSE(m_identity,East!AO216, London!AO216, 'North West'!AO216, 'West Midlands'!AO216, Northern!AO216, Scotland!AO216, Southern!AO216, 'Wales & West'!AO216) -> 0.08
E217: Deferred Revenue Expenditure capital allowance rate | G217: % | AH217: =CHOOSE(m_identity,East!AH217, London!AH217, 'North West'!AH217, 'West Midlands'!AH217, Northern!AH217, Scotland!AH217, Southern!AH217, 'Wales & West'!AH217) -> 0.0222 | AI217: =CHOOSE(m_identity,East!AI217, London!AI217, 'North West'!AI217, 'West Midlands'!AI217, Northern!AI217, Scotland!AI217, Southern!AI217, 'Wales & West'!AI217) -> 0.0222 | AJ217: =CHOOSE(m_identity,East!AJ217, London!AJ217, 'North West'!AJ217, 'West Midlands'!AJ217, Northern!AJ217, Scotland!AJ217, Southern!AJ217, 'Wales & West'!AJ217) -> 0.0222 | AK217: =CHOOSE(m_identity,East!AK217, London!AK217, 'North West'!AK217, 'West Midlands'!AK217, Northern!AK217, Scotland!AK217, Southern!AK217, 'Wales & West'!AK217) -> 0.0222 | AL217: =CHOOSE(m_identity,East!AL217, London!AL217, 'North West'!AL217, 'West Midlands'!AL217, Northern!AL217, Scotland!AL217, Southern!AL217, 'Wales & West'!AL217) -> 0.0222 | AM217: =CHOOSE(m_identity,East!AM217, London!AM217, 'North West'!AM217, 'West Midlands'!AM217, Northern!AM217, Scotland!AM217, Southern!AM217, 'Wales & West'!AM217) -> 0.0222 | AN217: =CHOOSE(m_identity,East!AN217, London!AN217, 'North West'!AN217, 'West Midlands'!AN217, Northern!AN217, Scotland!AN217, Southern!AN217, 'Wales & West'!AN217) -> 0.0222 | AO217: =CHOOSE(m_identity,East!AO217, London!AO217, 'North West'!AO217, 'West Midlands'!AO217, Northern!AO217, Scotland!AO217, Southern!AO217, 'Wales & West'!AO217) -> 0.0222
C219: Capital allowances and tax losses
E221: General pool capital allowance opening balance brought forward | G221: £m nominal | AH221: =CHOOSE(m_identity,East!AH221, London!AH221, 'North West'!AH221, 'West Midlands'!AH221, Northern!AH221, Scotland!AH221, Southern!AH221, 'Wales & West'!AH221) -> 87.002
E223: Special Rate capital allowance opening balance brought forward | G223: £m nominal | AH223: =CHOOSE(m_identity,East!AH223, London!AH223, 'North West'!AH223, 'West Midlands'!AH223, Northern!AH223, Scotland!AH223, Southern!AH223, 'Wales & West'!AH223) -> 286.488
E225: Deferred revenue expenditure opening balance brought forward | G225: £m nominal | AH225: =CHOOSE(m_identity,East!AH225, London!AH225, 'North West'!AH225, 'West Midlands'!AH225, Northern!AH225, Scotland!AH225, Southern!AH225, 'Wales & West'!AH225) -> 0
E227: Tax loss brought forward | G227: £m nominal | AH227: =CHOOSE(m_identity,East!AH227, London!AH227, 'North West'!AH227, 'West Midlands'!AH227, Northern!AH227, Scotland!AH227, Southern!AH227, 'Wales & West'!AH227) -> 212.240825
C229: Tax pool allocation
D231: Allocation to "General" pool
E233: Load Related | G233: % | AH233: =CHOOSE(m_identity,East!AH233, London!AH233, 'North West'!AH233, 'West Midlands'!AH233, Northern!AH233, Scotland!AH233, Southern!AH233, 'Wales & West'!AH233) -> 0.0029 | AI233: =CHOOSE(m_identity,East!AI233, London!AI233, 'North West'!AI233, 'West Midlands'!AI233, Northern!AI233, Scotland!AI233, Southern!AI233, 'Wales & West'!AI233) -> 0.0029 | AJ233: =CHOOSE(m_identity,East!AJ233, London!AJ233, 'North West'!AJ233, 'West Midlands'!AJ233, Northern!AJ233, Scotland!AJ233, Southern!AJ233, 'Wales & West'!AJ233) -> 0.0029 | AK233: =CHOOSE(m_identity,East!AK233, London!AK233, 'North West'!AK233, 'West Midlands'!AK233, Northern!AK233, Scotland!AK233, Southern!AK233, 'Wales & West'!AK233) -> 0.0029 | AL233: =CHOOSE(m_identity,East!AL233, London!AL233, 'North West'!AL233, 'West Midlands'!AL233, Northern!AL233, Scotland!AL233, Southern!AL233, 'Wales & West'!AL233) -> 0.0029 | AM233: =CHOOSE(m_identity,East!AM233, London!AM233, 'North West'!AM233, 'West Midlands'!AM233, Northern!AM233, Scotland!AM233, Southern!AM233, 'Wales & West'!AM233) -> 0.0029 | AN233: =CHOOSE(m_identity,East!AN233, London!AN233, 'North West'!AN233, 'West Midlands'!AN233, Northern!AN233, Scotland!AN233, Southern!AN233, 'Wales & West'!AN233) -> 0.0029 | AO233: =CHOOSE(m_identity,East!AO233, London!AO233, 'North West'!AO233, 'West Midlands'!AO233, Northern!AO233, Scotland!AO233, Southern!AO233, 'Wales & West'!AO233) -> 0.0029
E234: Non-Load Related - other | G234: % | AH234: =CHOOSE(m_identity,East!AH234, London!AH234, 'North West'!AH234, 'West Midlands'!AH234, Northern!AH234, Scotland!AH234, Southern!AH234, 'Wales & West'!AH234) -> 0.8975609839 | AI234: =CHOOSE(m_identity,East!AI234, London!AI234, 'North West'!AI234, 'West Midlands'!AI234, Northern!AI234, Scotland!AI234, Southern!AI234, 'Wales & West'!AI234) -> 0.8975609839 | AJ234: =CHOOSE(m_identity,East!AJ234, London!AJ234, 'North West'!AJ234, 'West Midlands'!AJ234, Northern!AJ234, Scotland!AJ234, Southern!AJ234, 'Wales & West'!AJ234) -> 0.8975609839 | AK234: =CHOOSE(m_identity,East!AK234, London!AK234, 'North West'!AK234, 'West Midlands'!AK234, Northern!AK234, Scotland!AK234, Southern!AK234, 'Wales & West'!AK234) -> 0.8975609839 | AL234: =CHOOSE(m_identity,East!AL234, London!AL234, 'North West'!AL234, 'West Midlands'!AL234, Northern!AL234, Scotland!AL234, Southern!AL234, 'Wales & West'!AL234) -> 0.8975609839 | AM234: =CHOOSE(m_identity,East!AM234, London!AM234, 'North West'!AM234, 'West Midlands'!AM234, Northern!AM234, Scotland!AM234, Southern!AM234, 'Wales & West'!AM234) -> 0.8975609839 | AN234: =CHOOSE(m_identity,East!AN234, London!AN234, 'North West'!AN234, 'West Midlands'!AN234, Northern!AN234, Scotland!AN234, Southern!AN234, 'Wales & West'!AN234) -> 0.8975609839 | AO234: =CHOOSE(m_identity,East!AO234, London!AO234, 'North West'!AO234, 'West Midlands'!AO234, Northern!AO234, Scotland!AO234, Southern!AO234, 'Wales & West'!AO234) -> 0.8975609839
E235: Opex | G235: % | AH235: =CHOOSE(m_identity,East!AH235, London!AH235, 'North West'!AH235, 'West Midlands'!AH235, Northern!AH235, Scotland!AH235, Southern!AH235, 'Wales & West'!AH235) -> 0 | AI235: =CHOOSE(m_identity,East!AI235, London!AI235, 'North West'!AI235, 'West Midlands'!AI235, Northern!AI235, Scotland!AI235, Southern!AI235, 'Wales & West'!AI235) -> 0 | AJ235: =CHOOSE(m_identity,East!AJ235, London!AJ235, 'North West'!AJ235, 'West Midlands'!AJ235, Northern!AJ235, Scotland!AJ235, Southern!AJ235, 'Wales & West'!AJ235) -> 0 | AK235: =CHOOSE(m_identity,East!AK235, London!AK235, 'North West'!AK235, 'West Midlands'!AK235, Northern!AK235, Scotland!AK235, Southern!AK235, 'Wales & West'!AK235) -> 0 | AL235: =CHOOSE(m_identity,East!AL235, London!AL235, 'North West'!AL235, 'West Midlands'!AL235, Northern!AL235, Scotland!AL235, Southern!AL235, 'Wales & West'!AL235) -> 0 | AM235: =CHOOSE(m_identity,East!AM235, London!AM235, 'North West'!AM235, 'West Midlands'!AM235, Northern!AM235, Scotland!AM235, Southern!AM235, 'Wales & West'!AM235) -> 0 | AN235: =CHOOSE(m_identity,East!AN235, London!AN235, 'North West'!AN235, 'West Midlands'!AN235, Northern!AN235, Scotland!AN235, Southern!AN235, 'Wales & West'!AN235) -> 0 | AO235: =CHOOSE(m_identity,East!AO235, London!AO235, 'North West'!AO235, 'West Midlands'!AO235, Northern!AO235, Scotland!AO235, Southern!AO235, 'Wales & West'!AO235) -> 0
E236: Repex | G236: % | AH236: =CHOOSE(m_identity,East!AH236, London!AH236, 'North West'!AH236, 'West Midlands'!AH236, Northern!AH236, Scotland!AH236, Southern!AH236, 'Wales & West'!AH236) -> 0 | AI236: =CHOOSE(m_identity,East!AI236, London!AI236, 'North West'!AI236, 'West Midlands'!AI236, Northern!AI236, Scotland!AI236, Southern!AI236, 'Wales & West'!AI236) -> 0 | AJ236: =CHOOSE(m_identity,East!AJ236, London!AJ236, 'North West'!AJ236, 'West Midlands'!AJ236, Northern!AJ236, Scotland!AJ236, Southern!AJ236, 'Wales & West'!AJ236) -> 0 | AK236: =CHOOSE(m_identity,East!AK236, London!AK236, 'North West'!AK236, 'West Midlands'!AK236, Northern!AK236, Scotland!AK236, Southern!AK236, 'Wales & West'!AK236) -> 0 | AL236: =CHOOSE(m_identity,East!AL236, London!AL236, 'North West'!AL236, 'West Midlands'!AL236, Northern!AL236, Scotland!AL236, Southern!AL236, 'Wales & West'!AL236) -> 0 | AM236: =CHOOSE(m_identity,East!AM236, London!AM236, 'North West'!AM236, 'West Midlands'!AM236, Northern!AM236, Scotland!AM236, Southern!AM236, 'Wales & West'!AM236) -> 0 | AN236: =CHOOSE(m_identity,East!AN236, London!AN236, 'North West'!AN236, 'West Midlands'!AN236, Northern!AN236, Scotland!AN236, Southern!AN236, 'Wales & West'!AN236) -> 0 | AO236: =CHOOSE(m_identity,East!AO236, London!AO236, 'North West'!AO236, 'West Midlands'!AO236, Northern!AO236, Scotland!AO236, Southern!AO236, 'Wales & West'!AO236) -> 0
D238: Allocation to "Special Rate" pool
E240: Load Related | G240: % | AH240: =CHOOSE(m_identity,East!AH240, London!AH240, 'North West'!AH240, 'West Midlands'!AH240, Northern!AH240, Scotland!AH240, Southern!AH240, 'Wales & West'!AH240) -> 0.9887 | AI240: =CHOOSE(m_identity,East!AI240, London!AI240, 'North West'!AI240, 'West Midlands'!AI240, Northern!AI240, Scotland!AI240, Southern!AI240, 'Wales & West'!AI240) -> 0.9887 | AJ240: =CHOOSE(m_identity,East!AJ240, London!AJ240, 'North West'!AJ240, 'West Midlands'!AJ240, Northern!AJ240, Scotland!AJ240, Southern!AJ240, 'Wales & West'!AJ240) -> 0.9887 | AK240: =CHOOSE(m_identity,East!AK240, London!AK240, 'North West'!AK240, 'West Midlands'!AK240, Northern!AK240, Scotland!AK240, Southern!AK240, 'Wales & West'!AK240) -> 0.9887 | AL240: =CHOOSE(m_identity,East!AL240, London!AL240, 'North West'!AL240, 'West Midlands'!AL240, Northern!AL240, Scotland!AL240, Southern!AL240, 'Wales & West'!AL240) -> 0.9887 | AM240: =CHOOSE(m_identity,East!AM240, London!AM240, 'North West'!AM240, 'West Midlands'!AM240, Northern!AM240, Scotland!AM240, Southern!AM240, 'Wales & West'!AM240) -> 0.9887 | AN240: =CHOOSE(m_identity,East!AN240, London!AN240, 'North West'!AN240, 'West Midlands'!AN240, Northern!AN240, Scotland!AN240, Southern!AN240, 'Wales & West'!AN240) -> 0.9887 | AO240: =CHOOSE(m_identity,East!AO240, London!AO240, 'North West'!AO240, 'West Midlands'!AO240, Northern!AO240, Scotland!AO240, Southern!AO240, 'Wales & West'!AO240) -> 0.9887
E241: Non-Load Related - other | G241: % | AH241: =CHOOSE(m_identity,East!AH241, London!AH241, 'North West'!AH241, 'West Midlands'!AH241, Northern!AH241, Scotland!AH241, Southern!AH241, 'Wales & West'!AH241) -> 0.01627111379 | AI241: =CHOOSE(m_identity,East!AI241, London!AI241, 'North West'!AI241, 'West Midlands'!AI241, Northern!AI241, Scotland!AI241, Southern!AI241, 'Wales & West'!AI241) -> 0.01627111379 | AJ241: =CHOOSE(m_identity,East!AJ241, London!AJ241, 'North West'!AJ241, 'West Midlands'!AJ241, Northern!AJ241, Scotland!AJ241, Southern!AJ241, 'Wales & West'!AJ241) -> 0.01627111379 | AK241: =CHOOSE(m_identity,East!AK241, London!AK241, 'North West'!AK241, 'West Midlands'!AK241, Northern!AK241, Scotland!AK241, Southern!AK241, 'Wales & West'!AK241) -> 0.01627111379 | AL241: =CHOOSE(m_identity,East!AL241, London!AL241, 'North West'!AL241, 'West Midlands'!AL241, Northern!AL241, Scotland!AL241, Southern!AL241, 'Wales & West'!AL241) -> 0.01627111379 | AM241: =CHOOSE(m_identity,East!AM241, London!AM241, 'North West'!AM241, 'West Midlands'!AM241, Northern!AM241, Scotland!AM241, Southern!AM241, 'Wales & West'!AM241) -> 0.01627111379 | AN241: =CHOOSE(m_identity,East!AN241, London!AN241, 'North West'!AN241, 'West Midlands'!AN241, Northern!AN241, Scotland!AN241, Southern!AN241, 'Wales & West'!AN241) -> 0.01627111379 | AO241: =CHOOSE(m_identity,East!AO241, London!AO241, 'North West'!AO241, 'West Midlands'!AO241, Northern!AO241, Scotland!AO241, Southern!AO241, 'Wales & West'!AO241) -> 0.01627111379
E242: Opex | G242: % | AH242: =CHOOSE(m_identity,East!AH242, London!AH242, 'North West'!AH242, 'West Midlands'!AH242, Northern!AH242, Scotland!AH242, Southern!AH242, 'Wales & West'!AH242) -> 0 | AI242: =CHOOSE(m_identity,East!AI242, London!AI242, 'North West'!AI242, 'West Midlands'!AI242, Northern!AI242, Scotland!AI242, Southern!AI242, 'Wales & West'!AI242) -> 0 | AJ242: =CHOOSE(m_identity,East!AJ242, London!AJ242, 'North West'!AJ242, 'West Midlands'!AJ242, Northern!AJ242, Scotland!AJ242, Southern!AJ242, 'Wales & West'!AJ242) -> 0 | AK242: =CHOOSE(m_identity,East!AK242, London!AK242, 'North West'!AK242, 'West Midlands'!AK242, Northern!AK242, Scotland!AK242, Southern!AK242, 'Wales & West'!AK242) -> 0 | AL242: =CHOOSE(m_identity,East!AL242, London!AL242, 'North West'!AL242, 'West Midlands'!AL242, Northern!AL242, Scotland!AL242, Southern!AL242, 'Wales & West'!AL242) -> 0 | AM242: =CHOOSE(m_identity,East!AM242, London!AM242, 'North West'!AM242, 'West Midlands'!AM242, Northern!AM242, Scotland!AM242, Southern!AM242, 'Wales & West'!AM242) -> 0 | AN242: =CHOOSE(m_identity,East!AN242, London!AN242, 'North West'!AN242, 'West Midlands'!AN242, Northern!AN242, Scotland!AN242, Southern!AN242, 'Wales & West'!AN242) -> 0 | AO242: =CHOOSE(m_identity,East!AO242, London!AO242, 'North West'!AO242, 'West Midlands'!AO242, Northern!AO242, Scotland!AO242, Southern!AO242, 'Wales & West'!AO242) -> 0
E243: Repex | G243: % | AH243: =CHOOSE(m_identity,East!AH243, London!AH243, 'North West'!AH243, 'West Midlands'!AH243, Northern!AH243, Scotland!AH243, Southern!AH243, 'Wales & West'!AH243) -> 0 | AI243: =CHOOSE(m_identity,East!AI243, London!AI243, 'North West'!AI243, 'West Midlands'!AI243, Northern!AI243, Scotland!AI243, Southern!AI243, 'Wales & West'!AI243) -> 0 | AJ243: =CHOOSE(m_identity,East!AJ243, London!AJ243, 'North West'!AJ243, 'West Midlands'!AJ243, Northern!AJ243, Scotland!AJ243, Southern!AJ243, 'Wales & West'!AJ243) -> 0 | AK243: =CHOOSE(m_identity,East!AK243, London!AK243, 'North West'!AK243, 'West Midlands'!AK243, Northern!AK243, Scotland!AK243, Southern!AK243, 'Wales & West'!AK243) -> 0 | AL243: =CHOOSE(m_identity,East!AL243, London!AL243, 'North West'!AL243, 'West Midlands'!AL243, Northern!AL243, Scotland!AL243, Southern!AL243, 'Wales & West'!AL243) -> 0 | AM243: =CHOOSE(m_identity,East!AM243, London!AM243, 'North West'!AM243, 'West Midlands'!AM243, Northern!AM243, Scotland!AM243, Southern!AM243, 'Wales & West'!AM243) -> 0 | AN243: =CHOOSE(m_identity,East!AN243, London!AN243, 'North West'!AN243, 'West Midlands'!AN243, Northern!AN243, Scotland!AN243, Southern!AN243, 'Wales & West'!AN243) -> 0 | AO243: =CHOOSE(m_identity,East!AO243, London!AO243, 'North West'!AO243, 'West Midlands'!AO243, Northern!AO243, Scotland!AO243, Southern!AO243, 'Wales & West'!AO243) -> 0
D245: Allocation to "Deferred Revenue" pool
E247: Load Related | G247: % | AH247: =CHOOSE(m_identity,East!AH247, London!AH247, 'North West'!AH247, 'West Midlands'!AH247, Northern!AH247, Scotland!AH247, Southern!AH247, 'Wales & West'!AH247) -> 0 | AI247: =CHOOSE(m_identity,East!AI247, London!AI247, 'North West'!AI247, 'West Midlands'!AI247, Northern!AI247, Scotland!AI247, Southern!AI247, 'Wales & West'!AI247) -> 0 | AJ247: =CHOOSE(m_identity,East!AJ247, London!AJ247, 'North West'!AJ247, 'West Midlands'!AJ247, Northern!AJ247, Scotland!AJ247, Southern!AJ247, 'Wales & West'!AJ247) -> 0 | AK247: =CHOOSE(m_identity,East!AK247, London!AK247, 'North West'!AK247, 'West Midlands'!AK247, Northern!AK247, Scotland!AK247, Southern!AK247, 'Wales & West'!AK247) -> 0 | AL247: =CHOOSE(m_identity,East!AL247, London!AL247, 'North West'!AL247, 'West Midlands'!AL247, Northern!AL247, Scotland!AL247, Southern!AL247, 'Wales & West'!AL247) -> 0 | AM247: =CHOOSE(m_identity,East!AM247, London!AM247, 'North West'!AM247, 'West Midlands'!AM247, Northern!AM247, Scotland!AM247, Southern!AM247, 'Wales & West'!AM247) -> 0 | AN247: =CHOOSE(m_identity,East!AN247, London!AN247, 'North West'!AN247, 'West Midlands'!AN247, Northern!AN247, Scotland!AN247, Southern!AN247, 'Wales & West'!AN247) -> 0 | AO247: =CHOOSE(m_identity,East!AO247, London!AO247, 'North West'!AO247, 'West Midlands'!AO247, Northern!AO247, Scotland!AO247, Southern!AO247, 'Wales & West'!AO247) -> 0
E248: Non-Load Related - other | G248: % | AH248: =CHOOSE(m_identity,East!AH248, London!AH248, 'North West'!AH248, 'West Midlands'!AH248, Northern!AH248, Scotland!AH248, Southern!AH248, 'Wales & West'!AH248) -> 0 | AI248: =CHOOSE(m_identity,East!AI248, London!AI248, 'North West'!AI248, 'West Midlands'!AI248, Northern!AI248, Scotland!AI248, Southern!AI248, 'Wales & West'!AI248) -> 0 | AJ248: =CHOOSE(m_identity,East!AJ248, London!AJ248, 'North West'!AJ248, 'West Midlands'!AJ248, Northern!AJ248, Scotland!AJ248, Southern!AJ248, 'Wales & West'!AJ248) -> 0 | AK248: =CHOOSE(m_identity,East!AK248, London!AK248, 'North West'!AK248, 'West Midlands'!AK248, Northern!AK248, Scotland!AK248, Southern!AK248, 'Wales & West'!AK248) -> 0 | AL248: =CHOOSE(m_identity,East!AL248, London!AL248, 'North West'!AL248, 'West Midlands'!AL248, Northern!AL248, Scotland!AL248, Southern!AL248, 'Wales & West'!AL248) -> 0 | AM248: =CHOOSE(m_identity,East!AM248, London!AM248, 'North West'!AM248, 'West Midlands'!AM248, Northern!AM248, Scotland!AM248, Southern!AM248, 'Wales & West'!AM248) -> 0 | AN248: =CHOOSE(m_identity,East!AN248, London!AN248, 'North West'!AN248, 'West Midlands'!AN248, Northern!AN248, Scotland!AN248, Southern!AN248, 'Wales & West'!AN248) -> 0 | AO248: =CHOOSE(m_identity,East!AO248, London!AO248, 'North West'!AO248, 'West Midlands'!AO248, Northern!AO248, Scotland!AO248, Southern!AO248, 'Wales & West'!AO248) -> 0
E249: Opex | G249: % | AH249: =CHOOSE(m_identity,East!AH249, London!AH249, 'North West'!AH249, 'West Midlands'!AH249, Northern!AH249, Scotland!AH249, Southern!AH249, 'Wales & West'!AH249) -> 0 | AI249: =CHOOSE(m_identity,East!AI249, London!AI249, 'North West'!AI249, 'West Midlands'!AI249, Northern!AI249, Scotland!AI249, Southern!AI249, 'Wales & West'!AI249) -> 0 | AJ249: =CHOOSE(m_identity,East!AJ249, London!AJ249, 'North West'!AJ249, 'West Midlands'!AJ249, Northern!AJ249, Scotland!AJ249, Southern!AJ249, 'Wales & West'!AJ249) -> 0 | AK249: =CHOOSE(m_identity,East!AK249, London!AK249, 'North West'!AK249, 'West Midlands'!AK249, Northern!AK249, Scotland!AK249, Southern!AK249, 'Wales & West'!AK249) -> 0 | AL249: =CHOOSE(m_identity,East!AL249, London!AL249, 'North West'!AL249, 'West Midlands'!AL249, Northern!AL249, Scotland!AL249, Southern!AL249, 'Wales & West'!AL249) -> 0 | AM249: =CHOOSE(m_identity,East!AM249, London!AM249, 'North West'!AM249, 'West Midlands'!AM249, Northern!AM249, Scotland!AM249, Southern!AM249, 'Wales & West'!AM249) -> 0 | AN249: =CHOOSE(m_identity,East!AN249, London!AN249, 'North West'!AN249, 'West Midlands'!AN249, Northern!AN249, Scotland!AN249, Southern!AN249, 'Wales & West'!AN249) -> 0 | AO249: =CHOOSE(m_identity,East!AO249, London!AO249, 'North West'!AO249, 'West Midlands'!AO249, Northern!AO249, Scotland!AO249, Southern!AO249, 'Wales & West'!AO249) -> 0
E250: Repex | G250: % | AH250: =CHOOSE(m_identity,East!AH250, London!AH250, 'North West'!AH250, 'West Midlands'!AH250, Northern!AH250, Scotland!AH250, Southern!AH250, 'Wales & West'!AH250) -> 0 | AI250: =CHOOSE(m_identity,East!AI250, London!AI250, 'North West'!AI250, 'West Midlands'!AI250, Northern!AI250, Scotland!AI250, Southern!AI250, 'Wales & West'!AI250) -> 0 | AJ250: =CHOOSE(m_identity,East!AJ250, London!AJ250, 'North West'!AJ250, 'West Midlands'!AJ250, Northern!AJ250, Scotland!AJ250, Southern!AJ250, 'Wales & West'!AJ250) -> 1 | AK250: =CHOOSE(m_identity,East!AK250, London!AK250, 'North West'!AK250, 'West Midlands'!AK250, Northern!AK250, Scotland!AK250, Southern!AK250, 'Wales & West'!AK250) -> 1 | AL250: =CHOOSE(m_identity,East!AL250, London!AL250, 'North West'!AL250, 'West Midlands'!AL250, Northern!AL250, Scotland!AL250, Southern!AL250, 'Wales & West'!AL250) -> 1 | AM250: =CHOOSE(m_identity,East!AM250, London!AM250, 'North West'!AM250, 'West Midlands'!AM250, Northern!AM250, Scotland!AM250, Southern!AM250, 'Wales & West'!AM250) -> 1 | AN250: =CHOOSE(m_identity,East!AN250, London!AN250, 'North West'!AN250, 'West Midlands'!AN250, Northern!AN250, Scotland!AN250, Southern!AN250, 'Wales & West'!AN250) -> 1 | AO250: =CHOOSE(m_identity,East!AO250, London!AO250, 'North West'!AO250, 'West Midlands'!AO250, Northern!AO250, Scotland!AO250, Southern!AO250, 'Wales & West'!AO250) -> 1
D252: Allocation to "Revenue" pool
E254: Load Related | G254: % | AH254: =CHOOSE(m_identity,East!AH254, London!AH254, 'North West'!AH254, 'West Midlands'!AH254, Northern!AH254, Scotland!AH254, Southern!AH254, 'Wales & West'!AH254) -> 0 | AI254: =CHOOSE(m_identity,East!AI254, London!AI254, 'North West'!AI254, 'West Midlands'!AI254, Northern!AI254, Scotland!AI254, Southern!AI254, 'Wales & West'!AI254) -> 0 | AJ254: =CHOOSE(m_identity,East!AJ254, London!AJ254, 'North West'!AJ254, 'West Midlands'!AJ254, Northern!AJ254, Scotland!AJ254, Southern!AJ254, 'Wales & West'!AJ254) -> 0 | AK254: =CHOOSE(m_identity,East!AK254, London!AK254, 'North West'!AK254, 'West Midlands'!AK254, Northern!AK254, Scotland!AK254, Southern!AK254, 'Wales & West'!AK254) -> 0 | AL254: =CHOOSE(m_identity,East!AL254, London!AL254, 'North West'!AL254, 'West Midlands'!AL254, Northern!AL254, Scotland!AL254, Southern!AL254, 'Wales & West'!AL254) -> 0 | AM254: =CHOOSE(m_identity,East!AM254, London!AM254, 'North West'!AM254, 'West Midlands'!AM254, Northern!AM254, Scotland!AM254, Southern!AM254, 'Wales & West'!AM254) -> 0 | AN254: =CHOOSE(m_identity,East!AN254, London!AN254, 'North West'!AN254, 'West Midlands'!AN254, Northern!AN254, Scotland!AN254, Southern!AN254, 'Wales & West'!AN254) -> 0 | AO254: =CHOOSE(m_identity,East!AO254, London!AO254, 'North West'!AO254, 'West Midlands'!AO254, Northern!AO254, Scotland!AO254, Southern!AO254, 'Wales & West'!AO254) -> 0
E255: Non-Load Related - other | G255: % | AH255: =CHOOSE(m_identity,East!AH255, London!AH255, 'North West'!AH255, 'West Midlands'!AH255, Northern!AH255, Scotland!AH255, Southern!AH255, 'Wales & West'!AH255) -> 0 | AI255: =CHOOSE(m_identity,East!AI255, London!AI255, 'North West'!AI255, 'West Midlands'!AI255, Northern!AI255, Scotland!AI255, Southern!AI255, 'Wales & West'!AI255) -> 0 | AJ255: =CHOOSE(m_identity,East!AJ255, London!AJ255, 'North West'!AJ255, 'West Midlands'!AJ255, Northern!AJ255, Scotland!AJ255, Southern!AJ255, 'Wales & West'!AJ255) -> 0 | AK255: =CHOOSE(m_identity,East!AK255, London!AK255, 'North West'!AK255, 'West Midlands'!AK255, Northern!AK255, Scotland!AK255, Southern!AK255, 'Wales & West'!AK255) -> 0 | AL255: =CHOOSE(m_identity,East!AL255, London!AL255, 'North West'!AL255, 'West Midlands'!AL255, Northern!AL255, Scotland!AL255, Southern!AL255, 'Wales & West'!AL255) -> 0 | AM255: =CHOOSE(m_identity,East!AM255, London!AM255, 'North West'!AM255, 'West Midlands'!AM255, Northern!AM255, Scotland!AM255, Southern!AM255, 'Wales & West'!AM255) -> 0 | AN255: =CHOOSE(m_identity,East!AN255, London!AN255, 'North West'!AN255, 'West Midlands'!AN255, Northern!AN255, Scotland!AN255, Southern!AN255, 'Wales & West'!AN255) -> 0 | AO255: =CHOOSE(m_identity,East!AO255, London!AO255, 'North West'!AO255, 'West Midlands'!AO255, Northern!AO255, Scotland!AO255, Southern!AO255, 'Wales & West'!AO255) -> 0
E256: Opex | G256: % | AH256: =CHOOSE(m_identity,East!AH256, London!AH256, 'North West'!AH256, 'West Midlands'!AH256, Northern!AH256, Scotland!AH256, Southern!AH256, 'Wales & West'!AH256) -> 1 | AI256: =CHOOSE(m_identity,East!AI256, London!AI256, 'North West'!AI256, 'West Midlands'!AI256, Northern!AI256, Scotland!AI256, Southern!AI256, 'Wales & West'!AI256) -> 1 | AJ256: =CHOOSE(m_identity,East!AJ256, London!AJ256, 'North West'!AJ256, 'West Midlands'!AJ256, Northern!AJ256, Scotland!AJ256, Southern!AJ256, 'Wales & West'!AJ256) -> 1 | AK256: =CHOOSE(m_identity,East!AK256, London!AK256, 'North West'!AK256, 'West Midlands'!AK256, Northern!AK256, Scotland!AK256, Southern!AK256, 'Wales & West'!AK256) -> 1 | AL256: =CHOOSE(m_identity,East!AL256, London!AL256, 'North West'!AL256, 'West Midlands'!AL256, Northern!AL256, Scotland!AL256, Southern!AL256, 'Wales & West'!AL256) -> 1 | AM256: =CHOOSE(m_identity,East!AM256, London!AM256, 'North West'!AM256, 'West Midlands'!AM256, Northern!AM256, Scotland!AM256, Southern!AM256, 'Wales & West'!AM256) -> 1 | AN256: =CHOOSE(m_identity,East!AN256, London!AN256, 'North West'!AN256, 'West Midlands'!AN256, Northern!AN256, Scotland!AN256, Southern!AN256, 'Wales & West'!AN256) -> 1 | AO256: =CHOOSE(m_identity,East!AO256, London!AO256, 'North West'!AO256, 'West Midlands'!AO256, Northern!AO256, Scotland!AO256, Southern!AO256, 'Wales & West'!AO256) -> 1
E257: Repex | G257: % | AH257: =CHOOSE(m_identity,East!AH257, London!AH257, 'North West'!AH257, 'West Midlands'!AH257, Northern!AH257, Scotland!AH257, Southern!AH257, 'Wales & West'!AH257) -> 1 | AI257: =CHOOSE(m_identity,East!AI257, London!AI257, 'North West'!AI257, 'West Midlands'!AI257, Northern!AI257, Scotland!AI257, Southern!AI257, 'Wales & West'!AI257) -> 1 | AJ257: =CHOOSE(m_identity,East!AJ257, London!AJ257, 'North West'!AJ257, 'West Midlands'!AJ257, Northern!AJ257, Scotland!AJ257, Southern!AJ257, 'Wales & West'!AJ257) -> 0 | AK257: =CHOOSE(m_identity,East!AK257, London!AK257, 'North West'!AK257, 'West Midlands'!AK257, Northern!AK257, Scotland!AK257, Southern!AK257, 'Wales & West'!AK257) -> 0 | AL257: =CHOOSE(m_identity,East!AL257, London!AL257, 'North West'!AL257, 'West Midlands'!AL257, Northern!AL257, Scotland!AL257, Southern!AL257, 'Wales & West'!AL257) -> 0 | AM257: =CHOOSE(m_identity,East!AM257, London!AM257, 'North West'!AM257, 'West Midlands'!AM257, Northern!AM257, Scotland!AM257, Southern!AM257, 'Wales & West'!AM257) -> 0 | AN257: =CHOOSE(m_identity,East!AN257, London!AN257, 'North West'!AN257, 'West Midlands'!AN257, Northern!AN257, Scotland!AN257, Southern!AN257, 'Wales & West'!AN257) -> 0 | AO257: =CHOOSE(m_identity,East!AO257, London!AO257, 'North West'!AO257, 'West Midlands'!AO257, Northern!AO257, Scotland!AO257, Southern!AO257, 'Wales & West'!AO257) -> 0
D259: Allocation to "Non Qualifying" pool
E261: Load Related | G261: % | AH261: =CHOOSE(m_identity,East!AH261, London!AH261, 'North West'!AH261, 'West Midlands'!AH261, Northern!AH261, Scotland!AH261, Southern!AH261, 'Wales & West'!AH261) -> 0.0084 | AI261: =CHOOSE(m_identity,East!AI261, London!AI261, 'North West'!AI261, 'West Midlands'!AI261, Northern!AI261, Scotland!AI261, Southern!AI261, 'Wales & West'!AI261) -> 0.0084 | AJ261: =CHOOSE(m_identity,East!AJ261, London!AJ261, 'North West'!AJ261, 'West Midlands'!AJ261, Northern!AJ261, Scotland!AJ261, Southern!AJ261, 'Wales & West'!AJ261) -> 0.0084 | AK261: =CHOOSE(m_identity,East!AK261, London!AK261, 'North West'!AK261, 'West Midlands'!AK261, Northern!AK261, Scotland!AK261, Southern!AK261, 'Wales & West'!AK261) -> 0.0084 | AL261: =CHOOSE(m_identity,East!AL261, London!AL261, 'North West'!AL261, 'West Midlands'!AL261, Northern!AL261, Scotland!AL261, Southern!AL261, 'Wales & West'!AL261) -> 0.0084 | AM261: =CHOOSE(m_identity,East!AM261, London!AM261, 'North West'!AM261, 'West Midlands'!AM261, Northern!AM261, Scotland!AM261, Southern!AM261, 'Wales & West'!AM261) -> 0.0084 | AN261: =CHOOSE(m_identity,East!AN261, London!AN261, 'North West'!AN261, 'West Midlands'!AN261, Northern!AN261, Scotland!AN261, Southern!AN261, 'Wales & West'!AN261) -> 0.0084 | AO261: =CHOOSE(m_identity,East!AO261, London!AO261, 'North West'!AO261, 'West Midlands'!AO261, Northern!AO261, Scotland!AO261, Southern!AO261, 'Wales & West'!AO261) -> 0.0084
E262: Non-Load Related - other | G262: % | AH262: =CHOOSE(m_identity,East!AH262, London!AH262, 'North West'!AH262, 'West Midlands'!AH262, Northern!AH262, Scotland!AH262, Southern!AH262, 'Wales & West'!AH262) -> 0.0861679023 | AI262: =CHOOSE(m_identity,East!AI262, London!AI262, 'North West'!AI262, 'West Midlands'!AI262, Northern!AI262, Scotland!AI262, Southern!AI262, 'Wales & West'!AI262) -> 0.0861679023 | AJ262: =CHOOSE(m_identity,East!AJ262, London!AJ262, 'North West'!AJ262, 'West Midlands'!AJ262, Northern!AJ262, Scotland!AJ262, Southern!AJ262, 'Wales & West'!AJ262) -> 0.0861679023 | AK262: =CHOOSE(m_identity,East!AK262, London!AK262, 'North West'!AK262, 'West Midlands'!AK262, Northern!AK262, Scotland!AK262, Southern!AK262, 'Wales & West'!AK262) -> 0.0861679023 | AL262: =CHOOSE(m_identity,East!AL262, London!AL262, 'North West'!AL262, 'West Midlands'!AL262, Northern!AL262, Scotland!AL262, Southern!AL262, 'Wales & West'!AL262) -> 0.0861679023 | AM262: =CHOOSE(m_identity,East!AM262, London!AM262, 'North West'!AM262, 'West Midlands'!AM262, Northern!AM262, Scotland!AM262, Southern!AM262, 'Wales & West'!AM262) -> 0.0861679023 | AN262: =CHOOSE(m_identity,East!AN262, London!AN262, 'North West'!AN262, 'West Midlands'!AN262, Northern!AN262, Scotland!AN262, Southern!AN262, 'Wales & West'!AN262) -> 0.0861679023 | AO262: =CHOOSE(m_identity,East!AO262, London!AO262, 'North West'!AO262, 'West Midlands'!AO262, Northern!AO262, Scotland!AO262, Southern!AO262, 'Wales & West'!AO262) -> 0.0861679023
E263: Opex | G263: % | AH263: =CHOOSE(m_identity,East!AH263, London!AH263, 'North West'!AH263, 'West Midlands'!AH263, Northern!AH263, Scotland!AH263, Southern!AH263, 'Wales & West'!AH263) -> 0 | AI263: =CHOOSE(m_identity,East!AI263, London!AI263, 'North West'!AI263, 'West Midlands'!AI263, Northern!AI263, Scotland!AI263, Southern!AI263, 'Wales & West'!AI263) -> 0 | AJ263: =CHOOSE(m_identity,East!AJ263, London!AJ263, 'North West'!AJ263, 'West Midlands'!AJ263, Northern!AJ263, Scotland!AJ263, Southern!AJ263, 'Wales & West'!AJ263) -> 0 | AK263: =CHOOSE(m_identity,East!AK263, London!AK263, 'North West'!AK263, 'West Midlands'!AK263, Northern!AK263, Scotland!AK263, Southern!AK263, 'Wales & West'!AK263) -> 0 | AL263: =CHOOSE(m_identity,East!AL263, London!AL263, 'North West'!AL263, 'West Midlands'!AL263, Northern!AL263, Scotland!AL263, Southern!AL263, 'Wales & West'!AL263) -> 0 | AM263: =CHOOSE(m_identity,East!AM263, London!AM263, 'North West'!AM263, 'West Midlands'!AM263, Northern!AM263, Scotland!AM263, Southern!AM263, 'Wales & West'!AM263) -> 0 | AN263: =CHOOSE(m_identity,East!AN263, London!AN263, 'North West'!AN263, 'West Midlands'!AN263, Northern!AN263, Scotland!AN263, Southern!AN263, 'Wales & West'!AN263) -> 0 | AO263: =CHOOSE(m_identity,East!AO263, London!AO263, 'North West'!AO263, 'West Midlands'!AO263, Northern!AO263, Scotland!AO263, Southern!AO263, 'Wales & West'!AO263) -> 0
E264: Repex | G264: % | AH264: =CHOOSE(m_identity,East!AH264, London!AH264, 'North West'!AH264, 'West Midlands'!AH264, Northern!AH264, Scotland!AH264, Southern!AH264, 'Wales & West'!AH264) -> 0 | AI264: =CHOOSE(m_identity,East!AI264, London!AI264, 'North West'!AI264, 'West Midlands'!AI264, Northern!AI264, Scotland!AI264, Southern!AI264, 'Wales & West'!AI264) -> 0 | AJ264: =CHOOSE(m_identity,East!AJ264, London!AJ264, 'North West'!AJ264, 'West Midlands'!AJ264, Northern!AJ264, Scotland!AJ264, Southern!AJ264, 'Wales & West'!AJ264) -> 0 | AK264: =CHOOSE(m_identity,East!AK264, London!AK264, 'North West'!AK264, 'West Midlands'!AK264, Northern!AK264, Scotland!AK264, Southern!AK264, 'Wales & West'!AK264) -> 0 | AL264: =CHOOSE(m_identity,East!AL264, London!AL264, 'North West'!AL264, 'West Midlands'!AL264, Northern!AL264, Scotland!AL264, Southern!AL264, 'Wales & West'!AL264) -> 0 | AM264: =CHOOSE(m_identity,East!AM264, London!AM264, 'North West'!AM264, 'West Midlands'!AM264, Northern!AM264, Scotland!AM264, Southern!AM264, 'Wales & West'!AM264) -> 0 | AN264: =CHOOSE(m_identity,East!AN264, London!AN264, 'North West'!AN264, 'West Midlands'!AN264, Northern!AN264, Scotland!AN264, Southern!AN264, 'Wales & West'!AN264) -> 0 | AO264: =CHOOSE(m_identity,East!AO264, London!AO264, 'North West'!AO264, 'West Midlands'!AO264, Northern!AO264, Scotland!AO264, Southern!AO264, 'Wales & West'!AO264) -> 0
D266: Allocation check
D267: Note: All categories should equal 100%
E269: Load Related | G269: % | AH269: =AH233+AH240+AH247+AH254+AH261 -> 1 | AI269: 1 | AJ269: 1 | AK269: 1 | AL269: 1 | AM269: 1 | AN269: 1 | AO269: 1
E270: Non-Load Related - other | G270: % | AH270: 1 | AI270: 1 | AJ270: 1 | AK270: 1 | AL270: 1 | AM270: 1 | AN270: 1 | AO270: 1
E271: Opex | G271: % | AH271: 1 | AI271: 1 | AJ271: 1 | AK271: 1 | AL271: 1 | AM271: 1 | AN271: 1 | AO271: 1
E272: Repex | G272: % | AH272: 1 | AI272: 1 | AJ272: 1 | AK272: 1 | AL272: 1 | AM272: 1 | AN272: 1 | AO272: 1
D274: Inputs for statutory depreciation
E276: Statutory depreciation as per BPDT | G276: £m 09/10 prices | AH276: =CHOOSE(m_identity,East!AH276, London!AH276, 'North West'!AH276, 'West Midlands'!AH276, Northern!AH276, Scotland!AH276, Southern!AH276, 'Wales & West'!AH276) -> 65.29544345 | AI276: =CHOOSE(m_identity,East!AI276, London!AI276, 'North West'!AI276, 'West Midlands'!AI276, Northern!AI276, Scotland!AI276, Southern!AI276, 'Wales & West'!AI276) -> 62.92503432 | AJ276: =CHOOSE(m_identity,East!AJ276, London!AJ276, 'North West'!AJ276, 'West Midlands'!AJ276, Northern!AJ276, Scotland!AJ276, Southern!AJ276, 'Wales & West'!AJ276) -> 60.74135368 | AK276: =CHOOSE(m_identity,East!AK276, London!AK276, 'North West'!AK276, 'West Midlands'!AK276, Northern!AK276, Scotland!AK276, Southern!AK276, 'Wales & West'!AK276) -> 62.10526243 | AL276: =CHOOSE(m_identity,East!AL276, London!AL276, 'North West'!AL276, 'West Midlands'!AL276, Northern!AL276, Scotland!AL276, Southern!AL276, 'Wales & West'!AL276) -> 63.51236235 | AM276: =CHOOSE(m_identity,East!AM276, London!AM276, 'North West'!AM276, 'West Midlands'!AM276, Northern!AM276, Scotland!AM276, Southern!AM276, 'Wales & West'!AM276) -> 64.90113635 | AN276: =CHOOSE(m_identity,East!AN276, London!AN276, 'North West'!AN276, 'West Midlands'!AN276, Northern!AN276, Scotland!AN276, Southern!AN276, 'Wales & West'!AN276) -> 66.17746937 | AO276: =CHOOSE(m_identity,East!AO276, London!AO276, 'North West'!AO276, 'West Midlands'!AO276, Northern!AO276, Scotland!AO276, Southern!AO276, 'Wales & West'!AO276) -> 67.48679581
E277: Capex as per BPDT | G277: £m 09/10 prices | AH277: =CHOOSE(m_identity,East!AH277, London!AH277, 'North West'!AH277, 'West Midlands'!AH277, Northern!AH277, Scotland!AH277, Southern!AH277, 'Wales & West'!AH277) -> 64.2809658 | AI277: =CHOOSE(m_identity,East!AI277, London!AI277, 'North West'!AI277, 'West Midlands'!AI277, Northern!AI277, Scotland!AI277, Southern!AI277, 'Wales & West'!AI277) -> 62.05603319 | AJ277: =CHOOSE(m_identity,East!AJ277, London!AJ277, 'North West'!AJ277, 'West Midlands'!AJ277, Northern!AJ277, Scotland!AJ277, Southern!AJ277, 'Wales & West'!AJ277) -> 48.02202988 | AK277: =CHOOSE(m_identity,East!AK277, London!AK277, 'North West'!AK277, 'West Midlands'!AK277, Northern!AK277, Scotland!AK277, Southern!AK277, 'Wales & West'!AK277) -> 47.56409258 | AL277: =CHOOSE(m_identity,East!AL277, London!AL277, 'North West'!AL277, 'West Midlands'!AL277, Northern!AL277, Scotland!AL277, Southern!AL277, 'Wales & West'!AL277) -> 46.09073019 | AM277: =CHOOSE(m_identity,East!AM277, London!AM277, 'North West'!AM277, 'West Midlands'!AM277, Northern!AM277, Scotland!AM277, Southern!AM277, 'Wales & West'!AM277) -> 44.46737075 | AN277: =CHOOSE(m_identity,East!AN277, London!AN277, 'North West'!AN277, 'West Midlands'!AN277, Northern!AN277, Scotland!AN277, Southern!AN277, 'Wales & West'!AN277) -> 47.1988411 | AO277: =CHOOSE(m_identity,East!AO277, London!AO277, 'North West'!AO277, 'West Midlands'!AO277, Northern!AO277, Scotland!AO277, Southern!AO277, 'Wales & West'!AO277) -> 49.5968073
E278: Repex as per BPDT | G278: £m 09/10 prices | AH278: =CHOOSE(m_identity,East!AH278, London!AH278, 'North West'!AH278, 'West Midlands'!AH278, Northern!AH278, Scotland!AH278, Southern!AH278, 'Wales & West'!AH278) -> 100.7927648 | AI278: =CHOOSE(m_identity,East!AI278, London!AI278, 'North West'!AI278, 'West Midlands'!AI278, Northern!AI278, Scotland!AI278, Southern!AI278, 'Wales & West'!AI278) -> 102.9770094 | AJ278: =CHOOSE(m_identity,East!AJ278, London!AJ278, 'North West'!AJ278, 'West Midlands'!AJ278, Northern!AJ278, Scotland!AJ278, Southern!AJ278, 'Wales & West'!AJ278) -> 108.4097682 | AK278: =CHOOSE(m_identity,East!AK278, London!AK278, 'North West'!AK278, 'West Midlands'!AK278, Northern!AK278, Scotland!AK278, Southern!AK278, 'Wales & West'!AK278) -> 107.8077853 | AL278: =CHOOSE(m_identity,East!AL278, London!AL278, 'North West'!AL278, 'West Midlands'!AL278, Northern!AL278, Scotland!AL278, Southern!AL278, 'Wales & West'!AL278) -> 107.4124848 | AM278: =CHOOSE(m_identity,East!AM278, London!AM278, 'North West'!AM278, 'West Midlands'!AM278, Northern!AM278, Scotland!AM278, Southern!AM278, 'Wales & West'!AM278) -> 105.2524919 | AN278: =CHOOSE(m_identity,East!AN278, London!AN278, 'North West'!AN278, 'West Midlands'!AN278, Northern!AN278, Scotland!AN278, Southern!AN278, 'Wales & West'!AN278) -> 100.8823718 | AO278: =CHOOSE(m_identity,East!AO278, London!AO278, 'North West'!AO278, 'West Midlands'!AO278, Northern!AO278, Scotland!AO278, Southern!AO278, 'Wales & West'!AO278) -> 93.29143438
... 4 more rows

Sheet Totex
A1: Totex
B2: =UserInterface!G24 -> Wales & West
E3: Parameter | G3: Units | I3: Constant | AH3: Annual values
E4: PCFM year ending | I4: =UserInterface!$G$17 -> 2014-03-31 | K4: 1991-03-31 | L4: 1992-03-31 | M4: 1993-03-31 | N4: 1994-03-31 | O4: 1995-03-31 | P4: 1996-03-31 | Q4: 1997-03-31 | R4: 1998-03-31 | S4: 1999-03-31 | T4: 2000-03-31 | U4: 2001-03-31 | V4: 2002-03-31 | W4: 2003-03-31 | X4: 2004-03-31 | Y4: 2005-03-31 | Z4: 2006-03-31 | AA4: 2007-03-31 | AB4: 2008-03-31 | AC4: 2009-03-31 | AD4: 2010-03-31 | AE4: 2011-03-31 | AF4: 2012-03-31 | AG4: 2013-03-31 | AH4: 2014-03-31 | AI4: 2015-03-31 | AJ4: 2016-03-31 | AK4: 2017-03-31 | AL4: 2018-03-31 | AM4: 2019-03-31 | AN4: 2020-03-31 | AO4: 2021-03-31
B6: Totex
C8: Allowed totex aggregated by sub-category
C9: Note: Totex is the sum of a number of cost categories, with all totex allowances falling under one (or more) of them. They have significance in the model as each sub-category can have its own set of tax pool allocation rules.
D11: Non-variant allowances
D12: Note: These values are set at final proposals and are not updated during the price control
E14: Non-variant allowed load related capex | G14: £m 09/10 prices | AH14: =Input!AH81 -> 30.49594183 | AI14: =Input!AI81 -> 30.60620871 | AJ14: =Input!AJ81 -> 29.12718573 | AK14: =Input!AK81 -> 30.1769862 | AL14: =Input!AL81 -> 30.60242656 | AM14: =Input!AM81 -> 29.18152352 | AN14: =Input!AN81 -> 28.28179512 | AO14: =Input!AO81 -> 30.64045621
E15: Non-variant allowed non-load related capex - other | G15: £m 09/10 prices | AH15: =Input!AH82 -> 22.44310093 | AI15: =Input!AI82 -> 21.27641564 | AJ15: =Input!AJ82 -> 16.04170714 | AK15: =Input!AK82 -> 13.16274495 | AL15: =Input!AL82 -> 12.05347038 | AM15: =Input!AM82 -> 11.94741037 | AN15: =Input!AN82 -> 15.62915458 | AO15: =Input!AO82 -> 15.09644943
E16: Non-variant allowed controllable opex | G16: £m 09/10 prices | AH16: =Input!AH83 -> 83.44643796 | AI16: =Input!AI83 -> 82.57159507 | AJ16: =Input!AJ83 -> 85.62711485 | AK16: =Input!AK83 -> 85.16316402 | AL16: =Input!AL83 -> 84.0567052 | AM16: =Input!AM83 -> 85.21608499 | AN16: =Input!AN83 -> 85.38661312 | AO16: =Input!AO83 -> 83.71330427
E17: Non-variant allowed repex | G17: £m 09/10 prices | AH17: =Input!AH84 -> 78.32060746 | AI17: =Input!AI84 -> 78.26315079 | AJ17: =Input!AJ84 -> 78.51922743 | AK17: =Input!AK84 -> 77.99154726 | AL17: =Input!AL84 -> 79.03673356 | AM17: =Input!AM84 -> 78.98831253 | AN17: =Input!AN84 -> 78.93377113 | AO17: =Input!AO84 -> 77.61622134
D19: Variant
D20: Note: Licence conditions may allow for non-baseline allowances to be granted. These are added to the baseline to generate the allowed sub-categories and thereby the overall allowed totex.
E22: =Input!E142 -> Variant allowed load related capex | G22: =Input!G142 -> £m 09/10 prices | AH22: =Input!AH142 -> 1.333933847 | AI22: =Input!AI142 -> 1.332548876 | AJ22: =Input!AJ142 -> 1.318333825 | AK22: =Input!AK142 -> 1.304366469 | AL22: =Input!AL142 -> 1.028329436 | AM22: =Input!AM142 -> 1.01755104 | AN22: =Input!AN142 -> 1.007010207 | AO22: =Input!AO142 -> 0.9965976327
E23: =Input!E143 -> Variant allowed non-load related capex - other | G23: =Input!G143 -> £m 09/10 prices | AH23: =Input!AH143 -> 0 | AI23: =Input!AI143 -> 0 | AJ23: =Input!AJ143 -> 0 | AK23: =Input!AK143 -> 0 | AL23: =Input!AL143 -> 0 | AM23: =Input!AM143 -> 0 | AN23: =Input!AN143 -> 0 | AO23: =Input!AO143 -> 0
E24: =Input!E144 -> Variant allowed controllable opex | G24: =Input!G144 -> £m 09/10 prices | AH24: =Input!AH144 -> 0.1601457509 | AI24: =Input!AI144 -> 0.1518359223 | AJ24: =Input!AJ144 -> 0.1449801888 | AK24: =Input!AK144 -> 0.1388262807 | AL24: =Input!AL144 -> 0.1346124035 | AM24: =Input!AM144 -> 0.13029567 | AN24: =Input!AN144 -> 0.126800779 | AO24: =Input!AO144 -> 0.1234779384
E25: =Input!E145 -> Variant allowed repex | G25: =Input!G145 -> £m 09/10 prices | AH25: =Input!AH145 -> 0.3469824602 | AI25: =Input!AI145 -> 0.3289778316 | AJ25: =Input!AJ145 -> 0.3141237424 | AK25: =Input!AK145 -> 0.3007902749 | AL25: =Input!AL145 -> 0.2916602076 | AM25: =Input!AM145 -> 0.282307285 | AN25: =Input!AN145 -> 0.2747350212 | AO25: =Input!AO145 -> 0.2675355332
D27: Allowance
D28: Note: "Allowed totex" is exported to be used in the TIM calculation. The allowed totex sub-categories are used below to create forecast actuals for the tax calculation and the TIM calculation when actuals are not yet available.
E30: Allowed load related capex | G30: £m 09/10 prices | AH30: =AH14 + AH22 -> 31.82987568 | AI30: 31.93875758 | AJ30: 30.44551955 | AK30: 31.48135267 | AL30: 31.630756 | AM30: 30.19907456 | AN30: 29.28880533 | AO30: 31.63705384
E31: Allowed non-load related capex - other | G31: £m 09/10 prices | AH31: 22.44310093 | AI31: 21.27641564 | AJ31: 16.04170714 | AK31: 13.16274495 | AL31: 12.05347038 | AM31: 11.94741037 | AN31: 15.62915458 | AO31: 15.09644943
E32: Allowed controllable opex | G32: £m 09/10 prices | AH32: 83.60658371 | AI32: 82.72343099 | AJ32: 85.77209504 | AK32: 85.3019903 | AL32: 84.1913176 | AM32: 85.34638066 | AN32: 85.5134139 | AO32: 83.8367822
E33: Allowed repex | G33: £m 09/10 prices | AH33: 78.66758992 | AI33: 78.59212862 | AJ33: 78.83335117 | AK33: 78.29233753 | AL33: 79.32839377 | AM33: 79.27061981 | AN33: 79.20850616 | AO33: 77.88375687
E34: Allowed totex | G34: £m 09/10 prices | AH34: =SUM(AH30:AH33) -> 216.5471502 | AI34: 214.5307328 | AJ34: 211.0926729 | AK34: 208.2384255 | AL34: 207.2039377 | AM34: 206.7634854 | AN34: 209.63988 | AO34: 208.4540423
C36: Actual totex
D38: Source of actuals
D39: Note: The model assumes that there is a time lag from year t until actual expenditure data becomes available for the model. After the lag, actual expenditure inputs are used. Up to that point the model generates a forecast actual expenditure.
D40: When required in the model, forecasts assume that actuals are equal to their corresponding allowance.
D41: In a year where actual totex is assumed to be available, values must be inputted to the model as it will not generate a forecast and the empty input cell will be read as an actual spend of zero.
E43: Years from t until normal reporting of actual costs | G43: years | I43: =Input!I45 -> 2
E44: Input actuals used | G44: text | AH44: =YEAR($I$4) >= YEAR(AH$4) + $I43 -> FALSE | AI44: FALSE | AJ44: FALSE | AK44: FALSE | AL44: FALSE | AM44: FALSE | AN44: FALSE | AO44: FALSE
E45: Forecast actuals generated from allowances | G45: text | AH45: =YEAR($I$4) < YEAR(AH$4) + $I43 -> TRUE | AI45: TRUE | AJ45: TRUE | AK45: TRUE | AL45: TRUE | AM45: TRUE | AN45: TRUE | AO45: TRUE
D47: Actual totex from cost reporting processes and final proposals
E49: Actual load related capex | G49: £m 09/10 prices | AH49: =IF(AH$44, Input!AH149, 0) -> 0 | AI49: =IF(AI$44, Input!AI149, 0) -> 0 | AJ49: =IF(AJ$44, Input!AJ149, 0) -> 0 | AK49: =IF(AK$44, Input!AK149, 0) -> 0 | AL49: =IF(AL$44, Input!AL149, 0) -> 0 | AM49: =IF(AM$44, Input!AM149, 0) -> 0 | AN49: =IF(AN$44, Input!AN149, 0) -> 0 | AO49: =IF(AO$44, Input!AO149, 0) -> 0
E50: Actual non-load related capex - other | G50: £m 09/10 prices | AH50: =IF(AH$44, Input!AH150, 0) -> 0 | AI50: =IF(AI$44, Input!AI150, 0) -> 0 | AJ50: =IF(AJ$44, Input!AJ150, 0) -> 0 | AK50: =IF(AK$44, Input!AK150, 0) -> 0 | AL50: =IF(AL$44, Input!AL150, 0) -> 0 | AM50: =IF(AM$44, Input!AM150, 0) -> 0 | AN50: =IF(AN$44, Input!AN150, 0) -> 0 | AO50: =IF(AO$44, Input!AO150, 0) -> 0
E51: Actual controllable opex | G51: £m 09/10 prices | AH51: =IF(AH$44, Input!AH151, 0) -> 0 | AI51: =IF(AI$44, Input!AI151, 0) -> 0 | AJ51: =IF(AJ$44, Input!AJ151, 0) -> 0 | AK51: =IF(AK$44, Input!AK151, 0) -> 0 | AL51: =IF(AL$44, Input!AL151, 0) -> 0 | AM51: =IF(AM$44, Input!AM151, 0) -> 0 | AN51: =IF(AN$44, Input!AN151, 0) -> 0 | AO51: =IF(AO$44, Input!AO151, 0) -> 0
E52: Actual repex | G52: £m 09/10 prices | AH52: =IF(AH$44, Input!AH152, 0) -> 0 | AI52: =IF(AI$44, Input!AI152, 0) -> 0 | AJ52: =IF(AJ$44, Input!AJ152, 0) -> 0 | AK52: =IF(AK$44, Input!AK152, 0) -> 0 | AL52: =IF(AL$44, Input!AL152, 0) -> 0 | AM52: =IF(AM$44, Input!AM152, 0) -> 0 | AN52: =IF(AN$44, Input!AN152, 0) -> 0 | AO52: =IF(AO$44, Input!AO152, 0) -> 0
D55: Forecast totex from new allowances
E57: Forecast actual load related capex | G57: £m 09/10 prices | AH57: =IF(AH$45, AH30, 0) -> 31.82987568 | AI57: 31.93875758 | AJ57: 30.44551955 | AK57: 31.48135267 | AL57: 31.630756 | AM57: 30.19907456 | AN57: 29.28880533 | AO57: 31.63705384
E58: Forecast actual non-load related capex - other | G58: £m 09/10 prices | AH58: 22.44310093 | AI58: 21.27641564 | AJ58: 16.04170714 | AK58: 13.16274495 | AL58: 12.05347038 | AM58: 11.94741037 | AN58: 15.62915458 | AO58: 15.09644943
E59: Forecast actual controllable opex | G59: £m 09/10 prices | AH59: 83.60658371 | AI59: 82.72343099 | AJ59: 85.77209504 | AK59: 85.3019903 | AL59: 84.1913176 | AM59: 85.34638066 | AN59: 85.5134139 | AO59: 83.8367822
E60: Forecast actual repex | G60: £m 09/10 prices | AH60: 78.66758992 | AI60: 78.59212862 | AJ60: 78.83335117 | AK60: 78.29233753 | AL60: 79.32839377 | AM60: 79.27061981 | AN60: 79.20850616 | AO60: 77.88375687
D62: Totex applied
D63: Note: Actuals are exported both to identify performance against the allowance and to generate writing down allowances used in the tax calculation.
E65: Actual load related capex | G65: £m 09/10 prices | AH65: =AH49 + AH57 -> 31.82987568 | AI65: 31.93875758 | AJ65: 30.44551955 | AK65: 31.48135267 | AL65: 31.630756 | AM65: 30.19907456 | AN65: 29.28880533 | AO65: 31.63705384
E66: Actual non-load related capex - other | G66: £m 09/10 prices | AH66: 22.44310093 | AI66: 21.27641564 | AJ66: 16.04170714 | AK66: 13.16274495 | AL66: 12.05347038 | AM66: 11.94741037 | AN66: 15.62915458 | AO66: 15.09644943
E67: Actual controllable opex | G67: £m 09/10 prices | AH67: 83.60658371 | AI67: 82.72343099 | AJ67: 85.77209504 | AK67: 85.3019903 | AL67: 84.1913176 | AM67: 85.34638066 | AN67: 85.5134139 | AO67: 83.8367822
E68: Actual repex | G68: £m 09/10 prices | AH68: 78.66758992 | AI68: 78.59212862 | AJ68: 78.83335117 | AK68: 78.29233753 | AL68: 79.32839377 | AM68: 79.27061981 | AN68: 79.20850616 | AO68: 77.88375687
E69: Actual totex | G69: £m 09/10 prices | AH69: =SUM(AH65:AH68) -> 216.5471502 | AI69: 214.5307328 | AJ69: 211.0926729 | AK69: 208.2384255 | AL69: 207.2039377 | AM69: 206.7634854 | AN69: 209.63988 | AO69: 208.4540423
B71: End of sheet

Sheet TIM
A1: Totex Incentive Mechanism (TIM)
B2: =UserInterface!G24 -> Wales & West
E3: Parameter | G3: Units | I3: Constant | AH3: Annual values
E4: PCFM year ending | I4: =UserInterface!$G$17 -> 2014-03-31 | K4: 1991-03-31 | L4: 1992-03-31 | M4: 1993-03-31 | N4: 1994-03-31 | O4: 1995-03-31 | P4: 1996-03-31 | Q4: 1997-03-31 | R4: 1998-03-31 | S4: 1999-03-31 | T4: 2000-03-31 | U4: 2001-03-31 | V4: 2002-03-31 | W4: 2003-03-31 | X4: 2004-03-31 | Y4: 2005-03-31 | Z4: 2006-03-31 | AA4: 2007-03-31 | AB4: 2008-03-31 | AC4: 2009-03-31 | AD4: 2010-03-31 | AE4: 2011-03-31 | AF4: 2012-03-31 | AG4: 2013-03-31 | AH4: 2014-03-31 | AI4: 2015-03-31 | AJ4: 2016-03-31 | AK4: 2017-03-31 | AL4: 2018-03-31 | AM4: 2019-03-31 | AN4: 2020-03-31 | AO4: 2021-03-31
B6: Efficiency incentive
C8: Incentive strength
E10: Incentive rate (slope) | G10: scalar | I10: =Input!I50 -> -0.001666666667
E11: Incentive rate (intercept) | G11: scalar | I11: =Input!I51 -> 0.8166666667
E12: Group rate | G12: ratio | I12: =Input!I63/Input!I62*100 -> 110.9852887
E14: Incentive strength | G14: % | I14: =ROUND(I11+I10*I12,4) -> 0.6317
C16: Additional income
E18: Ofgem view | G18: % | I18: =Input!I54 -> 0.75
E19: Operator view | G19: % | I19: =Input!I55 -> 0.25
E21: Ofgem view of group price control totex | G21: £m 09/10 prices | I21: =Input!I62 -> 1637.49932
E23: Additional income (intercept) | G23: scalar | I23: =Input!I52 -> 14.58333333
E24: First order parameter | G24: % | I24: =(-(I10 * I18*100) - (I11 * I19)) -> -0.07916666667
E25: Second order parameter | G25: % | I25: =(0.5-I19) * I10 -> -0.0004166666667
E26: Additional income scalar | G26: % | I26: =(I23+I24*(I12)+I25*(I12)^2) -> 0.6646086763
E28: Additional income at group level | G28: £m 09/10 prices | I28: =I21*I26/100 -> 10.88296255
E30: Forecast licensee totex | G30: £m 09/10 prices | I30: =Input!I59*Input!$I$54+Input!I60*Input!$I$55 -> 1682.470327
E31: Forecast group totex | G31: £m 09/10 prices | I31: =Input!I62*I18 + Input!I63*I19 -> 1682.470327
E32: Percentage of group totex at licensee level | G32: % | I32: =I30 / I31 -> 1
B34: Efficiency incentive
C36: Post-TIM overspend (underspend)
C37: Note: Totex overspend (underspend) is identified and subject to the "efficiency incentive rate." Repex is separated at this stage in order to apply the repex capitalisation rate to any overspend (underspend)
D39: Totex excluding repex
E41: Actual totex excluding repex | G41: £m 09/10 prices | AH41: =Totex!AH69 - Totex!AH68 -> 137.8795603 | AI41: =Totex!AI69 - Totex!AI68 -> 135.9386042 | AJ41: =Totex!AJ69 - Totex!AJ68 -> 132.2593217 | AK41: =Totex!AK69 - Totex!AK68 -> 129.9460879 | AL41: =Totex!AL69 - Totex!AL68 -> 127.875544 | AM41: =Totex!AM69 - Totex!AM68 -> 127.4928656 | AN41: =Totex!AN69 - Totex!AN68 -> 130.4313738 | AO41: =Totex!AO69 - Totex!AO68 -> 130.5702855
E42: Less allowed totex excluding repex | G42: £m 09/10 prices | AH42: =-Totex!AH34 + Totex!AH33 -> -137.8795603 | AI42: =-Totex!AI34 + Totex!AI33 -> -135.9386042 | AJ42: =-Totex!AJ34 + Totex!AJ33 -> -132.2593217 | AK42: =-Totex!AK34 + Totex!AK33 -> -129.9460879 | AL42: =-Totex!AL34 + Totex!AL33 -> -127.875544 | AM42: =-Totex!AM34 + Totex!AM33 -> -127.4928656 | AN42: =-Totex!AN34 + Totex!AN33 -> -130.4313738 | AO42: =-Totex!AO34 + Totex!AO33 -> -130.5702855
E43: Pre-TIM totex excluding repex overspend (underspend) | G43: £m 09/10 prices | AH43: =SUM(AH41:AH42) -> 0 | AI43: 0 | AJ43: 0 | AK43: 0 | AL43: 0 | AM43: 0 | AN43: 0 | AO43: 0
E45: Funding Adjustment Rate (often referred to as 'sharing factor') | G45: % | AH45: =(1 - $I$14) -> 0.3683 | AI45: =(1 - $I$14) -> 0.3683 | AJ45: 0.3683 | AK45: 0.3683 | AL45: 0.3683 | AM45: 0.3683 | AN45: 0.3683 | AO45: 0.3683
E47: Post-TIM totex excluding repex overspend (underspend) | G47: £m 09/10 prices | AH47: =AH$45 * AH43 -> 0 | AI47: =AI$45 * AI43 -> 0 | AJ47: =AJ$45 * AJ43 -> 0 | AK47: 0 | AL47: 0 | AM47: 0 | AN47: 0 | AO47: 0
D49: Repex
E51: Actual repex | G51: £m 09/10 prices | AH51: =Totex!AH68 -> 78.66758992 | AI51: =Totex!AI68 -> 78.59212862 | AJ51: =Totex!AJ68 -> 78.83335117 | AK51: =Totex!AK68 -> 78.29233753 | AL51: =Totex!AL68 -> 79.32839377 | AM51: =Totex!AM68 -> 79.27061981 | AN51: =Totex!AN68 -> 79.20850616 | AO51: =Totex!AO68 -> 77.88375687
E52: Less allowed repex | G52: £m 09/10 prices | AH52: =-Totex!AH33 -> -78.66758992 | AI52: =-Totex!AI33 -> -78.59212862 | AJ52: =-Totex!AJ33 -> -78.83335117 | AK52: =-Totex!AK33 -> -78.29233753 | AL52: =-Totex!AL33 -> -79.32839377 | AM52: =-Totex!AM33 -> -79.27061981 | AN52: =-Totex!AN33 -> -79.20850616 | AO52: =-Totex!AO33 -> -77.88375687
E53: Pre-TIM repex overspend (underspend) | G53: £m 09/10 prices | AH53: =SUM(AH51:AH52) -> 0 | AI53: 0 | AJ53: 0 | AK53: 0 | AL53: 0 | AM53: 0 | AN53: 0 | AO53: 0
E55: Funding Adjustment Rate (often referred to as 'sharing factor') | G55: % | AH55: =(1 - $I$14) -> 0.3683 | AI55: =(1 - $I$14) -> 0.3683 | AJ55: 0.3683 | AK55: 0.3683 | AL55: 0.3683 | AM55: 0.3683 | AN55: 0.3683 | AO55: 0.3683
E57: Post-TIM repex overspend (underspend) | G57: £m 09/10 prices | AH57: =AH$55 * AH53 -> 0 | AI57: =AI$55 * AI53 -> 0 | AJ57: 0 | AK57: 0 | AL57: 0 | AM57: 0 | AN57: 0 | AO57: 0
C59: Post-TIM totex
C60: Note: "Post-TIM overspend (underspend)" is added to the allowed totex value to give the Post-TIM totex allowance to be split into fast and slow money.
D62: Totex excluding repex
E64: Allowed totex excluding repex | G64: £m 09/10 prices | AH64: =-AH42 -> 137.8795603 | AI64: =-AI42 -> 135.9386042 | AJ64: 132.2593217 | AK64: 129.9460879 | AL64: 127.875544 | AM64: 127.4928656 | AN64: 130.4313738 | AO64: 130.5702855
E65: Post-TIM totex excluding repex overspend (underspend) | G65: £m 09/10 prices | AH65: =AH47 -> 0 | AI65: 0 | AJ65: 0 | AK65: 0 | AL65: 0 | AM65: 0 | AN65: 0 | AO65: 0
E66: Post-TIM totex excluding repex | G66: £m 09/10 prices | AH66: =SUM(AH64:AH65) -> 137.8795603 | AI66: 135.9386042 | AJ66: 132.2593217 | AK66: 129.9460879 | AL66: 127.875544 | AM66: 127.4928656 | AN66: 130.4313738 | AO66: 130.5702855
D68: Repex
E70: Allowed repex | G70: £m 09/10 prices | AH70: =-AH52 -> 78.66758992 | AI70: =-AI52 -> 78.59212862 | AJ70: 78.83335117 | AK70: 78.29233753 | AL70: 79.32839377 | AM70: 79.27061981 | AN70: 79.20850616 | AO70: 77.88375687
E71: Post-TIM repex overspend (underspend) | G71: £m 09/10 prices | AH71: =AH57 -> 0 | AI71: =AI57 -> 0 | AJ71: 0 | AK71: 0 | AL71: 0 | AM71: 0 | AN71: 0 | AO71: 0
E72: Post-TIM repex | G72: £m 09/10 prices | AH72: =SUM(AH70:AH71) -> 78.66758992 | AI72: =SUM(AI70:AI71) -> 78.59212862 | AJ72: 78.83335117 | AK72: 78.29233753 | AL72: 79.32839377 | AM72: 79.27061981 | AN72: 79.20850616 | AO72: 77.88375687
B74: Capitalisation
B75: Note: Post-TIM totex (excluding repex) and repex are allocated into "fast" and "slow" elements based on a pre-set percentage split:
B76: - "fast money " is exported to the "Revenue" sheet where it is included as an element of "recalculated base revenue;" and
B77: - "slow money " is exported to the "Depn" sheet where it is added to RAV. Slow money is recovered over the life of the RAV through regulatory depreciation and return allowances.
C79: Separate capitalisation
D81: Totex excluding repex
E83: Post-TIM totex excluding repex | G83: £m 09/10 prices | AH83: =AH66 -> 137.8795603 | AI83: 135.9386042 | AJ83: 132.2593217 | AK83: 129.9460879 | AL83: 127.875544 | AM83: 127.4928656 | AN83: 130.4313738 | AO83: 130.5702855
E84: Capitalised share of totex (excluding repex) | G84: % | AH84: =Input!AH47 -> 0.3578190447 | AI84: =Input!AI47 -> 0.3578190447 | AJ84: =Input!AJ47 -> 0.3578190447 | AK84: =Input!AK47 -> 0.3578190447 | AL84: =Input!AL47 -> 0.3578190447 | AM84: =Input!AM47 -> 0.3578190447 | AN84: =Input!AN47 -> 0.3578190447 | AO84: =Input!AO47 -> 0.3578190447
E85: Totex excluding repex fast pot expenditure | G85: £m 09/10 prices | AH85: =AH83-AH86 -> 88.54362777 | AI85: 87.29718272 | AJ85: 84.93441758 | AK85: 83.44890288 | AL85: 82.11923899 | AM85: 81.87349022 | AN85: 83.76054423 | AO85: 83.84975066
E86: Totex excluding repex slow pot expenditure | G86: £m 09/10 prices | AH86: =AH83 * AH84 -> 49.33593256 | AI86: =AI83 * AI84 -> 48.6414215 | AJ86: 47.32490416 | AK86: 46.49718504 | AL86: 45.75630499 | AM86: 45.61937537 | AN86: 46.67082957 | AO86: 46.72053481
D88: Repex
E90: Post-TIM repex | G90: £m 09/10 prices | AH90: =AH72 -> 78.66758992 | AI90: =AI72 -> 78.59212862 | AJ90: 78.83335117 | AK90: 78.29233753 | AL90: 79.32839377 | AM90: 79.27061981 | AN90: 79.20850616 | AO90: 77.88375687
E91: Capitalised share of repex | G91: % | AH91: =Input!AH48 -> 0.5 | AI91: =Input!AI48 -> 0.5714285714 | AJ91: =Input!AJ48 -> 0.6428571429 | AK91: =Input!AK48 -> 0.7142857143 | AL91: =Input!AL48 -> 0.7857142857 | AM91: =Input!AM48 -> 0.8571428571 | AN91: =Input!AN48 -> 0.9285714286 | AO91: =Input!AO48 -> 1
E92: Fast pot expenditure | G92: £m 09/10 prices | AH92: =AH90-AH93 -> 39.33379496 | AI92: =AI90-AI93 -> 33.68234084 | AJ92: 28.15476827 | AK92: 22.36923929 | AL92: 16.99894152 | AM92: 11.32437426 | AN92: 5.65775044 | AO92: 0
E93: Slow pot expenditure | G93: £m 09/10 prices | AH93: =AH90 * AH91 -> 39.33379496 | AI93: =AI90 * AI91 -> 44.90978778 | AJ93: 50.67858289 | AK93: 55.92309824 | AL93: 62.32945225 | AM93: 67.94624555 | AN93: 73.55075572 | AO93: 77.88375687
C95: Totex
E97: Fast pot expenditure | G97: £m 09/10 prices | AH97: =AH85 + AH92 -> 127.8774227 | AI97: =AI85 + AI92 -> 120.9795236 | AJ97: 113.0891859 | AK97: 105.8181422 | AL97: 99.11818052 | AM97: 93.19786447 | AN97: 89.41829467 | AO97: 83.84975066
E99: Slow pot expenditure | G99: £m 09/10 prices | AH99: =AH86 + AH93 -> 88.66972752 | AI99: =AI86 + AI93 -> 93.55120928 | AJ99: 98.00348705 | AK99: 102.4202833 | AL99: 108.0857572 | AM99: 113.5656209 | AN99: 120.2215853 | AO99: 124.6042917
B101: Additional income
B102: Note: The additional income lump sum is recovered across the price control and is matched to the profile of allowed totex set at final proposals.
E104: Additional income | G104: £m 09/10 prices | I104: =I28*I32 -> 10.88296255
E106: Original allowed totex (set at final proposals) | G106: £m 09/10 prices | AH106: =SUM(Input!AH81:AH84) -> 214.7060882 | AI106: =SUM(Input!AI81:AI84) -> 212.7173702 | AJ106: =SUM(Input!AJ81:AJ84) -> 209.3152352 | AK106: =SUM(Input!AK81:AK84) -> 206.4944424 | AL106: =SUM(Input!AL81:AL84) -> 205.7493357 | AM106: =SUM(Input!AM81:AM84) -> 205.3333314 | AN106: =SUM(Input!AN81:AN84) -> 208.231334 | AO106: =SUM(Input!AO81:AO84) -> 207.0664312
E107: Total allowed totex in price control (set at final proposals) | G107: £m 09/10 prices | I107: =SUM($AH106:$AO106) -> 1669.613568
E109: Share of additional income allowed in year | G109: % | AH109: =AH106 / $I107 -> 0.1285962766 | AI109: 0.1274051519 | AJ109: 0.1253674737 | AK109: 0.1236779853 | AL109: 0.1232317104 | AM109: 0.1229825484 | AN109: 0.1247182809 | AO109: 0.1240205729
E111: Additional income | G111: £m 09/10 prices | AH111: =$I104 * AH109 -> 1.399508463 | AI111: =$I104 * AI109 -> 1.386545497 | AJ111: 1.364369522 | AK111: 1.345982883 | AL111: 1.34112609 | AM111: 1.338414469 | AN111: 1.357304381 | AO111: 1.349711251
B113: End of sheet

Sheet DARTs
A1: Direct Allowed Revenue Terms (DARTs)
B2: =UserInterface!G24 -> Wales & West
E3: Parameter | G3: Units | I3: Constant | AH3: Annual values
E4: PCFM year ending | I4: =UserInterface!$G$17 -> 2014-03-31 | K4: 1991-03-31 | L4: 1992-03-31 | M4: 1993-03-31 | N4: 1994-03-31 | O4: 1995-03-31 | P4: 1996-03-31 | Q4: 1997-03-31 | R4: 1998-03-31 | S4: 1999-03-31 | T4: 2000-03-31 | U4: 2001-03-31 | V4: 2002-03-31 | W4: 2003-03-31 | X4: 2004-03-31 | Y4: 2005-03-31 | Z4: 2006-03-31 | AA4: 2007-03-31 | AB4: 2008-03-31 | AC4: 2009-03-31 | AD4: 2010-03-31 | AE4: 2011-03-31 | AF4: 2012-03-31 | AG4: 2013-03-31 | AH4: 2014-03-31 | AI4: 2015-03-31 | AJ4: 2016-03-31 | AK4: 2017-03-31 | AL4: 2018-03-31 | AM4: 2019-03-31 | AN4: 2020-03-31 | AO4: 2021-03-31
B6: Direct Allowed Revenue Terms (DARTs)
B7: Note: DARTs are allowances with minimal processing required in the model as they flow directly from input to revenue.
B8: They do however have different indirect impacts on equity issuance and tax. They are grouped here by their treatment type to aid common treatment of DARTs through the rest of the model.
B9: "Post-tax" allowances can be included in the tax calculation but "Pre-tax" allowances cannot.
B10: "Passthrough-style" allowances are treated as an equal revenue and cost. Therefore they have no net cash flow impact. "Revenue" allowances are just set as a revenue amount with any costs relating to them are dealt with elsewhere.
C12: Base Revenue
D14: No impact on net debt or tax
E16: Pension admin and PPF levy | G16: £m 09/10 prices | AH16: =Input!AH160 -> 0.8546697872 | AI16: =Input!AI160 -> 0.8350910823 | AJ16: =Input!AJ160 -> 0.8337716007 | AK16: =Input!AK160 -> 0.8084668301 | AL16: =Input!AL160 -> 0.8014792013 | AM16: =Input!AM160 -> 0.7867165827 | AN16: =Input!AN160 -> 0.7778855329 | AO16: =Input!AO160 -> 0.7703930538
E17: Established pension deficit repair | G17: £m 09/10 prices | AH17: =Input!AH161 -> 6.952397522 | AI17: =Input!AI161 -> 6.952397522 | AJ17: =Input!AJ161 -> 6.952397522 | AK17: =Input!AK161 -> 6.952397522 | AL17: =Input!AL161 -> 6.952397522 | AM17: =Input!AM161 -> 6.952397522 | AN17: =Input!AN161 -> 6.952397522 | AO17: =Input!AO161 -> 6.952397522
E18: Base Revenue DARTs with no impact on net debt or tax | G18: £m 09/10 prices | AH18: =SUM(AH16:AH17) -> 7.807067309 | AI18: 7.787488605 | AJ18: 7.786169123 | AK18: 7.760864352 | AL18: 7.753876724 | AM18: 7.739114105 | AN18: 7.730283055 | AO18: 7.722790576
D20: Impact net debt and tax
E22: Pension true-up from previous price controls | G22: £m 09/10 prices | AH22: =Input!AH163 -> 1.269250654 | AI22: =Input!AI163 -> 1.32310496 | AJ22: =Input!AJ163 -> 1.379244303 | AK22: =Input!AK163 -> 1.437765639 | AL22: =Input!AL163 -> 1.498770035 | AM22: =Input!AM163 -> 1.562362847 | AN22: =Input!AN163 -> 1.628653903 | AO22: =Input!AO163 -> 1.697757688
E23: Base Revenue DARTs impacting both net debt and tax | G23: £m 09/10 prices | AH23: =SUM(AH22:AH22) -> 1.269250654 | AI23: 1.32310496 | AJ23: 1.379244303 | AK23: 1.437765639 | AL23: 1.498770035 | AM23: 1.562362847 | AN23: 1.628653903 | AO23: 1.697757688
D25: Impact net debt, no impact on tax
E27: Revenue adjustment from previous controls | G27: £m 09/10 prices | AH27: =Input!AH167 -> 0.07637161229 | AI27: =Input!AI167 -> 0.07961205979 | AJ27: =Input!AJ167 -> 0.08298999949 | AK27: =Input!AK167 -> 0.08651126517 | AL27: =Input!AL167 -> 0.09018193815 | AM27: =Input!AM167 -> 0.09400835779 | AN27: =Input!AN167 -> 0.09799713241 | AO27: =Input!AO167 -> 0.1021551507
E28: Base Revenue DARTs impacting net debt but not tax | G28: £m 09/10 prices | AH28: =SUM(AH27) -> 0.07637161229 | AI28: =SUM(AI27) -> 0.07961205979 | AJ28: 0.08298999949 | AK28: 0.08651126517 | AL28: 0.09018193815 | AM28: 0.09400835779 | AN28: 0.09799713241 | AO28: 0.1021551507
C30: Directly-charged
D32: No impact on debt or tax
E34: Excluded services net position | G34: £m 09/10 prices | AH34: =Input!AH171 -> 0 | AI34: =Input!AI171 -> 0 | AJ34: =Input!AJ171 -> 0 | AK34: =Input!AK171 -> 0 | AL34: =Input!AL171 -> 0 | AM34: =Input!AM171 -> 0 | AN34: =Input!AN171 -> 0 | AO34: =Input!AO171 -> 0
E35: Directly-charged post-tax passthrough-style allowance | G35: £m 09/10 prices | AH35: =SUM(AH34) -> 0 | AI35: =SUM(AI34) -> 0 | AJ35: 0 | AK35: 0 | AL35: 0 | AM35: 0 | AN35: 0 | AO35: 0
C37: DART groups
C38: Note: The following subtotals are exported to the rest of the model allowing common treatment of DARTs after this stage.
C39: Excluded services are directly charged to users. It is treated here as a negative Base Revenue DART and positive Non Base Revenue DART. It is tax and cash flow neutral.
C40: "Net impact of DARTs on core net debt" removes the passthrough-style allowances from the cash flow, netting off their impact after being added to revenue.
C41: "Net DART impact on core tax calculation" removes passthrough and pre-tax allowances from the tax base such that only post-tax revenue allowances have an impact.
E43: Base revenue DARTs | G43: £m 09/10 prices | AH43: =AH18 + AH23 + AH28 - AH35 -> 9.152689576 | AI43: 9.190205624 | AJ43: 9.248403425 | AK43: 9.285141256 | AL43: 9.342828697 | AM43: 9.39548531 | AN43: 9.456934091 | AO43: 9.522703415
E45: Non Base Revenue DARTs | G45: £m 09/10 prices | AH45: =AH35 -> 0 | AI45: =AI35 -> 0 | AJ45: 0 | AK45: 0 | AL45: 0 | AM45: 0 | AN45: 0 | AO45: 0
E47: Net impact of DARTs on core net debt | G47: £m 09/10 prices | AH47: =- AH18 + AH35 -> -7.807067309 | AI47: -7.787488605 | AJ47: -7.786169123 | AK47: -7.760864352 | AL47: -7.753876724 | AM47: -7.739114105 | AN47: -7.730283055 | AO47: -7.722790576
E49: Net DART impact on core tax calculation | G49: £m 09/10 prices | AH49: =- AH18 - AH28 + AH35 -> -7.883438922 | AI49: -7.867100664 | AJ49: -7.869159122 | AK49: -7.847375618 | AL49: -7.844058662 | AM49: -7.833122463 | AN49: -7.828280188 | AO49: -7.824945727
B51: End of sheet

Sheet Depn
A1: Regulatory Depreciation
B2: =UserInterface!G24 -> Wales & West
E3: Parameter | G3: Units | I3: Constant | AH3: Annual values
E4: PCFM year ending | I4: =UserInterface!$G$17 -> 2014-03-31 | K4: 1991-03-31 | L4: 1992-03-31 | M4: 1993-03-31 | N4: 1994-03-31 | O4: 1995-03-31 | P4: 1996-03-31 | Q4: 1997-03-31 | R4: 1998-03-31 | S4: 1999-03-31 | T4: 2000-03-31 | U4: 2001-03-31 | V4: 2002-03-31 | W4: 2003-03-31 | X4: 2004-03-31 | Y4: 2005-03-31 | Z4: 2006-03-31 | AA4: 2007-03-31 | AB4: 2008-03-31 | AC4: 2009-03-31 | AD4: 2010-03-31 | AE4: 2011-03-31 | AF4: 2012-03-31 | AG4: 2013-03-31 | AH4: 2014-03-31 | AI4: 2015-03-31 | AJ4: 2016-03-31 | AK4: 2017-03-31 | AL4: 2018-03-31 | AM4: 2019-03-31 | AN4: 2020-03-31 | AO4: 2021-03-31
B6: Regulatory depreciation
C8: Net RAV additions (after disposals)
C9: Note: Additions to RAV are combined before feeding into the depreciation calculations. Disposals are treated as negative additions. Pre-RIIO values are used to build up the post-vesting RAV from vesting.
E11: Slow money | G11: £m 09/10 prices | AH11: =TIM!AH99 -> 88.66972752 | AI11: =TIM!AI99 -> 93.55120928 | AJ11: =TIM!AJ99 -> 98.00348705 | AK11: =TIM!AK99 -> 102.4202833 | AL11: =TIM!AL99 -> 108.0857572 | AM11: =TIM!AM99 -> 113.5656209 | AN11: =TIM!AN99 -> 120.2215853 | AO11: =TIM!AO99 -> 124.6042917
E12: Net adjustments | G12: £m 09/10 prices | AH12: =SUM(Input!AH191:AH193) -> -0.03088668797 | AI12: =SUM(Input!AI191:AI193) -> -0.11524094 | AJ12: =SUM(Input!AJ191:AJ193) -> -0.1156508481 | AK12: =SUM(Input!AK191:AK193) -> -0.06402307675 | AL12: =SUM(Input!AL191:AL193) -> 0 | AM12: =SUM(Input!AM191:AM193) -> 0 | AN12: =SUM(Input!AN191:AN193) -> 0 | AO12: =SUM(Input!AO191:AO193) -> 0
E13: Pre-RIIO net RAV additions (after disposals) | G13: £m 09/10 prices | W13: =Input!W190 -> 75.64381538 | X13: =Input!X190 -> 52.90597723 | Y13: =Input!Y190 -> 41.34152391 | Z13: =Input!Z190 -> 40.09021045 | AA13: =Input!AA190 -> 42.22840238 | AB13: =Input!AB190 -> 124.7314157 | AC13: =Input!AC190 -> 114.8762487 | AD13: =Input!AD190 -> 112.6346821 | AE13: =Input!AE190 -> 117.3866989 | AF13: =Input!AF190 -> 124.1647759 | AG13: =Input!AG190 -> 100.2930329
E14: Net RAV additions (after disposals) | G14: £m 09/10 prices | J14: > | W14: =SUM(W11:W13) -> 75.64381538 | X14: 52.90597723 | Y14: 41.34152391 | Z14: 40.09021045 | AA14: 42.22840238 | AB14: 124.7314157 | AC14: 114.8762487 | AD14: 112.6346821 | AE14: 117.3866989 | AF14: 124.1647759 | AG14: 100.2930329 | AH14: 88.63884083 | AI14: 93.43596834 | AJ14: 97.8878362 | AK14: 102.3562602 | AL14: 108.0857572 | AM14: 113.5656209 | AN14: 120.2215853 | AO14: 124.6042917
C16: Net depreciation additions (after disposals)
C17: Note:
E19: Pre-RIIO transfers to depreciation | G19: £m 09/10 prices | J19: > | V19: =Input!V194 -> 0 | W19: =Input!W194 -> 0 | X19: =Input!X194 -> 0 | Y19: =Input!Y194 -> 0 | Z19: =Input!Z194 -> 0 | AA19: =Input!AA194 -> 0 | AB19: =Input!AB194 -> 3.691559622 | AC19: =Input!AC194 -> 2.717042332 | AD19: =Input!AD194 -> 1.412549414 | AE19: =Input!AE194 -> 3.175829573 | AF19: =Input!AF194 -> 3.140320708 | AG19: =Input!AG194 -> 0
C21: Pre-vesting depreciation
C22: Note: The following depreciation factor is used to depreciate the pre-vesting balance on the "Return&RAV" sheet.
E24: Pre-vesting asset life | G24: years | I24: =Input!I180 -> 56
E25: Sum of digits | G25: integer | I25: =I24 * (1 + I24) / 2 -> 1596
E26: Years of pre-vesting depreciation remaining | G26: years | AH26: =Input!AH182 -> 45 | AI26: =Input!AI182 -> 44 | AJ26: =Input!AJ182 -> 43 | AK26: =Input!AK182 -> 42 | AL26: =Input!AL182 -> 41 | AM26: =Input!AM182 -> 40 | AN26: =Input!AN182 -> 39 | AO26: =Input!AO182 -> 38
E28: Sum-of-digits pre-vesting depreciation factor | G28: % | AH28: =AH26 / $I25 -> 0.02819548872 | AI28: =AI26 / $I25 -> 0.02756892231 | AJ28: 0.02694235589 | AK28: 0.02631578947 | AL28: 0.02568922306 | AM28: 0.02506265664 | AN28: 0.02443609023 | AO28: 0.02380952381
C30: Sum-of-digit post-vesting depreciation
C31: Note: Sum-of-digit depreciation calculations provide the main allowed depreciation after the start of RIIO but are also used to establish the "RAV differential" generated before the start of the price control.
D33: Depreciation parameters
E35: Post-vesting asset life | G35: years | I35: =Input!$I$187 -> 45
E36: Post-vesting asset life sum of digits | G36: integer | I36: =I35 * (I35 + 1) / 2 -> 1035
E37: Sum-of-digit post-vesting depreciation applied | G37: text | J37: > | X37: =X$4 >= $I98 -> FALSE | Y37: FALSE | Z37: FALSE | AA37: FALSE | AB37: FALSE | AC37: FALSE | AD37: FALSE | AE37: FALSE | AF37: FALSE | AG37: FALSE | AH37: TRUE | AI37: TRUE | AJ37: TRUE | AK37: TRUE | AL37: TRUE | AM37: TRUE | AN37: TRUE | AO37: TRUE
D39: Depreciation schedule
E41: Sum-of-digit depreciation of additions from year ending | I41: Net additions
E42: 2003-03-31 | G42: £m 09/10 prices | I42: =I73 -> 75.64381538 | J42: > | X42: =$I42 * ($I$35 - COUNT($W42:W42)) / $I$36 -> 3.288861538 | Y42: =$I42 * ($I$35 - COUNT($W42:X42)) / $I$36 -> 3.215775726 | Z42: =$I42 * ($I$35 - COUNT($W42:Y42)) / $I$36 -> 3.142689914 | AA42: =$I42 * ($I$35 - COUNT($W42:Z42)) / $I$36 -> 3.069604102 | AB42: =$I42 * ($I$35 - COUNT($W42:AA42)) / $I$36 -> 2.99651829 | AC42: =$I42 * ($I$35 - COUNT($W42:AB42)) / $I$36 -> 2.923432478 | AD42: =$I42 * ($I$35 - COUNT($W42:AC42)) / $I$36 -> 2.850346666 | AE42: =$I42 * ($I$35 - COUNT($W42:AD42)) / $I$36 -> 2.777260854 | AF42: =$I42 * ($I$35 - COUNT($W42:AE42)) / $I$36 -> 2.704175042 | AG42: =$I42 * ($I$35 - COUNT($W42:AF42)) / $I$36 -> 2.631089231 | AH42: =$I42 * ($I$35 - COUNT($W42:AG42)) / $I$36 -> 2.558003419 | AI42: =$I42 * ($I$35 - COUNT($W42:AH42)) / $I$36 -> 2.484917607 | AJ42: =$I42 * ($I$35 - COUNT($W42:AI42)) / $I$36 -> 2.411831795 | AK42: =$I42 * ($I$35 - COUNT($W42:AJ42)) / $I$36 -> 2.338745983 | AL42: =$I42 * ($I$35 - COUNT($W42:AK42)) / $I$36 -> 2.265660171 | AM42: =$I42 * ($I$35 - COUNT($W42:AL42)) / $I$36 -> 2.192574359 | AN42: =$I42 * ($I$35 - COUNT($W42:AM42)) / $I$36 -> 2.119488547 | AO42: =$I42 * ($I$35 - COUNT($W42:AN42)) / $I$36 -> 2.046402735
E43: 2004-03-31 | G43: £m 09/10 prices | I43: =I74 -> 52.90597723 | J43: > | Y43: =$I43 * ($I$35 - COUNT($W43:X43)) / $I$36 -> 2.300259879 | Z43: =$I43 * ($I$35 - COUNT($W43:Y43)) / $I$36 -> 2.249142993 | AA43: =$I43 * ($I$35 - COUNT($W43:Z43)) / $I$36 -> 2.198026107 | AB43: =$I43 * ($I$35 - COUNT($W43:AA43)) / $I$36 -> 2.146909221 | AC43: =$I43 * ($I$35 - COUNT($W43:AB43)) / $I$36 -> 2.095792335 | AD43: =$I43 * ($I$35 - COUNT($W43:AC43)) / $I$36 -> 2.044675448 | AE43: =$I43 * ($I$35 - COUNT($W43:AD43)) / $I$36 -> 1.993558562 | AF43: =$I43 * ($I$35 - COUNT($W43:AE43)) / $I$36 -> 1.942441676 | AG43: =$I43 * ($I$35 - COUNT($W43:AF43)) / $I$36 -> 1.89132479 | AH43: =$I43 * ($I$35 - COUNT($W43:AG43)) / $I$36 -> 1.840207903 | AI43: =$I43 * ($I$35 - COUNT($W43:AH43)) / $I$36 -> 1.789091017 | AJ43: =$I43 * ($I$35 - COUNT($W43:AI43)) / $I$36 -> 1.737974131 | AK43: =$I43 * ($I$35 - COUNT($W43:AJ43)) / $I$36 -> 1.686857245 | AL43: =$I43 * ($I$35 - COUNT($W43:AK43)) / $I$36 -> 1.635740359 | AM43: =$I43 * ($I$35 - COUNT($W43:AL43)) / $I$36 -> 1.584623472 | AN43: =$I43 * ($I$35 - COUNT($W43:AM43)) / $I$36 -> 1.533506586 | AO43: =$I43 * ($I$35 - COUNT($W43:AN43)) / $I$36 -> 1.4823897
E44: 2005-03-31 | G44: £m 09/10 prices | I44: 41.34152391 | J44: > | Z44: =$I44 * ($I$35 - COUNT($W44:Y44)) / $I$36 -> 1.797457561 | AA44: =$I44 * ($I$35 - COUNT($W44:Z44)) / $I$36 -> 1.75751406 | AB44: =$I44 * ($I$35 - COUNT($W44:AA44)) / $I$36 -> 1.717570559 | AC44: =$I44 * ($I$35 - COUNT($W44:AB44)) / $I$36 -> 1.677627057 | AD44: =$I44 * ($I$35 - COUNT($W44:AC44)) / $I$36 -> 1.637683556 | AE44: =$I44 * ($I$35 - COUNT($W44:AD44)) / $I$36 -> 1.597740055 | AF44: =$I44 * ($I$35 - COUNT($W44:AE44)) / $I$36 -> 1.557796553 | AG44: =$I44 * ($I$35 - COUNT($W44:AF44)) / $I$36 -> 1.517853052 | AH44: =$I44 * ($I$35 - COUNT($W44:AG44)) / $I$36 -> 1.477909551 | AI44: =$I44 * ($I$35 - COUNT($W44:AH44)) / $I$36 -> 1.437966049 | AJ44: =$I44 * ($I$35 - COUNT($W44:AI44)) / $I$36 -> 1.398022548 | AK44: =$I44 * ($I$35 - COUNT($W44:AJ44)) / $I$36 -> 1.358079046 | AL44: =$I44 * ($I$35 - COUNT($W44:AK44)) / $I$36 -> 1.318135545 | AM44: =$I44 * ($I$35 - COUNT($W44:AL44)) / $I$36 -> 1.278192044 | AN44: =$I44 * ($I$35 - COUNT($W44:AM44)) / $I$36 -> 1.238248542 | AO44: =$I44 * ($I$35 - COUNT($W44:AN44)) / $I$36 -> 1.198305041
E45: 2006-03-31 | G45: £m 09/10 prices | I45: 40.09021045 | J45: > | AA45: =$I45 * ($I$35 - COUNT($W45:Z45)) / $I$36 -> 1.743052628 | AB45: =$I45 * ($I$35 - COUNT($W45:AA45)) / $I$36 -> 1.704318125 | AC45: =$I45 * ($I$35 - COUNT($W45:AB45)) / $I$36 -> 1.665583622 | AD45: =$I45 * ($I$35 - COUNT($W45:AC45)) / $I$36 -> 1.62684912 | AE45: =$I45 * ($I$35 - COUNT($W45:AD45)) / $I$36 -> 1.588114617 | AF45: =$I45 * ($I$35 - COUNT($W45:AE45)) / $I$36 -> 1.549380114 | AG45: =$I45 * ($I$35 - COUNT($W45:AF45)) / $I$36 -> 1.510645611 | AH45: =$I45 * ($I$35 - COUNT($W45:AG45)) / $I$36 -> 1.471911108 | AI45: =$I45 * ($I$35 - COUNT($W45:AH45)) / $I$36 -> 1.433176605 | AJ45: =$I45 * ($I$35 - COUNT($W45:AI45)) / $I$36 -> 1.394442103 | AK45: =$I45 * ($I$35 - COUNT($W45:AJ45)) / $I$36 -> 1.3557076 | AL45: =$I45 * ($I$35 - COUNT($W45:AK45)) / $I$36 -> 1.316973097 | AM45: =$I45 * ($I$35 - COUNT($W45:AL45)) / $I$36 -> 1.278238594 | AN45: =$I45 * ($I$35 - COUNT($W45:AM45)) / $I$36 -> 1.239504091 | AO45: =$I45 * ($I$35 - COUNT($W45:AN45)) / $I$36 -> 1.200769588
E46: 2007-03-31 | G46: £m 09/10 prices | I46: 42.22840238 | J46: > | AB46: =$I46 * ($I$35 - COUNT($W46:AA46)) / $I$36 -> 1.836017495 | AC46: =$I46 * ($I$35 - COUNT($W46:AB46)) / $I$36 -> 1.795217106 | AD46: =$I46 * ($I$35 - COUNT($W46:AC46)) / $I$36 -> 1.754416717 | AE46: =$I46 * ($I$35 - COUNT($W46:AD46)) / $I$36 -> 1.713616328 | AF46: =$I46 * ($I$35 - COUNT($W46:AE46)) / $I$36 -> 1.67281594 | AG46: =$I46 * ($I$35 - COUNT($W46:AF46)) / $I$36 -> 1.632015551 | AH46: =$I46 * ($I$35 - COUNT($W46:AG46)) / $I$36 -> 1.591215162 | AI46: =$I46 * ($I$35 - COUNT($W46:AH46)) / $I$36 -> 1.550414773 | AJ46: =$I46 * ($I$35 - COUNT($W46:AI46)) / $I$36 -> 1.509614385 | AK46: =$I46 * ($I$35 - COUNT($W46:AJ46)) / $I$36 -> 1.468813996 | AL46: =$I46 * ($I$35 - COUNT($W46:AK46)) / $I$36 -> 1.428013607 | AM46: =$I46 * ($I$35 - COUNT($W46:AL46)) / $I$36 -> 1.387213218 | AN46: =$I46 * ($I$35 - COUNT($W46:AM46)) / $I$36 -> 1.34641283 | AO46: =$I46 * ($I$35 - COUNT($W46:AN46)) / $I$36 -> 1.305612441
E47: 2008-03-31 | G47: £m 09/10 prices | I47: 124.7314157 | J47: > | AC47: =$I47 * ($I$35 - COUNT($W47:AB47)) / $I$36 -> 5.423105031 | AD47: =$I47 * ($I$35 - COUNT($W47:AC47)) / $I$36 -> 5.302591586 | AE47: =$I47 * ($I$35 - COUNT($W47:AD47)) / $I$36 -> 5.18207814 | AF47: =$I47 * ($I$35 - COUNT($W47:AE47)) / $I$36 -> 5.061564695 | AG47: =$I47 * ($I$35 - COUNT($W47:AF47)) / $I$36 -> 4.94105125 | AH47: =$I47 * ($I$35 - COUNT($W47:AG47)) / $I$36 -> 4.820537805 | AI47: =$I47 * ($I$35 - COUNT($W47:AH47)) / $I$36 -> 4.70002436 | AJ47: =$I47 * ($I$35 - COUNT($W47:AI47)) / $I$36 -> 4.579510915 | AK47: =$I47 * ($I$35 - COUNT($W47:AJ47)) / $I$36 -> 4.45899747 | AL47: =$I47 * ($I$35 - COUNT($W47:AK47)) / $I$36 -> 4.338484025 | AM47: =$I47 * ($I$35 - COUNT($W47:AL47)) / $I$36 -> 4.217970579 | AN47: =$I47 * ($I$35 - COUNT($W47:AM47)) / $I$36 -> 4.097457134 | AO47: =$I47 * ($I$35 - COUNT($W47:AN47)) / $I$36 -> 3.976943689
E48: 2009-03-31 | G48: £m 09/10 prices | I48: 114.8762487 | J48: > | AD48: =$I48 * ($I$35 - COUNT($W48:AC48)) / $I$36 -> 4.994619507 | AE48: =$I48 * ($I$35 - COUNT($W48:AD48)) / $I$36 -> 4.883627962 | AF48: =$I48 * ($I$35 - COUNT($W48:AE48)) / $I$36 -> 4.772636418 | AG48: =$I48 * ($I$35 - COUNT($W48:AF48)) / $I$36 -> 4.661644873 | AH48: =$I48 * ($I$35 - COUNT($W48:AG48)) / $I$36 -> 4.550653328 | AI48: =$I48 * ($I$35 - COUNT($W48:AH48)) / $I$36 -> 4.439661784 | AJ48: =$I48 * ($I$35 - COUNT($W48:AI48)) / $I$36 -> 4.328670239 | AK48: =$I48 * ($I$35 - COUNT($W48:AJ48)) / $I$36 -> 4.217678695 | AL48: =$I48 * ($I$35 - COUNT($W48:AK48)) / $I$36 -> 4.10668715 | AM48: =$I48 * ($I$35 - COUNT($W48:AL48)) / $I$36 -> 3.995695605 | AN48: =$I48 * ($I$35 - COUNT($W48:AM48)) / $I$36 -> 3.884704061 | AO48: =$I48 * ($I$35 - COUNT($W48:AN48)) / $I$36 -> 3.773712516
E49: 2010-03-31 | G49: £m 09/10 prices | I49: 112.6346821 | J49: > | AE49: =$I49 * ($I$35 - COUNT($W49:AD49)) / $I$36 -> 4.897160091 | AF49: =$I49 * ($I$35 - COUNT($W49:AE49)) / $I$36 -> 4.788334312 | AG49: =$I49 * ($I$35 - COUNT($W49:AF49)) / $I$36 -> 4.679508532 | AH49: =$I49 * ($I$35 - COUNT($W49:AG49)) / $I$36 -> 4.570682752 | AI49: =$I49 * ($I$35 - COUNT($W49:AH49)) / $I$36 -> 4.461856972 | AJ49: =$I49 * ($I$35 - COUNT($W49:AI49)) / $I$36 -> 4.353031192 | AK49: =$I49 * ($I$35 - COUNT($W49:AJ49)) / $I$36 -> 4.244205413 | AL49: =$I49 * ($I$35 - COUNT($W49:AK49)) / $I$36 -> 4.135379633 | AM49: =$I49 * ($I$35 - COUNT($W49:AL49)) / $I$36 -> 4.026553853 | AN49: =$I49 * ($I$35 - COUNT($W49:AM49)) / $I$36 -> 3.917728073 | AO49: =$I49 * ($I$35 - COUNT($W49:AN49)) / $I$36 -> 3.808902293
E50: 2011-03-31 | G50: £m 09/10 prices | I50: 117.3866989 | J50: > | AF50: =$I50 * ($I$35 - COUNT($W50:AE50)) / $I$36 -> 5.103769516 | AG50: =$I50 * ($I$35 - COUNT($W50:AF50)) / $I$36 -> 4.990352415 | AH50: =$I50 * ($I$35 - COUNT($W50:AG50)) / $I$36 -> 4.876935315 | AI50: =$I50 * ($I$35 - COUNT($W50:AH50)) / $I$36 -> 4.763518215 | AJ50: =$I50 * ($I$35 - COUNT($W50:AI50)) / $I$36 -> 4.650101114 | AK50: =$I50 * ($I$35 - COUNT($W50:AJ50)) / $I$36 -> 4.536684014 | AL50: =$I50 * ($I$35 - COUNT($W50:AK50)) / $I$36 -> 4.423266914 | AM50: =$I50 * ($I$35 - COUNT($W50:AL50)) / $I$36 -> 4.309849813 | AN50: =$I50 * ($I$35 - COUNT($W50:AM50)) / $I$36 -> 4.196432713 | AO50: =$I50 * ($I$35 - COUNT($W50:AN50)) / $I$36 -> 4.083015612
E51: 2012-03-31 | G51: £m 09/10 prices | I51: 124.1647759 | J51: > | AG51: =$I51 * ($I$35 - COUNT($W51:AF51)) / $I$36 -> 5.398468516 | AH51: =$I51 * ($I$35 - COUNT($W51:AG51)) / $I$36 -> 5.278502549 | AI51: =$I51 * ($I$35 - COUNT($W51:AH51)) / $I$36 -> 5.158536582 | AJ51: =$I51 * ($I$35 - COUNT($W51:AI51)) / $I$36 -> 5.038570615 | AK51: =$I51 * ($I$35 - COUNT($W51:AJ51)) / $I$36 -> 4.918604648 | AL51: =$I51 * ($I$35 - COUNT($W51:AK51)) / $I$36 -> 4.798638681 | AM51: =$I51 * ($I$35 - COUNT($W51:AL51)) / $I$36 -> 4.678672714 | AN51: =$I51 * ($I$35 - COUNT($W51:AM51)) / $I$36 -> 4.558706747 | AO51: =$I51 * ($I$35 - COUNT($W51:AN51)) / $I$36 -> 4.43874078
E52: 2013-03-31 | G52: £m 09/10 prices | I52: 100.2930329 | AH52: =$I52 * ($I$35 - COUNT($W52:AG52)) / $I$36 -> 4.360566646 | AI52: =$I52 * ($I$35 - COUNT($W52:AH52)) / $I$36 -> 4.263665165 | AJ52: =$I52 * ($I$35 - COUNT($W52:AI52)) / $I$36 -> 4.166763684 | AK52: =$I52 * ($I$35 - COUNT($W52:AJ52)) / $I$36 -> 4.069862203 | AL52: =$I52 * ($I$35 - COUNT($W52:AK52)) / $I$36 -> 3.972960722 | AM52: =$I52 * ($I$35 - COUNT($W52:AL52)) / $I$36 -> 3.876059241 | AN52: =$I52 * ($I$35 - COUNT($W52:AM52)) / $I$36 -> 3.77915776 | AO52: =$I52 * ($I$35 - COUNT($W52:AN52)) / $I$36 -> 3.682256279
E53: 2014-03-31 | G53: £m 09/10 prices | I53: 88.63884083 | AI53: =$I53 * ($I$35 - COUNT($W53:AH53)) / $I$36 -> 3.853862645 | AJ53: =$I53 * ($I$35 - COUNT($W53:AI53)) / $I$36 -> 3.768221253 | AK53: =$I53 * ($I$35 - COUNT($W53:AJ53)) / $I$36 -> 3.682579861 | AL53: =$I53 * ($I$35 - COUNT($W53:AK53)) / $I$36 -> 3.596938468 | AM53: =$I53 * ($I$35 - COUNT($W53:AL53)) / $I$36 -> 3.511297076 | AN53: =$I53 * ($I$35 - COUNT($W53:AM53)) / $I$36 -> 3.425655684 | AO53: =$I53 * ($I$35 - COUNT($W53:AN53)) / $I$36 -> 3.340014292
E54: 2015-03-31 | G54: £m 09/10 prices | I54: 93.43596834 | AJ54: =$I54 * ($I$35 - COUNT($W54:AI54)) / $I$36 -> 4.062433406 | AK54: =$I54 * ($I$35 - COUNT($W54:AJ54)) / $I$36 -> 3.972157108 | AL54: =$I54 * ($I$35 - COUNT($W54:AK54)) / $I$36 -> 3.88188081 | AM54: =$I54 * ($I$35 - COUNT($W54:AL54)) / $I$36 -> 3.791604512 | AN54: =$I54 * ($I$35 - COUNT($W54:AM54)) / $I$36 -> 3.701328214 | AO54: =$I54 * ($I$35 - COUNT($W54:AN54)) / $I$36 -> 3.611051916
E55: 2016-03-31 | G55: £m 09/10 prices | I55: 97.8878362 | AK55: =$I55 * ($I$35 - COUNT($W55:AJ55)) / $I$36 -> 4.255992878 | AL55: =$I55 * ($I$35 - COUNT($W55:AK55)) / $I$36 -> 4.161415259 | AM55: =$I55 * ($I$35 - COUNT($W55:AL55)) / $I$36 -> 4.066837639 | AN55: =$I55 * ($I$35 - COUNT($W55:AM55)) / $I$36 -> 3.97226002 | AO55: =$I55 * ($I$35 - COUNT($W55:AN55)) / $I$36 -> 3.8776824
E56: 2017-03-31 | G56: £m 09/10 prices | I56: 102.3562602 | AL56: =$I56 * ($I$35 - COUNT($W56:AK56)) / $I$36 -> 4.450272183 | AM56: =$I56 * ($I$35 - COUNT($W56:AL56)) / $I$36 -> 4.351377245 | AN56: =$I56 * ($I$35 - COUNT($W56:AM56)) / $I$36 -> 4.252482308 | AO56: =$I56 * ($I$35 - COUNT($W56:AN56)) / $I$36 -> 4.153587371
E57: 2018-03-31 | G57: £m 09/10 prices | I57: 108.0857572 | AM57: =$I57 * ($I$35 - COUNT($W57:AL57)) / $I$36 -> 4.699380749 | AN57: =$I57 * ($I$35 - COUNT($W57:AM57)) / $I$36 -> 4.594950066 | AO57: =$I57 * ($I$35 - COUNT($W57:AN57)) / $I$36 -> 4.490519383
E58: 2019-03-31 | G58: £m 09/10 prices | I58: 113.5656209 | AN58: =$I58 * ($I$35 - COUNT($W58:AM58)) / $I$36 -> 4.937635692 | AO58: =$I58 * ($I$35 - COUNT($W58:AN58)) / $I$36 -> 4.827910455
E59: 2020-03-31 | G59: £m 09/10 prices | I59: 120.2215853 | AO59: =$I59 * ($I$35 - COUNT($W59:AN59)) / $I$36 -> 5.227025447
E60: 2021-03-31 | G60: £m 09/10 prices | I60: 124.6042917
C62: Straight line post-vesting depreciation
C63: Note: Straight line calculations are used to establish the "RAV differential" based on the accumulated difference between it and if sum-of-digit depreciation was in place before RIIO.
D65: Depreciation parameters
E67: Post-vesting asset life | G67: years | I67: =I35 -> 45
E68: Straight line depreciation applied | G68: text | J68: > | X68: =X$4<$I98 -> TRUE | Y68: =Y4<$I98 -> TRUE | Z68: TRUE | AA68: TRUE | AB68: TRUE | AC68: TRUE | AD68: TRUE | AE68: TRUE | AF68: TRUE | AG68: TRUE | AH68: FALSE | AI68: FALSE | AJ68: FALSE | AK68: FALSE | AL68: FALSE | AM68: FALSE | AN68: FALSE | AO68: FALSE
D70: Depreciation schedule
E72: Straight line depreciation of additions from year ending | I72: Net additions
E73: 2003-03-31 | G73: £m 09/10 prices | I73: =TRANSPOSE(W14:AO14) -> 75.64381538 | J73: > | X73: =$I73 / $I$67 -> 1.680973675 | Y73: =IF($I73 >0, MIN(X73,$I73-SUM($W73:X73)), MAX(X73,$I73-SUM($W73:X73))) -> 1.680973675 | Z73: =IF($I73 >0, MIN(Y73,$I73-SUM($W73:Y73)), MAX(Y73,$I73-SUM($W73:Y73))) -> 1.680973675 | AA73: =IF($I73 >0, MIN(Z73,$I73-SUM($W73:Z73)), MAX(Z73,$I73-SUM($W73:Z73))) -> 1.680973675 | AB73: =IF($I73 >0, MIN(AA73,$I73-SUM($W73:AA73)), MAX(AA73,$I73-SUM($W73:AA73))) -> 1.680973675 | AC73: =IF($I73 >0, MIN(AB73,$I73-SUM($W73:AB73)), MAX(AB73,$I73-SUM($W73:AB73))) -> 1.680973675 | AD73: =IF($I73 >0, MIN(AC73,$I73-SUM($W73:AC73)), MAX(AC73,$I73-SUM($W73:AC73))) -> 1.680973675 | AE73: =IF($I73 >0, MIN(AD73,$I73-SUM($W73:AD73)), MAX(AD73,$I73-SUM($W73:AD73))) -> 1.680973675 | AF73: =IF($I73 >0, MIN(AE73,$I73-SUM($W73:AE73)), MAX(AE73,$I73-SUM($W73:AE73))) -> 1.680973675 | AG73: =IF($I73 >0, MIN(AF73,$I73-SUM($W73:AF73)), MAX(AF73,$I73-SUM($W73:AF73))) -> 1.680973675 | AH73: =IF($I73 >0, MIN(AG73,$I73-SUM($W73:AG73)), MAX(AG73,$I73-SUM($W73:AG73))) -> 1.680973675 | AI73: =IF($I73 >0, MIN(AH73,$I73-SUM($W73:AH73)), MAX(AH73,$I73-SUM($W73:AH73))) -> 1.680973675 | AJ73: =IF($I73 >0, MIN(AI73,$I73-SUM($W73:AI73)), MAX(AI73,$I73-SUM($W73:AI73))) -> 1.680973675 | AK73: =IF($I73 >0, MIN(AJ73,$I73-SUM($W73:AJ73)), MAX(AJ73,$I73-SUM($W73:AJ73))) -> 1.680973675 | AL73: =IF($I73 >0, MIN(AK73,$I73-SUM($W73:AK73)), MAX(AK73,$I73-SUM($W73:AK73))) -> 1.680973675 | AM73: =IF($I73 >0, MIN(AL73,$I73-SUM($W73:AL73)), MAX(AL73,$I73-SUM($W73:AL73))) -> 1.680973675 | AN73: =IF($I73 >0, MIN(AM73,$I73-SUM($W73:AM73)), MAX(AM73,$I73-SUM($W73:AM73))) -> 1.680973675 | AO73: =IF($I73 >0, MIN(AN73,$I73-SUM($W73:AN73)), MAX(AN73,$I73-SUM($W73:AN73))) -> 1.680973675
E74: 2004-03-31 | G74: £m 09/10 prices | I74: 52.90597723 | J74: > | Y74: =$I74 / $I$67 -> 1.175688383 | Z74: =IF($I74 >0, MIN(Y74,$I74-SUM($W74:Y74)), MAX(Y74,$I74-SUM($W74:Y74))) -> 1.175688383 | AA74: =IF($I74 >0, MIN(Z74,$I74-SUM($W74:Z74)), MAX(Z74,$I74-SUM($W74:Z74))) -> 1.175688383 | AB74: =IF($I74 >0, MIN(AA74,$I74-SUM($W74:AA74)), MAX(AA74,$I74-SUM($W74:AA74))) -> 1.175688383 | AC74: =IF($I74 >0, MIN(AB74,$I74-SUM($W74:AB74)), MAX(AB74,$I74-SUM($W74:AB74))) -> 1.175688383 | AD74: =IF($I74 >0, MIN(AC74,$I74-SUM($W74:AC74)), MAX(AC74,$I74-SUM($W74:AC74))) -> 1.175688383 | AE74: =IF($I74 >0, MIN(AD74,$I74-SUM($W74:AD74)), MAX(AD74,$I74-SUM($W74:AD74))) -> 1.175688383 | AF74: =IF($I74 >0, MIN(AE74,$I74-SUM($W74:AE74)), MAX(AE74,$I74-SUM($W74:AE74))) -> 1.175688383 | AG74: =IF($I74 >0, MIN(AF74,$I74-SUM($W74:AF74)), MAX(AF74,$I74-SUM($W74:AF74))) -> 1.175688383 | AH74: =IF($I74 >0, MIN(AG74,$I74-SUM($W74:AG74)), MAX(AG74,$I74-SUM($W74:AG74))) -> 1.175688383 | AI74: =IF($I74 >0, MIN(AH74,$I74-SUM($W74:AH74)), MAX(AH74,$I74-SUM($W74:AH74))) -> 1.175688383 | AJ74: =IF($I74 >0, MIN(AI74,$I74-SUM($W74:AI74)), MAX(AI74,$I74-SUM($W74:AI74))) -> 1.175688383 | AK74: =IF($I74 >0, MIN(AJ74,$I74-SUM($W74:AJ74)), MAX(AJ74,$I74-SUM($W74:AJ74))) -> 1.175688383 | AL74: =IF($I74 >0, MIN(AK74,$I74-SUM($W74:AK74)), MAX(AK74,$I74-SUM($W74:AK74))) -> 1.175688383 | AM74: =IF($I74 >0, MIN(AL74,$I74-SUM($W74:AL74)), MAX(AL74,$I74-SUM($W74:AL74))) -> 1.175688383 | AN74: =IF($I74 >0, MIN(AM74,$I74-SUM($W74:AM74)), MAX(AM74,$I74-SUM($W74:AM74))) -> 1.175688383 | AO74: =IF($I74 >0, MIN(AN74,$I74-SUM($W74:AN74)), MAX(AN74,$I74-SUM($W74:AN74))) -> 1.175688383
E75: 2005-03-31 | G75: £m 09/10 prices | I75: 41.34152391 | J75: > | Z75: =$I75 / $I$67 -> 0.9187005314 | AA75: =IF($I75 >0, MIN(Z75,$I75-SUM($W75:Z75)), MAX(Z75,$I75-SUM($W75:Z75))) -> 0.9187005314 | AB75: =IF($I75 >0, MIN(AA75,$I75-SUM($W75:AA75)), MAX(AA75,$I75-SUM($W75:AA75))) -> 0.9187005314 | AC75: =IF($I75 >0, MIN(AB75,$I75-SUM($W75:AB75)), MAX(AB75,$I75-SUM($W75:AB75))) -> 0.9187005314 | AD75: =IF($I75 >0, MIN(AC75,$I75-SUM($W75:AC75)), MAX(AC75,$I75-SUM($W75:AC75))) -> 0.9187005314 | AE75: =IF($I75 >0, MIN(AD75,$I75-SUM($W75:AD75)), MAX(AD75,$I75-SUM($W75:AD75))) -> 0.9187005314 | AF75: =IF($I75 >0, MIN(AE75,$I75-SUM($W75:AE75)), MAX(AE75,$I75-SUM($W75:AE75))) -> 0.9187005314 | AG75: =IF($I75 >0, MIN(AF75,$I75-SUM($W75:AF75)), MAX(AF75,$I75-SUM($W75:AF75))) -> 0.9187005314 | AH75: =IF($I75 >0, MIN(AG75,$I75-SUM($W75:AG75)), MAX(AG75,$I75-SUM($W75:AG75))) -> 0.9187005314 | AI75: =IF($I75 >0, MIN(AH75,$I75-SUM($W75:AH75)), MAX(AH75,$I75-SUM($W75:AH75))) -> 0.9187005314 | AJ75: =IF($I75 >0, MIN(AI75,$I75-SUM($W75:AI75)), MAX(AI75,$I75-SUM($W75:AI75))) -> 0.9187005314 | AK75: =IF($I75 >0, MIN(AJ75,$I75-SUM($W75:AJ75)), MAX(AJ75,$I75-SUM($W75:AJ75))) -> 0.9187005314 | AL75: =IF($I75 >0, MIN(AK75,$I75-SUM($W75:AK75)), MAX(AK75,$I75-SUM($W75:AK75))) -> 0.9187005314 | AM75: =IF($I75 >0, MIN(AL75,$I75-SUM($W75:AL75)), MAX(AL75,$I75-SUM($W75:AL75))) -> 0.9187005314 | AN75: =IF($I75 >0, MIN(AM75,$I75-SUM($W75:AM75)), MAX(AM75,$I75-SUM($W75:AM75))) -> 0.9187005314 | AO75: =IF($I75 >0, MIN(AN75,$I75-SUM($W75:AN75)), MAX(AN75,$I75-SUM($W75:AN75))) -> 0.9187005314
E76: 2006-03-31 | G76: £m 09/10 prices | I76: 40.09021045 | J76: > | AA76: =$I76 / $I$67 -> 0.8908935655 | AB76: =IF($I76 >0, MIN(AA76,$I76-SUM($W76:AA76)), MAX(AA76,$I76-SUM($W76:AA76))) -> 0.8908935655 | AC76: =IF($I76 >0, MIN(AB76,$I76-SUM($W76:AB76)), MAX(AB76,$I76-SUM($W76:AB76))) -> 0.8908935655 | AD76: =IF($I76 >0, MIN(AC76,$I76-SUM($W76:AC76)), MAX(AC76,$I76-SUM($W76:AC76))) -> 0.8908935655 | AE76: =IF($I76 >0, MIN(AD76,$I76-SUM($W76:AD76)), MAX(AD76,$I76-SUM($W76:AD76))) -> 0.8908935655 | AF76: =IF($I76 >0, MIN(AE76,$I76-SUM($W76:AE76)), MAX(AE76,$I76-SUM($W76:AE76))) -> 0.8908935655 | AG76: =IF($I76 >0, MIN(AF76,$I76-SUM($W76:AF76)), MAX(AF76,$I76-SUM($W76:AF76))) -> 0.8908935655 | AH76: =IF($I76 >0, MIN(AG76,$I76-SUM($W76:AG76)), MAX(AG76,$I76-SUM($W76:AG76))) -> 0.8908935655 | AI76: =IF($I76 >0, MIN(AH76,$I76-SUM($W76:AH76)), MAX(AH76,$I76-SUM($W76:AH76))) -> 0.8908935655 | AJ76: =IF($I76 >0, MIN(AI76,$I76-SUM($W76:AI76)), MAX(AI76,$I76-SUM($W76:AI76))) -> 0.8908935655 | AK76: =IF($I76 >0, MIN(AJ76,$I76-SUM($W76:AJ76)), MAX(AJ76,$I76-SUM($W76:AJ76))) -> 0.8908935655 | AL76: =IF($I76 >0, MIN(AK76,$I76-SUM($W76:AK76)), MAX(AK76,$I76-SUM($W76:AK76))) -> 0.8908935655 | AM76: =IF($I76 >0, MIN(AL76,$I76-SUM($W76:AL76)), MAX(AL76,$I76-SUM($W76:AL76))) -> 0.8908935655 | AN76: =IF($I76 >0, MIN(AM76,$I76-SUM($W76:AM76)), MAX(AM76,$I76-SUM($W76:AM76))) -> 0.8908935655 | AO76: =IF($I76 >0, MIN(AN76,$I76-SUM($W76:AN76)), MAX(AN76,$I76-SUM($W76:AN76))) -> 0.8908935655
E77: 2007-03-31 | G77: £m 09/10 prices | I77: 42.22840238 | J77: > | AB77: =$I77 / $I$67 -> 0.9384089418 | AC77: =IF($I77 >0, MIN(AB77,$I77-SUM($W77:AB77)), MAX(AB77,$I77-SUM($W77:AB77))) -> 0.9384089418 | AD77: =IF($I77 >0, MIN(AC77,$I77-SUM($W77:AC77)), MAX(AC77,$I77-SUM($W77:AC77))) -> 0.9384089418 | AE77: =IF($I77 >0, MIN(AD77,$I77-SUM($W77:AD77)), MAX(AD77,$I77-SUM($W77:AD77))) -> 0.9384089418 | AF77: =IF($I77 >0, MIN(AE77,$I77-SUM($W77:AE77)), MAX(AE77,$I77-SUM($W77:AE77))) -> 0.9384089418 | AG77: =IF($I77 >0, MIN(AF77,$I77-SUM($W77:AF77)), MAX(AF77,$I77-SUM($W77:AF77))) -> 0.9384089418 | AH77: =IF($I77 >0, MIN(AG77,$I77-SUM($W77:AG77)), MAX(AG77,$I77-SUM($W77:AG77))) -> 0.9384089418 | AI77: =IF($I77 >0, MIN(AH77,$I77-SUM($W77:AH77)), MAX(AH77,$I77-SUM($W77:AH77))) -> 0.9384089418 | AJ77: =IF($I77 >0, MIN(AI77,$I77-SUM($W77:AI77)), MAX(AI77,$I77-SUM($W77:AI77))) -> 0.9384089418 | AK77: =IF($I77 >0, MIN(AJ77,$I77-SUM($W77:AJ77)), MAX(AJ77,$I77-SUM($W77:AJ77))) -> 0.9384089418 | AL77: =IF($I77 >0, MIN(AK77,$I77-SUM($W77:AK77)), MAX(AK77,$I77-SUM($W77:AK77))) -> 0.9384089418 | AM77: =IF($I77 >0, MIN(AL77,$I77-SUM($W77:AL77)), MAX(AL77,$I77-SUM($W77:AL77))) -> 0.9384089418 | AN77: =IF($I77 >0, MIN(AM77,$I77-SUM($W77:AM77)), MAX(AM77,$I77-SUM($W77:AM77))) -> 0.9384089418 | AO77: =IF($I77 >0, MIN(AN77,$I77-SUM($W77:AN77)), MAX(AN77,$I77-SUM($W77:AN77))) -> 0.9384089418
E78: 2008-03-31 | G78: £m 09/10 prices | I78: 124.7314157 | J78: > | AC78: =$I78 / $I$67 -> 2.771809238 | AD78: =IF($I78 >0, MIN(AC78,$I78-SUM($W78:AC78)), MAX(AC78,$I78-SUM($W78:AC78))) -> 2.771809238 | AE78: =IF($I78 >0, MIN(AD78,$I78-SUM($W78:AD78)), MAX(AD78,$I78-SUM($W78:AD78))) -> 2.771809238 | AF78: =IF($I78 >0, MIN(AE78,$I78-SUM($W78:AE78)), MAX(AE78,$I78-SUM($W78:AE78))) -> 2.771809238 | AG78: =IF($I78 >0, MIN(AF78,$I78-SUM($W78:AF78)), MAX(AF78,$I78-SUM($W78:AF78))) -> 2.771809238 | AH78: =IF($I78 >0, MIN(AG78,$I78-SUM($W78:AG78)), MAX(AG78,$I78-SUM($W78:AG78))) -> 2.771809238 | AI78: =IF($I78 >0, MIN(AH78,$I78-SUM($W78:AH78)), MAX(AH78,$I78-SUM($W78:AH78))) -> 2.771809238 | AJ78: =IF($I78 >0, MIN(AI78,$I78-SUM($W78:AI78)), MAX(AI78,$I78-SUM($W78:AI78))) -> 2.771809238 | AK78: =IF($I78 >0, MIN(AJ78,$I78-SUM($W78:AJ78)), MAX(AJ78,$I78-SUM($W78:AJ78))) -> 2.771809238 | AL78: =IF($I78 >0, MIN(AK78,$I78-SUM($W78:AK78)), MAX(AK78,$I78-SUM($W78:AK78))) -> 2.771809238 | AM78: =IF($I78 >0, MIN(AL78,$I78-SUM($W78:AL78)), MAX(AL78,$I78-SUM($W78:AL78))) -> 2.771809238 | AN78: =IF($I78 >0, MIN(AM78,$I78-SUM($W78:AM78)), MAX(AM78,$I78-SUM($W78:AM78))) -> 2.771809238 | AO78: =IF($I78 >0, MIN(AN78,$I78-SUM($W78:AN78)), MAX(AN78,$I78-SUM($W78:AN78))) -> 2.771809238
E79: 2009-03-31 | G79: £m 09/10 prices | I79: 114.8762487 | J79: > | AD79: =$I79 / $I$67 -> 2.552805526 | AE79: =IF($I79 >0, MIN(AD79,$I79-SUM($W79:AD79)), MAX(AD79,$I79-SUM($W79:AD79))) -> 2.552805526 | AF79: =IF($I79 >0, MIN(AE79,$I79-SUM($W79:AE79)), MAX(AE79,$I79-SUM($W79:AE79))) -> 2.552805526 | AG79: =IF($I79 >0, MIN(AF79,$I79-SUM($W79:AF79)), MAX(AF79,$I79-SUM($W79:AF79))) -> 2.552805526 | AH79: =IF($I79 >0, MIN(AG79,$I79-SUM($W79:AG79)), MAX(AG79,$I79-SUM($W79:AG79))) -> 2.552805526 | AI79: =IF($I79 >0, MIN(AH79,$I79-SUM($W79:AH79)), MAX(AH79,$I79-SUM($W79:AH79))) -> 2.552805526 | AJ79: =IF($I79 >0, MIN(AI79,$I79-SUM($W79:AI79)), MAX(AI79,$I79-SUM($W79:AI79))) -> 2.552805526 | AK79: =IF($I79 >0, MIN(AJ79,$I79-SUM($W79:AJ79)), MAX(AJ79,$I79-SUM($W79:AJ79))) -> 2.552805526 | AL79: =IF($I79 >0, MIN(AK79,$I79-SUM($W79:AK79)), MAX(AK79,$I79-SUM($W79:AK79))) -> 2.552805526 | AM79: =IF($I79 >0, MIN(AL79,$I79-SUM($W79:AL79)), MAX(AL79,$I79-SUM($W79:AL79))) -> 2.552805526 | AN79: =IF($I79 >0, MIN(AM79,$I79-SUM($W79:AM79)), MAX(AM79,$I79-SUM($W79:AM79))) -> 2.552805526 | AO79: =IF($I79 >0, MIN(AN79,$I79-SUM($W79:AN79)), MAX(AN79,$I79-SUM($W79:AN79))) -> 2.552805526
E80: 2010-03-31 | G80: £m 09/10 prices | I80: 112.6346821 | J80: > | AE80: =$I80 / $I$67 -> 2.502992936 | AF80: =IF($I80 >0, MIN(AE80,$I80-SUM($W80:AE80)), MAX(AE80,$I80-SUM($W80:AE80))) -> 2.502992936 | AG80: =IF($I80 >0, MIN(AF80,$I80-SUM($W80:AF80)), MAX(AF80,$I80-SUM($W80:AF80))) -> 2.502992936 | AH80: =IF($I80 >0, MIN(AG80,$I80-SUM($W80:AG80)), MAX(AG80,$I80-SUM($W80:AG80))) -> 2.502992936 | AI80: =IF($I80 >0, MIN(AH80,$I80-SUM($W80:AH80)), MAX(AH80,$I80-SUM($W80:AH80))) -> 2.502992936 | AJ80: =IF($I80 >0, MIN(AI80,$I80-SUM($W80:AI80)), MAX(AI80,$I80-SUM($W80:AI80))) -> 2.502992936 | AK80: =IF($I80 >0, MIN(AJ80,$I80-SUM($W80:AJ80)), MAX(AJ80,$I80-SUM($W80:AJ80))) -> 2.502992936 | AL80: =IF($I80 >0, MIN(AK80,$I80-SUM($W80:AK80)), MAX(AK80,$I80-SUM($W80:AK80))) -> 2.502992936 | AM80: =IF($I80 >0, MIN(AL80,$I80-SUM($W80:AL80)), MAX(AL80,$I80-SUM($W80:AL80))) -> 2.502992936 | AN80: =IF($I80 >0, MIN(AM80,$I80-SUM($W80:AM80)), MAX(AM80,$I80-SUM($W80:AM80))) -> 2.502992936 | AO80: =IF($I80 >0, MIN(AN80,$I80-SUM($W80:AN80)), MAX(AN80,$I80-SUM($W80:AN80))) -> 2.502992936
E81: 2011-03-31 | G81: £m 09/10 prices | I81: 117.3866989 | J81: > | AF81: =$I81 / $I$67 -> 2.608593308 | AG81: =IF($I81 >0, MIN(AF81,$I81-SUM($W81:AF81)), MAX(AF81,$I81-SUM($W81:AF81))) -> 2.608593308 | AH81: =IF($I81 >0, MIN(AG81,$I81-SUM($W81:AG81)), MAX(AG81,$I81-SUM($W81:AG81))) -> 2.608593308 | AI81: =IF($I81 >0, MIN(AH81,$I81-SUM($W81:AH81)), MAX(AH81,$I81-SUM($W81:AH81))) -> 2.608593308 | AJ81: =IF($I81 >0, MIN(AI81,$I81-SUM($W81:AI81)), MAX(AI81,$I81-SUM($W81:AI81))) -> 2.608593308 | AK81: =IF($I81 >0, MIN(AJ81,$I81-SUM($W81:AJ81)), MAX(AJ81,$I81-SUM($W81:AJ81))) -> 2.608593308 | AL81: =IF($I81 >0, MIN(AK81,$I81-SUM($W81:AK81)), MAX(AK81,$I81-SUM($W81:AK81))) -> 2.608593308 | AM81: =IF($I81 >0, MIN(AL81,$I81-SUM($W81:AL81)), MAX(AL81,$I81-SUM($W81:AL81))) -> 2.608593308 | AN81: =IF($I81 >0, MIN(AM81,$I81-SUM($W81:AM81)), MAX(AM81,$I81-SUM($W81:AM81))) -> 2.608593308 | AO81: =IF($I81 >0, MIN(AN81,$I81-SUM($W81:AN81)), MAX(AN81,$I81-SUM($W81:AN81))) -> 2.608593308
E82: 2012-03-31 | G82: £m 09/10 prices | I82: 124.1647759 | J82: > | AG82: =$I82 / $I$67 -> 2.759217241 | AH82: =IF($I82 >0, MIN(AG82,$I82-SUM($W82:AG82)), MAX(AG82,$I82-SUM($W82:AG82))) -> 2.759217241 | AI82: =IF($I82 >0, MIN(AH82,$I82-SUM($W82:AH82)), MAX(AH82,$I82-SUM($W82:AH82))) -> 2.759217241 | AJ82: =IF($I82 >0, MIN(AI82,$I82-SUM($W82:AI82)), MAX(AI82,$I82-SUM($W82:AI82))) -> 2.759217241 | AK82: =IF($I82 >0, MIN(AJ82,$I82-SUM($W82:AJ82)), MAX(AJ82,$I82-SUM($W82:AJ82))) -> 2.759217241 | AL82: =IF($I82 >0, MIN(AK82,$I82-SUM($W82:AK82)), MAX(AK82,$I82-SUM($W82:AK82))) -> 2.759217241 | AM82: =IF($I82 >0, MIN(AL82,$I82-SUM($W82:AL82)), MAX(AL82,$I82-SUM($W82:AL82))) -> 2.759217241 | AN82: =IF($I82 >0, MIN(AM82,$I82-SUM($W82:AM82)), MAX(AM82,$I82-SUM($W82:AM82))) -> 2.759217241 | AO82: =IF($I82 >0, MIN(AN82,$I82-SUM($W82:AN82)), MAX(AN82,$I82-SUM($W82:AN82))) -> 2.759217241
E83: 2013-03-31 | G83: £m 09/10 prices | I83: 100.2930329 | AH83: =$I83 / $I$67 -> 2.228734063 | AI83: =IF($I83 >0, MIN(AH83,$I83-SUM($W83:AH83)), MAX(AH83,$I83-SUM($W83:AH83))) -> 2.228734063 | AJ83: =IF($I83 >0, MIN(AI83,$I83-SUM($W83:AI83)), MAX(AI83,$I83-SUM($W83:AI83))) -> 2.228734063 | AK83: =IF($I83 >0, MIN(AJ83,$I83-SUM($W83:AJ83)), MAX(AJ83,$I83-SUM($W83:AJ83))) -> 2.228734063 | AL83: =IF($I83 >0, MIN(AK83,$I83-SUM($W83:AK83)), MAX(AK83,$I83-SUM($W83:AK83))) -> 2.228734063 | AM83: =IF($I83 >0, MIN(AL83,$I83-SUM($W83:AL83)), MAX(AL83,$I83-SUM($W83:AL83))) -> 2.228734063 | AN83: =IF($I83 >0, MIN(AM83,$I83-SUM($W83:AM83)), MAX(AM83,$I83-SUM($W83:AM83))) -> 2.228734063 | AO83: =IF($I83 >0, MIN(AN83,$I83-SUM($W83:AN83)), MAX(AN83,$I83-SUM($W83:AN83))) -> 2.228734063
E84: 2014-03-31 | G84: £m 09/10 prices | I84: 88.63884083 | AI84: =$I84 / $I$67 -> 1.969752018 | AJ84: =IF($I84 >0, MIN(AI84,$I84-SUM($W84:AI84)), MAX(AI84,$I84-SUM($W84:AI84))) -> 1.969752018 | AK84: =IF($I84 >0, MIN(AJ84,$I84-SUM($W84:AJ84)), MAX(AJ84,$I84-SUM($W84:AJ84))) -> 1.969752018 | AL84: =IF($I84 >0, MIN(AK84,$I84-SUM($W84:AK84)), MAX(AK84,$I84-SUM($W84:AK84))) -> 1.969752018 | AM84: =IF($I84 >0, MIN(AL84,$I84-SUM($W84:AL84)), MAX(AL84,$I84-SUM($W84:AL84))) -> 1.969752018 | AN84: =IF($I84 >0, MIN(AM84,$I84-SUM($W84:AM84)), MAX(AM84,$I84-SUM($W84:AM84))) -> 1.969752018 | AO84: =IF($I84 >0, MIN(AN84,$I84-SUM($W84:AN84)), MAX(AN84,$I84-SUM($W84:AN84))) -> 1.969752018
E85: 2015-03-31 | G85: £m 09/10 prices | I85: 93.43596834 | AJ85: =$I85 / $I$67 -> 2.076354852 | AK85: =IF($I85 >0, MIN(AJ85,$I85-SUM($W85:AJ85)), MAX(AJ85,$I85-SUM($W85:AJ85))) -> 2.076354852 | AL85: =IF($I85 >0, MIN(AK85,$I85-SUM($W85:AK85)), MAX(AK85,$I85-SUM($W85:AK85))) -> 2.076354852 | AM85: =IF($I85 >0, MIN(AL85,$I85-SUM($W85:AL85)), MAX(AL85,$I85-SUM($W85:AL85))) -> 2.076354852 | AN85: =IF($I85 >0, MIN(AM85,$I85-SUM($W85:AM85)), MAX(AM85,$I85-SUM($W85:AM85))) -> 2.076354852 | AO85: =IF($I85 >0, MIN(AN85,$I85-SUM($W85:AN85)), MAX(AN85,$I85-SUM($W85:AN85))) -> 2.076354852
E86: 2016-03-31 | G86: £m 09/10 prices | I86: 97.8878362 | AK86: =$I86 / $I$67 -> 2.175285249 | AL86: =IF($I86 >0, MIN(AK86,$I86-SUM($W86:AK86)), MAX(AK86,$I86-SUM($W86:AK86))) -> 2.175285249 | AM86: =IF($I86 >0, MIN(AL86,$I86-SUM($W86:AL86)), MAX(AL86,$I86-SUM($W86:AL86))) -> 2.175285249 | AN86: =IF($I86 >0, MIN(AM86,$I86-SUM($W86:AM86)), MAX(AM86,$I86-SUM($W86:AM86))) -> 2.175285249 | AO86: =IF($I86 >0, MIN(AN86,$I86-SUM($W86:AN86)), MAX(AN86,$I86-SUM($W86:AN86))) -> 2.175285249
E87: 2017-03-31 | G87: £m 09/10 prices | I87: 102.3562602 | AL87: =$I87 / $I$67 -> 2.27458356 | AM87: =IF($I87 >0, MIN(AL87,$I87-SUM($W87:AL87)), MAX(AL87,$I87-SUM($W87:AL87))) -> 2.27458356 | AN87: =IF($I87 >0, MIN(AM87,$I87-SUM($W87:AM87)), MAX(AM87,$I87-SUM($W87:AM87))) -> 2.27458356 | AO87: =IF($I87 >0, MIN(AN87,$I87-SUM($W87:AN87)), MAX(AN87,$I87-SUM($W87:AN87))) -> 2.27458356
E88: 2018-03-31 | G88: £m 09/10 prices | I88: 108.0857572 | AM88: =$I88 / $I$67 -> 2.401905716 | AN88: =IF($I88 >0, MIN(AM88,$I88-SUM($W88:AM88)), MAX(AM88,$I88-SUM($W88:AM88))) -> 2.401905716 | AO88: =IF($I88 >0, MIN(AN88,$I88-SUM($W88:AN88)), MAX(AN88,$I88-SUM($W88:AN88))) -> 2.401905716
E89: 2019-03-31 | G89: £m 09/10 prices | I89: 113.5656209 | AN89: =$I89 / $I$67 -> 2.523680465 | AO89: =IF($I89 >0, MIN(AN89,$I89-SUM($W89:AN89)), MAX(AN89,$I89-SUM($W89:AN89))) -> 2.523680465
E90: 2020-03-31 | G90: £m 09/10 prices | I90: 120.2215853 | AO90: =$I90 / $I$67 -> 2.671590784
E91: 2021-03-31 | G91: £m 09/10 prices | I91: 124.6042917
C93: Accelerated RAV differential post-vesting depreciation
C94: Note: The RAV differential accumulated from the straight line and sum-of-digit schedules above is released after the start of RIIO over an input smoothing profile.
D96: Depreciation parameters
E98: Smoothing period starting year | G98: year ending | I98: =Input!I189 -> 2014-03-31
E99: RAV differential is accruing differences | G99: flag | J99: > | X99: =IF(X$4 < $I98, 1, 0 ) -> 1 | Y99: 1 | Z99: 1 | AA99: 1 | AB99: 1 | AC99: 1 | AD99: 1 | AE99: 1 | AF99: 1 | AG99: 1 | AH99: 0 | AI99: 0 | AJ99: 0 | AK99: 0 | AL99: 0 | AM99: 0 | AN99: 0 | AO99: 0
E100: Smoothing profile for recovery of backlog depreciation | G100: % | AH100: =Input!AH188 -> 0.125 | AI100: =Input!AI188 -> 0.125 | AJ100: =Input!AJ188 -> 0.125 | AK100: =Input!AK188 -> 0.125 | AL100: =Input!AL188 -> 0.125 | AM100: =Input!AM188 -> 0.125 | AN100: =Input!AN188 -> 0.125 | AO100: =Input!AO188 -> 0.125
D102: Depreciation schedule
E104: RAV differential depreciation of additions from year ending | I104: RAV differential
E105: 2003-03-31 | G105: £m 09/10 prices | I105: =SUMPRODUCT(X42:AG42, X$99:AG$99) - SUMPRODUCT(X73:AG73, X$99:AG$99) -> 12.79001709 | J105: > | X105: =$I105 * X$100 -> 0 | Y105: 0 | Z105: 0 | AA105: 0 | AB105: 0 | AC105: 0 | AD105: 0 | AE105: 0 | AF105: 0 | AG105: 0 | AH105: 1.598752137 | AI105: 1.598752137 | AJ105: 1.598752137 | AK105: 1.598752137 | AL105: 1.598752137 | AM105: 1.598752137 | AN105: 1.598752137 | AO105: 1.598752137
E106: 2004-03-31 | G106: £m 09/10 prices | I106: 8.280935566 | J106: > | Y106: =$I106 * Y$100 -> 0 | Z106: 0 | AA106: 0 | AB106: 0 | AC106: 0 | AD106: 0 | AE106: 0 | AF106: 0 | AG106: 0 | AH106: 1.035116946 | AI106: 1.035116946 | AJ106: 1.035116946 | AK106: 1.035116946 | AL106: 1.035116946 | AM106: 1.035116946 | AN106: 1.035116946 | AO106: 1.035116946
E107: 2005-03-31 | G107: £m 09/10 prices | I107: 5.911638202 | J107: > | Z107: =$I107 * Z$100 -> 0 | AA107: 0 | AB107: 0 | AC107: 0 | AD107: 0 | AE107: 0 | AF107: 0 | AG107: 0 | AH107: 0.7389547753 | AI107: 0.7389547753 | AJ107: 0.7389547753 | AK107: 0.7389547753 | AL107: 0.7389547753 | AM107: 0.7389547753 | AN107: 0.7389547753 | AO107: 0.7389547753
E108: 2006-03-31 | G108: £m 09/10 prices | I108: 5.151688879 | J108: > | AA108: =$I108 * AA$100 -> 0 | AB108: 0 | AC108: 0 | AD108: 0 | AE108: 0 | AF108: 0 | AG108: 0 | AH108: 0.6439611099 | AI108: 0.6439611099 | AJ108: 0.6439611099 | AK108: 0.6439611099 | AL108: 0.6439611099 | AM108: 0.6439611099 | AN108: 0.6439611099 | AO108: 0.6439611099
E109: 2007-03-31 | G109: £m 09/10 prices | I109: 4.773645486 | J109: > | AB109: =$I109 * AB$100 -> 0 | AC109: 0 | AD109: 0 | AE109: 0 | AF109: 0 | AG109: 0 | AH109: 0.5967056858 | AI109: 0.5967056858 | AJ109: 0.5967056858 | AK109: 0.5967056858 | AL109: 0.5967056858 | AM109: 0.5967056858 | AN109: 0.5967056858 | AO109: 0.5967056858
E110: 2008-03-31 | G110: £m 09/10 prices | I110: 12.05134451 | J110: > | AC110: =$I110 * AC$100 -> 0 | AD110: 0 | AE110: 0 | AF110: 0 | AG110: 0 | AH110: 1.506418064 | AI110: 1.506418064 | AJ110: 1.506418064 | AK110: 1.506418064 | AL110: 1.506418064 | AM110: 1.506418064 | AN110: 1.506418064 | AO110: 1.506418064
E111: 2009-03-31 | G111: £m 09/10 prices | I111: 9.101306657 | J111: > | AD111: =$I111 * AD$100 -> 0 | AE111: 0 | AF111: 0 | AG111: 0 | AH111: 1.137663332 | AI111: 1.137663332 | AJ111: 1.137663332 | AK111: 1.137663332 | AL111: 1.137663332 | AM111: 1.137663332 | AN111: 1.137663332 | AO111: 1.137663332
E112: 2010-03-31 | G112: £m 09/10 prices | I112: 6.856024128 | J112: > | AE112: =$I112 * AE$100 -> 0 | AF112: 0 | AG112: 0 | AH112: 0.857003016 | AI112: 0.857003016 | AJ112: 0.857003016 | AK112: 0.857003016 | AL112: 0.857003016 | AM112: 0.857003016 | AN112: 0.857003016 | AO112: 0.857003016
E113: 2011-03-31 | G113: £m 09/10 prices | I113: 4.876935315 | J113: > | AF113: =$I113 * AF$100 -> 0 | AG113: 0 | AH113: 0.6096169144 | AI113: 0.6096169144 | AJ113: 0.6096169144 | AK113: 0.6096169144 | AL113: 0.6096169144 | AM113: 0.6096169144 | AN113: 0.6096169144 | AO113: 0.6096169144
E114: 2012-03-31 | G114: £m 09/10 prices | I114: 2.639251274 | J114: > | AG114: =$I114 * AG$100 -> 0 | AH114: 0.3299064093 | AI114: 0.3299064093 | AJ114: 0.3299064093 | AK114: 0.3299064093 | AL114: 0.3299064093 | AM114: 0.3299064093 | AN114: 0.3299064093 | AO114: 0.3299064093
E115: 2013-03-31 | G115: £m 09/10 prices | I115: 0 | AH115: =$I115 * AH$100 -> 0 | AI115: 0 | AJ115: 0 | AK115: 0 | AL115: 0 | AM115: 0 | AN115: 0 | AO115: 0
E116: 2014-03-31 | G116: £m 09/10 prices | I116: 0 | AI116: =$I116 * AI$100 -> 0 | AJ116: 0 | AK116: 0 | AL116: 0 | AM116: 0 | AN116: 0 | AO116: 0
E117: 2015-03-31 | G117: £m 09/10 prices | I117: 0 | AJ117: =$I117 * AJ$100 -> 0 | AK117: 0 | AL117: 0 | AM117: 0 | AN117: 0 | AO117: 0
E118: 2016-03-31 | G118: £m 09/10 prices | I118: 0 | AK118: =$I118 * AK$100 -> 0 | AL118: =$I118 * AL$100 -> 0 | AM118: =$I118 * AM$100 -> 0 | AN118: =$I118 * AN$100 -> 0 | AO118: =$I118 * AO$100 -> 0
E119: 2017-03-31 | G119: £m 09/10 prices | I119: 0 | AL119: =$I119 * AL$100 -> 0 | AM119: =$I119 * AM$100 -> 0 | AN119: =$I119 * AN$100 -> 0 | AO119: =$I119 * AO$100 -> 0
E120: 2018-03-31 | G120: £m 09/10 prices | I120: 0 | AM120: =$I120 * AM$100 -> 0 | AN120: =$I120 * AN$100 -> 0 | AO120: =$I120 * AO$100 -> 0
E121: 2019-03-31 | G121: £m 09/10 prices | I121: 0 | AN121: =$I121 * AN$100 -> 0 | AO121: =$I121 * AO$100 -> 0
E122: 2020-03-31 | G122: £m 09/10 prices | I122: 0 | AO122: =$I122 * AO$100 -> 0
E123: 2021-03-31 | G123: £m 09/10 prices | I123: 0
C125: Depreciation values applied
C126: Note: Before RIIO, regulatory depreciation is straight-line. From the start of RIIO, it is sum-of-digit depreciation plus any smoothed RAV differential value available.
E128: Depreciation allowed on additions from year ending | I128: Net additions
E129: 2003-03-31 | G129: £m 09/10 prices | I129: =I73 -> 75.64381538 | J129: > | X129: =(X$68 * X73) + (X$37 * X42) + X105 -> 1.680973675 | Y129: 1.680973675 | Z129: 1.680973675 | AA129: 1.680973675 | AB129: 1.680973675 | AC129: 1.680973675 | AD129: 1.680973675 | AE129: 1.680973675 | AF129: 1.680973675 | AG129: 1.680973675 | AH129: 4.156755555 | AI129: 4.083669743 | AJ129: 4.010583931 | AK129: 3.937498119 | AL129: 3.864412307 | AM129: 3.791326495 | AN129: 3.718240683 | AO129: 3.645154871
E130: 2004-03-31 | G130: £m 09/10 prices | I130: 52.90597723 | J130: > | Y130: =(Y$68 * Y74) + (Y$37 * Y43) + Y106 -> 1.175688383 | Z130: 1.175688383 | AA130: 1.175688383 | AB130: 1.175688383 | AC130: 1.175688383 | AD130: 1.175688383 | AE130: 1.175688383 | AF130: 1.175688383 | AG130: 1.175688383 | AH130: 2.875324849 | AI130: 2.824207963 | AJ130: 2.773091077 | AK130: 2.721974191 | AL130: 2.670857304 | AM130: 2.619740418 | AN130: 2.568623532 | AO130: 2.517506646
E131: 2005-03-31 | G131: £m 09/10 prices | I131: 41.34152391 | J131: > | Z131: =(Z$68 * Z75) + (Z$37 * Z44) + Z107 -> 0.9187005314 | AA131: 0.9187005314 | AB131: 0.9187005314 | AC131: 0.9187005314 | AD131: 0.9187005314 | AE131: 0.9187005314 | AF131: 0.9187005314 | AG131: 0.9187005314 | AH131: 2.216864326 | AI131: 2.176920824 | AJ131: 2.136977323 | AK131: 2.097033822 | AL131: 2.05709032 | AM131: 2.017146819 | AN131: 1.977203318 | AO131: 1.937259816
E132: 2006-03-31 | G132: £m 09/10 prices | I132: 40.09021045 | J132: > | AA132: =(AA$68 * AA76) + (AA$37 * AA45) + AA108 -> 0.8908935655 | AB132: 0.8908935655 | AC132: 0.8908935655 | AD132: 0.8908935655 | AE132: 0.8908935655 | AF132: 0.8908935655 | AG132: 0.8908935655 | AH132: 2.115872218 | AI132: 2.077137715 | AJ132: 2.038403212 | AK132: 1.99966871 | AL132: 1.960934207 | AM132: 1.922199704 | AN132: 1.883465201 | AO132: 1.844730698
E133: 2007-03-31 | G133: £m 09/10 prices | I133: 42.22840238 | J133: > | AB133: =(AB$68 * AB77) + (AB$37 * AB46) + AB109 -> 0.9384089418 | AC133: 0.9384089418 | AD133: 0.9384089418 | AE133: 0.9384089418 | AF133: 0.9384089418 | AG133: 0.9384089418 | AH133: 2.187920848 | AI133: 2.147120459 | AJ133: 2.10632007 | AK133: 2.065519682 | AL133: 2.024719293 | AM133: 1.983918904 | AN133: 1.943118515 | AO133: 1.902318127
E134: 2008-03-31 | G134: £m 09/10 prices | I134: 124.7314157 | J134: > | AC134: =(AC$68 * AC78) + (AC$37 * AC47) + AC110 -> 2.771809238 | AD134: 2.771809238 | AE134: 2.771809238 | AF134: 2.771809238 | AG134: 2.771809238 | AH134: 6.326955869 | AI134: 6.206442424 | AJ134: 6.085928979 | AK134: 5.965415534 | AL134: 5.844902089 | AM134: 5.724388644 | AN134: 5.603875198 | AO134: 5.483361753
E135: 2009-03-31 | G135: £m 09/10 prices | I135: 114.8762487 | J135: > | AD135: =(AD$68 * AD79) + (AD$37 * AD48) + AD111 -> 2.552805526 | AE135: 2.552805526 | AF135: 2.552805526 | AG135: 2.552805526 | AH135: 5.68831666 | AI135: 5.577325116 | AJ135: 5.466333571 | AK135: 5.355342027 | AL135: 5.244350482 | AM135: 5.133358937 | AN135: 5.022367393 | AO135: 4.911375848
E136: 2010-03-31 | G136: £m 09/10 prices | I136: 112.6346821 | J136: > | AE136: =(AE$68 * AE80) + (AE$37 * AE49) + AE112 -> 2.502992936 | AF136: 2.502992936 | AG136: 2.502992936 | AH136: 5.427685768 | AI136: 5.318859988 | AJ136: 5.210034208 | AK136: 5.101208428 | AL136: 4.992382649 | AM136: 4.883556869 | AN136: 4.774731089 | AO136: 4.665905309
E137: 2011-03-31 | G137: £m 09/10 prices | I137: 117.3866989 | J137: > | AF137: =(AF$68 * AF81) + (AF$37 * AF50) + AF113 -> 2.608593308 | AG137: 2.608593308 | AH137: 5.486552229 | AI137: 5.373135129 | AJ137: 5.259718029 | AK137: 5.146300928 | AL137: 5.032883828 | AM137: 4.919466728 | AN137: 4.806049627 | AO137: 4.692632527
E138: 2012-03-31 | G138: £m 09/10 prices | I138: 124.1647759 | J138: > | AG138: =(AG$68 * AG82) + (AG$37 * AG51) + AG114 -> 2.759217241 | AH138: 5.608408958 | AI138: 5.488442991 | AJ138: 5.368477024 | AK138: 5.248511057 | AL138: 5.12854509 | AM138: 5.008579123 | AN138: 4.888613156 | AO138: 4.768647189
E139: 2013-03-31 | G139: £m 09/10 prices | I139: 100.2930329 | AH139: =(AH$68 * AH83) + (AH$37 * AH52) + AH115 -> 4.360566646 | AI139: 4.263665165 | AJ139: 4.166763684 | AK139: 4.069862203 | AL139: 3.972960722 | AM139: 3.876059241 | AN139: 3.77915776 | AO139: 3.682256279
E140: 2014-03-31 | G140: £m 09/10 prices | I140: 88.63884083 | AI140: =(AI$68 * AI84) + (AI$37 * AI53) + AI116 -> 3.853862645 | AJ140: 3.768221253 | AK140: 3.682579861 | AL140: 3.596938468 | AM140: 3.511297076 | AN140: 3.425655684 | AO140: 3.340014292
E141: 2015-03-31 | G141: £m 09/10 prices | I141: 93.43596834 | AJ141: =(AJ$68 * AJ85) + (AJ$37 * AJ54) + AJ117 -> 4.062433406 | AK141: 3.972157108 | AL141: 3.88188081 | AM141: 3.791604512 | AN141: 3.701328214 | AO141: 3.611051916
E142: 2016-03-31 | G142: £m 09/10 prices | I142: 97.8878362 | AK142: =(AK$68 * AK86) + (AK$37 * AK55) + AK118 -> 4.255992878 | AL142: =(AL$68 * AL86) + (AL$37 * AL55) + AL118 -> 4.161415259 | AM142: =(AM$68 * AM86) + (AM$37 * AM55) + AM118 -> 4.066837639 | AN142: =(AN$68 * AN86) + (AN$37 * AN55) + AN118 -> 3.97226002 | AO142: =(AO$68 * AO86) + (AO$37 * AO55) + AO118 -> 3.8776824
E143: 2017-03-31 | G143: £m 09/10 prices | I143: 102.3562602 | AL143: =(AL$68 * AL87) + (AL$37 * AL56) + AL119 -> 4.450272183 | AM143: =(AM$68 * AM87) + (AM$37 * AM56) + AM119 -> 4.351377245 | AN143: =(AN$68 * AN87) + (AN$37 * AN56) + AN119 -> 4.252482308 | AO143: =(AO$68 * AO87) + (AO$37 * AO56) + AO119 -> 4.153587371
E144: 2018-03-31 | G144: £m 09/10 prices | I144: 108.0857572 | AM144: =(AM$68 * AM88) + (AM$37 * AM57) + AM120 -> 4.699380749 | AN144: =(AN$68 * AN88) + (AN$37 * AN57) + AN120 -> 4.594950066 | AO144: =(AO$68 * AO88) + (AO$37 * AO57) + AO120 -> 4.490519383
E145: 2019-03-31 | G145: £m 09/10 prices | I145: 113.5656209 | AN145: =(AN$68 * AN89) + (AN$37 * AN58) + AN121 -> 4.937635692 | AO145: =(AO$68 * AO89) + (AO$37 * AO58) + AO121 -> 4.827910455
E146: 2020-03-31 | G146: £m 09/10 prices | I146: 120.2215853 | AO146: =(AO$68 * AO90) + (AO$37 * AO59) + AO122 -> 5.227025447
E147: 2021-03-31 | G147: £m 09/10 prices | I147: 124.6042917
E148: Total | G148: £m 09/10 prices | X148: =SUM(X129:X147) -> 1.680973675 | Y148: 2.856662058 | Z148: 3.775362589 | AA148: 4.666256155 | AB148: 5.604665097 | AC148: 8.376474334 | AD148: 10.92927986 | AE148: 13.4322728 | AF148: 16.0408661 | AG148: 18.80008335 | AH148: =SUM(AH129:AH147) -> 46.45122393 | AI148: =SUM(AI129:AI147) -> 49.39079016 | AJ148: 52.45328577 | AK148: 55.61906455 | AL148: 58.88454501 | AM148: 62.3002391 | AN148: 65.84975746 | AO148: 69.57894033
C150: Removal of fully depreciated items
E152: Removal of additions from year ending
E153: 2003-03-31 | G153: £m 09/10 prices | J153: > | X153: =IF(AND($I129 = SUM($W129:X129), SUM($W153:W153) = 0 ), $I129, 0 ) -> 0 | Y153: =IF(AND($I129 = SUM($W129:Y129), SUM($W153:X153) = 0 ), $I129, 0 ) -> 0 | Z153: =IF(AND($I129 = SUM($W129:Z129), SUM($W153:Y153) = 0 ), $I129, 0 ) -> 0 | AA153: =IF(AND($I129 = SUM($W129:AA129), SUM($W153:Z153) = 0 ), $I129, 0 ) -> 0 | AB153: =IF(AND($I129 = SUM($W129:AB129), SUM($W153:AA153) = 0 ), $I129, 0 ) -> 0 | AC153: =IF(AND($I129 = SUM($W129:AC129), SUM($W153:AB153) = 0 ), $I129, 0 ) -> 0 | AD153: =IF(AND($I129 = SUM($W129:AD129), SUM($W153:AC153) = 0 ), $I129, 0 ) -> 0 | AE153: =IF(AND($I129 = SUM($W129:AE129), SUM($W153:AD153) = 0 ), $I129, 0 ) -> 0 | AF153: =IF(AND($I129 = SUM($W129:AF129), SUM($W153:AE153) = 0 ), $I129, 0 ) -> 0 | AG153: =IF(AND($I129 = SUM($W129:AG129), SUM($W153:AF153) = 0 ), $I129, 0 ) -> 0 | AH153: =IF(AND($I129 = SUM($W129:AH129), SUM($W153:AG153) = 0 ), $I129, 0 ) -> 0 | AI153: =IF(AND($I129 = SUM($W129:AI129), SUM($W153:AH153) = 0 ), $I129, 0 ) -> 0 | AJ153: =IF(AND($I129 = SUM($W129:AJ129), SUM($W153:AI153) = 0 ), $I129, 0 ) -> 0 | AK153: =IF(AND($I129 = SUM($W129:AK129), SUM($W153:AJ153) = 0 ), $I129, 0 ) -> 0 | AL153: =IF(AND($I129 = SUM($W129:AL129), SUM($W153:AK153) = 0 ), $I129, 0 ) -> 0 | AM153: =IF(AND($I129 = SUM($W129:AM129), SUM($W153:AL153) = 0 ), $I129, 0 ) -> 0 | AN153: =IF(AND($I129 = SUM($W129:AN129), SUM($W153:AM153) = 0 ), $I129, 0 ) -> 0 | AO153: =IF(AND($I129 = SUM($W129:AO129), SUM($W153:AN153) = 0 ), $I129, 0 ) -> 0
E154: 2004-03-31 | G154: £m 09/10 prices | J154: > | X154: =IF(AND($I130 = SUM($W130:X130), SUM($W154:W154) = 0 ), $I130, 0 ) -> 0 | Y154: =IF(AND($I130 = SUM($W130:Y130), SUM($W154:X154) = 0 ), $I130, 0 ) -> 0 | Z154: =IF(AND($I130 = SUM($W130:Z130), SUM($W154:Y154) = 0 ), $I130, 0 ) -> 0 | AA154: =IF(AND($I130 = SUM($W130:AA130), SUM($W154:Z154) = 0 ), $I130, 0 ) -> 0 | AB154: =IF(AND($I130 = SUM($W130:AB130), SUM($W154:AA154) = 0 ), $I130, 0 ) -> 0 | AC154: =IF(AND($I130 = SUM($W130:AC130), SUM($W154:AB154) = 0 ), $I130, 0 ) -> 0 | AD154: =IF(AND($I130 = SUM($W130:AD130), SUM($W154:AC154) = 0 ), $I130, 0 ) -> 0 | AE154: =IF(AND($I130 = SUM($W130:AE130), SUM($W154:AD154) = 0 ), $I130, 0 ) -> 0 | AF154: =IF(AND($I130 = SUM($W130:AF130), SUM($W154:AE154) = 0 ), $I130, 0 ) -> 0 | AG154: =IF(AND($I130 = SUM($W130:AG130), SUM($W154:AF154) = 0 ), $I130, 0 ) -> 0 | AH154: =IF(AND($I130 = SUM($W130:AH130), SUM($W154:AG154) = 0 ), $I130, 0 ) -> 0 | AI154: =IF(AND($I130 = SUM($W130:AI130), SUM($W154:AH154) = 0 ), $I130, 0 ) -> 0 | AJ154: =IF(AND($I130 = SUM($W130:AJ130), SUM($W154:AI154) = 0 ), $I130, 0 ) -> 0 | AK154: =IF(AND($I130 = SUM($W130:AK130), SUM($W154:AJ154) = 0 ), $I130, 0 ) -> 0 | AL154: =IF(AND($I130 = SUM($W130:AL130), SUM($W154:AK154) = 0 ), $I130, 0 ) -> 0 | AM154: =IF(AND($I130 = SUM($W130:AM130), SUM($W154:AL154) = 0 ), $I130, 0 ) -> 0 | AN154: =IF(AND($I130 = SUM($W130:AN130), SUM($W154:AM154) = 0 ), $I130, 0 ) -> 0 | AO154: =IF(AND($I130 = SUM($W130:AO130), SUM($W154:AN154) = 0 ), $I130, 0 ) -> 0
E155: 2005-03-31 | G155: £m 09/10 prices | J155: > | X155: =IF(AND($I131 = SUM($W131:X131), SUM($W155:W155) = 0 ), $I131, 0 ) -> 0 | Y155: =IF(AND($I131 = SUM($W131:Y131), SUM($W155:X155) = 0 ), $I131, 0 ) -> 0 | Z155: =IF(AND($I131 = SUM($W131:Z131), SUM($W155:Y155) = 0 ), $I131, 0 ) -> 0 | AA155: =IF(AND($I131 = SUM($W131:AA131), SUM($W155:Z155) = 0 ), $I131, 0 ) -> 0 | AB155: =IF(AND($I131 = SUM($W131:AB131), SUM($W155:AA155) = 0 ), $I131, 0 ) -> 0 | AC155: =IF(AND($I131 = SUM($W131:AC131), SUM($W155:AB155) = 0 ), $I131, 0 ) -> 0 | AD155: =IF(AND($I131 = SUM($W131:AD131), SUM($W155:AC155) = 0 ), $I131, 0 ) -> 0 | AE155: =IF(AND($I131 = SUM($W131:AE131), SUM($W155:AD155) = 0 ), $I131, 0 ) -> 0 | AF155: =IF(AND($I131 = SUM($W131:AF131), SUM($W155:AE155) = 0 ), $I131, 0 ) -> 0 | AG155: =IF(AND($I131 = SUM($W131:AG131), SUM($W155:AF155) = 0 ), $I131, 0 ) -> 0 | AH155: =IF(AND($I131 = SUM($W131:AH131), SUM($W155:AG155) = 0 ), $I131, 0 ) -> 0 | AI155: =IF(AND($I131 = SUM($W131:AI131), SUM($W155:AH155) = 0 ), $I131, 0 ) -> 0 | AJ155: =IF(AND($I131 = SUM($W131:AJ131), SUM($W155:AI155) = 0 ), $I131, 0 ) -> 0 | AK155: =IF(AND($I131 = SUM($W131:AK131), SUM($W155:AJ155) = 0 ), $I131, 0 ) -> 0 | AL155: =IF(AND($I131 = SUM($W131:AL131), SUM($W155:AK155) = 0 ), $I131, 0 ) -> 0 | AM155: =IF(AND($I131 = SUM($W131:AM131), SUM($W155:AL155) = 0 ), $I131, 0 ) -> 0 | AN155: =IF(AND($I131 = SUM($W131:AN131), SUM($W155:AM155) = 0 ), $I131, 0 ) -> 0 | AO155: =IF(AND($I131 = SUM($W131:AO131), SUM($W155:AN155) = 0 ), $I131, 0 ) -> 0
E156: 2006-03-31 | G156: £m 09/10 prices | J156: > | X156: =IF(AND($I132 = SUM($W132:X132), SUM($W156:W156) = 0 ), $I132, 0 ) -> 0 | Y156: =IF(AND($I132 = SUM($W132:Y132), SUM($W156:X156) = 0 ), $I132, 0 ) -> 0 | Z156: =IF(AND($I132 = SUM($W132:Z132), SUM($W156:Y156) = 0 ), $I132, 0 ) -> 0 | AA156: =IF(AND($I132 = SUM($W132:AA132), SUM($W156:Z156) = 0 ), $I132, 0 ) -> 0 | AB156: =IF(AND($I132 = SUM($W132:AB132), SUM($W156:AA156) = 0 ), $I132, 0 ) -> 0 | AC156: =IF(AND($I132 = SUM($W132:AC132), SUM($W156:AB156) = 0 ), $I132, 0 ) -> 0 | AD156: =IF(AND($I132 = SUM($W132:AD132), SUM($W156:AC156) = 0 ), $I132, 0 ) -> 0 | AE156: =IF(AND($I132 = SUM($W132:AE132), SUM($W156:AD156) = 0 ), $I132, 0 ) -> 0 | AF156: =IF(AND($I132 = SUM($W132:AF132), SUM($W156:AE156) = 0 ), $I132, 0 ) -> 0 | AG156: =IF(AND($I132 = SUM($W132:AG132), SUM($W156:AF156) = 0 ), $I132, 0 ) -> 0 | AH156: =IF(AND($I132 = SUM($W132:AH132), SUM($W156:AG156) = 0 ), $I132, 0 ) -> 0 | AI156: =IF(AND($I132 = SUM($W132:AI132), SUM($W156:AH156) = 0 ), $I132, 0 ) -> 0 | AJ156: =IF(AND($I132 = SUM($W132:AJ132), SUM($W156:AI156) = 0 ), $I132, 0 ) -> 0 | AK156: =IF(AND($I132 = SUM($W132:AK132), SUM($W156:AJ156) = 0 ), $I132, 0 ) -> 0 | AL156: =IF(AND($I132 = SUM($W132:AL132), SUM($W156:AK156) = 0 ), $I132, 0 ) -> 0 | AM156: =IF(AND($I132 = SUM($W132:AM132), SUM($W156:AL156) = 0 ), $I132, 0 ) -> 0 | AN156: =IF(AND($I132 = SUM($W132:AN132), SUM($W156:AM156) = 0 ), $I132, 0 ) -> 0 | AO156: =IF(AND($I132 = SUM($W132:AO132), SUM($W156:AN156) = 0 ), $I132, 0 ) -> 0
E157: 2007-03-31 | G157: £m 09/10 prices | J157: > | X157: =IF(AND($I133 = SUM($W133:X133), SUM($W157:W157) = 0 ), $I133, 0 ) -> 0 | Y157: =IF(AND($I133 = SUM($W133:Y133), SUM($W157:X157) = 0 ), $I133, 0 ) -> 0 | Z157: =IF(AND($I133 = SUM($W133:Z133), SUM($W157:Y157) = 0 ), $I133, 0 ) -> 0 | AA157: =IF(AND($I133 = SUM($W133:AA133), SUM($W157:Z157) = 0 ), $I133, 0 ) -> 0 | AB157: =IF(AND($I133 = SUM($W133:AB133), SUM($W157:AA157) = 0 ), $I133, 0 ) -> 0 | AC157: =IF(AND($I133 = SUM($W133:AC133), SUM($W157:AB157) = 0 ), $I133, 0 ) -> 0 | AD157: =IF(AND($I133 = SUM($W133:AD133), SUM($W157:AC157) = 0 ), $I133, 0 ) -> 0 | AE157: =IF(AND($I133 = SUM($W133:AE133), SUM($W157:AD157) = 0 ), $I133, 0 ) -> 0 | AF157: =IF(AND($I133 = SUM($W133:AF133), SUM($W157:AE157) = 0 ), $I133, 0 ) -> 0 | AG157: =IF(AND($I133 = SUM($W133:AG133), SUM($W157:AF157) = 0 ), $I133, 0 ) -> 0 | AH157: =IF(AND($I133 = SUM($W133:AH133), SUM($W157:AG157) = 0 ), $I133, 0 ) -> 0 | AI157: =IF(AND($I133 = SUM($W133:AI133), SUM($W157:AH157) = 0 ), $I133, 0 ) -> 0 | AJ157: =IF(AND($I133 = SUM($W133:AJ133), SUM($W157:AI157) = 0 ), $I133, 0 ) -> 0 | AK157: =IF(AND($I133 = SUM($W133:AK133), SUM($W157:AJ157) = 0 ), $I133, 0 ) -> 0 | AL157: =IF(AND($I133 = SUM($W133:AL133), SUM($W157:AK157) = 0 ), $I133, 0 ) -> 0 | AM157: =IF(AND($I133 = SUM($W133:AM133), SUM($W157:AL157) = 0 ), $I133, 0 ) -> 0 | AN157: =IF(AND($I133 = SUM($W133:AN133), SUM($W157:AM157) = 0 ), $I133, 0 ) -> 0 | AO157: =IF(AND($I133 = SUM($W133:AO133), SUM($W157:AN157) = 0 ), $I133, 0 ) -> 0
E158: 2008-03-31 | G158: £m 09/10 prices | J158: > | X158: =IF(AND($I134 = SUM($W134:X134), SUM($W158:W158) = 0 ), $I134, 0 ) -> 0 | Y158: =IF(AND($I134 = SUM($W134:Y134), SUM($W158:X158) = 0 ), $I134, 0 ) -> 0 | Z158: =IF(AND($I134 = SUM($W134:Z134), SUM($W158:Y158) = 0 ), $I134, 0 ) -> 0 | AA158: =IF(AND($I134 = SUM($W134:AA134), SUM($W158:Z158) = 0 ), $I134, 0 ) -> 0 | AB158: =IF(AND($I134 = SUM($W134:AB134), SUM($W158:AA158) = 0 ), $I134, 0 ) -> 0 | AC158: =IF(AND($I134 = SUM($W134:AC134), SUM($W158:AB158) = 0 ), $I134, 0 ) -> 0 | AD158: =IF(AND($I134 = SUM($W134:AD134), SUM($W158:AC158) = 0 ), $I134, 0 ) -> 0 | AE158: =IF(AND($I134 = SUM($W134:AE134), SUM($W158:AD158) = 0 ), $I134, 0 ) -> 0 | AF158: =IF(AND($I134 = SUM($W134:AF134), SUM($W158:AE158) = 0 ), $I134, 0 ) -> 0 | AG158: =IF(AND($I134 = SUM($W134:AG134), SUM($W158:AF158) = 0 ), $I134, 0 ) -> 0 | AH158: =IF(AND($I134 = SUM($W134:AH134), SUM($W158:AG158) = 0 ), $I134, 0 ) -> 0 | AI158: =IF(AND($I134 = SUM($W134:AI134), SUM($W158:AH158) = 0 ), $I134, 0 ) -> 0 | AJ158: =IF(AND($I134 = SUM($W134:AJ134), SUM($W158:AI158) = 0 ), $I134, 0 ) -> 0 | AK158: =IF(AND($I134 = SUM($W134:AK134), SUM($W158:AJ158) = 0 ), $I134, 0 ) -> 0 | AL158: =IF(AND($I134 = SUM($W134:AL134), SUM($W158:AK158) = 0 ), $I134, 0 ) -> 0 | AM158: =IF(AND($I134 = SUM($W134:AM134), SUM($W158:AL158) = 0 ), $I134, 0 ) -> 0 | AN158: =IF(AND($I134 = SUM($W134:AN134), SUM($W158:AM158) = 0 ), $I134, 0 ) -> 0 | AO158: =IF(AND($I134 = SUM($W134:AO134), SUM($W158:AN158) = 0 ), $I134, 0 ) -> 0
E159: 2009-03-31 | G159: £m 09/10 prices | J159: > | X159: =IF(AND($I135 = SUM($W135:X135), SUM($W159:W159) = 0 ), $I135, 0 ) -> 0 | Y159: =IF(AND($I135 = SUM($W135:Y135), SUM($W159:X159) = 0 ), $I135, 0 ) -> 0 | Z159: =IF(AND($I135 = SUM($W135:Z135), SUM($W159:Y159) = 0 ), $I135, 0 ) -> 0 | AA159: =IF(AND($I135 = SUM($W135:AA135), SUM($W159:Z159) = 0 ), $I135, 0 ) -> 0 | AB159: =IF(AND($I135 = SUM($W135:AB135), SUM($W159:AA159) = 0 ), $I135, 0 ) -> 0 | AC159: =IF(AND($I135 = SUM($W135:AC135), SUM($W159:AB159) = 0 ), $I135, 0 ) -> 0 | AD159: =IF(AND($I135 = SUM($W135:AD135), SUM($W159:AC159) = 0 ), $I135, 0 ) -> 0 | AE159: =IF(AND($I135 = SUM($W135:AE135), SUM($W159:AD159) = 0 ), $I135, 0 ) -> 0 | AF159: =IF(AND($I135 = SUM($W135:AF135), SUM($W159:AE159) = 0 ), $I135, 0 ) -> 0 | AG159: =IF(AND($I135 = SUM($W135:AG135), SUM($W159:AF159) = 0 ), $I135, 0 ) -> 0 | AH159: =IF(AND($I135 = SUM($W135:AH135), SUM($W159:AG159) = 0 ), $I135, 0 ) -> 0 | AI159: =IF(AND($I135 = SUM($W135:AI135), SUM($W159:AH159) = 0 ), $I135, 0 ) -> 0 | AJ159: =IF(AND($I135 = SUM($W135:AJ135), SUM($W159:AI159) = 0 ), $I135, 0 ) -> 0 | AK159: =IF(AND($I135 = SUM($W135:AK135), SUM($W159:AJ159) = 0 ), $I135, 0 ) -> 0 | AL159: =IF(AND($I135 = SUM($W135:AL135), SUM($W159:AK159) = 0 ), $I135, 0 ) -> 0 | AM159: =IF(AND($I135 = SUM($W135:AM135), SUM($W159:AL159) = 0 ), $I135, 0 ) -> 0 | AN159: =IF(AND($I135 = SUM($W135:AN135), SUM($W159:AM159) = 0 ), $I135, 0 ) -> 0 | AO159: =IF(AND($I135 = SUM($W135:AO135), SUM($W159:AN159) = 0 ), $I135, 0 ) -> 0
E160: 2010-03-31 | G160: £m 09/10 prices | J160: > | X160: =IF(AND($I136 = SUM($W136:X136), SUM($W160:W160) = 0 ), $I136, 0 ) -> 0 | Y160: =IF(AND($I136 = SUM($W136:Y136), SUM($W160:X160) = 0 ), $I136, 0 ) -> 0 | Z160: =IF(AND($I136 = SUM($W136:Z136), SUM($W160:Y160) = 0 ), $I136, 0 ) -> 0 | AA160: =IF(AND($I136 = SUM($W136:AA136), SUM($W160:Z160) = 0 ), $I136, 0 ) -> 0 | AB160: =IF(AND($I136 = SUM($W136:AB136), SUM($W160:AA160) = 0 ), $I136, 0 ) -> 0 | AC160: =IF(AND($I136 = SUM($W136:AC136), SUM($W160:AB160) = 0 ), $I136, 0 ) -> 0 | AD160: =IF(AND($I136 = SUM($W136:AD136), SUM($W160:AC160) = 0 ), $I136, 0 ) -> 0 | AE160: =IF(AND($I136 = SUM($W136:AE136), SUM($W160:AD160) = 0 ), $I136, 0 ) -> 0 | AF160: =IF(AND($I136 = SUM($W136:AF136), SUM($W160:AE160) = 0 ), $I136, 0 ) -> 0 | AG160: =IF(AND($I136 = SUM($W136:AG136), SUM($W160:AF160) = 0 ), $I136, 0 ) -> 0 | AH160: =IF(AND($I136 = SUM($W136:AH136), SUM($W160:AG160) = 0 ), $I136, 0 ) -> 0 | AI160: =IF(AND($I136 = SUM($W136:AI136), SUM($W160:AH160) = 0 ), $I136, 0 ) -> 0 | AJ160: =IF(AND($I136 = SUM($W136:AJ136), SUM($W160:AI160) = 0 ), $I136, 0 ) -> 0 | AK160: =IF(AND($I136 = SUM($W136:AK136), SUM($W160:AJ160) = 0 ), $I136, 0 ) -> 0 | AL160: =IF(AND($I136 = SUM($W136:AL136), SUM($W160:AK160) = 0 ), $I136, 0 ) -> 0 | AM160: =IF(AND($I136 = SUM($W136:AM136), SUM($W160:AL160) = 0 ), $I136, 0 ) -> 0 | AN160: =IF(AND($I136 = SUM($W136:AN136), SUM($W160:AM160) = 0 ), $I136, 0 ) -> 0 | AO160: =IF(AND($I136 = SUM($W136:AO136), SUM($W160:AN160) = 0 ), $I136, 0 ) -> 0
E161: 2011-03-31 | G161: £m 09/10 prices | J161: > | X161: =IF(AND($I137 = SUM($W137:X137), SUM($W161:W161) = 0 ), $I137, 0 ) -> 0 | Y161: =IF(AND($I137 = SUM($W137:Y137), SUM($W161:X161) = 0 ), $I137, 0 ) -> 0 | Z161: =IF(AND($I137 = SUM($W137:Z137), SUM($W161:Y161) = 0 ), $I137, 0 ) -> 0 | AA161: =IF(AND($I137 = SUM($W137:AA137), SUM($W161:Z161) = 0 ), $I137, 0 ) -> 0 | AB161: =IF(AND($I137 = SUM($W137:AB137), SUM($W161:AA161) = 0 ), $I137, 0 ) -> 0 | AC161: =IF(AND($I137 = SUM($W137:AC137), SUM($W161:AB161) = 0 ), $I137, 0 ) -> 0 | AD161: =IF(AND($I137 = SUM($W137:AD137), SUM($W161:AC161) = 0 ), $I137, 0 ) -> 0 | AE161: =IF(AND($I137 = SUM($W137:AE137), SUM($W161:AD161) = 0 ), $I137, 0 ) -> 0 | AF161: =IF(AND($I137 = SUM($W137:AF137), SUM($W161:AE161) = 0 ), $I137, 0 ) -> 0 | AG161: =IF(AND($I137 = SUM($W137:AG137), SUM($W161:AF161) = 0 ), $I137, 0 ) -> 0 | AH161: =IF(AND($I137 = SUM($W137:AH137), SUM($W161:AG161) = 0 ), $I137, 0 ) -> 0 | AI161: =IF(AND($I137 = SUM($W137:AI137), SUM($W161:AH161) = 0 ), $I137, 0 ) -> 0 | AJ161: =IF(AND($I137 = SUM($W137:AJ137), SUM($W161:AI161) = 0 ), $I137, 0 ) -> 0 | AK161: =IF(AND($I137 = SUM($W137:AK137), SUM($W161:AJ161) = 0 ), $I137, 0 ) -> 0 | AL161: =IF(AND($I137 = SUM($W137:AL137), SUM($W161:AK161) = 0 ), $I137, 0 ) -> 0 | AM161: =IF(AND($I137 = SUM($W137:AM137), SUM($W161:AL161) = 0 ), $I137, 0 ) -> 0 | AN161: =IF(AND($I137 = SUM($W137:AN137), SUM($W161:AM161) = 0 ), $I137, 0 ) -> 0 | AO161: =IF(AND($I137 = SUM($W137:AO137), SUM($W161:AN161) = 0 ), $I137, 0 ) -> 0
E162: 2012-03-31 | G162: £m 09/10 prices | J162: > | X162: =IF(AND($I138 = SUM($W138:X138), SUM($W162:W162) = 0 ), $I138, 0 ) -> 0 | Y162: =IF(AND($I138 = SUM($W138:Y138), SUM($W162:X162) = 0 ), $I138, 0 ) -> 0 | Z162: =IF(AND($I138 = SUM($W138:Z138), SUM($W162:Y162) = 0 ), $I138, 0 ) -> 0 | AA162: =IF(AND($I138 = SUM($W138:AA138), SUM($W162:Z162) = 0 ), $I138, 0 ) -> 0 | AB162: =IF(AND($I138 = SUM($W138:AB138), SUM($W162:AA162) = 0 ), $I138, 0 ) -> 0 | AC162: =IF(AND($I138 = SUM($W138:AC138), SUM($W162:AB162) = 0 ), $I138, 0 ) -> 0 | AD162: =IF(AND($I138 = SUM($W138:AD138), SUM($W162:AC162) = 0 ), $I138, 0 ) -> 0 | AE162: =IF(AND($I138 = SUM($W138:AE138), SUM($W162:AD162) = 0 ), $I138, 0 ) -> 0 | AF162: =IF(AND($I138 = SUM($W138:AF138), SUM($W162:AE162) = 0 ), $I138, 0 ) -> 0 | AG162: =IF(AND($I138 = SUM($W138:AG138), SUM($W162:AF162) = 0 ), $I138, 0 ) -> 0 | AH162: =IF(AND($I138 = SUM($W138:AH138), SUM($W162:AG162) = 0 ), $I138, 0 ) -> 0 | AI162: =IF(AND($I138 = SUM($W138:AI138), SUM($W162:AH162) = 0 ), $I138, 0 ) -> 0 | AJ162: =IF(AND($I138 = SUM($W138:AJ138), SUM($W162:AI162) = 0 ), $I138, 0 ) -> 0 | AK162: =IF(AND($I138 = SUM($W138:AK138), SUM($W162:AJ162) = 0 ), $I138, 0 ) -> 0 | AL162: =IF(AND($I138 = SUM($W138:AL138), SUM($W162:AK162) = 0 ), $I138, 0 ) -> 0 | AM162: =IF(AND($I138 = SUM($W138:AM138), SUM($W162:AL162) = 0 ), $I138, 0 ) -> 0 | AN162: =IF(AND($I138 = SUM($W138:AN138), SUM($W162:AM162) = 0 ), $I138, 0 ) -> 0 | AO162: =IF(AND($I138 = SUM($W138:AO138), SUM($W162:AN162) = 0 ), $I138, 0 ) -> 0
E163: 2013-03-31 | G163: £m 09/10 prices | J163: > | X163: =IF(AND($I139 = SUM($W139:X139), SUM($W163:W163) = 0 ), $I139, 0 ) -> 0 | Y163: =IF(AND($I139 = SUM($W139:Y139), SUM($W163:X163) = 0 ), $I139, 0 ) -> 0 | Z163: =IF(AND($I139 = SUM($W139:Z139), SUM($W163:Y163) = 0 ), $I139, 0 ) -> 0 | AA163: =IF(AND($I139 = SUM($W139:AA139), SUM($W163:Z163) = 0 ), $I139, 0 ) -> 0 | AB163: =IF(AND($I139 = SUM($W139:AB139), SUM($W163:AA163) = 0 ), $I139, 0 ) -> 0 | AC163: =IF(AND($I139 = SUM($W139:AC139), SUM($W163:AB163) = 0 ), $I139, 0 ) -> 0 | AD163: =IF(AND($I139 = SUM($W139:AD139), SUM($W163:AC163) = 0 ), $I139, 0 ) -> 0 | AE163: =IF(AND($I139 = SUM($W139:AE139), SUM($W163:AD163) = 0 ), $I139, 0 ) -> 0 | AF163: =IF(AND($I139 = SUM($W139:AF139), SUM($W163:AE163) = 0 ), $I139, 0 ) -> 0 | AG163: =IF(AND($I139 = SUM($W139:AG139), SUM($W163:AF163) = 0 ), $I139, 0 ) -> 0 | AH163: =IF(AND($I139 = SUM($W139:AH139), SUM($W163:AG163) = 0 ), $I139, 0 ) -> 0 | AI163: =IF(AND($I139 = SUM($W139:AI139), SUM($W163:AH163) = 0 ), $I139, 0 ) -> 0 | AJ163: =IF(AND($I139 = SUM($W139:AJ139), SUM($W163:AI163) = 0 ), $I139, 0 ) -> 0 | AK163: =IF(AND($I139 = SUM($W139:AK139), SUM($W163:AJ163) = 0 ), $I139, 0 ) -> 0 | AL163: =IF(AND($I139 = SUM($W139:AL139), SUM($W163:AK163) = 0 ), $I139, 0 ) -> 0 | AM163: =IF(AND($I139 = SUM($W139:AM139), SUM($W163:AL163) = 0 ), $I139, 0 ) -> 0 | AN163: =IF(AND($I139 = SUM($W139:AN139), SUM($W163:AM163) = 0 ), $I139, 0 ) -> 0 | AO163: =IF(AND($I139 = SUM($W139:AO139), SUM($W163:AN163) = 0 ), $I139, 0 ) -> 0
E164: 2014-03-31 | G164: £m 09/10 prices | J164: > | X164: =IF(AND($I140 = SUM($W140:X140), SUM($W164:W164) = 0 ), $I140, 0 ) -> 0 | Y164: =IF(AND($I140 = SUM($W140:Y140), SUM($W164:X164) = 0 ), $I140, 0 ) -> 0 | Z164: =IF(AND($I140 = SUM($W140:Z140), SUM($W164:Y164) = 0 ), $I140, 0 ) -> 0 | AA164: =IF(AND($I140 = SUM($W140:AA140), SUM($W164:Z164) = 0 ), $I140, 0 ) -> 0 | AB164: =IF(AND($I140 = SUM($W140:AB140), SUM($W164:AA164) = 0 ), $I140, 0 ) -> 0 | AC164: =IF(AND($I140 = SUM($W140:AC140), SUM($W164:AB164) = 0 ), $I140, 0 ) -> 0 | AD164: =IF(AND($I140 = SUM($W140:AD140), SUM($W164:AC164) = 0 ), $I140, 0 ) -> 0 | AE164: =IF(AND($I140 = SUM($W140:AE140), SUM($W164:AD164) = 0 ), $I140, 0 ) -> 0 | AF164: =IF(AND($I140 = SUM($W140:AF140), SUM($W164:AE164) = 0 ), $I140, 0 ) -> 0 | AG164: =IF(AND($I140 = SUM($W140:AG140), SUM($W164:AF164) = 0 ), $I140, 0 ) -> 0 | AH164: =IF(AND($I140 = SUM($W140:AH140), SUM($W164:AG164) = 0 ), $I140, 0 ) -> 0 | AI164: =IF(AND($I140 = SUM($W140:AI140), SUM($W164:AH164) = 0 ), $I140, 0 ) -> 0 | AJ164: =IF(AND($I140 = SUM($W140:AJ140), SUM($W164:AI164) = 0 ), $I140, 0 ) -> 0 | AK164: =IF(AND($I140 = SUM($W140:AK140), SUM($W164:AJ164) = 0 ), $I140, 0 ) -> 0 | AL164: =IF(AND($I140 = SUM($W140:AL140), SUM($W164:AK164) = 0 ), $I140, 0 ) -> 0 | AM164: =IF(AND($I140 = SUM($W140:AM140), SUM($W164:AL164) = 0 ), $I140, 0 ) -> 0 | AN164: =IF(AND($I140 = SUM($W140:AN140), SUM($W164:AM164) = 0 ), $I140, 0 ) -> 0 | AO164: =IF(AND($I140 = SUM($W140:AO140), SUM($W164:AN164) = 0 ), $I140, 0 ) -> 0
E165: 2015-03-31 | G165: £m 09/10 prices | J165: > | X165: =IF(AND($I141 = SUM($W141:X141), SUM($W165:W165) = 0 ), $I141, 0 ) -> 0 | Y165: =IF(AND($I141 = SUM($W141:Y141), SUM($W165:X165) = 0 ), $I141, 0 ) -> 0 | Z165: =IF(AND($I141 = SUM($W141:Z141), SUM($W165:Y165) = 0 ), $I141, 0 ) -> 0 | AA165: =IF(AND($I141 = SUM($W141:AA141), SUM($W165:Z165) = 0 ), $I141, 0 ) -> 0 | AB165: =IF(AND($I141 = SUM($W141:AB141), SUM($W165:AA165) = 0 ), $I141, 0 ) -> 0 | AC165: =IF(AND($I141 = SUM($W141:AC141), SUM($W165:AB165) = 0 ), $I141, 0 ) -> 0 | AD165: =IF(AND($I141 = SUM($W141:AD141), SUM($W165:AC165) = 0 ), $I141, 0 ) -> 0 | AE165: =IF(AND($I141 = SUM($W141:AE141), SUM($W165:AD165) = 0 ), $I141, 0 ) -> 0 | AF165: =IF(AND($I141 = SUM($W141:AF141), SUM($W165:AE165) = 0 ), $I141, 0 ) -> 0 | AG165: =IF(AND($I141 = SUM($W141:AG141), SUM($W165:AF165) = 0 ), $I141, 0 ) -> 0 | AH165: =IF(AND($I141 = SUM($W141:AH141), SUM($W165:AG165) = 0 ), $I141, 0 ) -> 0 | AI165: =IF(AND($I141 = SUM($W141:AI141), SUM($W165:AH165) = 0 ), $I141, 0 ) -> 0 | AJ165: =IF(AND($I141 = SUM($W141:AJ141), SUM($W165:AI165) = 0 ), $I141, 0 ) -> 0 | AK165: =IF(AND($I141 = SUM($W141:AK141), SUM($W165:AJ165) = 0 ), $I141, 0 ) -> 0 | AL165: =IF(AND($I141 = SUM($W141:AL141), SUM($W165:AK165) = 0 ), $I141, 0 ) -> 0 | AM165: =IF(AND($I141 = SUM($W141:AM141), SUM($W165:AL165) = 0 ), $I141, 0 ) -> 0 | AN165: =IF(AND($I141 = SUM($W141:AN141), SUM($W165:AM165) = 0 ), $I141, 0 ) -> 0 | AO165: =IF(AND($I141 = SUM($W141:AO141), SUM($W165:AN165) = 0 ), $I141, 0 ) -> 0
E166: 2016-03-31 | G166: £m 09/10 prices | J166: > | X166: =IF(AND($I142 = SUM($W142:X142), SUM($W166:W166) = 0 ), $I142, 0 ) -> 0 | Y166: =IF(AND($I142 = SUM($W142:Y142), SUM($W166:X166) = 0 ), $I142, 0 ) -> 0 | Z166: =IF(AND($I142 = SUM($W142:Z142), SUM($W166:Y166) = 0 ), $I142, 0 ) -> 0 | AA166: =IF(AND($I142 = SUM($W142:AA142), SUM($W166:Z166) = 0 ), $I142, 0 ) -> 0 | AB166: =IF(AND($I142 = SUM($W142:AB142), SUM($W166:AA166) = 0 ), $I142, 0 ) -> 0 | AC166: =IF(AND($I142 = SUM($W142:AC142), SUM($W166:AB166) = 0 ), $I142, 0 ) -> 0 | AD166: =IF(AND($I142 = SUM($W142:AD142), SUM($W166:AC166) = 0 ), $I142, 0 ) -> 0 | AE166: =IF(AND($I142 = SUM($W142:AE142), SUM($W166:AD166) = 0 ), $I142, 0 ) -> 0 | AF166: =IF(AND($I142 = SUM($W142:AF142), SUM($W166:AE166) = 0 ), $I142, 0 ) -> 0 | AG166: =IF(AND($I142 = SUM($W142:AG142), SUM($W166:AF166) = 0 ), $I142, 0 ) -> 0 | AH166: =IF(AND($I142 = SUM($W142:AH142), SUM($W166:AG166) = 0 ), $I142, 0 ) -> 0 | AI166: =IF(AND($I142 = SUM($W142:AI142), SUM($W166:AH166) = 0 ), $I142, 0 ) -> 0 | AJ166: =IF(AND($I142 = SUM($W142:AJ142), SUM($W166:AI166) = 0 ), $I142, 0 ) -> 0 | AK166: =IF(AND($I142 = SUM($W142:AK142), SUM($W166:AJ166) = 0 ), $I142, 0 ) -> 0 | AL166: =IF(AND($I142 = SUM($W142:AL142), SUM($W166:AK166) = 0 ), $I142, 0 ) -> 0 | AM166: =IF(AND($I142 = SUM($W142:AM142), SUM($W166:AL166) = 0 ), $I142, 0 ) -> 0 | AN166: =IF(AND($I142 = SUM($W142:AN142), SUM($W166:AM166) = 0 ), $I142, 0 ) -> 0 | AO166: =IF(AND($I142 = SUM($W142:AO142), SUM($W166:AN166) = 0 ), $I142, 0 ) -> 0
E167: 2017-03-31 | G167: £m 09/10 prices | J167: > | X167: =IF(AND($I143 = SUM($W143:X143), SUM($W167:W167) = 0 ), $I143, 0 ) -> 0 | Y167: =IF(AND($I143 = SUM($W143:Y143), SUM($W167:X167) = 0 ), $I143, 0 ) -> 0 | Z167: =IF(AND($I143 = SUM($W143:Z143), SUM($W167:Y167) = 0 ), $I143, 0 ) -> 0 | AA167: =IF(AND($I143 = SUM($W143:AA143), SUM($W167:Z167) = 0 ), $I143, 0 ) -> 0 | AB167: =IF(AND($I143 = SUM($W143:AB143), SUM($W167:AA167) = 0 ), $I143, 0 ) -> 0 | AC167: =IF(AND($I143 = SUM($W143:AC143), SUM($W167:AB167) = 0 ), $I143, 0 ) -> 0 | AD167: =IF(AND($I143 = SUM($W143:AD143), SUM($W167:AC167) = 0 ), $I143, 0 ) -> 0 | AE167: =IF(AND($I143 = SUM($W143:AE143), SUM($W167:AD167) = 0 ), $I143, 0 ) -> 0 | AF167: =IF(AND($I143 = SUM($W143:AF143), SUM($W167:AE167) = 0 ), $I143, 0 ) -> 0 | AG167: =IF(AND($I143 = SUM($W143:AG143), SUM($W167:AF167) = 0 ), $I143, 0 ) -> 0 | AH167: =IF(AND($I143 = SUM($W143:AH143), SUM($W167:AG167) = 0 ), $I143, 0 ) -> 0 | AI167: =IF(AND($I143 = SUM($W143:AI143), SUM($W167:AH167) = 0 ), $I143, 0 ) -> 0 | AJ167: =IF(AND($I143 = SUM($W143:AJ143), SUM($W167:AI167) = 0 ), $I143, 0 ) -> 0 | AK167: =IF(AND($I143 = SUM($W143:AK143), SUM($W167:AJ167) = 0 ), $I143, 0 ) -> 0 | AL167: =IF(AND($I143 = SUM($W143:AL143), SUM($W167:AK167) = 0 ), $I143, 0 ) -> 0 | AM167: =IF(AND($I143 = SUM($W143:AM143), SUM($W167:AL167) = 0 ), $I143, 0 ) -> 0 | AN167: =IF(AND($I143 = SUM($W143:AN143), SUM($W167:AM167) = 0 ), $I143, 0 ) -> 0 | AO167: =IF(AND($I143 = SUM($W143:AO143), SUM($W167:AN167) = 0 ), $I143, 0 ) -> 0
E168: 2018-03-31 | G168: £m 09/10 prices | J168: > | X168: =IF(AND($I144 = SUM($W144:X144), SUM($W168:W168) = 0 ), $I144, 0 ) -> 0 | Y168: =IF(AND($I144 = SUM($W144:Y144), SUM($W168:X168) = 0 ), $I144, 0 ) -> 0 | Z168: =IF(AND($I144 = SUM($W144:Z144), SUM($W168:Y168) = 0 ), $I144, 0 ) -> 0 | AA168: =IF(AND($I144 = SUM($W144:AA144), SUM($W168:Z168) = 0 ), $I144, 0 ) -> 0 | AB168: =IF(AND($I144 = SUM($W144:AB144), SUM($W168:AA168) = 0 ), $I144, 0 ) -> 0 | AC168: =IF(AND($I144 = SUM($W144:AC144), SUM($W168:AB168) = 0 ), $I144, 0 ) -> 0 | AD168: =IF(AND($I144 = SUM($W144:AD144), SUM($W168:AC168) = 0 ), $I144, 0 ) -> 0 | AE168: =IF(AND($I144 = SUM($W144:AE144), SUM($W168:AD168) = 0 ), $I144, 0 ) -> 0 | AF168: =IF(AND($I144 = SUM($W144:AF144), SUM($W168:AE168) = 0 ), $I144, 0 ) -> 0 | AG168: =IF(AND($I144 = SUM($W144:AG144), SUM($W168:AF168) = 0 ), $I144, 0 ) -> 0 | AH168: =IF(AND($I144 = SUM($W144:AH144), SUM($W168:AG168) = 0 ), $I144, 0 ) -> 0 | AI168: =IF(AND($I144 = SUM($W144:AI144), SUM($W168:AH168) = 0 ), $I144, 0 ) -> 0 | AJ168: =IF(AND($I144 = SUM($W144:AJ144), SUM($W168:AI168) = 0 ), $I144, 0 ) -> 0 | AK168: =IF(AND($I144 = SUM($W144:AK144), SUM($W168:AJ168) = 0 ), $I144, 0 ) -> 0 | AL168: =IF(AND($I144 = SUM($W144:AL144), SUM($W168:AK168) = 0 ), $I144, 0 ) -> 0 | AM168: =IF(AND($I144 = SUM($W144:AM144), SUM($W168:AL168) = 0 ), $I144, 0 ) -> 0 | AN168: =IF(AND($I144 = SUM($W144:AN144), SUM($W168:AM168) = 0 ), $I144, 0 ) -> 0 | AO168: =IF(AND($I144 = SUM($W144:AO144), SUM($W168:AN168) = 0 ), $I144, 0 ) -> 0
E169: 2019-03-31 | G169: £m 09/10 prices | J169: > | X169: =IF(AND($I145 = SUM($W145:X145), SUM($W169:W169) = 0 ), $I145, 0 ) -> 0 | Y169: =IF(AND($I145 = SUM($W145:Y145), SUM($W169:X169) = 0 ), $I145, 0 ) -> 0 | Z169: =IF(AND($I145 = SUM($W145:Z145), SUM($W169:Y169) = 0 ), $I145, 0 ) -> 0 | AA169: =IF(AND($I145 = SUM($W145:AA145), SUM($W169:Z169) = 0 ), $I145, 0 ) -> 0 | AB169: =IF(AND($I145 = SUM($W145:AB145), SUM($W169:AA169) = 0 ), $I145, 0 ) -> 0 | AC169: =IF(AND($I145 = SUM($W145:AC145), SUM($W169:AB169) = 0 ), $I145, 0 ) -> 0 | AD169: =IF(AND($I145 = SUM($W145:AD145), SUM($W169:AC169) = 0 ), $I145, 0 ) -> 0 | AE169: =IF(AND($I145 = SUM($W145:AE145), SUM($W169:AD169) = 0 ), $I145, 0 ) -> 0 | AF169: =IF(AND($I145 = SUM($W145:AF145), SUM($W169:AE169) = 0 ), $I145, 0 ) -> 0 | AG169: =IF(AND($I145 = SUM($W145:AG145), SUM($W169:AF169) = 0 ), $I145, 0 ) -> 0 | AH169: =IF(AND($I145 = SUM($W145:AH145), SUM($W169:AG169) = 0 ), $I145, 0 ) -> 0 | AI169: =IF(AND($I145 = SUM($W145:AI145), SUM($W169:AH169) = 0 ), $I145, 0 ) -> 0 | AJ169: =IF(AND($I145 = SUM($W145:AJ145), SUM($W169:AI169) = 0 ), $I145, 0 ) -> 0 | AK169: =IF(AND($I145 = SUM($W145:AK145), SUM($W169:AJ169) = 0 ), $I145, 0 ) -> 0 | AL169: =IF(AND($I145 = SUM($W145:AL145), SUM($W169:AK169) = 0 ), $I145, 0 ) -> 0 | AM169: =IF(AND($I145 = SUM($W145:AM145), SUM($W169:AL169) = 0 ), $I145, 0 ) -> 0 | AN169: =IF(AND($I145 = SUM($W145:AN145), SUM($W169:AM169) = 0 ), $I145, 0 ) -> 0 | AO169: =IF(AND($I145 = SUM($W145:AO145), SUM($W169:AN169) = 0 ), $I145, 0 ) -> 0
